Workbook

Sheet Instrucciones
B3: CALIFICACIÓN DE LAS COMPETENCIAS CLAVE Y DE LAS MATERIAS 2º_BACH_ARTES_Vía Música y Artes Escénicas
B6: INSTRUCCIONES 1. INCORPORAR LOS CRITERIOS DE CALIFICACIÓN DE LAS COMPETENCIAS CLAVE BOTÓN: "INCORPORAR LOS CRITERIOS DE CALIFICACIÓN DE LAS COMPETENCIAS CLAVE." Para introducir los criterios de calificación de las competencias clave hay que seleccionar una opción en cada uno de los siguientes campos: -Pesos de los criterios de evaluación en el cálculo de la calificación de los descriptores operativos. -Pesos de los descriptores operativos en el cálculo de la calificación de las competencias clave. Si se considera, se puede bloquear la información introducida pulsado en el botón "PROTEGIDA" e introduciendo una contaseña. En caso de querer desbloquear la página se debe pulsar en el botón "DESPROTEGIDA" e introducir la contraseña marcada. 2. INCORPORAR EL NOMBRE DE LOS ALUMNOS QUE COMPONEN EL GRUPO. BOTÓN: "INCORPORAR EL LISTADO DE ALUMNOS" Introducir el nombre de todos los alumnos que componen el grupo-clase. Marcar las materias de opción que cursa cada alumno, inlcuidas las materias pendientes de primer curso de bachillerato. Pulsando sobre el botón "informe" en cada alumnno se visualiza de forma individualizada la composición de las calificaciones de las materias y de las competencias clave a partir de las notas de los criterios de evaluación. Además, se incorporan dos botones para facilitar el trabajo colaborativo a través de TEAMS o Onedrive. El procedimiento es el siguiente: 1º Se pulsa el botón superior de esta sección TEAMS/Onedrive; 2º Una vez guardado el archivo, se comparte con las citadas aplicaciones; 3º Los docentes incorporan las céntésimas de redondeo de su materia en la pestaña "Redondeo" y las notas de los criterios de evaluación en la pestaña correspondiente a su materia; 4º Se descarga el archivo y se pulsa en el segundo botón de esta sección TEAMS/Onedrive para normalizar su funcionamiento y poder visualizar toda la información que esta herramienta ofrece. 3. INCORPORAR LAS CALIFICACIONES DE LOS CRITERIOS DE EVALUACIÓN DE LAS MATERIAS CURSADAS POR EL ALUMNO. BOTÓN: "INCORPORAR LA CALIFICACIÓN POR MATERIAS DE LOS CRITERIOS DE EVALUACIÓN " Seleccionar la materia. En la pestaña de destino introducir los pesos (ponderaciones) de cada criterio de evaluación (es decir, los criterios de calificación de la materia) y las calificaciones de los criterios de evaluación para los alumnos que cursen la materia o, en su caso, la calificación de la materia. 4. OBSERVAR LAS NOTAS DE LAS COMPETENCIAS CLAVE DE LOS ALUMNOS. BOTÓN: "VISUALIZAR LAS NOTAS DE LAS COMPETENCIAS CLAVE" Permite observar las notas de las competencias clave de cada alumno en función de los criterios de calificación de las competencias clave introducidos. Además, desde la pantalla de destino se puede generar un documento para exportar las notas de las competencias clave a STILUS. Para ello, previamente es necesario introducir las centésimas de redondeo de las notas de las competencias clave en la celda creada al efecto. 5. OBSERVAR LAS NOTAS DE LAS MATERIAS DE LOS ALUMNOS. BOTÓN: "VISUALIZAR LAS NOTAS DE LAS MATERIAS" Permite observar las notas de las materias de cada alumno, en función de los criterios de calificación de la materia introducidos. Además, desde la pantalla de destino se puede generar un documento para exportar las notas de las materias a STILUS.

Sheet Criterios de calificacion CClav
D4: CRITERIOS DE CALIFICACIÓN DE LAS COMPETENCIAS CLAVE
D6: Pesos de los criterios de evaluación en el cálculo de la calificación de los descriptores operativos
E8: MEDIA SIMPLE. Se aplica un criterio común para el cálculo de la calificación de todos los descriptores. Todos los criterios de evaluación pesan (ponderan) los mismo en la calificaión de los descriptores operativos.
E10: MEDIA PONDERADA POR CARGA HORARIA. Se aplica un criterio común para el cálculo de la calificación de todos los descriptores. El peso de los criterios de evaluación se determina en función de la carga horaria de la materia. (RECOMENDADO)
E12: LIBRE. Se aplica un criterio común para el cálculo de la calificación de todos los descriptores. El peso de cada criterio de evaluación en la calificación de los descriptores se determina por el centro.
E14: LIBRE DIFERENCIADO POR DESCRIPTORES. Se aplica un criterio diferenciado para el cálculo de la calificación de cada descriptor. El peso de cada criterio de evaluación en la calificación de cada descriptor se determina por el centro.
D16: Pesos de los descriptores operativos en el cálculo de la calificación de las competencias clave
E18: MEDIA PONDERADA. El peso de los descriptores operativos en el cálculo de la calificación de la competencia clave se determina en proporción al número de vinculaciones de cada descriptor operativo con los criterios de evaluación (RECOMENDADO)
E20: LIBRE. El peso (ponderación) de los descriptores operativos en el cálculo de la calificación de la competencia clave se determina por el centro.

Sheet Peso criterios carga horaria
F2: Mismo peso todos los descriptores
F3: Sí
E4: CALIFICACIÓN | F4: PESO TODOS
B5: Análisis Musical II | C5: Comp. Esp. 1 | D5: Criterio Evaluación 1.1 | F5: 4
D6: Criterio Evaluación 1.2 | F6: 4
D7: Criterio Evaluación 1.3 | F7: 4
D8: Criterio Evaluación 1.4 | F8: 4
D9: Criterio Evaluación 1.5 | F9: 4
D10: Criterio Evaluación 1.6 | F10: 4
C11: Comp. Esp. 2 | D11: Criterio Evaluación 2.1 | F11: 4
D12: Criterio Evaluación 2.2 | F12: 4
D13: Criterio Evaluación 2.3 | F13: 4
D14: Criterio Evaluación 2.4 | F14: 4
C15: Comp. Esp. 3 | D15: Criterio Evaluación 3.1 | F15: 4
D16: Criterio Evaluación 3.2 | F16: 4
D17: Criterio Evaluación 3.3 | F17: 4
D18: Criterio Evaluación 3.4 | F18: 4
C19: Comp. Esp. 4 | D19: Criterio Evaluación 4.1 | F19: 4
D20: Criterio Evaluación 4.2 | F20: 4
D21: Criterio Evaluación 4.3 | F21: 4
D22: Criterio Evaluación 4.4 | F22: 4
C23: Comp. Esp. 5 | D23: Criterio Evaluación 5.1 | F23: 4
D24: Criterio Evaluación 5.2 | F24: 4
D25: Criterio Evaluación 5.3 | F25: 4
B26: Artes Escénicas II | C26: Comp. Esp. 1 | D26: Criterio Evaluación 1.1 | F26: 4
D27: Criterio Evaluación 1.2 | F27: 4
C28: Comp. Esp. 2 | D28: Criterio Evaluación 2.1 | F28: 4
D29: Criterio Evaluación 2.2 | F29: 4
C30: Comp. Esp. 3 | D30: Criterio Evaluación 3.1 | F30: 4
D31: Criterio Evaluación 3.2 | F31: 4
C32: Comp. Esp. 4 | D32: Criterio Evaluación 4.1 | F32: 4
D33: Criterio Evaluación 4.2 | F33: 4
D34: Criterio Evaluación 4.3 | F34: 4
C35: Comp. Esp. 5 | D35: Criterio Evaluación 5.1 | F35: 4
D36: Criterio Evaluación 5.2 | F36: 4
B37: Coro y Técnica Vocal II | C37: Comp. Esp. 1 | D37: Criterio Evaluación 1.1 | F37: 4
D38: Criterio Evaluación 1.2 | F38: 4
D39: Criterio Evaluación 1.3 | F39: 4
D40: Criterio Evaluación 1.4 | F40: 4
C41: Comp. Esp. 2 | D41: Criterio Evaluación 2.1 | F41: 4
D42: Criterio Evaluación 2.2 | F42: 4
C43: Comp. Esp. 3 | D43: Criterio Evaluación 3.1 | F43: 4
D44: Criterio Evaluación 3.2 | F44: 4
D45: Criterio Evaluación 3.3 | F45: 4
C46: Comp. Esp. 4 | D46: Criterio Evaluación 4.1 | F46: 4
D47: Criterio Evaluación 4.2 | F47: 4
D48: Criterio Evaluación 4.3 | F48: 4
B49: Historia de España | C49: Comp. Esp. 1 | D49: Criterio Evaluación 1.1 | F49: 4
D50: Criterio Evaluación 1.2 | F50: 4
C51: Comp. Esp. 2 | D51: Criterio Evaluación 2.1 | F51: 4
D52: Criterio Evaluación 2.2 | F52: 4
C53: Comp. Esp. 3 | D53: Criterio Evaluación 3.1 | F53: 4
D54: Criterio Evaluación 3.2 | F54: 4
C55: Comp. Esp. 4 | D55: Criterio Evaluación 4.1 | F55: 4
D56: Criterio Evaluación 4.2 | F56: 4
D57: Criterio Evaluación 4.3 | F57: 4
C58: Comp. Esp. 5 | D58: Criterio Evaluación 5.1 | F58: 4
D59: Criterio Evaluación 5.2 | F59: 4
D60: Criterio Evaluación 5.3 | F60: 4
C61: Comp. Esp. 6 | D61: Criterio Evaluación 6.1 | F61: 4
D62: Criterio Evaluación 6.2 | F62: 4
C63: Comp. Esp. 7 | D63: Criterio Evaluación 7.1 | F63: 4
D64: Criterio Evaluación 7.2 | F64: 4
C65: Comp. Esp. 8 | D65: Criterio Evaluación 8.1 | F65: 4
B66: Historia de la Filosofía | C66: Comp. Esp. 1 | D66: Criterio Evaluación 1.1 | F66: 3
D67: Criterio Evaluación 1.2 | F67: 3
C68: Comp. Esp. 2 | D68: Criterio Evaluación 2.1 | F68: 3
D69: Criterio Evaluación 2.2 | F69: 3
C70: Comp. Esp. 3 | D70: Criterio Evaluación 3.1 | F70: 3
D71: Criterio Evaluación 3.2 | F71: 3
C72: Comp. Esp. 4 | D72: Criterio Evaluación 4.1 | F72: 3
D73: Criterio Evaluación 4.2 | F73: 3
C74: Comp. Esp. 5 | D74: Criterio Evaluación 5.1 | F74: 3
D75: Criterio Evaluación 5.2 | F75: 3
C76: Comp. Esp. 6 | D76: Criterio Evaluación 6.1 | F76: 3
C77: Comp. Esp. 7 | D77: Criterio Evaluación 7.1 | F77: 3
D78: Criterio Evaluación 7.2 | F78: 3
B79: Historia de la Música y de la Danza | C79: Comp. Esp. 1 | D79: Criterio Evaluación 1.1 | F79: 4
D80: Criterio Evaluación 1.2 | F80: 4
D81: Criterio Evaluación 1.3 | F81: 4
D82: Criterio Evaluación 1.4 | F82: 4
C83: Comp. Esp. 2 | D83: Criterio Evaluación 2.1 | F83: 4
D84: Criterio Evaluación 2.2 | F84: 4
D85: Criterio Evaluación 2.3 | F85: 4
D86: Criterio Evaluación 2.4 | F86: 4
C87: Comp. Esp. 3 | D87: Criterio Evaluación 3.1 | F87: 4
D88: Criterio Evaluación 3.2 | F88: 4
D89: Criterio Evaluación 3.3 | F89: 4
D90: Criterio Evaluación 3.4 | F90: 4
C91: Comp. Esp. 4 | D91: Criterio Evaluación 4.1 | F91: 4
D92: Criterio Evaluación 4.2 | F92: 4
D93: Criterio Evaluación 4.3 | F93: 4
D94: Criterio Evaluación 4.4 | F94: 4
D95: Criterio Evaluación 4.5 | F95: 4
C96: Comp. Esp. 5 | D96: Criterio Evaluación 5.1 | F96: 4
D97: Criterio Evaluación 5.2 | F97: 4
D98: Criterio Evaluación 5.3 | F98: 4
B99: Lengua Castellana y Literatura II | C99: Comp. Esp. 1 | D99: Criterio Evaluación 1.1 | F99: 4
D100: Criterio Evaluación 1.2 | F100: 4
C101: Comp. Esp. 2 | D101: Criterio Evaluación 2.1 | F101: 4
D102: Criterio Evaluación 2.2 | F102: 4
C103: Comp. Esp. 3 | D103: Criterio Evaluación 3.1 | F103: 4
D104: Criterio Evaluación 3.2 | F104: 4
C105: Comp. Esp. 4 | D105: Criterio Evaluación 4.1 | F105: 4
D106: Criterio Evaluación 4.2 | F106: 4
C107: Comp. Esp. 5 | D107: Criterio Evaluación 5.1 | F107: 4
D108: Criterio Evaluación 5.2 | F108: 4
C109: Comp. Esp. 6 | D109: Criterio Evaluación 6.1 | F109: 4
D110: Criterio Evaluación 6.2 | F110: 4
C111: Comp. Esp. 7 | D111: Criterio Evaluación 7.1 | F111: 4
D112: Criterio Evaluación 7.2 | F112: 4
D113: Criterio Evaluación 7.3 | F113: 4
D114: Criterio Evaluación 7.4 | F114: 4
C115: Comp. Esp. 8 | D115: Criterio Evaluación 8.1 | F115: 4
D116: Criterio Evaluación 8.2 | F116: 4
D117: Criterio Evaluación 8.3 | F117: 4
C118: Comp. Esp. 9 | D118: Criterio Evaluación 9.1 | F118: 4
D119: Criterio Evaluación 9.2 | F119: 4
D120: Criterio Evaluación 9.3 | F120: 4
C121: Comp. Esp. 10 | D121: Criterio Evaluación 10.1 | F121: 4
D122: Criterio Evaluación 10.2 | F122: 4
B123: Lengua Extranjera II | C123: Comp. Esp. 1 | D123: Criterio Evaluación 1.1 | F123: 3
D124: Criterio Evaluación 1.2 | F124: 3
D125: Criterio Evaluación 1.3 | F125: 3
D126: Criterio Evaluación 1.4 | F126: 3
D127: Criterio Evaluación 1.5 | F127: 3
C128: Comp. Esp. 2 | D128: Criterio Evaluación 2.1 | F128: 3
D129: Criterio Evaluación 2.2 | F129: 3
D130: Criterio Evaluación 2.3 | F130: 3
D131: Criterio Evaluación 2.4 | F131: 3
C132: Comp. Esp. 3 | D132: Criterio Evaluación 3.1 | F132: 3
D133: Criterio Evaluación 3.2 | F133: 3
C134: Comp. Esp. 4 | D134: Criterio Evaluación 4.1 | F134: 3
D135: Criterio Evaluación 4.2 | F135: 3
C136: Comp. Esp. 5 | D136: Criterio Evaluación 5.1 | F136: 3
D137: Criterio Evaluación 5.2 | F137: 3
D138: Criterio Evaluación 5.3 | F138: 3
C139: Comp. Esp. 6 | D139: Criterio Evaluación 6.1 | F139: 3
D140: Criterio Evaluación 6.2 | F140: 3
D141: Criterio Evaluación 6.3 | F141: 3
D142: Criterio Evaluación 6.4 | F142: 3
B143: Literatura Dramática | C143: Comp. Esp. 1 | D143: Criterio Evaluación 1.1 | F143: 4
D144: Criterio Evaluación 1.2 | F144: 4
C145: Comp. Esp. 2 | D145: Criterio Evaluación 2.1 | F145: 4
D146: Criterio Evaluación 2.2 | F146: 4
C147: Comp. Esp. 3 | D147: Criterio Evaluación 3.1 | F147: 4
D148: Criterio Evaluación 3.2 | F148: 4
D149: Criterio Evaluación 3.3 | F149: 4
C150: Comp. Esp. 4 | D150: Criterio Evaluación 4.1 | F150: 4
C151: Comp. Esp. 5 | D151: Criterio Evaluación 5.1 | F151: 4
D152: Criterio Evaluación 5.2 | F152: 4
B153: Psicología | C153: Comp. Esp. 1 | D153: Criterio Evaluación 1.1 | F153: 4
D154: Criterio Evaluación 1.2 | F154: 4
D155: Criterio Evaluación 1.3 | F155: 4
C156: Comp. Esp. 2 | D156: Criterio Evaluación 2.1 | F156: 4
D157: Criterio Evaluación 2.2 | F157: 4
D158: Criterio Evaluación 2.3 | F158: 4
D159: Criterio Evaluación 2.4 | F159: 4
C160: Comp. Esp. 3 | D160: Criterio Evaluación 3.1 | F160: 4
D161: Criterio Evaluación 3.2 | F161: 4
D162: Criterio Evaluación 3.3 | F162: 4
C163: Comp. Esp. 4 | D163: Criterio Evaluación 4.1 | F163: 4
D164: Criterio Evaluación 4.2 | F164: 4
D165: Criterio Evaluación 4.3 | F165: 4
C166: Comp. Esp. 5 | D166: Criterio Evaluación 5.1 | F166: 4
D167: Criterio Evaluación 5.2 | F167: 4
D168: Criterio Evaluación 5.3 | F168: 4
D169: Criterio Evaluación 5.4 | F169: 4
D170: Criterio Evaluación 5.5 | F170: 4
C171: Comp. Esp. 6 | D171: Criterio Evaluación 6.1 | F171: 4
D172: Criterio Evaluación 6.2 | F172: 4
D173: Criterio Evaluación 6.3 | F173: 4
D174: Criterio Evaluación 6.4 | F174: 4
B175: Segunda Lengua Extranjera II_ALE | C175: Comp. Esp. 1 | D175: Criterio Evaluación 1.1 | F175: 4
D176: Criterio Evaluación 1.2 | F176: 4
D177: Criterio Evaluación 1.3 | F177: 4
D178: Criterio Evaluación 1.4 | F178: 4
D179: Criterio Evaluación 1.5 | F179: 4
C180: Comp. Esp. 2 | D180: Criterio Evaluación 2.1 | F180: 4
D181: Criterio Evaluación 2.2 | F181: 4
D182: Criterio Evaluación 2.3 | F182: 4
D183: Criterio Evaluación 2.4 | F183: 4
C184: Comp. Esp. 3 | D184: Criterio Evaluación 3.1 | F184: 4
D185: Criterio Evaluación 3.2 | F185: 4
C186: Comp. Esp. 4 | D186: Criterio Evaluación 4.1 | F186: 4
D187: Criterio Evaluación 4.2 | F187: 4
C188: Comp. Esp. 5 | D188: Criterio Evaluación 5.1 | F188: 4
D189: Criterio Evaluación 5.2 | F189: 4
D190: Criterio Evaluación 5.3 | F190: 4
C191: Comp. Esp. 6 | D191: Criterio Evaluación 6.1 | F191: 4
D192: Criterio Evaluación 6.2 | F192: 4
D193: Criterio Evaluación 6.3 | F193: 4
D194: Criterio Evaluación 6.4 | F194: 4
B195: Segunda Lengua Extranjera II_FRA | C195: Comp. Esp. 1 | D195: Criterio Evaluación 1.1 | F195: 4
D196: Criterio Evaluación 1.2 | F196: 4
D197: Criterio Evaluación 1.3 | F197: 4
D198: Criterio Evaluación 1.4 | F198: 4
D199: Criterio Evaluación 1.5 | F199: 4
C200: Comp. Esp. 2 | D200: Criterio Evaluación 2.1 | F200: 4
D201: Criterio Evaluación 2.2 | F201: 4
... 397 more rows

Sheet Peso criterios libre
E4: CALIFICACIÓN | F4: PESO | G4: PORCENTAJE | H4: POR. AJUSTA
A5: MATERIAS DE 2º DE BACHILLERATO | B5: Análisis Musical II | C5: Comp. Esp. 1 | D5: Criterio Evaluación 1.1 | E5: 1 | F5: 1 | G5: =F5/SUM($F$5:$F$283) -> 0.003584229391 | H5: =IF(E5="-","",G5/H$605) -> 
D6: Criterio Evaluación 1.2 | E6: 1 | F6: 1 | G6: 0.003584229391
D7: Criterio Evaluación 1.3 | F7: 1 | G7: 0.003584229391
D8: Criterio Evaluación 1.4 | E8: 1 | F8: 1 | G8: 0.003584229391
D9: Criterio Evaluación 1.5 | E9: 1 | F9: 1 | G9: 0.003584229391
D10: Criterio Evaluación 1.6 | F10: 1 | G10: 0.003584229391
C11: Comp. Esp. 2 | D11: Criterio Evaluación 2.1 | E11: 1 | F11: 1 | G11: 0.003584229391
D12: Criterio Evaluación 2.2 | E12: 1 | F12: 1 | G12: 0.003584229391
D13: Criterio Evaluación 2.3 | E13: 1 | F13: 1 | G13: 0.003584229391
D14: Criterio Evaluación 2.4 | E14: 1 | F14: 1 | G14: 0.003584229391
C15: Comp. Esp. 3 | D15: Criterio Evaluación 3.1 | E15: 1 | F15: 1 | G15: 0.003584229391
D16: Criterio Evaluación 3.2 | E16: 1 | F16: 1 | G16: 0.003584229391
D17: Criterio Evaluación 3.3 | E17: 1 | F17: 1 | G17: 0.003584229391
D18: Criterio Evaluación 3.4 | E18: 1 | F18: 1 | G18: 0.003584229391
C19: Comp. Esp. 4 | D19: Criterio Evaluación 4.1 | E19: 1 | F19: 1 | G19: 0.003584229391
D20: Criterio Evaluación 4.2 | F20: 1 | G20: 0.003584229391
D21: Criterio Evaluación 4.3 | F21: 1 | G21: 0.003584229391
D22: Criterio Evaluación 4.4 | F22: 1 | G22: 0.003584229391
C23: Comp. Esp. 5 | D23: Criterio Evaluación 5.1 | E23: 1 | F23: 1 | G23: 0.003584229391
D24: Criterio Evaluación 5.2 | E24: 1 | F24: 1 | G24: 0.003584229391
D25: Criterio Evaluación 5.3 | E25: 1 | F25: 1 | G25: 0.003584229391
B26: Artes Escénicas II | C26: Comp. Esp. 1 | D26: Criterio Evaluación 1.1 | E26: 1 | F26: 1 | G26: 0.003584229391
D27: Criterio Evaluación 1.2 | E27: 1 | F27: 1 | G27: 0.003584229391
C28: Comp. Esp. 2 | D28: Criterio Evaluación 2.1 | E28: 1 | F28: 1 | G28: 0.003584229391
D29: Criterio Evaluación 2.2 | E29: 1 | F29: 1 | G29: 0.003584229391
C30: Comp. Esp. 3 | D30: Criterio Evaluación 3.1 | E30: 1 | F30: 1 | G30: 0.003584229391
D31: Criterio Evaluación 3.2 | E31: 1 | F31: 1 | G31: 0.003584229391
C32: Comp. Esp. 4 | D32: Criterio Evaluación 4.1 | E32: 1 | F32: 1 | G32: 0.003584229391
D33: Criterio Evaluación 4.2 | E33: 1 | F33: 1 | G33: 0.003584229391
D34: Criterio Evaluación 4.3 | F34: 1 | G34: 0.003584229391
C35: Comp. Esp. 5 | D35: Criterio Evaluación 5.1 | F35: 1 | G35: 0.003584229391
D36: Criterio Evaluación 5.2 | E36: 1 | F36: 1 | G36: 0.003584229391
B37: Coro y Técnica Vocal II | C37: Comp. Esp. 1 | D37: Criterio Evaluación 1.1 | F37: 1 | G37: =F37/SUM($F$5:$F$283) -> 0.003584229391 | H37: =IF(E37="-","",G37/H$605) -> 
D38: Criterio Evaluación 1.2 | E38: 1 | F38: 1 | G38: 0.003584229391
D39: Criterio Evaluación 1.3 | E39: 1 | F39: 1 | G39: 0.003584229391
D40: Criterio Evaluación 1.4 | F40: 1 | G40: 0.003584229391
C41: Comp. Esp. 2 | D41: Criterio Evaluación 2.1 | E41: 1 | F41: 1 | G41: 0.003584229391
D42: Criterio Evaluación 2.2 | F42: 1 | G42: 0.003584229391
C43: Comp. Esp. 3 | D43: Criterio Evaluación 3.1 | F43: 1 | G43: 0.003584229391
D44: Criterio Evaluación 3.2 | F44: 1 | G44: 0.003584229391
D45: Criterio Evaluación 3.3 | F45: 1 | G45: 0.003584229391
C46: Comp. Esp. 4 | D46: Criterio Evaluación 4.1 | F46: 1 | G46: 0.003584229391
D47: Criterio Evaluación 4.2 | F47: 1 | G47: 0.003584229391
D48: Criterio Evaluación 4.3 | F48: 1 | G48: 0.003584229391
B49: Historia de España | C49: Comp. Esp. 1 | D49: Criterio Evaluación 1.1 | F49: 1 | G49: 0.003584229391
D50: Criterio Evaluación 1.2 | F50: 1 | G50: 0.003584229391
C51: Comp. Esp. 2 | D51: Criterio Evaluación 2.1 | F51: 1 | G51: 0.003584229391
D52: Criterio Evaluación 2.2 | F52: 1 | G52: 0.003584229391
C53: Comp. Esp. 3 | D53: Criterio Evaluación 3.1 | F53: 1 | G53: 0.003584229391
D54: Criterio Evaluación 3.2 | F54: 1 | G54: 0.003584229391
C55: Comp. Esp. 4 | D55: Criterio Evaluación 4.1 | E55: 1 | F55: 1 | G55: 0.003584229391
D56: Criterio Evaluación 4.2 | F56: 1 | G56: 0.003584229391
D57: Criterio Evaluación 4.3 | F57: 1 | G57: 0.003584229391
C58: Comp. Esp. 5 | D58: Criterio Evaluación 5.1 | E58: 1 | F58: 1 | G58: 0.003584229391
D59: Criterio Evaluación 5.2 | E59: 1 | F59: 1 | G59: 0.003584229391
D60: Criterio Evaluación 5.3 | F60: 1 | G60: 0.003584229391
C61: Comp. Esp. 6 | D61: Criterio Evaluación 6.1 | E61: 1 | F61: 1 | G61: 0.003584229391
D62: Criterio Evaluación 6.2 | E62: 1 | F62: 1 | G62: 0.003584229391
C63: Comp. Esp. 7 | D63: Criterio Evaluación 7.1 | F63: 1 | G63: 0.003584229391
D64: Criterio Evaluación 7.2 | F64: 1 | G64: 0.003584229391
C65: Comp. Esp. 8 | D65: Criterio Evaluación 8.1 | E65: 1 | F65: 1 | G65: 0.003584229391
B66: Historia de la Filosofía | C66: Comp. Esp. 1 | D66: Criterio Evaluación 1.1 | F66: 1 | G66: 0.003584229391
D67: Criterio Evaluación 1.2 | E67: 1 | F67: 1 | G67: 0.003584229391
C68: Comp. Esp. 2 | D68: Criterio Evaluación 2.1 | E68: 1 | F68: 1 | G68: 0.003584229391
D69: Criterio Evaluación 2.2 | E69: 1 | F69: 1 | G69: =F69/SUM($F$5:$F$283) -> 0.003584229391 | H69: =IF(E69="-","",G69/H$605) -> 
C70: Comp. Esp. 3 | D70: Criterio Evaluación 3.1 | F70: 1 | G70: 0.003584229391
D71: Criterio Evaluación 3.2 | F71: 1 | G71: 0.003584229391
C72: Comp. Esp. 4 | D72: Criterio Evaluación 4.1 | F72: 1 | G72: 0.003584229391
D73: Criterio Evaluación 4.2 | F73: 1 | G73: 0.003584229391
C74: Comp. Esp. 5 | D74: Criterio Evaluación 5.1 | F74: 1 | G74: 0.003584229391
D75: Criterio Evaluación 5.2 | F75: 1 | G75: 0.003584229391
C76: Comp. Esp. 6 | D76: Criterio Evaluación 6.1 | F76: 1 | G76: 0.003584229391
C77: Comp. Esp. 7 | D77: Criterio Evaluación 7.1 | F77: 1 | G77: 0.003584229391
D78: Criterio Evaluación 7.2 | F78: 1 | G78: 0.003584229391
B79: Historia de la Música y de la Danza | C79: Comp. Esp. 1 | D79: Criterio Evaluación 1.1 | E79: 1 | F79: 1 | G79: 0.003584229391
D80: Criterio Evaluación 1.2 | F80: 1 | G80: 0.003584229391
D81: Criterio Evaluación 1.3 | F81: 1 | G81: 0.003584229391
D82: Criterio Evaluación 1.4 | F82: 1 | G82: 0.003584229391
C83: Comp. Esp. 2 | D83: Criterio Evaluación 2.1 | F83: 1 | G83: 0.003584229391
D84: Criterio Evaluación 2.2 | F84: 1 | G84: 0.003584229391
D85: Criterio Evaluación 2.3 | F85: 1 | G85: 0.003584229391
D86: Criterio Evaluación 2.4 | F86: 1 | G86: 0.003584229391
C87: Comp. Esp. 3 | D87: Criterio Evaluación 3.1 | F87: 1 | G87: 0.003584229391
D88: Criterio Evaluación 3.2 | F88: 1 | G88: 0.003584229391
D89: Criterio Evaluación 3.3 | F89: 1 | G89: 0.003584229391
D90: Criterio Evaluación 3.4 | F90: 1 | G90: 0.003584229391
C91: Comp. Esp. 4 | D91: Criterio Evaluación 4.1 | F91: 1 | G91: 0.003584229391
D92: Criterio Evaluación 4.2 | F92: 1 | G92: 0.003584229391
D93: Criterio Evaluación 4.3 | F93: 1 | G93: 0.003584229391
D94: Criterio Evaluación 4.4 | F94: 1 | G94: 0.003584229391
D95: Criterio Evaluación 4.5 | F95: 1 | G95: 0.003584229391
C96: Comp. Esp. 5 | D96: Criterio Evaluación 5.1 | E96: 1 | F96: 1 | G96: 0.003584229391
D97: Criterio Evaluación 5.2 | E97: 1 | F97: 1 | G97: 0.003584229391
D98: Criterio Evaluación 5.3 | E98: 1 | F98: 1 | G98: 0.003584229391
B99: Lengua Castellana y Literatura II | C99: Comp. Esp. 1 | D99: Criterio Evaluación 1.1 | F99: 1 | G99: 0.003584229391
D100: Criterio Evaluación 1.2 | E100: 1 | F100: 1 | G100: 0.003584229391
C101: Comp. Esp. 2 | D101: Criterio Evaluación 2.1 | F101: 1 | G101: =F101/SUM($F$5:$F$283) -> 0.003584229391 | H101: =IF(E101="-","",G101/H$605) -> 
D102: Criterio Evaluación 2.2 | E102: 1 | F102: 1 | G102: 0.003584229391
C103: Comp. Esp. 3 | D103: Criterio Evaluación 3.1 | E103: 1 | F103: 1 | G103: 0.003584229391
D104: Criterio Evaluación 3.2 | E104: 1 | F104: 1 | G104: 0.003584229391
C105: Comp. Esp. 4 | D105: Criterio Evaluación 4.1 | F105: 1 | G105: 0.003584229391
D106: Criterio Evaluación 4.2 | F106: 1 | G106: 0.003584229391
C107: Comp. Esp. 5 | D107: Criterio Evaluación 5.1 | E107: 1 | F107: 1 | G107: 0.003584229391
D108: Criterio Evaluación 5.2 | E108: 1 | F108: 1 | G108: 0.003584229391
C109: Comp. Esp. 6 | D109: Criterio Evaluación 6.1 | E109: 1 | F109: 1 | G109: 0.003584229391
D110: Criterio Evaluación 6.2 | F110: 1 | G110: 0.003584229391
C111: Comp. Esp. 7 | D111: Criterio Evaluación 7.1 | F111: 1 | G111: 0.003584229391
D112: Criterio Evaluación 7.2 | E112: 1 | F112: 1 | G112: 0.003584229391
D113: Criterio Evaluación 7.3 | F113: 1 | G113: 0.003584229391
D114: Criterio Evaluación 7.4 | E114: 1 | F114: 1 | G114: 0.003584229391
C115: Comp. Esp. 8 | D115: Criterio Evaluación 8.1 | E115: 1 | F115: 1 | G115: 0.003584229391
D116: Criterio Evaluación 8.2 | E116: 1 | F116: 1 | G116: 0.003584229391
D117: Criterio Evaluación 8.3 | E117: 1 | F117: 1 | G117: 0.003584229391
C118: Comp. Esp. 9 | D118: Criterio Evaluación 9.1 | E118: 1 | F118: 1 | G118: 0.003584229391
D119: Criterio Evaluación 9.2 | E119: 1 | F119: 1 | G119: 0.003584229391
D120: Criterio Evaluación 9.3 | E120: 1 | F120: 1 | G120: 0.003584229391
C121: Comp. Esp. 10 | D121: Criterio Evaluación 10.1 | E121: 1 | F121: 1 | G121: 0.003584229391
D122: Criterio Evaluación 10.2 | E122: 1 | F122: 1 | G122: 0.003584229391
B123: Lengua Extranjera II | C123: Comp. Esp. 1 | D123: Criterio Evaluación 1.1 | F123: 1 | G123: 0.003584229391
D124: Criterio Evaluación 1.2 | F124: 1 | G124: 0.003584229391
D125: Criterio Evaluación 1.3 | F125: 1 | G125: 0.003584229391
D126: Criterio Evaluación 1.4 | F126: 1 | G126: 0.003584229391
D127: Criterio Evaluación 1.5 | F127: 1 | G127: 0.003584229391
C128: Comp. Esp. 2 | D128: Criterio Evaluación 2.1 | E128: 1 | F128: 1 | G128: 0.003584229391
D129: Criterio Evaluación 2.2 | E129: 1 | F129: 1 | G129: 0.003584229391
D130: Criterio Evaluación 2.3 | E130: 1 | F130: 1 | G130: 0.003584229391
D131: Criterio Evaluación 2.4 | E131: 1 | F131: 1 | G131: 0.003584229391
C132: Comp. Esp. 3 | D132: Criterio Evaluación 3.1 | E132: 1 | F132: 1 | G132: 0.003584229391
D133: Criterio Evaluación 3.2 | E133: 1 | F133: 1 | G133: =F133/SUM($F$5:$F$283) -> 0.003584229391 | H133: =IF(E133="-","",G133/H$605) -> 
C134: Comp. Esp. 4 | D134: Criterio Evaluación 4.1 | E134: 1 | F134: 1 | G134: 0.003584229391
D135: Criterio Evaluación 4.2 | E135: 1 | F135: 1 | G135: 0.003584229391
C136: Comp. Esp. 5 | D136: Criterio Evaluación 5.1 | F136: 1 | G136: 0.003584229391
D137: Criterio Evaluación 5.2 | E137: 1 | F137: 1 | G137: 0.003584229391
D138: Criterio Evaluación 5.3 | F138: 1 | G138: 0.003584229391
C139: Comp. Esp. 6 | D139: Criterio Evaluación 6.1 | F139: 1 | G139: 0.003584229391
D140: Criterio Evaluación 6.2 | F140: 1 | G140: 0.003584229391
D141: Criterio Evaluación 6.3 | F141: 1 | G141: 0.003584229391
D142: Criterio Evaluación 6.4 | F142: 1 | G142: 0.003584229391
B143: Literatura Dramática | C143: Comp. Esp. 1 | D143: Criterio Evaluación 1.1 | E143: 1 | F143: 1 | G143: 0.003584229391
D144: Criterio Evaluación 1.2 | E144: 1 | F144: 1 | G144: 0.003584229391
C145: Comp. Esp. 2 | D145: Criterio Evaluación 2.1 | F145: 1 | G145: 0.003584229391
D146: Criterio Evaluación 2.2 | F146: 1 | G146: 0.003584229391
C147: Comp. Esp. 3 | D147: Criterio Evaluación 3.1 | E147: 1 | F147: 1 | G147: 0.003584229391
D148: Criterio Evaluación 3.2 | E148: 1 | F148: 1 | G148: 0.003584229391
D149: Criterio Evaluación 3.3 | E149: 1 | F149: 1 | G149: 0.003584229391
C150: Comp. Esp. 4 | D150: Criterio Evaluación 4.1 | E150: 1 | F150: 1 | G150: 0.003584229391
C151: Comp. Esp. 5 | D151: Criterio Evaluación 5.1 | E151: 1 | F151: 1 | G151: 0.003584229391
D152: Criterio Evaluación 5.2 | E152: 1 | F152: 1 | G152: 0.003584229391
B153: Psicología | C153: Comp. Esp. 1 | D153: Criterio Evaluación 1.1 | E153: 1 | F153: 1 | G153: 0.003584229391
D154: Criterio Evaluación 1.2 | F154: 1 | G154: 0.003584229391
D155: Criterio Evaluación 1.3 | F155: 1 | G155: 0.003584229391
C156: Comp. Esp. 2 | D156: Criterio Evaluación 2.1 | E156: 1 | F156: 1 | G156: 0.003584229391
D157: Criterio Evaluación 2.2 | F157: 1 | G157: 0.003584229391
D158: Criterio Evaluación 2.3 | F158: 1 | G158: 0.003584229391
D159: Criterio Evaluación 2.4 | F159: 1 | G159: 0.003584229391
C160: Comp. Esp. 3 | D160: Criterio Evaluación 3.1 | E160: 1 | F160: 1 | G160: 0.003584229391
D161: Criterio Evaluación 3.2 | F161: 1 | G161: 0.003584229391
D162: Criterio Evaluación 3.3 | F162: 1 | G162: 0.003584229391
C163: Comp. Esp. 4 | D163: Criterio Evaluación 4.1 | F163: 1 | G163: 0.003584229391
D164: Criterio Evaluación 4.2 | F164: 1 | G164: 0.003584229391
D165: Criterio Evaluación 4.3 | F165: 1 | G165: =F165/SUM($F$5:$F$283) -> 0.003584229391 | H165: =IF(E165="-","",G165/H$605) -> 
C166: Comp. Esp. 5 | D166: Criterio Evaluación 5.1 | F166: 1 | G166: 0.003584229391
D167: Criterio Evaluación 5.2 | F167: 1 | G167: 0.003584229391
D168: Criterio Evaluación 5.3 | F168: 1 | G168: 0.003584229391
D169: Criterio Evaluación 5.4 | F169: 1 | G169: 0.003584229391
D170: Criterio Evaluación 5.5 | F170: 1 | G170: 0.003584229391
C171: Comp. Esp. 6 | D171: Criterio Evaluación 6.1 | F171: 1 | G171: 0.003584229391
D172: Criterio Evaluación 6.2 | F172: 1 | G172: 0.003584229391
D173: Criterio Evaluación 6.3 | F173: 1 | G173: 0.003584229391
D174: Criterio Evaluación 6.4 | F174: 1 | G174: 0.003584229391
B175: Segunda Lengua Extranjera II_ALE | C175: Comp. Esp. 1 | D175: Criterio Evaluación 1.1 | F175: 1 | G175: =F175/SUM($F$5:$F$343) -> 0.002949852507 | H175: =IF(E175="-","",G175/H$702) -> 
D176: Criterio Evaluación 1.2 | F176: 1 | G176: 0.002949852507
D177: Criterio Evaluación 1.3 | F177: 1 | G177: 0.002949852507
D178: Criterio Evaluación 1.4 | F178: 1 | G178: 0.002949852507
D179: Criterio Evaluación 1.5 | F179: 1 | G179: 0.002949852507
C180: Comp. Esp. 2 | D180: Criterio Evaluación 2.1 | E180: 1 | F180: 1 | G180: 0.002949852507
D181: Criterio Evaluación 2.2 | E181: 1 | F181: 1 | G181: 0.002949852507
D182: Criterio Evaluación 2.3 | E182: 1 | F182: 1 | G182: 0.002949852507
D183: Criterio Evaluación 2.4 | E183: 1 | F183: 1 | G183: 0.002949852507
C184: Comp. Esp. 3 | D184: Criterio Evaluación 3.1 | E184: 1 | F184: 1 | G184: 0.002949852507
D185: Criterio Evaluación 3.2 | E185: 1 | F185: 1 | G185: 0.002949852507
C186: Comp. Esp. 4 | D186: Criterio Evaluación 4.1 | E186: 1 | F186: 1 | G186: 0.002949852507
D187: Criterio Evaluación 4.2 | E187: 1 | F187: 1 | G187: 0.002949852507
C188: Comp. Esp. 5 | D188: Criterio Evaluación 5.1 | F188: 1 | G188: 0.002949852507
D189: Criterio Evaluación 5.2 | E189: 1 | F189: 1 | G189: 0.002949852507
D190: Criterio Evaluación 5.3 | F190: 1 | G190: 0.002949852507
C191: Comp. Esp. 6 | D191: Criterio Evaluación 6.1 | F191: 1 | G191: 0.002949852507
D192: Criterio Evaluación 6.2 | F192: 1 | G192: 0.002949852507
D193: Criterio Evaluación 6.3 | F193: 1 | G193: 0.002949852507
D194: Criterio Evaluación 6.4 | F194: 1 | G194: 0.002949852507
B195: Segunda Lengua Extranjera II_FRA | C195: Comp. Esp. 1 | D195: Criterio Evaluación 1.1 | F195: 1 | G195: 0.002949852507
D196: Criterio Evaluación 1.2 | F196: 1 | G196: 0.002949852507
D197: Criterio Evaluación 1.3 | F197: 1 | G197: 0.002949852507
D198: Criterio Evaluación 1.4 | F198: 1 | G198: 0.002949852507
D199: Criterio Evaluación 1.5 | F199: 1 | G199: 0.002949852507
C200: Comp. Esp. 2 | D200: Criterio Evaluación 2.1 | E200: 1 | F200: 1 | G200: 0.002949852507
D201: Criterio Evaluación 2.2 | E201: 1 | F201: 1 | G201: 0.002949852507
D202: Criterio Evaluación 2.3 | E202: 1 | F202: 1 | G202: 0.002949852507
D203: Criterio Evaluación 2.4 | E203: 1 | F203: 1 | G203: 0.002949852507
... 395 more rows

Sheet Peso descrip. libre
E2: Competencia en Comunicación Lingüística | Y2: Competencia Plurilingüe | AK2: Competencia Matemática y Competencia en Ciencia, Tecnología e Ingeniería | BE2: Competencia Digital | BY2: Competencia Personal, Social y de Aprender a Aprender | DA2: Competencia Ciudadana | DQ2: Competencia Emprendedora | EC2: Competencia en Conciencia y Expresión Culturales
E3: CCL 1 | I3: CCL 2 | M3: CCL 3 | Q3: CCL 4 | U3: CCL 5 | Y3: CP 1 | AC3: CP 2 | AG3: CP 3 | AK3: STEM 1 | AO3: STEM 2 | AS3: STEM 3 | AW3: STEM 4 | BA3: STEM 5 | BE3: CD 1 | BI3: CD 2 | BM3: CD 3 | BQ3: CD 4 | BU3: CD 5 | BY3: CPSAA 1.1 | CC3: CPSAA 1.2 | CG3: CPSAA 2 | CK3: CPSAA 3.1 | CO3: CPSAA 3.2 | CS3: CPSAA 4 | CW3: CPSAA 5 | DA3: CC 1 | DE3: CC 2 | DI3: CC 3 | DM3: CC 4 | DQ3: CE 1 | DU3: CE 2 | DY3: CE 3 | EC3: CCEC 1 | EG3: CCEC 2 | EK3: CCEC 3.1 | EO3: CCEC 3.2 | ES3: CCEC 4.1 | EW3: CCEC 4.2
B5: NO | C5: PESO DESCRIPTORES | E5: 1 | I5: 1 | M5: 1 | Q5: 1 | U5: 1 | Y5: 1 | AC5: 1 | AG5: 1 | AK5: 1 | AO5: 1 | AS5: 1 | AW5: 1 | BA5: 1 | BE5: 1 | BI5: 1 | BM5: 1 | BQ5: 1 | BU5: 1 | BY5: 1 | CC5: 1 | CG5: 1 | CK5: 1 | CO5: 1 | CS5: 1 | CW5: 1 | DA5: 1 | DE5: 1 | DI5: 1 | DM5: 1 | DQ5: 1 | DU5: 1 | DY5: 1 | EC5: 1 | EG5: 1 | EK5: 1 | EO5: 1 | ES5: 1 | EW5: 1
C6: PORCENTAJES | E6: =E5/SUM($E5:$U5) -> 0.2 | I6: =I5/SUM($E5:$U5) -> 0.2 | M6: =M5/SUM($E5:$U5) -> 0.2 | Q6: =Q5/SUM($E5:$U5) -> 0.2 | U6: =U5/SUM($E5:$U5) -> 0.2 | Y6: =Y5/SUM($Y5:$AG5) -> 0.3333333333 | AC6: =AC5/SUM($Y5:$AG5) -> 0.3333333333 | AG6: 0.3333333333 | AK6: =AK5/SUM($AK5:$BA5) -> 0.2 | AO6: =AO5/SUM($AK5:$BA5) -> 0.2 | AS6: 0.2 | AW6: 0.2 | BA6: 0.2 | BE6: =BE5/SUM($BE5:$BU5) -> 0.2 | BI6: =BI5/SUM($BE5:$BU5) -> 0.2 | BM6: 0.2 | BQ6: 0.2 | BU6: 0.2 | BY6: =BY5/SUM($BY5:$CW5) -> 0.1428571429 | CC6: =CC5/SUM($BY5:$CW5) -> 0.1428571429 | CG6: 0.1428571429 | CK6: =CK5/SUM($BY5:$CW5) -> 0.1428571429 | CO6: =CO5/SUM($BY5:$CW5) -> 0.1428571429 | CS6: 0.1428571429 | CW6: 0.1428571429 | DA6: =DA5/SUM($DA5:$DM5) -> 0.25 | DE6: =DE5/SUM($DA5:$DM5) -> 0.25 | DI6: 0.25 | DM6: 0.25 | DQ6: =DQ5/SUM($DQ5:$DY5) -> 0.3333333333 | DU6: =DU5/SUM($DQ5:$DY5) -> 0.3333333333 | DY6: 0.3333333333 | EC6: =EC5/SUM($EC5:$EW5) -> 0.1666666667 | EG6: =EG5/SUM($EC5:$EW5) -> 0.1666666667 | EK6: =EK5/SUM($EC5:$EW5) -> 0.1666666667 | EO6: =EO5/SUM($EC5:$EW5) -> 0.1666666667 | ES6: 0.1666666667 | EW6: 0.1666666667

Sheet Peso descrip. vinculaciones
E2: Competencia en Comunicación Lingüística | Y2: Competencia Plurilingüe | AK2: Competencia Matemática y Competencia en Ciencia, Tecnología e Ingeniería | BE2: Competencia Digital | BY2: Competencia Personal, Social y de Aprender a Aprender | DA2: Competencia Ciudadana | DQ2: Competencia Emprendedora | EC2: Competencia en Conciencia y Expresión Culturales
E3: CCL 1 | I3: CCL 2 | M3: CCL 3 | Q3: CCL 4 | U3: CCL 5 | Y3: CP 1 | AC3: CP 2 | AG3: CP 3 | AK3: STEM 1 | AO3: STEM 2 | AS3: STEM 3 | AW3: STEM 4 | BA3: STEM 5 | BE3: CD 1 | BI3: CD 2 | BM3: CD 3 | BQ3: CD 4 | BU3: CD 5 | BY3: CPSAA 1.1 | CC3: CPSAA 1.2 | CG3: CPSAA 2 | CK3: CPSAA 3.1 | CO3: CPSAA 3.2 | CS3: CPSAA 4 | CW3: CPSAA 5 | DA3: CC 1 | DE3: CC 2 | DI3: CC 3 | DM3: CC 4 | DQ3: CE 1 | DU3: CE 2 | DY3: CE 3 | EC3: CCEC 1 | EG3: CCEC 2 | EK3: CCEC 3.1 | EO3: CCEC 3.2 | ES3: CCEC 4.1 | EW3: CCEC 4.2
B5: NO | C5: PESO DESCRIPTORES | E5: 0.3114754098 | I5: 0.293442623 | M5: 0.162295082 | Q5: 0.09180327869 | U5: 0.1409836066 | Y5: 0.2376237624 | AC5: 0.4059405941 | AG5: 0.3564356436 | AK5: 0.3591331269 | AO5: 0.2352941176 | AS5: 0.1578947368 | AW5: 0.1702786378 | BA5: 0.0773993808 | BE5: 0.2053333333 | BI5: 0.248 | BM5: 0.4053333333 | BQ5: 0.088 | BU5: 0.05333333333 | BY5: 0.1695906433 | CC5: 0.09161793372 | CG5: 0.07992202729 | CK5: 0.2027290448 | CO5: 0.08771929825 | CS5: 0.2280701754 | CW5: 0.1403508772 | DA5: 0.3289036545 | DE5: 0.1727574751 | DI5: 0.3986710963 | DM5: 0.09966777409 | DQ5: 0.3262032086 | DU5: 0.1497326203 | DY5: 0.5240641711 | EC5: 0.2554585153 | EG5: 0.1441048035 | EK5: 0.1877729258 | EO5: 0.1615720524 | ES5: 0.1004366812 | EW5: 0.1506550218
C6: PORCENTAJES | E6: =E5/SUM($E5:$U5) -> 0.3114754098 | I6: =I5/SUM($E5:$U5) -> 0.293442623 | M6: =M5/SUM($E5:$U5) -> 0.162295082 | Q6: =Q5/SUM($E5:$U5) -> 0.09180327869 | U6: =U5/SUM($E5:$U5) -> 0.1409836066 | Y6: =Y5/SUM($Y5:$AG5) -> 0.2376237624 | AC6: =AC5/SUM($Y5:$AG5) -> 0.4059405941 | AG6: 0.3564356436 | AK6: =AK5/SUM($AK5:$BA5) -> 0.3591331269 | AO6: =AO5/SUM($AK5:$BA5) -> 0.2352941176 | AS6: 0.1578947368 | AW6: 0.1702786378 | BA6: 0.0773993808 | BE6: =BE5/SUM($BE5:$BU5) -> 0.2053333333 | BI6: =BI5/SUM($BE5:$BU5) -> 0.248 | BM6: 0.4053333333 | BQ6: 0.088 | BU6: 0.05333333333 | BY6: =BY5/SUM($BY5:$CW5) -> 0.1695906433 | CC6: =CC5/SUM($BY5:$CW5) -> 0.09161793372 | CG6: 0.07992202729 | CK6: =CK5/SUM($BY5:$CW5) -> 0.2027290448 | CO6: =CO5/SUM($BY5:$CW5) -> 0.08771929825 | CS6: 0.2280701754 | CW6: 0.1403508772 | DA6: =DA5/SUM($DA5:$DM5) -> 0.3289036545 | DE6: =DE5/SUM($DA5:$DM5) -> 0.1727574751 | DI6: 0.3986710963 | DM6: 0.09966777409 | DQ6: =DQ5/SUM($DQ5:$DY5) -> 0.3262032086 | DU6: =DU5/SUM($DQ5:$DY5) -> 0.1497326203 | DY6: 0.5240641711 | EC6: =EC5/SUM($EC5:$EW5) -> 0.2554585153 | EG6: =EG5/SUM($EC5:$EW5) -> 0.1441048035 | EK6: =EK5/SUM($EC5:$EW5) -> 0.1877729258 | EO6: =EO5/SUM($EC5:$EW5) -> 0.1615720524 | ES6: 0.1004366812 | EW6: 0.1506550218

Sheet Alumnos
C3: LISTADO DE ALUMNOS | F3: MATERIAS 2º BACHILLERATO | R3: MATERIAS PENDIENTES DE 1º BACHILLERATO | AJ3: TEAMS / Onedrive
C4: Informe | D4: Grupo 2º _____ | E4: ID Matrícula | F4: A. MUS II | G4: A. ESC. II | H4: CORO Y TEC V. II | I4: Hª. MUSICA Y D. | J4: LITERATURA DRA. | K4: PSICOLOGÍA | L4: 2ª LEX | Q4: TIC II | R4: ED. FÍSICA | S4: FILOSOFÍA | T4: LENGUAC yL | U4: LEX I | V4: A. MUS. I | W4: A. ESC. I | X4: CORO Y TEC V. I | Y4: CULTURA AUD. | Z4: LENGUAJE Y P.M | AA4: ANATOMÍA APL. | AB4: RELIGIÓN | AC4: 2ª LEX | AH4: TIC I
L5: ALE | M5: FRA | N5: ING | O5: ITA | P5: POR | AC5: ALE | AD5: FRA | AE5: ING | AF5: ITA | AG5: POR
D6: Nombre_Alumno_1 | E6: 0000_1 | F6: x | H6: x | I6: x | K6: x | R6: x | V6: x | Z6: x | AH6: x
C7: 2 | D7: Nombre_Alumno_2 | E7: 0000_2 | G7: x | I7: x | J7: x | P7: x | S7: x | W7: x | AA7: x
C8: 3 | D8: Nombre_Alumno_3 | E8: 0000_3 | F8: x | G8: x | H8: x | Q8: x | T8: x | X8: x | AB8: x
C9: 4 | D9: Nombre_Alumno_4 | E9: 0000_4 | F9: x | H9: x | J9: x | K9: x | U9: x | Y9: x | AG9: x
C11: 6
C12: 7
C13: 8
C14: 9
C15: 10
C16: 11
C17: 12
C18: 13
C19: 14
C20: 15
C21: 16
C22: 17
C23: 18
C24: 19
C25: 20
C26: 21
C27: 22
C28: 23
C29: 24
C30: 25
C31: 26
C32: 27
C33: 28
C34: 29
C35: 30
C36: 31
C37: 32
C38: 33
C39: 34
C40: 35
D41: TOTAL MATRICULADOS | F41: =COUNTA(F6:F40) -> 3 | G41: 2 | H41: 3 | I41: 2 | J41: 2 | K41: 2 | L41: 0 | M41: 0 | N41: 0 | O41: 0 | P41: 1 | Q41: 1 | R41: 1 | S41: 1 | T41: 1 | U41: 1 | V41: 1 | W41: 1 | X41: 1 | Y41: 1 | Z41: 1 | AA41: 1 | AB41: 1 | AC41: 0 | AD41: 0 | AE41: 0 | AF41: 0 | AG41: 1 | AH41: 1

Sheet Redondeo
AL2: EXPORTACIÓN NOTAS COMPETENCIAS A STILUS
C3: CALIFICACIÓN DE MATERIAS | AL3: 1º_Introduce para cada materia las centésimas a partir de las que se realizará un redondeo al alza (valor entre 1 y 100):
C4: CENTÉSIMAS REDONDEO
C5: 90 | D5: 90 | E5: 90 | F5: 90 | G5: 90 | H5: 90 | I5: 90 | J5: 90 | K5: 90 | L5: 90 | M5: 90 | N5: 90 | O5: 90 | P5: 90 | Q5: 90 | R5: 90 | S5: 90 | T5: 90 | U5: 90 | V5: 90 | W5: 90 | X5: 90 | Y5: 90 | Z5: 90 | AA5: 90 | AB5: 90 | AC5: 90 | AD5: 90 | AE5: 90 | AF5: 90 | AG5: 90 | AH5: 90 | AI5: 90 | AL5: Ejemplo: si se marca 85, desde el 4,85 (inclusive) se redondeará a 5, Si se marca 100, el 4,99 e inferiores se redondearán a 4
C6: 2º BACHILLERATO | S6: 1º BACHILLERATO PENDIENTES
B7: =TRANSPOSE('Calificación materias'!B5:AK38) -> 0 | C7: Historia de España | D7: Historia de la Filosofía | E7: Lengua Castellana y Literatura II | F7: Lengua Extranjera II | G7: Análisis Musical II | H7: Artes Escénicas II | I7: Coro y Técnica Vocal II | J7: Historia de la Música y de la Danza | K7: Literatura Dramática | L7: Psicología | M7: Segunda LEX_ALE II | N7: Segunda LEX_FRA II | O7: Segunda LEX_ING II | P7: Segunda LEX_ITA II | Q7: Segunda LEX_POR II | R7: TIC II | S7: Educación Física | T7: Filosofía | U7: Lengua Castellana y Literatura I | V7: Lengua Extranjera I | W7: Análisis Musical I | X7: Artes Escénicas I | Y7: Coro y Técnica Vocal I | Z7: Cultura Audiovisual | AA7: Lenguaje y Práctica Musical | AB7: Anatomía Aplicada | AC7: Religión | AD7: Segunda LEX_ALE I | AE7: Segunda LEX_FRA I | AF7: Segunda LEX_ING I | AG7: Segunda LEX_ITA I | AH7: Segunda LEX_POR I | AI7: TIC I | AL7: 2º_Pulsa el siguiente botón:
B8: Nombre_Alumno_1
B9: Nombre_Alumno_2
B10: Nombre_Alumno_3
B11: Nombre_Alumno_4

Sheet Materias
C2: MATERIAS DE 2º BACH_ARTES_Vía de Música y Artes Escénicas
C14: MATERIAS PDTES. DE 1º BACH_ARTES_Vía de Música y Artes Escénicas

Sheet 2LEX
C2: MATERIAS DE 2º BACH_ARTES_Música y Artes Escénicas

Sheet 2LEX (1)
C2: MATERIAS PENDIENTES DE 1º BACH_ARTES_Música y Artes Escénicas

Sheet Calif. de crit.
E2: =IF(Alumnos!D6="","",Alumnos!D6) -> Nombre_Alumno_1 | F2: =IF(Alumnos!D7="","",Alumnos!D7) -> Nombre_Alumno_2 | G2: =IF(Alumnos!D8="","",Alumnos!D8) -> Nombre_Alumno_3 | H2: =IF(Alumnos!D9="","",Alumnos!D9) -> Nombre_Alumno_4 | I2: =IF(Alumnos!D10="","",Alumnos!D10) ->  | J2: =IF(Alumnos!D11="","",Alumnos!D11) ->  | K2: =IF(Alumnos!D12="","",Alumnos!D12) ->  | L2: =IF(Alumnos!D13="","",Alumnos!D13) ->  | M2: =IF(Alumnos!D14="","",Alumnos!D14) ->  | N2: =IF(Alumnos!D15="","",Alumnos!D15) ->  | O2: =IF(Alumnos!D16="","",Alumnos!D16) ->  | P2: =IF(Alumnos!D17="","",Alumnos!D17) ->  | Q2: =IF(Alumnos!D18="","",Alumnos!D18) ->  | R2: =IF(Alumnos!D19="","",Alumnos!D19) ->  | S2: =IF(Alumnos!D20="","",Alumnos!D20) ->  | T2: =IF(Alumnos!D21="","",Alumnos!D21) ->  | U2: =IF(Alumnos!D22="","",Alumnos!D22) ->  | V2: =IF(Alumnos!D23="","",Alumnos!D23) ->  | W2: =IF(Alumnos!D24="","",Alumnos!D24) ->  | X2: =IF(Alumnos!D25="","",Alumnos!D25) ->  | Y2: =IF(Alumnos!D26="","",Alumnos!D26) ->  | Z2: =IF(Alumnos!D27="","",Alumnos!D27) ->  | AA2: =IF(Alumnos!D28="","",Alumnos!D28) ->  | AB2: =IF(Alumnos!D29="","",Alumnos!D29) ->  | AC2: =IF(Alumnos!D30="","",Alumnos!D30) ->  | AD2: =IF(Alumnos!D31="","",Alumnos!D31) ->  | AE2: =IF(Alumnos!D32="","",Alumnos!D32) ->  | AF2: =IF(Alumnos!D33="","",Alumnos!D33) ->  | AG2: =IF(Alumnos!D34="","",Alumnos!D34) ->  | AH2: =IF(Alumnos!D35="","",Alumnos!D35) ->  | AI2: =IF(Alumnos!D36="","",Alumnos!D36) ->  | AJ2: =IF(Alumnos!D37="","",Alumnos!D37) ->  | AK2: =IF(Alumnos!D38="","",Alumnos!D38) ->  | AL2: =IF(Alumnos!D39="","",Alumnos!D39) ->  | AM2: =IF(Alumnos!D40="","",Alumnos!D40) -> 
B3: Análisis Musical II | C3: Comp. Esp. 1 | D3: Criterio Evaluación 1.1 | E3: =IF(AM!H4="","",AM!H4) ->  | F3: =IF(AM!I4="","",AM!I4) ->  | G3: =IF(AM!J4="","",AM!J4) ->  | H3: =IF(AM!K4="","",AM!K4) ->  | I3: =IF(AM!L4="","",AM!L4) ->  | J3: =IF(AM!M4="","",AM!M4) ->  | K3: =IF(AM!N4="","",AM!N4) ->  | L3: =IF(AM!O4="","",AM!O4) ->  | M3: =IF(AM!P4="","",AM!P4) ->  | N3: =IF(AM!Q4="","",AM!Q4) ->  | O3: =IF(AM!R4="","",AM!R4) ->  | P3: =IF(AM!S4="","",AM!S4) ->  | Q3: =IF(AM!T4="","",AM!T4) ->  | R3: =IF(AM!U4="","",AM!U4) ->  | S3: =IF(AM!V4="","",AM!V4) ->  | T3: =IF(AM!W4="","",AM!W4) ->  | U3: =IF(AM!X4="","",AM!X4) ->  | V3: =IF(AM!Y4="","",AM!Y4) ->  | W3: =IF(AM!Z4="","",AM!Z4) ->  | X3: =IF(AM!AA4="","",AM!AA4) ->  | Y3: =IF(AM!AB4="","",AM!AB4) ->  | Z3: =IF(AM!AC4="","",AM!AC4) ->  | AA3: =IF(AM!AD4="","",AM!AD4) ->  | AB3: =IF(AM!AE4="","",AM!AE4) ->  | AC3: =IF(AM!AF4="","",AM!AF4) ->  | AD3: =IF(AM!AG4="","",AM!AG4) ->  | AE3: =IF(AM!AH4="","",AM!AH4) ->  | AF3: =IF(AM!AI4="","",AM!AI4) ->  | AG3: =IF(AM!AJ4="","",AM!AJ4) ->  | AH3: =IF(AM!AK4="","",AM!AK4) ->  | AI3: =IF(AM!AL4="","",AM!AL4) ->  | AJ3: =IF(AM!AM4="","",AM!AM4) ->  | AK3: =IF(AM!AN4="","",AM!AN4) ->  | AL3: =IF(AM!AO4="","",AM!AO4) ->  | AM3: =IF(AM!AP4="","",AM!AP4) -> 
D4: Criterio Evaluación 1.2 | E4: =IF(AM!H5="","",AM!H5) ->  | F4: =IF(AM!I5="","",AM!I5) ->  | G4: =IF(AM!J5="","",AM!J5) ->  | H4: =IF(AM!K5="","",AM!K5) ->  | I4: =IF(AM!L5="","",AM!L5) ->  | J4: =IF(AM!M5="","",AM!M5) ->  | K4: =IF(AM!N5="","",AM!N5) ->  | L4: =IF(AM!O5="","",AM!O5) ->  | M4: =IF(AM!P5="","",AM!P5) ->  | N4: =IF(AM!Q5="","",AM!Q5) ->  | O4: =IF(AM!R5="","",AM!R5) ->  | P4: =IF(AM!S5="","",AM!S5) ->  | Q4: =IF(AM!T5="","",AM!T5) ->  | R4: =IF(AM!U5="","",AM!U5) ->  | S4: =IF(AM!V5="","",AM!V5) ->  | T4: =IF(AM!W5="","",AM!W5) ->  | U4: =IF(AM!X5="","",AM!X5) ->  | V4: =IF(AM!Y5="","",AM!Y5) ->  | W4: =IF(AM!Z5="","",AM!Z5) ->  | X4: =IF(AM!AA5="","",AM!AA5) ->  | Y4: =IF(AM!AB5="","",AM!AB5) ->  | Z4: =IF(AM!AC5="","",AM!AC5) ->  | AA4: =IF(AM!AD5="","",AM!AD5) ->  | AB4: =IF(AM!AE5="","",AM!AE5) ->  | AC4: =IF(AM!AF5="","",AM!AF5) ->  | AD4: =IF(AM!AG5="","",AM!AG5) ->  | AE4: =IF(AM!AH5="","",AM!AH5) ->  | AF4: =IF(AM!AI5="","",AM!AI5) ->  | AG4: =IF(AM!AJ5="","",AM!AJ5) ->  | AH4: =IF(AM!AK5="","",AM!AK5) ->  | AI4: =IF(AM!AL5="","",AM!AL5) ->  | AJ4: =IF(AM!AM5="","",AM!AM5) ->  | AK4: =IF(AM!AN5="","",AM!AN5) ->  | AL4: =IF(AM!AO5="","",AM!AO5) ->  | AM4: =IF(AM!AP5="","",AM!AP5) -> 
D5: Criterio Evaluación 1.3 | E5: =IF(AM!H6="","",AM!H6) ->  | F5: =IF(AM!I6="","",AM!I6) ->  | G5: =IF(AM!J6="","",AM!J6) ->  | H5: =IF(AM!K6="","",AM!K6) ->  | I5: =IF(AM!L6="","",AM!L6) ->  | J5: =IF(AM!M6="","",AM!M6) ->  | K5: =IF(AM!N6="","",AM!N6) ->  | L5: =IF(AM!O6="","",AM!O6) ->  | M5: =IF(AM!P6="","",AM!P6) ->  | N5: =IF(AM!Q6="","",AM!Q6) ->  | O5: =IF(AM!R6="","",AM!R6) ->  | P5: =IF(AM!S6="","",AM!S6) ->  | Q5: =IF(AM!T6="","",AM!T6) ->  | R5: =IF(AM!U6="","",AM!U6) ->  | S5: =IF(AM!V6="","",AM!V6) ->  | T5: =IF(AM!W6="","",AM!W6) ->  | U5: =IF(AM!X6="","",AM!X6) ->  | V5: =IF(AM!Y6="","",AM!Y6) ->  | W5: =IF(AM!Z6="","",AM!Z6) ->  | X5: =IF(AM!AA6="","",AM!AA6) ->  | Y5: =IF(AM!AB6="","",AM!AB6) ->  | Z5: =IF(AM!AC6="","",AM!AC6) ->  | AA5: =IF(AM!AD6="","",AM!AD6) ->  | AB5: =IF(AM!AE6="","",AM!AE6) ->  | AC5: =IF(AM!AF6="","",AM!AF6) ->  | AD5: =IF(AM!AG6="","",AM!AG6) ->  | AE5: =IF(AM!AH6="","",AM!AH6) ->  | AF5: =IF(AM!AI6="","",AM!AI6) ->  | AG5: =IF(AM!AJ6="","",AM!AJ6) ->  | AH5: =IF(AM!AK6="","",AM!AK6) ->  | AI5: =IF(AM!AL6="","",AM!AL6) ->  | AJ5: =IF(AM!AM6="","",AM!AM6) ->  | AK5: =IF(AM!AN6="","",AM!AN6) ->  | AL5: =IF(AM!AO6="","",AM!AO6) ->  | AM5: =IF(AM!AP6="","",AM!AP6) -> 
D6: Criterio Evaluación 1.4 | E6: =IF(AM!H7="","",AM!H7) ->  | F6: =IF(AM!I7="","",AM!I7) ->  | G6: =IF(AM!J7="","",AM!J7) ->  | H6: =IF(AM!K7="","",AM!K7) ->  | I6: =IF(AM!L7="","",AM!L7) ->  | J6: =IF(AM!M7="","",AM!M7) ->  | K6: =IF(AM!N7="","",AM!N7) ->  | L6: =IF(AM!O7="","",AM!O7) ->  | M6: =IF(AM!P7="","",AM!P7) ->  | N6: =IF(AM!Q7="","",AM!Q7) ->  | O6: =IF(AM!R7="","",AM!R7) ->  | P6: =IF(AM!S7="","",AM!S7) ->  | Q6: =IF(AM!T7="","",AM!T7) ->  | R6: =IF(AM!U7="","",AM!U7) ->  | S6: =IF(AM!V7="","",AM!V7) ->  | T6: =IF(AM!W7="","",AM!W7) ->  | U6: =IF(AM!X7="","",AM!X7) ->  | V6: =IF(AM!Y7="","",AM!Y7) ->  | W6: =IF(AM!Z7="","",AM!Z7) ->  | X6: =IF(AM!AA7="","",AM!AA7) ->  | Y6: =IF(AM!AB7="","",AM!AB7) ->  | Z6: =IF(AM!AC7="","",AM!AC7) ->  | AA6: =IF(AM!AD7="","",AM!AD7) ->  | AB6: =IF(AM!AE7="","",AM!AE7) ->  | AC6: =IF(AM!AF7="","",AM!AF7) ->  | AD6: =IF(AM!AG7="","",AM!AG7) ->  | AE6: =IF(AM!AH7="","",AM!AH7) ->  | AF6: =IF(AM!AI7="","",AM!AI7) ->  | AG6: =IF(AM!AJ7="","",AM!AJ7) ->  | AH6: =IF(AM!AK7="","",AM!AK7) ->  | AI6: =IF(AM!AL7="","",AM!AL7) ->  | AJ6: =IF(AM!AM7="","",AM!AM7) ->  | AK6: =IF(AM!AN7="","",AM!AN7) ->  | AL6: =IF(AM!AO7="","",AM!AO7) ->  | AM6: =IF(AM!AP7="","",AM!AP7) -> 
D7: Criterio Evaluación 1.5 | E7: =IF(AM!H8="","",AM!H8) ->  | F7: =IF(AM!I8="","",AM!I8) ->  | G7: =IF(AM!J8="","",AM!J8) ->  | H7: =IF(AM!K8="","",AM!K8) ->  | I7: =IF(AM!L8="","",AM!L8) ->  | J7: =IF(AM!M8="","",AM!M8) ->  | K7: =IF(AM!N8="","",AM!N8) ->  | L7: =IF(AM!O8="","",AM!O8) ->  | M7: =IF(AM!P8="","",AM!P8) ->  | N7: =IF(AM!Q8="","",AM!Q8) ->  | O7: =IF(AM!R8="","",AM!R8) ->  | P7: =IF(AM!S8="","",AM!S8) ->  | Q7: =IF(AM!T8="","",AM!T8) ->  | R7: =IF(AM!U8="","",AM!U8) ->  | S7: =IF(AM!V8="","",AM!V8) ->  | T7: =IF(AM!W8="","",AM!W8) ->  | U7: =IF(AM!X8="","",AM!X8) ->  | V7: =IF(AM!Y8="","",AM!Y8) ->  | W7: =IF(AM!Z8="","",AM!Z8) ->  | X7: =IF(AM!AA8="","",AM!AA8) ->  | Y7: =IF(AM!AB8="","",AM!AB8) ->  | Z7: =IF(AM!AC8="","",AM!AC8) ->  | AA7: =IF(AM!AD8="","",AM!AD8) ->  | AB7: =IF(AM!AE8="","",AM!AE8) ->  | AC7: =IF(AM!AF8="","",AM!AF8) ->  | AD7: =IF(AM!AG8="","",AM!AG8) ->  | AE7: =IF(AM!AH8="","",AM!AH8) ->  | AF7: =IF(AM!AI8="","",AM!AI8) ->  | AG7: =IF(AM!AJ8="","",AM!AJ8) ->  | AH7: =IF(AM!AK8="","",AM!AK8) ->  | AI7: =IF(AM!AL8="","",AM!AL8) ->  | AJ7: =IF(AM!AM8="","",AM!AM8) ->  | AK7: =IF(AM!AN8="","",AM!AN8) ->  | AL7: =IF(AM!AO8="","",AM!AO8) ->  | AM7: =IF(AM!AP8="","",AM!AP8) -> 
D8: Criterio Evaluación 1.6 | E8: =IF(AM!H9="","",AM!H9) ->  | F8: =IF(AM!I9="","",AM!I9) ->  | G8: =IF(AM!J9="","",AM!J9) ->  | H8: =IF(AM!K9="","",AM!K9) ->  | I8: =IF(AM!L9="","",AM!L9) ->  | J8: =IF(AM!M9="","",AM!M9) ->  | K8: =IF(AM!N9="","",AM!N9) ->  | L8: =IF(AM!O9="","",AM!O9) ->  | M8: =IF(AM!P9="","",AM!P9) ->  | N8: =IF(AM!Q9="","",AM!Q9) ->  | O8: =IF(AM!R9="","",AM!R9) ->  | P8: =IF(AM!S9="","",AM!S9) ->  | Q8: =IF(AM!T9="","",AM!T9) ->  | R8: =IF(AM!U9="","",AM!U9) ->  | S8: =IF(AM!V9="","",AM!V9) ->  | T8: =IF(AM!W9="","",AM!W9) ->  | U8: =IF(AM!X9="","",AM!X9) ->  | V8: =IF(AM!Y9="","",AM!Y9) ->  | W8: =IF(AM!Z9="","",AM!Z9) ->  | X8: =IF(AM!AA9="","",AM!AA9) ->  | Y8: =IF(AM!AB9="","",AM!AB9) ->  | Z8: =IF(AM!AC9="","",AM!AC9) ->  | AA8: =IF(AM!AD9="","",AM!AD9) ->  | AB8: =IF(AM!AE9="","",AM!AE9) ->  | AC8: =IF(AM!AF9="","",AM!AF9) ->  | AD8: =IF(AM!AG9="","",AM!AG9) ->  | AE8: =IF(AM!AH9="","",AM!AH9) ->  | AF8: =IF(AM!AI9="","",AM!AI9) ->  | AG8: =IF(AM!AJ9="","",AM!AJ9) ->  | AH8: =IF(AM!AK9="","",AM!AK9) ->  | AI8: =IF(AM!AL9="","",AM!AL9) ->  | AJ8: =IF(AM!AM9="","",AM!AM9) ->  | AK8: =IF(AM!AN9="","",AM!AN9) ->  | AL8: =IF(AM!AO9="","",AM!AO9) ->  | AM8: =IF(AM!AP9="","",AM!AP9) -> 
C9: Comp. Esp. 2 | D9: Criterio Evaluación 2.1 | E9: =IF(AM!H10="","",AM!H10) ->  | F9: =IF(AM!I10="","",AM!I10) ->  | G9: =IF(AM!J10="","",AM!J10) ->  | H9: =IF(AM!K10="","",AM!K10) ->  | I9: =IF(AM!L10="","",AM!L10) ->  | J9: =IF(AM!M10="","",AM!M10) ->  | K9: =IF(AM!N10="","",AM!N10) ->  | L9: =IF(AM!O10="","",AM!O10) ->  | M9: =IF(AM!P10="","",AM!P10) ->  | N9: =IF(AM!Q10="","",AM!Q10) ->  | O9: =IF(AM!R10="","",AM!R10) ->  | P9: =IF(AM!S10="","",AM!S10) ->  | Q9: =IF(AM!T10="","",AM!T10) ->  | R9: =IF(AM!U10="","",AM!U10) ->  | S9: =IF(AM!V10="","",AM!V10) ->  | T9: =IF(AM!W10="","",AM!W10) ->  | U9: =IF(AM!X10="","",AM!X10) ->  | V9: =IF(AM!Y10="","",AM!Y10) ->  | W9: =IF(AM!Z10="","",AM!Z10) ->  | X9: =IF(AM!AA10="","",AM!AA10) ->  | Y9: =IF(AM!AB10="","",AM!AB10) ->  | Z9: =IF(AM!AC10="","",AM!AC10) ->  | AA9: =IF(AM!AD10="","",AM!AD10) ->  | AB9: =IF(AM!AE10="","",AM!AE10) ->  | AC9: =IF(AM!AF10="","",AM!AF10) ->  | AD9: =IF(AM!AG10="","",AM!AG10) ->  | AE9: =IF(AM!AH10="","",AM!AH10) ->  | AF9: =IF(AM!AI10="","",AM!AI10) ->  | AG9: =IF(AM!AJ10="","",AM!AJ10) ->  | AH9: =IF(AM!AK10="","",AM!AK10) ->  | AI9: =IF(AM!AL10="","",AM!AL10) ->  | AJ9: =IF(AM!AM10="","",AM!AM10) ->  | AK9: =IF(AM!AN10="","",AM!AN10) ->  | AL9: =IF(AM!AO10="","",AM!AO10) ->  | AM9: =IF(AM!AP10="","",AM!AP10) -> 
D10: Criterio Evaluación 2.2 | E10: =IF(AM!H11="","",AM!H11) ->  | F10: =IF(AM!I11="","",AM!I11) ->  | G10: =IF(AM!J11="","",AM!J11) ->  | H10: =IF(AM!K11="","",AM!K11) ->  | I10: =IF(AM!L11="","",AM!L11) ->  | J10: =IF(AM!M11="","",AM!M11) ->  | K10: =IF(AM!N11="","",AM!N11) ->  | L10: =IF(AM!O11="","",AM!O11) ->  | M10: =IF(AM!P11="","",AM!P11) ->  | N10: =IF(AM!Q11="","",AM!Q11) ->  | O10: =IF(AM!R11="","",AM!R11) ->  | P10: =IF(AM!S11="","",AM!S11) ->  | Q10: =IF(AM!T11="","",AM!T11) ->  | R10: =IF(AM!U11="","",AM!U11) ->  | S10: =IF(AM!V11="","",AM!V11) ->  | T10: =IF(AM!W11="","",AM!W11) ->  | U10: =IF(AM!X11="","",AM!X11) ->  | V10: =IF(AM!Y11="","",AM!Y11) ->  | W10: =IF(AM!Z11="","",AM!Z11) ->  | X10: =IF(AM!AA11="","",AM!AA11) ->  | Y10: =IF(AM!AB11="","",AM!AB11) ->  | Z10: =IF(AM!AC11="","",AM!AC11) ->  | AA10: =IF(AM!AD11="","",AM!AD11) ->  | AB10: =IF(AM!AE11="","",AM!AE11) ->  | AC10: =IF(AM!AF11="","",AM!AF11) ->  | AD10: =IF(AM!AG11="","",AM!AG11) ->  | AE10: =IF(AM!AH11="","",AM!AH11) ->  | AF10: =IF(AM!AI11="","",AM!AI11) ->  | AG10: =IF(AM!AJ11="","",AM!AJ11) ->  | AH10: =IF(AM!AK11="","",AM!AK11) ->  | AI10: =IF(AM!AL11="","",AM!AL11) ->  | AJ10: =IF(AM!AM11="","",AM!AM11) ->  | AK10: =IF(AM!AN11="","",AM!AN11) ->  | AL10: =IF(AM!AO11="","",AM!AO11) ->  | AM10: =IF(AM!AP11="","",AM!AP11) -> 
D11: Criterio Evaluación 2.3 | E11: =IF(AM!H12="","",AM!H12) ->  | F11: =IF(AM!I12="","",AM!I12) ->  | G11: =IF(AM!J12="","",AM!J12) ->  | H11: =IF(AM!K12="","",AM!K12) ->  | I11: =IF(AM!L12="","",AM!L12) ->  | J11: =IF(AM!M12="","",AM!M12) ->  | K11: =IF(AM!N12="","",AM!N12) ->  | L11: =IF(AM!O12="","",AM!O12) ->  | M11: =IF(AM!P12="","",AM!P12) ->  | N11: =IF(AM!Q12="","",AM!Q12) ->  | O11: =IF(AM!R12="","",AM!R12) ->  | P11: =IF(AM!S12="","",AM!S12) ->  | Q11: =IF(AM!T12="","",AM!T12) ->  | R11: =IF(AM!U12="","",AM!U12) ->  | S11: =IF(AM!V12="","",AM!V12) ->  | T11: =IF(AM!W12="","",AM!W12) ->  | U11: =IF(AM!X12="","",AM!X12) ->  | V11: =IF(AM!Y12="","",AM!Y12) ->  | W11: =IF(AM!Z12="","",AM!Z12) ->  | X11: =IF(AM!AA12="","",AM!AA12) ->  | Y11: =IF(AM!AB12="","",AM!AB12) ->  | Z11: =IF(AM!AC12="","",AM!AC12) ->  | AA11: =IF(AM!AD12="","",AM!AD12) ->  | AB11: =IF(AM!AE12="","",AM!AE12) ->  | AC11: =IF(AM!AF12="","",AM!AF12) ->  | AD11: =IF(AM!AG12="","",AM!AG12) ->  | AE11: =IF(AM!AH12="","",AM!AH12) ->  | AF11: =IF(AM!AI12="","",AM!AI12) ->  | AG11: =IF(AM!AJ12="","",AM!AJ12) ->  | AH11: =IF(AM!AK12="","",AM!AK12) ->  | AI11: =IF(AM!AL12="","",AM!AL12) ->  | AJ11: =IF(AM!AM12="","",AM!AM12) ->  | AK11: =IF(AM!AN12="","",AM!AN12) ->  | AL11: =IF(AM!AO12="","",AM!AO12) ->  | AM11: =IF(AM!AP12="","",AM!AP12) -> 
D12: Criterio Evaluación 2.4 | E12: =IF(AM!H13="","",AM!H13) ->  | F12: =IF(AM!I13="","",AM!I13) ->  | G12: =IF(AM!J13="","",AM!J13) ->  | H12: =IF(AM!K13="","",AM!K13) ->  | I12: =IF(AM!L13="","",AM!L13) ->  | J12: =IF(AM!M13="","",AM!M13) ->  | K12: =IF(AM!N13="","",AM!N13) ->  | L12: =IF(AM!O13="","",AM!O13) ->  | M12: =IF(AM!P13="","",AM!P13) ->  | N12: =IF(AM!Q13="","",AM!Q13) ->  | O12: =IF(AM!R13="","",AM!R13) ->  | P12: =IF(AM!S13="","",AM!S13) ->  | Q12: =IF(AM!T13="","",AM!T13) ->  | R12: =IF(AM!U13="","",AM!U13) ->  | S12: =IF(AM!V13="","",AM!V13) ->  | T12: =IF(AM!W13="","",AM!W13) ->  | U12: =IF(AM!X13="","",AM!X13) ->  | V12: =IF(AM!Y13="","",AM!Y13) ->  | W12: =IF(AM!Z13="","",AM!Z13) ->  | X12: =IF(AM!AA13="","",AM!AA13) ->  | Y12: =IF(AM!AB13="","",AM!AB13) ->  | Z12: =IF(AM!AC13="","",AM!AC13) ->  | AA12: =IF(AM!AD13="","",AM!AD13) ->  | AB12: =IF(AM!AE13="","",AM!AE13) ->  | AC12: =IF(AM!AF13="","",AM!AF13) ->  | AD12: =IF(AM!AG13="","",AM!AG13) ->  | AE12: =IF(AM!AH13="","",AM!AH13) ->  | AF12: =IF(AM!AI13="","",AM!AI13) ->  | AG12: =IF(AM!AJ13="","",AM!AJ13) ->  | AH12: =IF(AM!AK13="","",AM!AK13) ->  | AI12: =IF(AM!AL13="","",AM!AL13) ->  | AJ12: =IF(AM!AM13="","",AM!AM13) ->  | AK12: =IF(AM!AN13="","",AM!AN13) ->  | AL12: =IF(AM!AO13="","",AM!AO13) ->  | AM12: =IF(AM!AP13="","",AM!AP13) -> 
C13: Comp. Esp. 3 | D13: Criterio Evaluación 3.1 | E13: =IF(AM!H14="","",AM!H14) ->  | F13: =IF(AM!I14="","",AM!I14) ->  | G13: =IF(AM!J14="","",AM!J14) ->  | H13: =IF(AM!K14="","",AM!K14) ->  | I13: =IF(AM!L14="","",AM!L14) ->  | J13: =IF(AM!M14="","",AM!M14) ->  | K13: =IF(AM!N14="","",AM!N14) ->  | L13: =IF(AM!O14="","",AM!O14) ->  | M13: =IF(AM!P14="","",AM!P14) ->  | N13: =IF(AM!Q14="","",AM!Q14) ->  | O13: =IF(AM!R14="","",AM!R14) ->  | P13: =IF(AM!S14="","",AM!S14) ->  | Q13: =IF(AM!T14="","",AM!T14) ->  | R13: =IF(AM!U14="","",AM!U14) ->  | S13: =IF(AM!V14="","",AM!V14) ->  | T13: =IF(AM!W14="","",AM!W14) ->  | U13: =IF(AM!X14="","",AM!X14) ->  | V13: =IF(AM!Y14="","",AM!Y14) ->  | W13: =IF(AM!Z14="","",AM!Z14) ->  | X13: =IF(AM!AA14="","",AM!AA14) ->  | Y13: =IF(AM!AB14="","",AM!AB14) ->  | Z13: =IF(AM!AC14="","",AM!AC14) ->  | AA13: =IF(AM!AD14="","",AM!AD14) ->  | AB13: =IF(AM!AE14="","",AM!AE14) ->  | AC13: =IF(AM!AF14="","",AM!AF14) ->  | AD13: =IF(AM!AG14="","",AM!AG14) ->  | AE13: =IF(AM!AH14="","",AM!AH14) ->  | AF13: =IF(AM!AI14="","",AM!AI14) ->  | AG13: =IF(AM!AJ14="","",AM!AJ14) ->  | AH13: =IF(AM!AK14="","",AM!AK14) ->  | AI13: =IF(AM!AL14="","",AM!AL14) ->  | AJ13: =IF(AM!AM14="","",AM!AM14) ->  | AK13: =IF(AM!AN14="","",AM!AN14) ->  | AL13: =IF(AM!AO14="","",AM!AO14) ->  | AM13: =IF(AM!AP14="","",AM!AP14) -> 
D14: Criterio Evaluación 3.2 | E14: =IF(AM!H15="","",AM!H15) ->  | F14: =IF(AM!I15="","",AM!I15) ->  | G14: =IF(AM!J15="","",AM!J15) ->  | H14: =IF(AM!K15="","",AM!K15) ->  | I14: =IF(AM!L15="","",AM!L15) ->  | J14: =IF(AM!M15="","",AM!M15) ->  | K14: =IF(AM!N15="","",AM!N15) ->  | L14: =IF(AM!O15="","",AM!O15) ->  | M14: =IF(AM!P15="","",AM!P15) ->  | N14: =IF(AM!Q15="","",AM!Q15) ->  | O14: =IF(AM!R15="","",AM!R15) ->  | P14: =IF(AM!S15="","",AM!S15) ->  | Q14: =IF(AM!T15="","",AM!T15) ->  | R14: =IF(AM!U15="","",AM!U15) ->  | S14: =IF(AM!V15="","",AM!V15) ->  | T14: =IF(AM!W15="","",AM!W15) ->  | U14: =IF(AM!X15="","",AM!X15) ->  | V14: =IF(AM!Y15="","",AM!Y15) ->  | W14: =IF(AM!Z15="","",AM!Z15) ->  | X14: =IF(AM!AA15="","",AM!AA15) ->  | Y14: =IF(AM!AB15="","",AM!AB15) ->  | Z14: =IF(AM!AC15="","",AM!AC15) ->  | AA14: =IF(AM!AD15="","",AM!AD15) ->  | AB14: =IF(AM!AE15="","",AM!AE15) ->  | AC14: =IF(AM!AF15="","",AM!AF15) ->  | AD14: =IF(AM!AG15="","",AM!AG15) ->  | AE14: =IF(AM!AH15="","",AM!AH15) ->  | AF14: =IF(AM!AI15="","",AM!AI15) ->  | AG14: =IF(AM!AJ15="","",AM!AJ15) ->  | AH14: =IF(AM!AK15="","",AM!AK15) ->  | AI14: =IF(AM!AL15="","",AM!AL15) ->  | AJ14: =IF(AM!AM15="","",AM!AM15) ->  | AK14: =IF(AM!AN15="","",AM!AN15) ->  | AL14: =IF(AM!AO15="","",AM!AO15) ->  | AM14: =IF(AM!AP15="","",AM!AP15) -> 
D15: Criterio Evaluación 3.3 | E15: =IF(AM!H16="","",AM!H16) ->  | F15: =IF(AM!I16="","",AM!I16) ->  | G15: =IF(AM!J16="","",AM!J16) ->  | H15: =IF(AM!K16="","",AM!K16) ->  | I15: =IF(AM!L16="","",AM!L16) ->  | J15: =IF(AM!M16="","",AM!M16) ->  | K15: =IF(AM!N16="","",AM!N16) ->  | L15: =IF(AM!O16="","",AM!O16) ->  | M15: =IF(AM!P16="","",AM!P16) ->  | N15: =IF(AM!Q16="","",AM!Q16) ->  | O15: =IF(AM!R16="","",AM!R16) ->  | P15: =IF(AM!S16="","",AM!S16) ->  | Q15: =IF(AM!T16="","",AM!T16) ->  | R15: =IF(AM!U16="","",AM!U16) ->  | S15: =IF(AM!V16="","",AM!V16) ->  | T15: =IF(AM!W16="","",AM!W16) ->  | U15: =IF(AM!X16="","",AM!X16) ->  | V15: =IF(AM!Y16="","",AM!Y16) ->  | W15: =IF(AM!Z16="","",AM!Z16) ->  | X15: =IF(AM!AA16="","",AM!AA16) ->  | Y15: =IF(AM!AB16="","",AM!AB16) ->  | Z15: =IF(AM!AC16="","",AM!AC16) ->  | AA15: =IF(AM!AD16="","",AM!AD16) ->  | AB15: =IF(AM!AE16="","",AM!AE16) ->  | AC15: =IF(AM!AF16="","",AM!AF16) ->  | AD15: =IF(AM!AG16="","",AM!AG16) ->  | AE15: =IF(AM!AH16="","",AM!AH16) ->  | AF15: =IF(AM!AI16="","",AM!AI16) ->  | AG15: =IF(AM!AJ16="","",AM!AJ16) ->  | AH15: =IF(AM!AK16="","",AM!AK16) ->  | AI15: =IF(AM!AL16="","",AM!AL16) ->  | AJ15: =IF(AM!AM16="","",AM!AM16) ->  | AK15: =IF(AM!AN16="","",AM!AN16) ->  | AL15: =IF(AM!AO16="","",AM!AO16) ->  | AM15: =IF(AM!AP16="","",AM!AP16) -> 
D16: Criterio Evaluación 3.4 | E16: =IF(AM!H17="","",AM!H17) ->  | F16: =IF(AM!I17="","",AM!I17) ->  | G16: =IF(AM!J17="","",AM!J17) ->  | H16: =IF(AM!K17="","",AM!K17) ->  | I16: =IF(AM!L17="","",AM!L17) ->  | J16: =IF(AM!M17="","",AM!M17) ->  | K16: =IF(AM!N17="","",AM!N17) ->  | L16: =IF(AM!O17="","",AM!O17) ->  | M16: =IF(AM!P17="","",AM!P17) ->  | N16: =IF(AM!Q17="","",AM!Q17) ->  | O16: =IF(AM!R17="","",AM!R17) ->  | P16: =IF(AM!S17="","",AM!S17) ->  | Q16: =IF(AM!T17="","",AM!T17) ->  | R16: =IF(AM!U17="","",AM!U17) ->  | S16: =IF(AM!V17="","",AM!V17) ->  | T16: =IF(AM!W17="","",AM!W17) ->  | U16: =IF(AM!X17="","",AM!X17) ->  | V16: =IF(AM!Y17="","",AM!Y17) ->  | W16: =IF(AM!Z17="","",AM!Z17) ->  | X16: =IF(AM!AA17="","",AM!AA17) ->  | Y16: =IF(AM!AB17="","",AM!AB17) ->  | Z16: =IF(AM!AC17="","",AM!AC17) ->  | AA16: =IF(AM!AD17="","",AM!AD17) ->  | AB16: =IF(AM!AE17="","",AM!AE17) ->  | AC16: =IF(AM!AF17="","",AM!AF17) ->  | AD16: =IF(AM!AG17="","",AM!AG17) ->  | AE16: =IF(AM!AH17="","",AM!AH17) ->  | AF16: =IF(AM!AI17="","",AM!AI17) ->  | AG16: =IF(AM!AJ17="","",AM!AJ17) ->  | AH16: =IF(AM!AK17="","",AM!AK17) ->  | AI16: =IF(AM!AL17="","",AM!AL17) ->  | AJ16: =IF(AM!AM17="","",AM!AM17) ->  | AK16: =IF(AM!AN17="","",AM!AN17) ->  | AL16: =IF(AM!AO17="","",AM!AO17) ->  | AM16: =IF(AM!AP17="","",AM!AP17) -> 
C17: Comp. Esp. 4 | D17: Criterio Evaluación 4.1 | E17: =IF(AM!H18="","",AM!H18) ->  | F17: =IF(AM!I18="","",AM!I18) ->  | G17: =IF(AM!J18="","",AM!J18) ->  | H17: =IF(AM!K18="","",AM!K18) ->  | I17: =IF(AM!L18="","",AM!L18) ->  | J17: =IF(AM!M18="","",AM!M18) ->  | K17: =IF(AM!N18="","",AM!N18) ->  | L17: =IF(AM!O18="","",AM!O18) ->  | M17: =IF(AM!P18="","",AM!P18) ->  | N17: =IF(AM!Q18="","",AM!Q18) ->  | O17: =IF(AM!R18="","",AM!R18) ->  | P17: =IF(AM!S18="","",AM!S18) ->  | Q17: =IF(AM!T18="","",AM!T18) ->  | R17: =IF(AM!U18="","",AM!U18) ->  | S17: =IF(AM!V18="","",AM!V18) ->  | T17: =IF(AM!W18="","",AM!W18) ->  | U17: =IF(AM!X18="","",AM!X18) ->  | V17: =IF(AM!Y18="","",AM!Y18) ->  | W17: =IF(AM!Z18="","",AM!Z18) ->  | X17: =IF(AM!AA18="","",AM!AA18) ->  | Y17: =IF(AM!AB18="","",AM!AB18) ->  | Z17: =IF(AM!AC18="","",AM!AC18) ->  | AA17: =IF(AM!AD18="","",AM!AD18) ->  | AB17: =IF(AM!AE18="","",AM!AE18) ->  | AC17: =IF(AM!AF18="","",AM!AF18) ->  | AD17: =IF(AM!AG18="","",AM!AG18) ->  | AE17: =IF(AM!AH18="","",AM!AH18) ->  | AF17: =IF(AM!AI18="","",AM!AI18) ->  | AG17: =IF(AM!AJ18="","",AM!AJ18) ->  | AH17: =IF(AM!AK18="","",AM!AK18) ->  | AI17: =IF(AM!AL18="","",AM!AL18) ->  | AJ17: =IF(AM!AM18="","",AM!AM18) ->  | AK17: =IF(AM!AN18="","",AM!AN18) ->  | AL17: =IF(AM!AO18="","",AM!AO18) ->  | AM17: =IF(AM!AP18="","",AM!AP18) -> 
D18: Criterio Evaluación 4.2 | E18: =IF(AM!H19="","",AM!H19) ->  | F18: =IF(AM!I19="","",AM!I19) ->  | G18: =IF(AM!J19="","",AM!J19) ->  | H18: =IF(AM!K19="","",AM!K19) ->  | I18: =IF(AM!L19="","",AM!L19) ->  | J18: =IF(AM!M19="","",AM!M19) ->  | K18: =IF(AM!N19="","",AM!N19) ->  | L18: =IF(AM!O19="","",AM!O19) ->  | M18: =IF(AM!P19="","",AM!P19) ->  | N18: =IF(AM!Q19="","",AM!Q19) ->  | O18: =IF(AM!R19="","",AM!R19) ->  | P18: =IF(AM!S19="","",AM!S19) ->  | Q18: =IF(AM!T19="","",AM!T19) ->  | R18: =IF(AM!U19="","",AM!U19) ->  | S18: =IF(AM!V19="","",AM!V19) ->  | T18: =IF(AM!W19="","",AM!W19) ->  | U18: =IF(AM!X19="","",AM!X19) ->  | V18: =IF(AM!Y19="","",AM!Y19) ->  | W18: =IF(AM!Z19="","",AM!Z19) ->  | X18: =IF(AM!AA19="","",AM!AA19) ->  | Y18: =IF(AM!AB19="","",AM!AB19) ->  | Z18: =IF(AM!AC19="","",AM!AC19) ->  | AA18: =IF(AM!AD19="","",AM!AD19) ->  | AB18: =IF(AM!AE19="","",AM!AE19) ->  | AC18: =IF(AM!AF19="","",AM!AF19) ->  | AD18: =IF(AM!AG19="","",AM!AG19) ->  | AE18: =IF(AM!AH19="","",AM!AH19) ->  | AF18: =IF(AM!AI19="","",AM!AI19) ->  | AG18: =IF(AM!AJ19="","",AM!AJ19) ->  | AH18: =IF(AM!AK19="","",AM!AK19) ->  | AI18: =IF(AM!AL19="","",AM!AL19) ->  | AJ18: =IF(AM!AM19="","",AM!AM19) ->  | AK18: =IF(AM!AN19="","",AM!AN19) ->  | AL18: =IF(AM!AO19="","",AM!AO19) ->  | AM18: =IF(AM!AP19="","",AM!AP19) -> 
D19: Criterio Evaluación 4.3 | E19: =IF(AM!H20="","",AM!H20) ->  | F19: =IF(AM!I20="","",AM!I20) ->  | G19: =IF(AM!J20="","",AM!J20) ->  | H19: =IF(AM!K20="","",AM!K20) ->  | I19: =IF(AM!L20="","",AM!L20) ->  | J19: =IF(AM!M20="","",AM!M20) ->  | K19: =IF(AM!N20="","",AM!N20) ->  | L19: =IF(AM!O20="","",AM!O20) ->  | M19: =IF(AM!P20="","",AM!P20) ->  | N19: =IF(AM!Q20="","",AM!Q20) ->  | O19: =IF(AM!R20="","",AM!R20) ->  | P19: =IF(AM!S20="","",AM!S20) ->  | Q19: =IF(AM!T20="","",AM!T20) ->  | R19: =IF(AM!U20="","",AM!U20) ->  | S19: =IF(AM!V20="","",AM!V20) ->  | T19: =IF(AM!W20="","",AM!W20) ->  | U19: =IF(AM!X20="","",AM!X20) ->  | V19: =IF(AM!Y20="","",AM!Y20) ->  | W19: =IF(AM!Z20="","",AM!Z20) ->  | X19: =IF(AM!AA20="","",AM!AA20) ->  | Y19: =IF(AM!AB20="","",AM!AB20) ->  | Z19: =IF(AM!AC20="","",AM!AC20) ->  | AA19: =IF(AM!AD20="","",AM!AD20) ->  | AB19: =IF(AM!AE20="","",AM!AE20) ->  | AC19: =IF(AM!AF20="","",AM!AF20) ->  | AD19: =IF(AM!AG20="","",AM!AG20) ->  | AE19: =IF(AM!AH20="","",AM!AH20) ->  | AF19: =IF(AM!AI20="","",AM!AI20) ->  | AG19: =IF(AM!AJ20="","",AM!AJ20) ->  | AH19: =IF(AM!AK20="","",AM!AK20) ->  | AI19: =IF(AM!AL20="","",AM!AL20) ->  | AJ19: =IF(AM!AM20="","",AM!AM20) ->  | AK19: =IF(AM!AN20="","",AM!AN20) ->  | AL19: =IF(AM!AO20="","",AM!AO20) ->  | AM19: =IF(AM!AP20="","",AM!AP20) -> 
D20: Criterio Evaluación 4.4 | E20: =IF(AM!H21="","",AM!H21) ->  | F20: =IF(AM!I21="","",AM!I21) ->  | G20: =IF(AM!J21="","",AM!J21) ->  | H20: =IF(AM!K21="","",AM!K21) ->  | I20: =IF(AM!L21="","",AM!L21) ->  | J20: =IF(AM!M21="","",AM!M21) ->  | K20: =IF(AM!N21="","",AM!N21) ->  | L20: =IF(AM!O21="","",AM!O21) ->  | M20: =IF(AM!P21="","",AM!P21) ->  | N20: =IF(AM!Q21="","",AM!Q21) ->  | O20: =IF(AM!R21="","",AM!R21) ->  | P20: =IF(AM!S21="","",AM!S21) ->  | Q20: =IF(AM!T21="","",AM!T21) ->  | R20: =IF(AM!U21="","",AM!U21) ->  | S20: =IF(AM!V21="","",AM!V21) ->  | T20: =IF(AM!W21="","",AM!W21) ->  | U20: =IF(AM!X21="","",AM!X21) ->  | V20: =IF(AM!Y21="","",AM!Y21) ->  | W20: =IF(AM!Z21="","",AM!Z21) ->  | X20: =IF(AM!AA21="","",AM!AA21) ->  | Y20: =IF(AM!AB21="","",AM!AB21) ->  | Z20: =IF(AM!AC21="","",AM!AC21) ->  | AA20: =IF(AM!AD21="","",AM!AD21) ->  | AB20: =IF(AM!AE21="","",AM!AE21) ->  | AC20: =IF(AM!AF21="","",AM!AF21) ->  | AD20: =IF(AM!AG21="","",AM!AG21) ->  | AE20: =IF(AM!AH21="","",AM!AH21) ->  | AF20: =IF(AM!AI21="","",AM!AI21) ->  | AG20: =IF(AM!AJ21="","",AM!AJ21) ->  | AH20: =IF(AM!AK21="","",AM!AK21) ->  | AI20: =IF(AM!AL21="","",AM!AL21) ->  | AJ20: =IF(AM!AM21="","",AM!AM21) ->  | AK20: =IF(AM!AN21="","",AM!AN21) ->  | AL20: =IF(AM!AO21="","",AM!AO21) ->  | AM20: =IF(AM!AP21="","",AM!AP21) -> 
C21: Comp. Esp. 5 | D21: Criterio Evaluación 5.1 | E21: =IF(AM!H22="","",AM!H22) ->  | F21: =IF(AM!I22="","",AM!I22) ->  | G21: =IF(AM!J22="","",AM!J22) ->  | H21: =IF(AM!K22="","",AM!K22) ->  | I21: =IF(AM!L22="","",AM!L22) ->  | J21: =IF(AM!M22="","",AM!M22) ->  | K21: =IF(AM!N22="","",AM!N22) ->  | L21: =IF(AM!O22="","",AM!O22) ->  | M21: =IF(AM!P22="","",AM!P22) ->  | N21: =IF(AM!Q22="","",AM!Q22) ->  | O21: =IF(AM!R22="","",AM!R22) ->  | P21: =IF(AM!S22="","",AM!S22) ->  | Q21: =IF(AM!T22="","",AM!T22) ->  | R21: =IF(AM!U22="","",AM!U22) ->  | S21: =IF(AM!V22="","",AM!V22) ->  | T21: =IF(AM!W22="","",AM!W22) ->  | U21: =IF(AM!X22="","",AM!X22) ->  | V21: =IF(AM!Y22="","",AM!Y22) ->  | W21: =IF(AM!Z22="","",AM!Z22) ->  | X21: =IF(AM!AA22="","",AM!AA22) ->  | Y21: =IF(AM!AB22="","",AM!AB22) ->  | Z21: =IF(AM!AC22="","",AM!AC22) ->  | AA21: =IF(AM!AD22="","",AM!AD22) ->  | AB21: =IF(AM!AE22="","",AM!AE22) ->  | AC21: =IF(AM!AF22="","",AM!AF22) ->  | AD21: =IF(AM!AG22="","",AM!AG22) ->  | AE21: =IF(AM!AH22="","",AM!AH22) ->  | AF21: =IF(AM!AI22="","",AM!AI22) ->  | AG21: =IF(AM!AJ22="","",AM!AJ22) ->  | AH21: =IF(AM!AK22="","",AM!AK22) ->  | AI21: =IF(AM!AL22="","",AM!AL22) ->  | AJ21: =IF(AM!AM22="","",AM!AM22) ->  | AK21: =IF(AM!AN22="","",AM!AN22) ->  | AL21: =IF(AM!AO22="","",AM!AO22) ->  | AM21: =IF(AM!AP22="","",AM!AP22) -> 
D22: Criterio Evaluación 5.2 | E22: =IF(AM!H23="","",AM!H23) ->  | F22: =IF(AM!I23="","",AM!I23) ->  | G22: =IF(AM!J23="","",AM!J23) ->  | H22: =IF(AM!K23="","",AM!K23) ->  | I22: =IF(AM!L23="","",AM!L23) ->  | J22: =IF(AM!M23="","",AM!M23) ->  | K22: =IF(AM!N23="","",AM!N23) ->  | L22: =IF(AM!O23="","",AM!O23) ->  | M22: =IF(AM!P23="","",AM!P23) ->  | N22: =IF(AM!Q23="","",AM!Q23) ->  | O22: =IF(AM!R23="","",AM!R23) ->  | P22: =IF(AM!S23="","",AM!S23) ->  | Q22: =IF(AM!T23="","",AM!T23) ->  | R22: =IF(AM!U23="","",AM!U23) ->  | S22: =IF(AM!V23="","",AM!V23) ->  | T22: =IF(AM!W23="","",AM!W23) ->  | U22: =IF(AM!X23="","",AM!X23) ->  | V22: =IF(AM!Y23="","",AM!Y23) ->  | W22: =IF(AM!Z23="","",AM!Z23) ->  | X22: =IF(AM!AA23="","",AM!AA23) ->  | Y22: =IF(AM!AB23="","",AM!AB23) ->  | Z22: =IF(AM!AC23="","",AM!AC23) ->  | AA22: =IF(AM!AD23="","",AM!AD23) ->  | AB22: =IF(AM!AE23="","",AM!AE23) ->  | AC22: =IF(AM!AF23="","",AM!AF23) ->  | AD22: =IF(AM!AG23="","",AM!AG23) ->  | AE22: =IF(AM!AH23="","",AM!AH23) ->  | AF22: =IF(AM!AI23="","",AM!AI23) ->  | AG22: =IF(AM!AJ23="","",AM!AJ23) ->  | AH22: =IF(AM!AK23="","",AM!AK23) ->  | AI22: =IF(AM!AL23="","",AM!AL23) ->  | AJ22: =IF(AM!AM23="","",AM!AM23) ->  | AK22: =IF(AM!AN23="","",AM!AN23) ->  | AL22: =IF(AM!AO23="","",AM!AO23) ->  | AM22: =IF(AM!AP23="","",AM!AP23) -> 
D23: Criterio Evaluación 5.3 | E23: =IF(AM!H24="","",AM!H24) ->  | F23: =IF(AM!I24="","",AM!I24) ->  | G23: =IF(AM!J24="","",AM!J24) ->  | H23: =IF(AM!K24="","",AM!K24) ->  | I23: =IF(AM!L24="","",AM!L24) ->  | J23: =IF(AM!M24="","",AM!M24) ->  | K23: =IF(AM!N24="","",AM!N24) ->  | L23: =IF(AM!O24="","",AM!O24) ->  | M23: =IF(AM!P24="","",AM!P24) ->  | N23: =IF(AM!Q24="","",AM!Q24) ->  | O23: =IF(AM!R24="","",AM!R24) ->  | P23: =IF(AM!S24="","",AM!S24) ->  | Q23: =IF(AM!T24="","",AM!T24) ->  | R23: =IF(AM!U24="","",AM!U24) ->  | S23: =IF(AM!V24="","",AM!V24) ->  | T23: =IF(AM!W24="","",AM!W24) ->  | U23: =IF(AM!X24="","",AM!X24) ->  | V23: =IF(AM!Y24="","",AM!Y24) ->  | W23: =IF(AM!Z24="","",AM!Z24) ->  | X23: =IF(AM!AA24="","",AM!AA24) ->  | Y23: =IF(AM!AB24="","",AM!AB24) ->  | Z23: =IF(AM!AC24="","",AM!AC24) ->  | AA23: =IF(AM!AD24="","",AM!AD24) ->  | AB23: =IF(AM!AE24="","",AM!AE24) ->  | AC23: =IF(AM!AF24="","",AM!AF24) ->  | AD23: =IF(AM!AG24="","",AM!AG24) ->  | AE23: =IF(AM!AH24="","",AM!AH24) ->  | AF23: =IF(AM!AI24="","",AM!AI24) ->  | AG23: =IF(AM!AJ24="","",AM!AJ24) ->  | AH23: =IF(AM!AK24="","",AM!AK24) ->  | AI23: =IF(AM!AL24="","",AM!AL24) ->  | AJ23: =IF(AM!AM24="","",AM!AM24) ->  | AK23: =IF(AM!AN24="","",AM!AN24) ->  | AL23: =IF(AM!AO24="","",AM!AO24) ->  | AM23: =IF(AM!AP24="","",AM!AP24) -> 
B24: Artes Escénicas II | C24: Comp. Esp. 1 | D24: Criterio Evaluación 1.1 | E24: =IF(AE!H4="","",AE!H4) ->  | F24: =IF(AE!I4="","",AE!I4) ->  | G24: =IF(AE!J4="","",AE!J4) ->  | H24: =IF(AE!K4="","",AE!K4) ->  | I24: =IF(AE!L4="","",AE!L4) ->  | J24: =IF(AE!M4="","",AE!M4) ->  | K24: =IF(AE!N4="","",AE!N4) ->  | L24: =IF(AE!O4="","",AE!O4) ->  | M24: =IF(AE!P4="","",AE!P4) ->  | N24: =IF(AE!Q4="","",AE!Q4) ->  | O24: =IF(AE!R4="","",AE!R4) ->  | P24: =IF(AE!S4="","",AE!S4) ->  | Q24: =IF(AE!T4="","",AE!T4) ->  | R24: =IF(AE!U4="","",AE!U4) ->  | S24: =IF(AE!V4="","",AE!V4) ->  | T24: =IF(AE!W4="","",AE!W4) ->  | U24: =IF(AE!X4="","",AE!X4) ->  | V24: =IF(AE!Y4="","",AE!Y4) ->  | W24: =IF(AE!Z4="","",AE!Z4) ->  | X24: =IF(AE!AA4="","",AE!AA4) ->  | Y24: =IF(AE!AB4="","",AE!AB4) ->  | Z24: =IF(AE!AC4="","",AE!AC4) ->  | AA24: =IF(AE!AD4="","",AE!AD4) ->  | AB24: =IF(AE!AE4="","",AE!AE4) ->  | AC24: =IF(AE!AF4="","",AE!AF4) ->  | AD24: =IF(AE!AG4="","",AE!AG4) ->  | AE24: =IF(AE!AH4="","",AE!AH4) ->  | AF24: =IF(AE!AI4="","",AE!AI4) ->  | AG24: =IF(AE!AJ4="","",AE!AJ4) ->  | AH24: =IF(AE!AK4="","",AE!AK4) ->  | AI24: =IF(AE!AL4="","",AE!AL4) ->  | AJ24: =IF(AE!AM4="","",AE!AM4) ->  | AK24: =IF(AE!AN4="","",AE!AN4) ->  | AL24: =IF(AE!AO4="","",AE!AO4) ->  | AM24: =IF(AE!AP4="","",AE!AP4) -> 
D25: Criterio Evaluación 1.2 | E25: =IF(AE!H5="","",AE!H5) ->  | F25: =IF(AE!I5="","",AE!I5) ->  | G25: =IF(AE!J5="","",AE!J5) ->  | H25: =IF(AE!K5="","",AE!K5) ->  | I25: =IF(AE!L5="","",AE!L5) ->  | J25: =IF(AE!M5="","",AE!M5) ->  | K25: =IF(AE!N5="","",AE!N5) ->  | L25: =IF(AE!O5="","",AE!O5) ->  | M25: =IF(AE!P5="","",AE!P5) ->  | N25: =IF(AE!Q5="","",AE!Q5) ->  | O25: =IF(AE!R5="","",AE!R5) ->  | P25: =IF(AE!S5="","",AE!S5) ->  | Q25: =IF(AE!T5="","",AE!T5) ->  | R25: =IF(AE!U5="","",AE!U5) ->  | S25: =IF(AE!V5="","",AE!V5) ->  | T25: =IF(AE!W5="","",AE!W5) ->  | U25: =IF(AE!X5="","",AE!X5) ->  | V25: =IF(AE!Y5="","",AE!Y5) ->  | W25: =IF(AE!Z5="","",AE!Z5) ->  | X25: =IF(AE!AA5="","",AE!AA5) ->  | Y25: =IF(AE!AB5="","",AE!AB5) ->  | Z25: =IF(AE!AC5="","",AE!AC5) ->  | AA25: =IF(AE!AD5="","",AE!AD5) ->  | AB25: =IF(AE!AE5="","",AE!AE5) ->  | AC25: =IF(AE!AF5="","",AE!AF5) ->  | AD25: =IF(AE!AG5="","",AE!AG5) ->  | AE25: =IF(AE!AH5="","",AE!AH5) ->  | AF25: =IF(AE!AI5="","",AE!AI5) ->  | AG25: =IF(AE!AJ5="","",AE!AJ5) ->  | AH25: =IF(AE!AK5="","",AE!AK5) ->  | AI25: =IF(AE!AL5="","",AE!AL5) ->  | AJ25: =IF(AE!AM5="","",AE!AM5) ->  | AK25: =IF(AE!AN5="","",AE!AN5) ->  | AL25: =IF(AE!AO5="","",AE!AO5) ->  | AM25: =IF(AE!AP5="","",AE!AP5) -> 
C26: Comp. Esp. 2 | D26: Criterio Evaluación 2.1 | E26: =IF(AE!H6="","",AE!H6) ->  | F26: =IF(AE!I6="","",AE!I6) ->  | G26: =IF(AE!J6="","",AE!J6) ->  | H26: =IF(AE!K6="","",AE!K6) ->  | I26: =IF(AE!L6="","",AE!L6) ->  | J26: =IF(AE!M6="","",AE!M6) ->  | K26: =IF(AE!N6="","",AE!N6) ->  | L26: =IF(AE!O6="","",AE!O6) ->  | M26: =IF(AE!P6="","",AE!P6) ->  | N26: =IF(AE!Q6="","",AE!Q6) ->  | O26: =IF(AE!R6="","",AE!R6) ->  | P26: =IF(AE!S6="","",AE!S6) ->  | Q26: =IF(AE!T6="","",AE!T6) ->  | R26: =IF(AE!U6="","",AE!U6) ->  | S26: =IF(AE!V6="","",AE!V6) ->  | T26: =IF(AE!W6="","",AE!W6) ->  | U26: =IF(AE!X6="","",AE!X6) ->  | V26: =IF(AE!Y6="","",AE!Y6) ->  | W26: =IF(AE!Z6="","",AE!Z6) ->  | X26: =IF(AE!AA6="","",AE!AA6) ->  | Y26: =IF(AE!AB6="","",AE!AB6) ->  | Z26: =IF(AE!AC6="","",AE!AC6) ->  | AA26: =IF(AE!AD6="","",AE!AD6) ->  | AB26: =IF(AE!AE6="","",AE!AE6) ->  | AC26: =IF(AE!AF6="","",AE!AF6) ->  | AD26: =IF(AE!AG6="","",AE!AG6) ->  | AE26: =IF(AE!AH6="","",AE!AH6) ->  | AF26: =IF(AE!AI6="","",AE!AI6) ->  | AG26: =IF(AE!AJ6="","",AE!AJ6) ->  | AH26: =IF(AE!AK6="","",AE!AK6) ->  | AI26: =IF(AE!AL6="","",AE!AL6) ->  | AJ26: =IF(AE!AM6="","",AE!AM6) ->  | AK26: =IF(AE!AN6="","",AE!AN6) ->  | AL26: =IF(AE!AO6="","",AE!AO6) ->  | AM26: =IF(AE!AP6="","",AE!AP6) -> 
D27: Criterio Evaluación 2.2 | E27: =IF(AE!H7="","",AE!H7) ->  | F27: =IF(AE!I7="","",AE!I7) ->  | G27: =IF(AE!J7="","",AE!J7) ->  | H27: =IF(AE!K7="","",AE!K7) ->  | I27: =IF(AE!L7="","",AE!L7) ->  | J27: =IF(AE!M7="","",AE!M7) ->  | K27: =IF(AE!N7="","",AE!N7) ->  | L27: =IF(AE!O7="","",AE!O7) ->  | M27: =IF(AE!P7="","",AE!P7) ->  | N27: =IF(AE!Q7="","",AE!Q7) ->  | O27: =IF(AE!R7="","",AE!R7) ->  | P27: =IF(AE!S7="","",AE!S7) ->  | Q27: =IF(AE!T7="","",AE!T7) ->  | R27: =IF(AE!U7="","",AE!U7) ->  | S27: =IF(AE!V7="","",AE!V7) ->  | T27: =IF(AE!W7="","",AE!W7) ->  | U27: =IF(AE!X7="","",AE!X7) ->  | V27: =IF(AE!Y7="","",AE!Y7) ->  | W27: =IF(AE!Z7="","",AE!Z7) ->  | X27: =IF(AE!AA7="","",AE!AA7) ->  | Y27: =IF(AE!AB7="","",AE!AB7) ->  | Z27: =IF(AE!AC7="","",AE!AC7) ->  | AA27: =IF(AE!AD7="","",AE!AD7) ->  | AB27: =IF(AE!AE7="","",AE!AE7) ->  | AC27: =IF(AE!AF7="","",AE!AF7) ->  | AD27: =IF(AE!AG7="","",AE!AG7) ->  | AE27: =IF(AE!AH7="","",AE!AH7) ->  | AF27: =IF(AE!AI7="","",AE!AI7) ->  | AG27: =IF(AE!AJ7="","",AE!AJ7) ->  | AH27: =IF(AE!AK7="","",AE!AK7) ->  | AI27: =IF(AE!AL7="","",AE!AL7) ->  | AJ27: =IF(AE!AM7="","",AE!AM7) ->  | AK27: =IF(AE!AN7="","",AE!AN7) ->  | AL27: =IF(AE!AO7="","",AE!AO7) ->  | AM27: =IF(AE!AP7="","",AE!AP7) -> 
C28: Comp. Esp. 3 | D28: Criterio Evaluación 3.1 | E28: =IF(AE!H8="","",AE!H8) ->  | F28: =IF(AE!I8="","",AE!I8) ->  | G28: =IF(AE!J8="","",AE!J8) ->  | H28: =IF(AE!K8="","",AE!K8) ->  | I28: =IF(AE!L8="","",AE!L8) ->  | J28: =IF(AE!M8="","",AE!M8) ->  | K28: =IF(AE!N8="","",AE!N8) ->  | L28: =IF(AE!O8="","",AE!O8) ->  | M28: =IF(AE!P8="","",AE!P8) ->  | N28: =IF(AE!Q8="","",AE!Q8) ->  | O28: =IF(AE!R8="","",AE!R8) ->  | P28: =IF(AE!S8="","",AE!S8) ->  | Q28: =IF(AE!T8="","",AE!T8) ->  | R28: =IF(AE!U8="","",AE!U8) ->  | S28: =IF(AE!V8="","",AE!V8) ->  | T28: =IF(AE!W8="","",AE!W8) ->  | U28: =IF(AE!X8="","",AE!X8) ->  | V28: =IF(AE!Y8="","",AE!Y8) ->  | W28: =IF(AE!Z8="","",AE!Z8) ->  | X28: =IF(AE!AA8="","",AE!AA8) ->  | Y28: =IF(AE!AB8="","",AE!AB8) ->  | Z28: =IF(AE!AC8="","",AE!AC8) ->  | AA28: =IF(AE!AD8="","",AE!AD8) ->  | AB28: =IF(AE!AE8="","",AE!AE8) ->  | AC28: =IF(AE!AF8="","",AE!AF8) ->  | AD28: =IF(AE!AG8="","",AE!AG8) ->  | AE28: =IF(AE!AH8="","",AE!AH8) ->  | AF28: =IF(AE!AI8="","",AE!AI8) ->  | AG28: =IF(AE!AJ8="","",AE!AJ8) ->  | AH28: =IF(AE!AK8="","",AE!AK8) ->  | AI28: =IF(AE!AL8="","",AE!AL8) ->  | AJ28: =IF(AE!AM8="","",AE!AM8) ->  | AK28: =IF(AE!AN8="","",AE!AN8) ->  | AL28: =IF(AE!AO8="","",AE!AO8) ->  | AM28: =IF(AE!AP8="","",AE!AP8) -> 
D29: Criterio Evaluación 3.2 | E29: =IF(AE!H9="","",AE!H9) ->  | F29: =IF(AE!I9="","",AE!I9) ->  | G29: =IF(AE!J9="","",AE!J9) ->  | H29: =IF(AE!K9="","",AE!K9) ->  | I29: =IF(AE!L9="","",AE!L9) ->  | J29: =IF(AE!M9="","",AE!M9) ->  | K29: =IF(AE!N9="","",AE!N9) ->  | L29: =IF(AE!O9="","",AE!O9) ->  | M29: =IF(AE!P9="","",AE!P9) ->  | N29: =IF(AE!Q9="","",AE!Q9) ->  | O29: =IF(AE!R9="","",AE!R9) ->  | P29: =IF(AE!S9="","",AE!S9) ->  | Q29: =IF(AE!T9="","",AE!T9) ->  | R29: =IF(AE!U9="","",AE!U9) ->  | S29: =IF(AE!V9="","",AE!V9) ->  | T29: =IF(AE!W9="","",AE!W9) ->  | U29: =IF(AE!X9="","",AE!X9) ->  | V29: =IF(AE!Y9="","",AE!Y9) ->  | W29: =IF(AE!Z9="","",AE!Z9) ->  | X29: =IF(AE!AA9="","",AE!AA9) ->  | Y29: =IF(AE!AB9="","",AE!AB9) ->  | Z29: =IF(AE!AC9="","",AE!AC9) ->  | AA29: =IF(AE!AD9="","",AE!AD9) ->  | AB29: =IF(AE!AE9="","",AE!AE9) ->  | AC29: =IF(AE!AF9="","",AE!AF9) ->  | AD29: =IF(AE!AG9="","",AE!AG9) ->  | AE29: =IF(AE!AH9="","",AE!AH9) ->  | AF29: =IF(AE!AI9="","",AE!AI9) ->  | AG29: =IF(AE!AJ9="","",AE!AJ9) ->  | AH29: =IF(AE!AK9="","",AE!AK9) ->  | AI29: =IF(AE!AL9="","",AE!AL9) ->  | AJ29: =IF(AE!AM9="","",AE!AM9) ->  | AK29: =IF(AE!AN9="","",AE!AN9) ->  | AL29: =IF(AE!AO9="","",AE!AO9) ->  | AM29: =IF(AE!AP9="","",AE!AP9) -> 
C30: Comp. Esp. 4 | D30: Criterio Evaluación 4.1 | E30: =IF(AE!H10="","",AE!H10) ->  | F30: =IF(AE!I10="","",AE!I10) ->  | G30: =IF(AE!J10="","",AE!J10) ->  | H30: =IF(AE!K10="","",AE!K10) ->  | I30: =IF(AE!L10="","",AE!L10) ->  | J30: =IF(AE!M10="","",AE!M10) ->  | K30: =IF(AE!N10="","",AE!N10) ->  | L30: =IF(AE!O10="","",AE!O10) ->  | M30: =IF(AE!P10="","",AE!P10) ->  | N30: =IF(AE!Q10="","",AE!Q10) ->  | O30: =IF(AE!R10="","",AE!R10) ->  | P30: =IF(AE!S10="","",AE!S10) ->  | Q30: =IF(AE!T10="","",AE!T10) ->  | R30: =IF(AE!U10="","",AE!U10) ->  | S30: =IF(AE!V10="","",AE!V10) ->  | T30: =IF(AE!W10="","",AE!W10) ->  | U30: =IF(AE!X10="","",AE!X10) ->  | V30: =IF(AE!Y10="","",AE!Y10) ->  | W30: =IF(AE!Z10="","",AE!Z10) ->  | X30: =IF(AE!AA10="","",AE!AA10) ->  | Y30: =IF(AE!AB10="","",AE!AB10) ->  | Z30: =IF(AE!AC10="","",AE!AC10) ->  | AA30: =IF(AE!AD10="","",AE!AD10) ->  | AB30: =IF(AE!AE10="","",AE!AE10) ->  | AC30: =IF(AE!AF10="","",AE!AF10) ->  | AD30: =IF(AE!AG10="","",AE!AG10) ->  | AE30: =IF(AE!AH10="","",AE!AH10) ->  | AF30: =IF(AE!AI10="","",AE!AI10) ->  | AG30: =IF(AE!AJ10="","",AE!AJ10) ->  | AH30: =IF(AE!AK10="","",AE!AK10) ->  | AI30: =IF(AE!AL10="","",AE!AL10) ->  | AJ30: =IF(AE!AM10="","",AE!AM10) ->  | AK30: =IF(AE!AN10="","",AE!AN10) ->  | AL30: =IF(AE!AO10="","",AE!AO10) ->  | AM30: =IF(AE!AP10="","",AE!AP10) -> 
D31: Criterio Evaluación 4.2 | E31: =IF(AE!H11="","",AE!H11) ->  | F31: =IF(AE!I11="","",AE!I11) ->  | G31: =IF(AE!J11="","",AE!J11) ->  | H31: =IF(AE!K11="","",AE!K11) ->  | I31: =IF(AE!L11="","",AE!L11) ->  | J31: =IF(AE!M11="","",AE!M11) ->  | K31: =IF(AE!N11="","",AE!N11) ->  | L31: =IF(AE!O11="","",AE!O11) ->  | M31: =IF(AE!P11="","",AE!P11) ->  | N31: =IF(AE!Q11="","",AE!Q11) ->  | O31: =IF(AE!R11="","",AE!R11) ->  | P31: =IF(AE!S11="","",AE!S11) ->  | Q31: =IF(AE!T11="","",AE!T11) ->  | R31: =IF(AE!U11="","",AE!U11) ->  | S31: =IF(AE!V11="","",AE!V11) ->  | T31: =IF(AE!W11="","",AE!W11) ->  | U31: =IF(AE!X11="","",AE!X11) ->  | V31: =IF(AE!Y11="","",AE!Y11) ->  | W31: =IF(AE!Z11="","",AE!Z11) ->  | X31: =IF(AE!AA11="","",AE!AA11) ->  | Y31: =IF(AE!AB11="","",AE!AB11) ->  | Z31: =IF(AE!AC11="","",AE!AC11) ->  | AA31: =IF(AE!AD11="","",AE!AD11) ->  | AB31: =IF(AE!AE11="","",AE!AE11) ->  | AC31: =IF(AE!AF11="","",AE!AF11) ->  | AD31: =IF(AE!AG11="","",AE!AG11) ->  | AE31: =IF(AE!AH11="","",AE!AH11) ->  | AF31: =IF(AE!AI11="","",AE!AI11) ->  | AG31: =IF(AE!AJ11="","",AE!AJ11) ->  | AH31: =IF(AE!AK11="","",AE!AK11) ->  | AI31: =IF(AE!AL11="","",AE!AL11) ->  | AJ31: =IF(AE!AM11="","",AE!AM11) ->  | AK31: =IF(AE!AN11="","",AE!AN11) ->  | AL31: =IF(AE!AO11="","",AE!AO11) ->  | AM31: =IF(AE!AP11="","",AE!AP11) -> 
D32: Criterio Evaluación 4.3 | E32: =IF(AE!H12="","",AE!H12) ->  | F32: =IF(AE!I12="","",AE!I12) ->  | G32: =IF(AE!J12="","",AE!J12) ->  | H32: =IF(AE!K12="","",AE!K12) ->  | I32: =IF(AE!L12="","",AE!L12) ->  | J32: =IF(AE!M12="","",AE!M12) ->  | K32: =IF(AE!N12="","",AE!N12) ->  | L32: =IF(AE!O12="","",AE!O12) ->  | M32: =IF(AE!P12="","",AE!P12) ->  | N32: =IF(AE!Q12="","",AE!Q12) ->  | O32: =IF(AE!R12="","",AE!R12) ->  | P32: =IF(AE!S12="","",AE!S12) ->  | Q32: =IF(AE!T12="","",AE!T12) ->  | R32: =IF(AE!U12="","",AE!U12) ->  | S32: =IF(AE!V12="","",AE!V12) ->  | T32: =IF(AE!W12="","",AE!W12) ->  | U32: =IF(AE!X12="","",AE!X12) ->  | V32: =IF(AE!Y12="","",AE!Y12) ->  | W32: =IF(AE!Z12="","",AE!Z12) ->  | X32: =IF(AE!AA12="","",AE!AA12) ->  | Y32: =IF(AE!AB12="","",AE!AB12) ->  | Z32: =IF(AE!AC12="","",AE!AC12) ->  | AA32: =IF(AE!AD12="","",AE!AD12) ->  | AB32: =IF(AE!AE12="","",AE!AE12) ->  | AC32: =IF(AE!AF12="","",AE!AF12) ->  | AD32: =IF(AE!AG12="","",AE!AG12) ->  | AE32: =IF(AE!AH12="","",AE!AH12) ->  | AF32: =IF(AE!AI12="","",AE!AI12) ->  | AG32: =IF(AE!AJ12="","",AE!AJ12) ->  | AH32: =IF(AE!AK12="","",AE!AK12) ->  | AI32: =IF(AE!AL12="","",AE!AL12) ->  | AJ32: =IF(AE!AM12="","",AE!AM12) ->  | AK32: =IF(AE!AN12="","",AE!AN12) ->  | AL32: =IF(AE!AO12="","",AE!AO12) ->  | AM32: =IF(AE!AP12="","",AE!AP12) -> 
C33: Comp. Esp. 5 | D33: Criterio Evaluación 5.1 | E33: =IF(AE!H13="","",AE!H13) ->  | F33: =IF(AE!I13="","",AE!I13) ->  | G33: =IF(AE!J13="","",AE!J13) ->  | H33: =IF(AE!K13="","",AE!K13) ->  | I33: =IF(AE!L13="","",AE!L13) ->  | J33: =IF(AE!M13="","",AE!M13) ->  | K33: =IF(AE!N13="","",AE!N13) ->  | L33: =IF(AE!O13="","",AE!O13) ->  | M33: =IF(AE!P13="","",AE!P13) ->  | N33: =IF(AE!Q13="","",AE!Q13) ->  | O33: =IF(AE!R13="","",AE!R13) ->  | P33: =IF(AE!S13="","",AE!S13) ->  | Q33: =IF(AE!T13="","",AE!T13) ->  | R33: =IF(AE!U13="","",AE!U13) ->  | S33: =IF(AE!V13="","",AE!V13) ->  | T33: =IF(AE!W13="","",AE!W13) ->  | U33: =IF(AE!X13="","",AE!X13) ->  | V33: =IF(AE!Y13="","",AE!Y13) ->  | W33: =IF(AE!Z13="","",AE!Z13) ->  | X33: =IF(AE!AA13="","",AE!AA13) ->  | Y33: =IF(AE!AB13="","",AE!AB13) ->  | Z33: =IF(AE!AC13="","",AE!AC13) ->  | AA33: =IF(AE!AD13="","",AE!AD13) ->  | AB33: =IF(AE!AE13="","",AE!AE13) ->  | AC33: =IF(AE!AF13="","",AE!AF13) ->  | AD33: =IF(AE!AG13="","",AE!AG13) ->  | AE33: =IF(AE!AH13="","",AE!AH13) ->  | AF33: =IF(AE!AI13="","",AE!AI13) ->  | AG33: =IF(AE!AJ13="","",AE!AJ13) ->  | AH33: =IF(AE!AK13="","",AE!AK13) ->  | AI33: =IF(AE!AL13="","",AE!AL13) ->  | AJ33: =IF(AE!AM13="","",AE!AM13) ->  | AK33: =IF(AE!AN13="","",AE!AN13) ->  | AL33: =IF(AE!AO13="","",AE!AO13) ->  | AM33: =IF(AE!AP13="","",AE!AP13) -> 
D34: Criterio Evaluación 5.2 | E34: =IF(AE!H14="","",AE!H14) ->  | F34: =IF(AE!I14="","",AE!I14) ->  | G34: =IF(AE!J14="","",AE!J14) ->  | H34: =IF(AE!K14="","",AE!K14) ->  | I34: =IF(AE!L14="","",AE!L14) ->  | J34: =IF(AE!M14="","",AE!M14) ->  | K34: =IF(AE!N14="","",AE!N14) ->  | L34: =IF(AE!O14="","",AE!O14) ->  | M34: =IF(AE!P14="","",AE!P14) ->  | N34: =IF(AE!Q14="","",AE!Q14) ->  | O34: =IF(AE!R14="","",AE!R14) ->  | P34: =IF(AE!S14="","",AE!S14) ->  | Q34: =IF(AE!T14="","",AE!T14) ->  | R34: =IF(AE!U14="","",AE!U14) ->  | S34: =IF(AE!V14="","",AE!V14) ->  | T34: =IF(AE!W14="","",AE!W14) ->  | U34: =IF(AE!X14="","",AE!X14) ->  | V34: =IF(AE!Y14="","",AE!Y14) ->  | W34: =IF(AE!Z14="","",AE!Z14) ->  | X34: =IF(AE!AA14="","",AE!AA14) ->  | Y34: =IF(AE!AB14="","",AE!AB14) ->  | Z34: =IF(AE!AC14="","",AE!AC14) ->  | AA34: =IF(AE!AD14="","",AE!AD14) ->  | AB34: =IF(AE!AE14="","",AE!AE14) ->  | AC34: =IF(AE!AF14="","",AE!AF14) ->  | AD34: =IF(AE!AG14="","",AE!AG14) ->  | AE34: =IF(AE!AH14="","",AE!AH14) ->  | AF34: =IF(AE!AI14="","",AE!AI14) ->  | AG34: =IF(AE!AJ14="","",AE!AJ14) ->  | AH34: =IF(AE!AK14="","",AE!AK14) ->  | AI34: =IF(AE!AL14="","",AE!AL14) ->  | AJ34: =IF(AE!AM14="","",AE!AM14) ->  | AK34: =IF(AE!AN14="","",AE!AN14) ->  | AL34: =IF(AE!AO14="","",AE!AO14) ->  | AM34: =IF(AE!AP14="","",AE!AP14) -> 
B35: Coro y Técnica Vocal II | C35: Comp. Esp. 1 | D35: Criterio Evaluación 1.1 | E35: =IF(CYTV!H4="","",CYTV!H4) ->  | F35: =IF(CYTV!I4="","",CYTV!I4) ->  | G35: =IF(CYTV!J4="","",CYTV!J4) ->  | H35: =IF(CYTV!K4="","",CYTV!K4) ->  | I35: =IF(CYTV!L4="","",CYTV!L4) ->  | J35: =IF(CYTV!M4="","",CYTV!M4) ->  | K35: =IF(CYTV!N4="","",CYTV!N4) ->  | L35: =IF(CYTV!O4="","",CYTV!O4) ->  | M35: =IF(CYTV!P4="","",CYTV!P4) ->  | N35: =IF(CYTV!Q4="","",CYTV!Q4) ->  | O35: =IF(CYTV!R4="","",CYTV!R4) ->  | P35: =IF(CYTV!S4="","",CYTV!S4) ->  | Q35: =IF(CYTV!T4="","",CYTV!T4) ->  | R35: =IF(CYTV!U4="","",CYTV!U4) ->  | S35: =IF(CYTV!V4="","",CYTV!V4) ->  | T35: =IF(CYTV!W4="","",CYTV!W4) ->  | U35: =IF(CYTV!X4="","",CYTV!X4) ->  | V35: =IF(CYTV!Y4="","",CYTV!Y4) ->  | W35: =IF(CYTV!Z4="","",CYTV!Z4) ->  | X35: =IF(CYTV!AA4="","",CYTV!AA4) ->  | Y35: =IF(CYTV!AB4="","",CYTV!AB4) ->  | Z35: =IF(CYTV!AC4="","",CYTV!AC4) ->  | AA35: =IF(CYTV!AD4="","",CYTV!AD4) ->  | AB35: =IF(CYTV!AE4="","",CYTV!AE4) ->  | AC35: =IF(CYTV!AF4="","",CYTV!AF4) ->  | AD35: =IF(CYTV!AG4="","",CYTV!AG4) ->  | AE35: =IF(CYTV!AH4="","",CYTV!AH4) ->  | AF35: =IF(CYTV!AI4="","",CYTV!AI4) ->  | AG35: =IF(CYTV!AJ4="","",CYTV!AJ4) ->  | AH35: =IF(CYTV!AK4="","",CYTV!AK4) ->  | AI35: =IF(CYTV!AL4="","",CYTV!AL4) ->  | AJ35: =IF(CYTV!AM4="","",CYTV!AM4) ->  | AK35: =IF(CYTV!AN4="","",CYTV!AN4) ->  | AL35: =IF(CYTV!AO4="","",CYTV!AO4) ->  | AM35: =IF(CYTV!AP4="","",CYTV!AP4) -> 
D36: Criterio Evaluación 1.2 | E36: =IF(CYTV!H5="","",CYTV!H5) ->  | F36: =IF(CYTV!I5="","",CYTV!I5) ->  | G36: =IF(CYTV!J5="","",CYTV!J5) ->  | H36: =IF(CYTV!K5="","",CYTV!K5) ->  | I36: =IF(CYTV!L5="","",CYTV!L5) ->  | J36: =IF(CYTV!M5="","",CYTV!M5) ->  | K36: =IF(CYTV!N5="","",CYTV!N5) ->  | L36: =IF(CYTV!O5="","",CYTV!O5) ->  | M36: =IF(CYTV!P5="","",CYTV!P5) ->  | N36: =IF(CYTV!Q5="","",CYTV!Q5) ->  | O36: =IF(CYTV!R5="","",CYTV!R5) ->  | P36: =IF(CYTV!S5="","",CYTV!S5) ->  | Q36: =IF(CYTV!T5="","",CYTV!T5) ->  | R36: =IF(CYTV!U5="","",CYTV!U5) ->  | S36: =IF(CYTV!V5="","",CYTV!V5) ->  | T36: =IF(CYTV!W5="","",CYTV!W5) ->  | U36: =IF(CYTV!X5="","",CYTV!X5) ->  | V36: =IF(CYTV!Y5="","",CYTV!Y5) ->  | W36: =IF(CYTV!Z5="","",CYTV!Z5) ->  | X36: =IF(CYTV!AA5="","",CYTV!AA5) ->  | Y36: =IF(CYTV!AB5="","",CYTV!AB5) ->  | Z36: =IF(CYTV!AC5="","",CYTV!AC5) ->  | AA36: =IF(CYTV!AD5="","",CYTV!AD5) ->  | AB36: =IF(CYTV!AE5="","",CYTV!AE5) ->  | AC36: =IF(CYTV!AF5="","",CYTV!AF5) ->  | AD36: =IF(CYTV!AG5="","",CYTV!AG5) ->  | AE36: =IF(CYTV!AH5="","",CYTV!AH5) ->  | AF36: =IF(CYTV!AI5="","",CYTV!AI5) ->  | AG36: =IF(CYTV!AJ5="","",CYTV!AJ5) ->  | AH36: =IF(CYTV!AK5="","",CYTV!AK5) ->  | AI36: =IF(CYTV!AL5="","",CYTV!AL5) ->  | AJ36: =IF(CYTV!AM5="","",CYTV!AM5) ->  | AK36: =IF(CYTV!AN5="","",CYTV!AN5) ->  | AL36: =IF(CYTV!AO5="","",CYTV!AO5) ->  | AM36: =IF(CYTV!AP5="","",CYTV!AP5) -> 
D37: Criterio Evaluación 1.3 | E37: =IF(CYTV!H6="","",CYTV!H6) ->  | F37: =IF(CYTV!I6="","",CYTV!I6) ->  | G37: =IF(CYTV!J6="","",CYTV!J6) ->  | H37: =IF(CYTV!K6="","",CYTV!K6) ->  | I37: =IF(CYTV!L6="","",CYTV!L6) ->  | J37: =IF(CYTV!M6="","",CYTV!M6) ->  | K37: =IF(CYTV!N6="","",CYTV!N6) ->  | L37: =IF(CYTV!O6="","",CYTV!O6) ->  | M37: =IF(CYTV!P6="","",CYTV!P6) ->  | N37: =IF(CYTV!Q6="","",CYTV!Q6) ->  | O37: =IF(CYTV!R6="","",CYTV!R6) ->  | P37: =IF(CYTV!S6="","",CYTV!S6) ->  | Q37: =IF(CYTV!T6="","",CYTV!T6) ->  | R37: =IF(CYTV!U6="","",CYTV!U6) ->  | S37: =IF(CYTV!V6="","",CYTV!V6) ->  | T37: =IF(CYTV!W6="","",CYTV!W6) ->  | U37: =IF(CYTV!X6="","",CYTV!X6) ->  | V37: =IF(CYTV!Y6="","",CYTV!Y6) ->  | W37: =IF(CYTV!Z6="","",CYTV!Z6) ->  | X37: =IF(CYTV!AA6="","",CYTV!AA6) ->  | Y37: =IF(CYTV!AB6="","",CYTV!AB6) ->  | Z37: =IF(CYTV!AC6="","",CYTV!AC6) ->  | AA37: =IF(CYTV!AD6="","",CYTV!AD6) ->  | AB37: =IF(CYTV!AE6="","",CYTV!AE6) ->  | AC37: =IF(CYTV!AF6="","",CYTV!AF6) ->  | AD37: =IF(CYTV!AG6="","",CYTV!AG6) ->  | AE37: =IF(CYTV!AH6="","",CYTV!AH6) ->  | AF37: =IF(CYTV!AI6="","",CYTV!AI6) ->  | AG37: =IF(CYTV!AJ6="","",CYTV!AJ6) ->  | AH37: =IF(CYTV!AK6="","",CYTV!AK6) ->  | AI37: =IF(CYTV!AL6="","",CYTV!AL6) ->  | AJ37: =IF(CYTV!AM6="","",CYTV!AM6) ->  | AK37: =IF(CYTV!AN6="","",CYTV!AN6) ->  | AL37: =IF(CYTV!AO6="","",CYTV!AO6) ->  | AM37: =IF(CYTV!AP6="","",CYTV!AP6) -> 
D38: Criterio Evaluación 1.4 | E38: =IF(CYTV!H7="","",CYTV!H7) ->  | F38: =IF(CYTV!I7="","",CYTV!I7) ->  | G38: =IF(CYTV!J7="","",CYTV!J7) ->  | H38: =IF(CYTV!K7="","",CYTV!K7) ->  | I38: =IF(CYTV!L7="","",CYTV!L7) ->  | J38: =IF(CYTV!M7="","",CYTV!M7) ->  | K38: =IF(CYTV!N7="","",CYTV!N7) ->  | L38: =IF(CYTV!O7="","",CYTV!O7) ->  | M38: =IF(CYTV!P7="","",CYTV!P7) ->  | N38: =IF(CYTV!Q7="","",CYTV!Q7) ->  | O38: =IF(CYTV!R7="","",CYTV!R7) ->  | P38: =IF(CYTV!S7="","",CYTV!S7) ->  | Q38: =IF(CYTV!T7="","",CYTV!T7) ->  | R38: =IF(CYTV!U7="","",CYTV!U7) ->  | S38: =IF(CYTV!V7="","",CYTV!V7) ->  | T38: =IF(CYTV!W7="","",CYTV!W7) ->  | U38: =IF(CYTV!X7="","",CYTV!X7) ->  | V38: =IF(CYTV!Y7="","",CYTV!Y7) ->  | W38: =IF(CYTV!Z7="","",CYTV!Z7) ->  | X38: =IF(CYTV!AA7="","",CYTV!AA7) ->  | Y38: =IF(CYTV!AB7="","",CYTV!AB7) ->  | Z38: =IF(CYTV!AC7="","",CYTV!AC7) ->  | AA38: =IF(CYTV!AD7="","",CYTV!AD7) ->  | AB38: =IF(CYTV!AE7="","",CYTV!AE7) ->  | AC38: =IF(CYTV!AF7="","",CYTV!AF7) ->  | AD38: =IF(CYTV!AG7="","",CYTV!AG7) ->  | AE38: =IF(CYTV!AH7="","",CYTV!AH7) ->  | AF38: =IF(CYTV!AI7="","",CYTV!AI7) ->  | AG38: =IF(CYTV!AJ7="","",CYTV!AJ7) ->  | AH38: =IF(CYTV!AK7="","",CYTV!AK7) ->  | AI38: =IF(CYTV!AL7="","",CYTV!AL7) ->  | AJ38: =IF(CYTV!AM7="","",CYTV!AM7) ->  | AK38: =IF(CYTV!AN7="","",CYTV!AN7) ->  | AL38: =IF(CYTV!AO7="","",CYTV!AO7) ->  | AM38: =IF(CYTV!AP7="","",CYTV!AP7) -> 
C39: Comp. Esp. 2 | D39: Criterio Evaluación 2.1 | E39: =IF(CYTV!H8="","",CYTV!H8) ->  | F39: =IF(CYTV!I8="","",CYTV!I8) ->  | G39: =IF(CYTV!J8="","",CYTV!J8) ->  | H39: =IF(CYTV!K8="","",CYTV!K8) ->  | I39: =IF(CYTV!L8="","",CYTV!L8) ->  | J39: =IF(CYTV!M8="","",CYTV!M8) ->  | K39: =IF(CYTV!N8="","",CYTV!N8) ->  | L39: =IF(CYTV!O8="","",CYTV!O8) ->  | M39: =IF(CYTV!P8="","",CYTV!P8) ->  | N39: =IF(CYTV!Q8="","",CYTV!Q8) ->  | O39: =IF(CYTV!R8="","",CYTV!R8) ->  | P39: =IF(CYTV!S8="","",CYTV!S8) ->  | Q39: =IF(CYTV!T8="","",CYTV!T8) ->  | R39: =IF(CYTV!U8="","",CYTV!U8) ->  | S39: =IF(CYTV!V8="","",CYTV!V8) ->  | T39: =IF(CYTV!W8="","",CYTV!W8) ->  | U39: =IF(CYTV!X8="","",CYTV!X8) ->  | V39: =IF(CYTV!Y8="","",CYTV!Y8) ->  | W39: =IF(CYTV!Z8="","",CYTV!Z8) ->  | X39: =IF(CYTV!AA8="","",CYTV!AA8) ->  | Y39: =IF(CYTV!AB8="","",CYTV!AB8) ->  | Z39: =IF(CYTV!AC8="","",CYTV!AC8) ->  | AA39: =IF(CYTV!AD8="","",CYTV!AD8) ->  | AB39: =IF(CYTV!AE8="","",CYTV!AE8) ->  | AC39: =IF(CYTV!AF8="","",CYTV!AF8) ->  | AD39: =IF(CYTV!AG8="","",CYTV!AG8) ->  | AE39: =IF(CYTV!AH8="","",CYTV!AH8) ->  | AF39: =IF(CYTV!AI8="","",CYTV!AI8) ->  | AG39: =IF(CYTV!AJ8="","",CYTV!AJ8) ->  | AH39: =IF(CYTV!AK8="","",CYTV!AK8) ->  | AI39: =IF(CYTV!AL8="","",CYTV!AL8) ->  | AJ39: =IF(CYTV!AM8="","",CYTV!AM8) ->  | AK39: =IF(CYTV!AN8="","",CYTV!AN8) ->  | AL39: =IF(CYTV!AO8="","",CYTV!AO8) ->  | AM39: =IF(CYTV!AP8="","",CYTV!AP8) -> 
D40: Criterio Evaluación 2.2 | E40: =IF(CYTV!H9="","",CYTV!H9) ->  | F40: =IF(CYTV!I9="","",CYTV!I9) ->  | G40: =IF(CYTV!J9="","",CYTV!J9) ->  | H40: =IF(CYTV!K9="","",CYTV!K9) ->  | I40: =IF(CYTV!L9="","",CYTV!L9) ->  | J40: =IF(CYTV!M9="","",CYTV!M9) ->  | K40: =IF(CYTV!N9="","",CYTV!N9) ->  | L40: =IF(CYTV!O9="","",CYTV!O9) ->  | M40: =IF(CYTV!P9="","",CYTV!P9) ->  | N40: =IF(CYTV!Q9="","",CYTV!Q9) ->  | O40: =IF(CYTV!R9="","",CYTV!R9) ->  | P40: =IF(CYTV!S9="","",CYTV!S9) ->  | Q40: =IF(CYTV!T9="","",CYTV!T9) ->  | R40: =IF(CYTV!U9="","",CYTV!U9) ->  | S40: =IF(CYTV!V9="","",CYTV!V9) ->  | T40: =IF(CYTV!W9="","",CYTV!W9) ->  | U40: =IF(CYTV!X9="","",CYTV!X9) ->  | V40: =IF(CYTV!Y9="","",CYTV!Y9) ->  | W40: =IF(CYTV!Z9="","",CYTV!Z9) ->  | X40: =IF(CYTV!AA9="","",CYTV!AA9) ->  | Y40: =IF(CYTV!AB9="","",CYTV!AB9) ->  | Z40: =IF(CYTV!AC9="","",CYTV!AC9) ->  | AA40: =IF(CYTV!AD9="","",CYTV!AD9) ->  | AB40: =IF(CYTV!AE9="","",CYTV!AE9) ->  | AC40: =IF(CYTV!AF9="","",CYTV!AF9) ->  | AD40: =IF(CYTV!AG9="","",CYTV!AG9) ->  | AE40: =IF(CYTV!AH9="","",CYTV!AH9) ->  | AF40: =IF(CYTV!AI9="","",CYTV!AI9) ->  | AG40: =IF(CYTV!AJ9="","",CYTV!AJ9) ->  | AH40: =IF(CYTV!AK9="","",CYTV!AK9) ->  | AI40: =IF(CYTV!AL9="","",CYTV!AL9) ->  | AJ40: =IF(CYTV!AM9="","",CYTV!AM9) ->  | AK40: =IF(CYTV!AN9="","",CYTV!AN9) ->  | AL40: =IF(CYTV!AO9="","",CYTV!AO9) ->  | AM40: =IF(CYTV!AP9="","",CYTV!AP9) -> 
C41: Comp. Esp. 3 | D41: Criterio Evaluación 3.1 | E41: =IF(CYTV!H10="","",CYTV!H10) ->  | F41: =IF(CYTV!I10="","",CYTV!I10) ->  | G41: =IF(CYTV!J10="","",CYTV!J10) ->  | H41: =IF(CYTV!K10="","",CYTV!K10) ->  | I41: =IF(CYTV!L10="","",CYTV!L10) ->  | J41: =IF(CYTV!M10="","",CYTV!M10) ->  | K41: =IF(CYTV!N10="","",CYTV!N10) ->  | L41: =IF(CYTV!O10="","",CYTV!O10) ->  | M41: =IF(CYTV!P10="","",CYTV!P10) ->  | N41: =IF(CYTV!Q10="","",CYTV!Q10) ->  | O41: =IF(CYTV!R10="","",CYTV!R10) ->  | P41: =IF(CYTV!S10="","",CYTV!S10) ->  | Q41: =IF(CYTV!T10="","",CYTV!T10) ->  | R41: =IF(CYTV!U10="","",CYTV!U10) ->  | S41: =IF(CYTV!V10="","",CYTV!V10) ->  | T41: =IF(CYTV!W10="","",CYTV!W10) ->  | U41: =IF(CYTV!X10="","",CYTV!X10) ->  | V41: =IF(CYTV!Y10="","",CYTV!Y10) ->  | W41: =IF(CYTV!Z10="","",CYTV!Z10) ->  | X41: =IF(CYTV!AA10="","",CYTV!AA10) ->  | Y41: =IF(CYTV!AB10="","",CYTV!AB10) ->  | Z41: =IF(CYTV!AC10="","",CYTV!AC10) ->  | AA41: =IF(CYTV!AD10="","",CYTV!AD10) ->  | AB41: =IF(CYTV!AE10="","",CYTV!AE10) ->  | AC41: =IF(CYTV!AF10="","",CYTV!AF10) ->  | AD41: =IF(CYTV!AG10="","",CYTV!AG10) ->  | AE41: =IF(CYTV!AH10="","",CYTV!AH10) ->  | AF41: =IF(CYTV!AI10="","",CYTV!AI10) ->  | AG41: =IF(CYTV!AJ10="","",CYTV!AJ10) ->  | AH41: =IF(CYTV!AK10="","",CYTV!AK10) ->  | AI41: =IF(CYTV!AL10="","",CYTV!AL10) ->  | AJ41: =IF(CYTV!AM10="","",CYTV!AM10) ->  | AK41: =IF(CYTV!AN10="","",CYTV!AN10) ->  | AL41: =IF(CYTV!AO10="","",CYTV!AO10) ->  | AM41: =IF(CYTV!AP10="","",CYTV!AP10) -> 
D42: Criterio Evaluación 3.2 | E42: =IF(CYTV!H11="","",CYTV!H11) ->  | F42: =IF(CYTV!I11="","",CYTV!I11) ->  | G42: =IF(CYTV!J11="","",CYTV!J11) ->  | H42: =IF(CYTV!K11="","",CYTV!K11) ->  | I42: =IF(CYTV!L11="","",CYTV!L11) ->  | J42: =IF(CYTV!M11="","",CYTV!M11) ->  | K42: =IF(CYTV!N11="","",CYTV!N11) ->  | L42: =IF(CYTV!O11="","",CYTV!O11) ->  | M42: =IF(CYTV!P11="","",CYTV!P11) ->  | N42: =IF(CYTV!Q11="","",CYTV!Q11) ->  | O42: =IF(CYTV!R11="","",CYTV!R11) ->  | P42: =IF(CYTV!S11="","",CYTV!S11) ->  | Q42: =IF(CYTV!T11="","",CYTV!T11) ->  | R42: =IF(CYTV!U11="","",CYTV!U11) ->  | S42: =IF(CYTV!V11="","",CYTV!V11) ->  | T42: =IF(CYTV!W11="","",CYTV!W11) ->  | U42: =IF(CYTV!X11="","",CYTV!X11) ->  | V42: =IF(CYTV!Y11="","",CYTV!Y11) ->  | W42: =IF(CYTV!Z11="","",CYTV!Z11) ->  | X42: =IF(CYTV!AA11="","",CYTV!AA11) ->  | Y42: =IF(CYTV!AB11="","",CYTV!AB11) ->  | Z42: =IF(CYTV!AC11="","",CYTV!AC11) ->  | AA42: =IF(CYTV!AD11="","",CYTV!AD11) ->  | AB42: =IF(CYTV!AE11="","",CYTV!AE11) ->  | AC42: =IF(CYTV!AF11="","",CYTV!AF11) ->  | AD42: =IF(CYTV!AG11="","",CYTV!AG11) ->  | AE42: =IF(CYTV!AH11="","",CYTV!AH11) ->  | AF42: =IF(CYTV!AI11="","",CYTV!AI11) ->  | AG42: =IF(CYTV!AJ11="","",CYTV!AJ11) ->  | AH42: =IF(CYTV!AK11="","",CYTV!AK11) ->  | AI42: =IF(CYTV!AL11="","",CYTV!AL11) ->  | AJ42: =IF(CYTV!AM11="","",CYTV!AM11) ->  | AK42: =IF(CYTV!AN11="","",CYTV!AN11) ->  | AL42: =IF(CYTV!AO11="","",CYTV!AO11) ->  | AM42: =IF(CYTV!AP11="","",CYTV!AP11) -> 
D43: Criterio Evaluación 3.3 | E43: =IF(CYTV!H12="","",CYTV!H12) ->  | F43: =IF(CYTV!I12="","",CYTV!I12) ->  | G43: =IF(CYTV!J12="","",CYTV!J12) ->  | H43: =IF(CYTV!K12="","",CYTV!K12) ->  | I43: =IF(CYTV!L12="","",CYTV!L12) ->  | J43: =IF(CYTV!M12="","",CYTV!M12) ->  | K43: =IF(CYTV!N12="","",CYTV!N12) ->  | L43: =IF(CYTV!O12="","",CYTV!O12) ->  | M43: =IF(CYTV!P12="","",CYTV!P12) ->  | N43: =IF(CYTV!Q12="","",CYTV!Q12) ->  | O43: =IF(CYTV!R12="","",CYTV!R12) ->  | P43: =IF(CYTV!S12="","",CYTV!S12) ->  | Q43: =IF(CYTV!T12="","",CYTV!T12) ->  | R43: =IF(CYTV!U12="","",CYTV!U12) ->  | S43: =IF(CYTV!V12="","",CYTV!V12) ->  | T43: =IF(CYTV!W12="","",CYTV!W12) ->  | U43: =IF(CYTV!X12="","",CYTV!X12) ->  | V43: =IF(CYTV!Y12="","",CYTV!Y12) ->  | W43: =IF(CYTV!Z12="","",CYTV!Z12) ->  | X43: =IF(CYTV!AA12="","",CYTV!AA12) ->  | Y43: =IF(CYTV!AB12="","",CYTV!AB12) ->  | Z43: =IF(CYTV!AC12="","",CYTV!AC12) ->  | AA43: =IF(CYTV!AD12="","",CYTV!AD12) ->  | AB43: =IF(CYTV!AE12="","",CYTV!AE12) ->  | AC43: =IF(CYTV!AF12="","",CYTV!AF12) ->  | AD43: =IF(CYTV!AG12="","",CYTV!AG12) ->  | AE43: =IF(CYTV!AH12="","",CYTV!AH12) ->  | AF43: =IF(CYTV!AI12="","",CYTV!AI12) ->  | AG43: =IF(CYTV!AJ12="","",CYTV!AJ12) ->  | AH43: =IF(CYTV!AK12="","",CYTV!AK12) ->  | AI43: =IF(CYTV!AL12="","",CYTV!AL12) ->  | AJ43: =IF(CYTV!AM12="","",CYTV!AM12) ->  | AK43: =IF(CYTV!AN12="","",CYTV!AN12) ->  | AL43: =IF(CYTV!AO12="","",CYTV!AO12) ->  | AM43: =IF(CYTV!AP12="","",CYTV!AP12) -> 
C44: Comp. Esp. 4 | D44: Criterio Evaluación 4.1 | E44: =IF(CYTV!H13="","",CYTV!H13) ->  | F44: =IF(CYTV!I13="","",CYTV!I13) ->  | G44: =IF(CYTV!J13="","",CYTV!J13) ->  | H44: =IF(CYTV!K13="","",CYTV!K13) ->  | I44: =IF(CYTV!L13="","",CYTV!L13) ->  | J44: =IF(CYTV!M13="","",CYTV!M13) ->  | K44: =IF(CYTV!N13="","",CYTV!N13) ->  | L44: =IF(CYTV!O13="","",CYTV!O13) ->  | M44: =IF(CYTV!P13="","",CYTV!P13) ->  | N44: =IF(CYTV!Q13="","",CYTV!Q13) ->  | O44: =IF(CYTV!R13="","",CYTV!R13) ->  | P44: =IF(CYTV!S13="","",CYTV!S13) ->  | Q44: =IF(CYTV!T13="","",CYTV!T13) ->  | R44: =IF(CYTV!U13="","",CYTV!U13) ->  | S44: =IF(CYTV!V13="","",CYTV!V13) ->  | T44: =IF(CYTV!W13="","",CYTV!W13) ->  | U44: =IF(CYTV!X13="","",CYTV!X13) ->  | V44: =IF(CYTV!Y13="","",CYTV!Y13) ->  | W44: =IF(CYTV!Z13="","",CYTV!Z13) ->  | X44: =IF(CYTV!AA13="","",CYTV!AA13) ->  | Y44: =IF(CYTV!AB13="","",CYTV!AB13) ->  | Z44: =IF(CYTV!AC13="","",CYTV!AC13) ->  | AA44: =IF(CYTV!AD13="","",CYTV!AD13) ->  | AB44: =IF(CYTV!AE13="","",CYTV!AE13) ->  | AC44: =IF(CYTV!AF13="","",CYTV!AF13) ->  | AD44: =IF(CYTV!AG13="","",CYTV!AG13) ->  | AE44: =IF(CYTV!AH13="","",CYTV!AH13) ->  | AF44: =IF(CYTV!AI13="","",CYTV!AI13) ->  | AG44: =IF(CYTV!AJ13="","",CYTV!AJ13) ->  | AH44: =IF(CYTV!AK13="","",CYTV!AK13) ->  | AI44: =IF(CYTV!AL13="","",CYTV!AL13) ->  | AJ44: =IF(CYTV!AM13="","",CYTV!AM13) ->  | AK44: =IF(CYTV!AN13="","",CYTV!AN13) ->  | AL44: =IF(CYTV!AO13="","",CYTV!AO13) ->  | AM44: =IF(CYTV!AP13="","",CYTV!AP13) -> 
D45: Criterio Evaluación 4.2 | E45: =IF(CYTV!H14="","",CYTV!H14) ->  | F45: =IF(CYTV!I14="","",CYTV!I14) ->  | G45: =IF(CYTV!J14="","",CYTV!J14) ->  | H45: =IF(CYTV!K14="","",CYTV!K14) ->  | I45: =IF(CYTV!L14="","",CYTV!L14) ->  | J45: =IF(CYTV!M14="","",CYTV!M14) ->  | K45: =IF(CYTV!N14="","",CYTV!N14) ->  | L45: =IF(CYTV!O14="","",CYTV!O14) ->  | M45: =IF(CYTV!P14="","",CYTV!P14) ->  | N45: =IF(CYTV!Q14="","",CYTV!Q14) ->  | O45: =IF(CYTV!R14="","",CYTV!R14) ->  | P45: =IF(CYTV!S14="","",CYTV!S14) ->  | Q45: =IF(CYTV!T14="","",CYTV!T14) ->  | R45: =IF(CYTV!U14="","",CYTV!U14) ->  | S45: =IF(CYTV!V14="","",CYTV!V14) ->  | T45: =IF(CYTV!W14="","",CYTV!W14) ->  | U45: =IF(CYTV!X14="","",CYTV!X14) ->  | V45: =IF(CYTV!Y14="","",CYTV!Y14) ->  | W45: =IF(CYTV!Z14="","",CYTV!Z14) ->  | X45: =IF(CYTV!AA14="","",CYTV!AA14) ->  | Y45: =IF(CYTV!AB14="","",CYTV!AB14) ->  | Z45: =IF(CYTV!AC14="","",CYTV!AC14) ->  | AA45: =IF(CYTV!AD14="","",CYTV!AD14) ->  | AB45: =IF(CYTV!AE14="","",CYTV!AE14) ->  | AC45: =IF(CYTV!AF14="","",CYTV!AF14) ->  | AD45: =IF(CYTV!AG14="","",CYTV!AG14) ->  | AE45: =IF(CYTV!AH14="","",CYTV!AH14) ->  | AF45: =IF(CYTV!AI14="","",CYTV!AI14) ->  | AG45: =IF(CYTV!AJ14="","",CYTV!AJ14) ->  | AH45: =IF(CYTV!AK14="","",CYTV!AK14) ->  | AI45: =IF(CYTV!AL14="","",CYTV!AL14) ->  | AJ45: =IF(CYTV!AM14="","",CYTV!AM14) ->  | AK45: =IF(CYTV!AN14="","",CYTV!AN14) ->  | AL45: =IF(CYTV!AO14="","",CYTV!AO14) ->  | AM45: =IF(CYTV!AP14="","",CYTV!AP14) -> 
D46: Criterio Evaluación 4.3 | E46: =IF(CYTV!H15="","",CYTV!H15) ->  | F46: =IF(CYTV!I15="","",CYTV!I15) ->  | G46: =IF(CYTV!J15="","",CYTV!J15) ->  | H46: =IF(CYTV!K15="","",CYTV!K15) ->  | I46: =IF(CYTV!L15="","",CYTV!L15) ->  | J46: =IF(CYTV!M15="","",CYTV!M15) ->  | K46: =IF(CYTV!N15="","",CYTV!N15) ->  | L46: =IF(CYTV!O15="","",CYTV!O15) ->  | M46: =IF(CYTV!P15="","",CYTV!P15) ->  | N46: =IF(CYTV!Q15="","",CYTV!Q15) ->  | O46: =IF(CYTV!R15="","",CYTV!R15) ->  | P46: =IF(CYTV!S15="","",CYTV!S15) ->  | Q46: =IF(CYTV!T15="","",CYTV!T15) ->  | R46: =IF(CYTV!U15="","",CYTV!U15) ->  | S46: =IF(CYTV!V15="","",CYTV!V15) ->  | T46: =IF(CYTV!W15="","",CYTV!W15) ->  | U46: =IF(CYTV!X15="","",CYTV!X15) ->  | V46: =IF(CYTV!Y15="","",CYTV!Y15) ->  | W46: =IF(CYTV!Z15="","",CYTV!Z15) ->  | X46: =IF(CYTV!AA15="","",CYTV!AA15) ->  | Y46: =IF(CYTV!AB15="","",CYTV!AB15) ->  | Z46: =IF(CYTV!AC15="","",CYTV!AC15) ->  | AA46: =IF(CYTV!AD15="","",CYTV!AD15) ->  | AB46: =IF(CYTV!AE15="","",CYTV!AE15) ->  | AC46: =IF(CYTV!AF15="","",CYTV!AF15) ->  | AD46: =IF(CYTV!AG15="","",CYTV!AG15) ->  | AE46: =IF(CYTV!AH15="","",CYTV!AH15) ->  | AF46: =IF(CYTV!AI15="","",CYTV!AI15) ->  | AG46: =IF(CYTV!AJ15="","",CYTV!AJ15) ->  | AH46: =IF(CYTV!AK15="","",CYTV!AK15) ->  | AI46: =IF(CYTV!AL15="","",CYTV!AL15) ->  | AJ46: =IF(CYTV!AM15="","",CYTV!AM15) ->  | AK46: =IF(CYTV!AN15="","",CYTV!AN15) ->  | AL46: =IF(CYTV!AO15="","",CYTV!AO15) ->  | AM46: =IF(CYTV!AP15="","",CYTV!AP15) -> 
B47: Historia de España | C47: Comp. Esp. 1 | D47: Criterio Evaluación 1.1 | E47: =IF(HE!H4="","",HE!H4) ->  | F47: =IF(HE!I4="","",HE!I4) ->  | G47: =IF(HE!J4="","",HE!J4) ->  | H47: =IF(HE!K4="","",HE!K4) ->  | I47: =IF(HE!L4="","",HE!L4) ->  | J47: =IF(HE!M4="","",HE!M4) ->  | K47: =IF(HE!N4="","",HE!N4) ->  | L47: =IF(HE!O4="","",HE!O4) ->  | M47: =IF(HE!P4="","",HE!P4) ->  | N47: =IF(HE!Q4="","",HE!Q4) ->  | O47: =IF(HE!R4="","",HE!R4) ->  | P47: =IF(HE!S4="","",HE!S4) ->  | Q47: =IF(HE!T4="","",HE!T4) ->  | R47: =IF(HE!U4="","",HE!U4) ->  | S47: =IF(HE!V4="","",HE!V4) ->  | T47: =IF(HE!W4="","",HE!W4) ->  | U47: =IF(HE!X4="","",HE!X4) ->  | V47: =IF(HE!Y4="","",HE!Y4) ->  | W47: =IF(HE!Z4="","",HE!Z4) ->  | X47: =IF(HE!AA4="","",HE!AA4) ->  | Y47: =IF(HE!AB4="","",HE!AB4) ->  | Z47: =IF(HE!AC4="","",HE!AC4) ->  | AA47: =IF(HE!AD4="","",HE!AD4) ->  | AB47: =IF(HE!AE4="","",HE!AE4) ->  | AC47: =IF(HE!AF4="","",HE!AF4) ->  | AD47: =IF(HE!AG4="","",HE!AG4) ->  | AE47: =IF(HE!AH4="","",HE!AH4) ->  | AF47: =IF(HE!AI4="","",HE!AI4) ->  | AG47: =IF(HE!AJ4="","",HE!AJ4) ->  | AH47: =IF(HE!AK4="","",HE!AK4) ->  | AI47: =IF(HE!AL4="","",HE!AL4) ->  | AJ47: =IF(HE!AM4="","",HE!AM4) ->  | AK47: =IF(HE!AN4="","",HE!AN4) ->  | AL47: =IF(HE!AO4="","",HE!AO4) ->  | AM47: =IF(HE!AP4="","",HE!AP4) -> 
D48: Criterio Evaluación 1.2 | E48: =IF(HE!H5="","",HE!H5) ->  | F48: =IF(HE!I5="","",HE!I5) ->  | G48: =IF(HE!J5="","",HE!J5) ->  | H48: =IF(HE!K5="","",HE!K5) ->  | I48: =IF(HE!L5="","",HE!L5) ->  | J48: =IF(HE!M5="","",HE!M5) ->  | K48: =IF(HE!N5="","",HE!N5) ->  | L48: =IF(HE!O5="","",HE!O5) ->  | M48: =IF(HE!P5="","",HE!P5) ->  | N48: =IF(HE!Q5="","",HE!Q5) ->  | O48: =IF(HE!R5="","",HE!R5) ->  | P48: =IF(HE!S5="","",HE!S5) ->  | Q48: =IF(HE!T5="","",HE!T5) ->  | R48: =IF(HE!U5="","",HE!U5) ->  | S48: =IF(HE!V5="","",HE!V5) ->  | T48: =IF(HE!W5="","",HE!W5) ->  | U48: =IF(HE!X5="","",HE!X5) ->  | V48: =IF(HE!Y5="","",HE!Y5) ->  | W48: =IF(HE!Z5="","",HE!Z5) ->  | X48: =IF(HE!AA5="","",HE!AA5) ->  | Y48: =IF(HE!AB5="","",HE!AB5) ->  | Z48: =IF(HE!AC5="","",HE!AC5) ->  | AA48: =IF(HE!AD5="","",HE!AD5) ->  | AB48: =IF(HE!AE5="","",HE!AE5) ->  | AC48: =IF(HE!AF5="","",HE!AF5) ->  | AD48: =IF(HE!AG5="","",HE!AG5) ->  | AE48: =IF(HE!AH5="","",HE!AH5) ->  | AF48: =IF(HE!AI5="","",HE!AI5) ->  | AG48: =IF(HE!AJ5="","",HE!AJ5) ->  | AH48: =IF(HE!AK5="","",HE!AK5) ->  | AI48: =IF(HE!AL5="","",HE!AL5) ->  | AJ48: =IF(HE!AM5="","",HE!AM5) ->  | AK48: =IF(HE!AN5="","",HE!AN5) ->  | AL48: =IF(HE!AO5="","",HE!AO5) ->  | AM48: =IF(HE!AP5="","",HE!AP5) -> 
C49: Comp. Esp. 2 | D49: Criterio Evaluación 2.1 | E49: =IF(HE!H6="","",HE!H6) ->  | F49: =IF(HE!I6="","",HE!I6) ->  | G49: =IF(HE!J6="","",HE!J6) ->  | H49: =IF(HE!K6="","",HE!K6) ->  | I49: =IF(HE!L6="","",HE!L6) ->  | J49: =IF(HE!M6="","",HE!M6) ->  | K49: =IF(HE!N6="","",HE!N6) ->  | L49: =IF(HE!O6="","",HE!O6) ->  | M49: =IF(HE!P6="","",HE!P6) ->  | N49: =IF(HE!Q6="","",HE!Q6) ->  | O49: =IF(HE!R6="","",HE!R6) ->  | P49: =IF(HE!S6="","",HE!S6) ->  | Q49: =IF(HE!T6="","",HE!T6) ->  | R49: =IF(HE!U6="","",HE!U6) ->  | S49: =IF(HE!V6="","",HE!V6) ->  | T49: =IF(HE!W6="","",HE!W6) ->  | U49: =IF(HE!X6="","",HE!X6) ->  | V49: =IF(HE!Y6="","",HE!Y6) ->  | W49: =IF(HE!Z6="","",HE!Z6) ->  | X49: =IF(HE!AA6="","",HE!AA6) ->  | Y49: =IF(HE!AB6="","",HE!AB6) ->  | Z49: =IF(HE!AC6="","",HE!AC6) ->  | AA49: =IF(HE!AD6="","",HE!AD6) ->  | AB49: =IF(HE!AE6="","",HE!AE6) ->  | AC49: =IF(HE!AF6="","",HE!AF6) ->  | AD49: =IF(HE!AG6="","",HE!AG6) ->  | AE49: =IF(HE!AH6="","",HE!AH6) ->  | AF49: =IF(HE!AI6="","",HE!AI6) ->  | AG49: =IF(HE!AJ6="","",HE!AJ6) ->  | AH49: =IF(HE!AK6="","",HE!AK6) ->  | AI49: =IF(HE!AL6="","",HE!AL6) ->  | AJ49: =IF(HE!AM6="","",HE!AM6) ->  | AK49: =IF(HE!AN6="","",HE!AN6) ->  | AL49: =IF(HE!AO6="","",HE!AO6) ->  | AM49: =IF(HE!AP6="","",HE!AP6) -> 
D50: Criterio Evaluación 2.2 | E50: =IF(HE!H7="","",HE!H7) ->  | F50: =IF(HE!I7="","",HE!I7) ->  | G50: =IF(HE!J7="","",HE!J7) ->  | H50: =IF(HE!K7="","",HE!K7) ->  | I50: =IF(HE!L7="","",HE!L7) ->  | J50: =IF(HE!M7="","",HE!M7) ->  | K50: =IF(HE!N7="","",HE!N7) ->  | L50: =IF(HE!O7="","",HE!O7) ->  | M50: =IF(HE!P7="","",HE!P7) ->  | N50: =IF(HE!Q7="","",HE!Q7) ->  | O50: =IF(HE!R7="","",HE!R7) ->  | P50: =IF(HE!S7="","",HE!S7) ->  | Q50: =IF(HE!T7="","",HE!T7) ->  | R50: =IF(HE!U7="","",HE!U7) ->  | S50: =IF(HE!V7="","",HE!V7) ->  | T50: =IF(HE!W7="","",HE!W7) ->  | U50: =IF(HE!X7="","",HE!X7) ->  | V50: =IF(HE!Y7="","",HE!Y7) ->  | W50: =IF(HE!Z7="","",HE!Z7) ->  | X50: =IF(HE!AA7="","",HE!AA7) ->  | Y50: =IF(HE!AB7="","",HE!AB7) ->  | Z50: =IF(HE!AC7="","",HE!AC7) ->  | AA50: =IF(HE!AD7="","",HE!AD7) ->  | AB50: =IF(HE!AE7="","",HE!AE7) ->  | AC50: =IF(HE!AF7="","",HE!AF7) ->  | AD50: =IF(HE!AG7="","",HE!AG7) ->  | AE50: =IF(HE!AH7="","",HE!AH7) ->  | AF50: =IF(HE!AI7="","",HE!AI7) ->  | AG50: =IF(HE!AJ7="","",HE!AJ7) ->  | AH50: =IF(HE!AK7="","",HE!AK7) ->  | AI50: =IF(HE!AL7="","",HE!AL7) ->  | AJ50: =IF(HE!AM7="","",HE!AM7) ->  | AK50: =IF(HE!AN7="","",HE!AN7) ->  | AL50: =IF(HE!AO7="","",HE!AO7) ->  | AM50: =IF(HE!AP7="","",HE!AP7) -> 
C51: Comp. Esp. 3 | D51: Criterio Evaluación 3.1 | E51: =IF(HE!H8="","",HE!H8) ->  | F51: =IF(HE!I8="","",HE!I8) ->  | G51: =IF(HE!J8="","",HE!J8) ->  | H51: =IF(HE!K8="","",HE!K8) ->  | I51: =IF(HE!L8="","",HE!L8) ->  | J51: =IF(HE!M8="","",HE!M8) ->  | K51: =IF(HE!N8="","",HE!N8) ->  | L51: =IF(HE!O8="","",HE!O8) ->  | M51: =IF(HE!P8="","",HE!P8) ->  | N51: =IF(HE!Q8="","",HE!Q8) ->  | O51: =IF(HE!R8="","",HE!R8) ->  | P51: =IF(HE!S8="","",HE!S8) ->  | Q51: =IF(HE!T8="","",HE!T8) ->  | R51: =IF(HE!U8="","",HE!U8) ->  | S51: =IF(HE!V8="","",HE!V8) ->  | T51: =IF(HE!W8="","",HE!W8) ->  | U51: =IF(HE!X8="","",HE!X8) ->  | V51: =IF(HE!Y8="","",HE!Y8) ->  | W51: =IF(HE!Z8="","",HE!Z8) ->  | X51: =IF(HE!AA8="","",HE!AA8) ->  | Y51: =IF(HE!AB8="","",HE!AB8) ->  | Z51: =IF(HE!AC8="","",HE!AC8) ->  | AA51: =IF(HE!AD8="","",HE!AD8) ->  | AB51: =IF(HE!AE8="","",HE!AE8) ->  | AC51: =IF(HE!AF8="","",HE!AF8) ->  | AD51: =IF(HE!AG8="","",HE!AG8) ->  | AE51: =IF(HE!AH8="","",HE!AH8) ->  | AF51: =IF(HE!AI8="","",HE!AI8) ->  | AG51: =IF(HE!AJ8="","",HE!AJ8) ->  | AH51: =IF(HE!AK8="","",HE!AK8) ->  | AI51: =IF(HE!AL8="","",HE!AL8) ->  | AJ51: =IF(HE!AM8="","",HE!AM8) ->  | AK51: =IF(HE!AN8="","",HE!AN8) ->  | AL51: =IF(HE!AO8="","",HE!AO8) ->  | AM51: =IF(HE!AP8="","",HE!AP8) -> 
D52: Criterio Evaluación 3.2 | E52: =IF(HE!H9="","",HE!H9) ->  | F52: =IF(HE!I9="","",HE!I9) ->  | G52: =IF(HE!J9="","",HE!J9) ->  | H52: =IF(HE!K9="","",HE!K9) ->  | I52: =IF(HE!L9="","",HE!L9) ->  | J52: =IF(HE!M9="","",HE!M9) ->  | K52: =IF(HE!N9="","",HE!N9) ->  | L52: =IF(HE!O9="","",HE!O9) ->  | M52: =IF(HE!P9="","",HE!P9) ->  | N52: =IF(HE!Q9="","",HE!Q9) ->  | O52: =IF(HE!R9="","",HE!R9) ->  | P52: =IF(HE!S9="","",HE!S9) ->  | Q52: =IF(HE!T9="","",HE!T9) ->  | R52: =IF(HE!U9="","",HE!U9) ->  | S52: =IF(HE!V9="","",HE!V9) ->  | T52: =IF(HE!W9="","",HE!W9) ->  | U52: =IF(HE!X9="","",HE!X9) ->  | V52: =IF(HE!Y9="","",HE!Y9) ->  | W52: =IF(HE!Z9="","",HE!Z9) ->  | X52: =IF(HE!AA9="","",HE!AA9) ->  | Y52: =IF(HE!AB9="","",HE!AB9) ->  | Z52: =IF(HE!AC9="","",HE!AC9) ->  | AA52: =IF(HE!AD9="","",HE!AD9) ->  | AB52: =IF(HE!AE9="","",HE!AE9) ->  | AC52: =IF(HE!AF9="","",HE!AF9) ->  | AD52: =IF(HE!AG9="","",HE!AG9) ->  | AE52: =IF(HE!AH9="","",HE!AH9) ->  | AF52: =IF(HE!AI9="","",HE!AI9) ->  | AG52: =IF(HE!AJ9="","",HE!AJ9) ->  | AH52: =IF(HE!AK9="","",HE!AK9) ->  | AI52: =IF(HE!AL9="","",HE!AL9) ->  | AJ52: =IF(HE!AM9="","",HE!AM9) ->  | AK52: =IF(HE!AN9="","",HE!AN9) ->  | AL52: =IF(HE!AO9="","",HE!AO9) ->  | AM52: =IF(HE!AP9="","",HE!AP9) -> 
C53: Comp. Esp. 4 | D53: Criterio Evaluación 4.1 | E53: =IF(HE!H10="","",HE!H10) ->  | F53: =IF(HE!I10="","",HE!I10) ->  | G53: =IF(HE!J10="","",HE!J10) ->  | H53: =IF(HE!K10="","",HE!K10) ->  | I53: =IF(HE!L10="","",HE!L10) ->  | J53: =IF(HE!M10="","",HE!M10) ->  | K53: =IF(HE!N10="","",HE!N10) ->  | L53: =IF(HE!O10="","",HE!O10) ->  | M53: =IF(HE!P10="","",HE!P10) ->  | N53: =IF(HE!Q10="","",HE!Q10) ->  | O53: =IF(HE!R10="","",HE!R10) ->  | P53: =IF(HE!S10="","",HE!S10) ->  | Q53: =IF(HE!T10="","",HE!T10) ->  | R53: =IF(HE!U10="","",HE!U10) ->  | S53: =IF(HE!V10="","",HE!V10) ->  | T53: =IF(HE!W10="","",HE!W10) ->  | U53: =IF(HE!X10="","",HE!X10) ->  | V53: =IF(HE!Y10="","",HE!Y10) ->  | W53: =IF(HE!Z10="","",HE!Z10) ->  | X53: =IF(HE!AA10="","",HE!AA10) ->  | Y53: =IF(HE!AB10="","",HE!AB10) ->  | Z53: =IF(HE!AC10="","",HE!AC10) ->  | AA53: =IF(HE!AD10="","",HE!AD10) ->  | AB53: =IF(HE!AE10="","",HE!AE10) ->  | AC53: =IF(HE!AF10="","",HE!AF10) ->  | AD53: =IF(HE!AG10="","",HE!AG10) ->  | AE53: =IF(HE!AH10="","",HE!AH10) ->  | AF53: =IF(HE!AI10="","",HE!AI10) ->  | AG53: =IF(HE!AJ10="","",HE!AJ10) ->  | AH53: =IF(HE!AK10="","",HE!AK10) ->  | AI53: =IF(HE!AL10="","",HE!AL10) ->  | AJ53: =IF(HE!AM10="","",HE!AM10) ->  | AK53: =IF(HE!AN10="","",HE!AN10) ->  | AL53: =IF(HE!AO10="","",HE!AO10) ->  | AM53: =IF(HE!AP10="","",HE!AP10) -> 
D54: Criterio Evaluación 4.2 | E54: =IF(HE!H11="","",HE!H11) ->  | F54: =IF(HE!I11="","",HE!I11) ->  | G54: =IF(HE!J11="","",HE!J11) ->  | H54: =IF(HE!K11="","",HE!K11) ->  | I54: =IF(HE!L11="","",HE!L11) ->  | J54: =IF(HE!M11="","",HE!M11) ->  | K54: =IF(HE!N11="","",HE!N11) ->  | L54: =IF(HE!O11="","",HE!O11) ->  | M54: =IF(HE!P11="","",HE!P11) ->  | N54: =IF(HE!Q11="","",HE!Q11) ->  | O54: =IF(HE!R11="","",HE!R11) ->  | P54: =IF(HE!S11="","",HE!S11) ->  | Q54: =IF(HE!T11="","",HE!T11) ->  | R54: =IF(HE!U11="","",HE!U11) ->  | S54: =IF(HE!V11="","",HE!V11) ->  | T54: =IF(HE!W11="","",HE!W11) ->  | U54: =IF(HE!X11="","",HE!X11) ->  | V54: =IF(HE!Y11="","",HE!Y11) ->  | W54: =IF(HE!Z11="","",HE!Z11) ->  | X54: =IF(HE!AA11="","",HE!AA11) ->  | Y54: =IF(HE!AB11="","",HE!AB11) ->  | Z54: =IF(HE!AC11="","",HE!AC11) ->  | AA54: =IF(HE!AD11="","",HE!AD11) ->  | AB54: =IF(HE!AE11="","",HE!AE11) ->  | AC54: =IF(HE!AF11="","",HE!AF11) ->  | AD54: =IF(HE!AG11="","",HE!AG11) ->  | AE54: =IF(HE!AH11="","",HE!AH11) ->  | AF54: =IF(HE!AI11="","",HE!AI11) ->  | AG54: =IF(HE!AJ11="","",HE!AJ11) ->  | AH54: =IF(HE!AK11="","",HE!AK11) ->  | AI54: =IF(HE!AL11="","",HE!AL11) ->  | AJ54: =IF(HE!AM11="","",HE!AM11) ->  | AK54: =IF(HE!AN11="","",HE!AN11) ->  | AL54: =IF(HE!AO11="","",HE!AO11) ->  | AM54: =IF(HE!AP11="","",HE!AP11) -> 
D55: Criterio Evaluación 4.3 | E55: =IF(HE!H12="","",HE!H12) ->  | F55: =IF(HE!I12="","",HE!I12) ->  | G55: =IF(HE!J12="","",HE!J12) ->  | H55: =IF(HE!K12="","",HE!K12) ->  | I55: =IF(HE!L12="","",HE!L12) ->  | J55: =IF(HE!M12="","",HE!M12) ->  | K55: =IF(HE!N12="","",HE!N12) ->  | L55: =IF(HE!O12="","",HE!O12) ->  | M55: =IF(HE!P12="","",HE!P12) ->  | N55: =IF(HE!Q12="","",HE!Q12) ->  | O55: =IF(HE!R12="","",HE!R12) ->  | P55: =IF(HE!S12="","",HE!S12) ->  | Q55: =IF(HE!T12="","",HE!T12) ->  | R55: =IF(HE!U12="","",HE!U12) ->  | S55: =IF(HE!V12="","",HE!V12) ->  | T55: =IF(HE!W12="","",HE!W12) ->  | U55: =IF(HE!X12="","",HE!X12) ->  | V55: =IF(HE!Y12="","",HE!Y12) ->  | W55: =IF(HE!Z12="","",HE!Z12) ->  | X55: =IF(HE!AA12="","",HE!AA12) ->  | Y55: =IF(HE!AB12="","",HE!AB12) ->  | Z55: =IF(HE!AC12="","",HE!AC12) ->  | AA55: =IF(HE!AD12="","",HE!AD12) ->  | AB55: =IF(HE!AE12="","",HE!AE12) ->  | AC55: =IF(HE!AF12="","",HE!AF12) ->  | AD55: =IF(HE!AG12="","",HE!AG12) ->  | AE55: =IF(HE!AH12="","",HE!AH12) ->  | AF55: =IF(HE!AI12="","",HE!AI12) ->  | AG55: =IF(HE!AJ12="","",HE!AJ12) ->  | AH55: =IF(HE!AK12="","",HE!AK12) ->  | AI55: =IF(HE!AL12="","",HE!AL12) ->  | AJ55: =IF(HE!AM12="","",HE!AM12) ->  | AK55: =IF(HE!AN12="","",HE!AN12) ->  | AL55: =IF(HE!AO12="","",HE!AO12) ->  | AM55: =IF(HE!AP12="","",HE!AP12) -> 
C56: Comp. Esp. 5 | D56: Criterio Evaluación 5.1 | E56: =IF(HE!H13="","",HE!H13) ->  | F56: =IF(HE!I13="","",HE!I13) ->  | G56: =IF(HE!J13="","",HE!J13) ->  | H56: =IF(HE!K13="","",HE!K13) ->  | I56: =IF(HE!L13="","",HE!L13) ->  | J56: =IF(HE!M13="","",HE!M13) ->  | K56: =IF(HE!N13="","",HE!N13) ->  | L56: =IF(HE!O13="","",HE!O13) ->  | M56: =IF(HE!P13="","",HE!P13) ->  | N56: =IF(HE!Q13="","",HE!Q13) ->  | O56: =IF(HE!R13="","",HE!R13) ->  | P56: =IF(HE!S13="","",HE!S13) ->  | Q56: =IF(HE!T13="","",HE!T13) ->  | R56: =IF(HE!U13="","",HE!U13) ->  | S56: =IF(HE!V13="","",HE!V13) ->  | T56: =IF(HE!W13="","",HE!W13) ->  | U56: =IF(HE!X13="","",HE!X13) ->  | V56: =IF(HE!Y13="","",HE!Y13) ->  | W56: =IF(HE!Z13="","",HE!Z13) ->  | X56: =IF(HE!AA13="","",HE!AA13) ->  | Y56: =IF(HE!AB13="","",HE!AB13) ->  | Z56: =IF(HE!AC13="","",HE!AC13) ->  | AA56: =IF(HE!AD13="","",HE!AD13) ->  | AB56: =IF(HE!AE13="","",HE!AE13) ->  | AC56: =IF(HE!AF13="","",HE!AF13) ->  | AD56: =IF(HE!AG13="","",HE!AG13) ->  | AE56: =IF(HE!AH13="","",HE!AH13) ->  | AF56: =IF(HE!AI13="","",HE!AI13) ->  | AG56: =IF(HE!AJ13="","",HE!AJ13) ->  | AH56: =IF(HE!AK13="","",HE!AK13) ->  | AI56: =IF(HE!AL13="","",HE!AL13) ->  | AJ56: =IF(HE!AM13="","",HE!AM13) ->  | AK56: =IF(HE!AN13="","",HE!AN13) ->  | AL56: =IF(HE!AO13="","",HE!AO13) ->  | AM56: =IF(HE!AP13="","",HE!AP13) -> 
D57: Criterio Evaluación 5.2 | E57: =IF(HE!H14="","",HE!H14) ->  | F57: =IF(HE!I14="","",HE!I14) ->  | G57: =IF(HE!J14="","",HE!J14) ->  | H57: =IF(HE!K14="","",HE!K14) ->  | I57: =IF(HE!L14="","",HE!L14) ->  | J57: =IF(HE!M14="","",HE!M14) ->  | K57: =IF(HE!N14="","",HE!N14) ->  | L57: =IF(HE!O14="","",HE!O14) ->  | M57: =IF(HE!P14="","",HE!P14) ->  | N57: =IF(HE!Q14="","",HE!Q14) ->  | O57: =IF(HE!R14="","",HE!R14) ->  | P57: =IF(HE!S14="","",HE!S14) ->  | Q57: =IF(HE!T14="","",HE!T14) ->  | R57: =IF(HE!U14="","",HE!U14) ->  | S57: =IF(HE!V14="","",HE!V14) ->  | T57: =IF(HE!W14="","",HE!W14) ->  | U57: =IF(HE!X14="","",HE!X14) ->  | V57: =IF(HE!Y14="","",HE!Y14) ->  | W57: =IF(HE!Z14="","",HE!Z14) ->  | X57: =IF(HE!AA14="","",HE!AA14) ->  | Y57: =IF(HE!AB14="","",HE!AB14) ->  | Z57: =IF(HE!AC14="","",HE!AC14) ->  | AA57: =IF(HE!AD14="","",HE!AD14) ->  | AB57: =IF(HE!AE14="","",HE!AE14) ->  | AC57: =IF(HE!AF14="","",HE!AF14) ->  | AD57: =IF(HE!AG14="","",HE!AG14) ->  | AE57: =IF(HE!AH14="","",HE!AH14) ->  | AF57: =IF(HE!AI14="","",HE!AI14) ->  | AG57: =IF(HE!AJ14="","",HE!AJ14) ->  | AH57: =IF(HE!AK14="","",HE!AK14) ->  | AI57: =IF(HE!AL14="","",HE!AL14) ->  | AJ57: =IF(HE!AM14="","",HE!AM14) ->  | AK57: =IF(HE!AN14="","",HE!AN14) ->  | AL57: =IF(HE!AO14="","",HE!AO14) ->  | AM57: =IF(HE!AP14="","",HE!AP14) -> 
D58: Criterio Evaluación 5.3 | E58: =IF(HE!H15="","",HE!H15) ->  | F58: =IF(HE!I15="","",HE!I15) ->  | G58: =IF(HE!J15="","",HE!J15) ->  | H58: =IF(HE!K15="","",HE!K15) ->  | I58: =IF(HE!L15="","",HE!L15) ->  | J58: =IF(HE!M15="","",HE!M15) ->  | K58: =IF(HE!N15="","",HE!N15) ->  | L58: =IF(HE!O15="","",HE!O15) ->  | M58: =IF(HE!P15="","",HE!P15) ->  | N58: =IF(HE!Q15="","",HE!Q15) ->  | O58: =IF(HE!R15="","",HE!R15) ->  | P58: =IF(HE!S15="","",HE!S15) ->  | Q58: =IF(HE!T15="","",HE!T15) ->  | R58: =IF(HE!U15="","",HE!U15) ->  | S58: =IF(HE!V15="","",HE!V15) ->  | T58: =IF(HE!W15="","",HE!W15) ->  | U58: =IF(HE!X15="","",HE!X15) ->  | V58: =IF(HE!Y15="","",HE!Y15) ->  | W58: =IF(HE!Z15="","",HE!Z15) ->  | X58: =IF(HE!AA15="","",HE!AA15) ->  | Y58: =IF(HE!AB15="","",HE!AB15) ->  | Z58: =IF(HE!AC15="","",HE!AC15) ->  | AA58: =IF(HE!AD15="","",HE!AD15) ->  | AB58: =IF(HE!AE15="","",HE!AE15) ->  | AC58: =IF(HE!AF15="","",HE!AF15) ->  | AD58: =IF(HE!AG15="","",HE!AG15) ->  | AE58: =IF(HE!AH15="","",HE!AH15) ->  | AF58: =IF(HE!AI15="","",HE!AI15) ->  | AG58: =IF(HE!AJ15="","",HE!AJ15) ->  | AH58: =IF(HE!AK15="","",HE!AK15) ->  | AI58: =IF(HE!AL15="","",HE!AL15) ->  | AJ58: =IF(HE!AM15="","",HE!AM15) ->  | AK58: =IF(HE!AN15="","",HE!AN15) ->  | AL58: =IF(HE!AO15="","",HE!AO15) ->  | AM58: =IF(HE!AP15="","",HE!AP15) -> 
C59: Comp. Esp. 6 | D59: Criterio Evaluación 6.1 | E59: =IF(HE!H16="","",HE!H16) ->  | F59: =IF(HE!I16="","",HE!I16) ->  | G59: =IF(HE!J16="","",HE!J16) ->  | H59: =IF(HE!K16="","",HE!K16) ->  | I59: =IF(HE!L16="","",HE!L16) ->  | J59: =IF(HE!M16="","",HE!M16) ->  | K59: =IF(HE!N16="","",HE!N16) ->  | L59: =IF(HE!O16="","",HE!O16) ->  | M59: =IF(HE!P16="","",HE!P16) ->  | N59: =IF(HE!Q16="","",HE!Q16) ->  | O59: =IF(HE!R16="","",HE!R16) ->  | P59: =IF(HE!S16="","",HE!S16) ->  | Q59: =IF(HE!T16="","",HE!T16) ->  | R59: =IF(HE!U16="","",HE!U16) ->  | S59: =IF(HE!V16="","",HE!V16) ->  | T59: =IF(HE!W16="","",HE!W16) ->  | U59: =IF(HE!X16="","",HE!X16) ->  | V59: =IF(HE!Y16="","",HE!Y16) ->  | W59: =IF(HE!Z16="","",HE!Z16) ->  | X59: =IF(HE!AA16="","",HE!AA16) ->  | Y59: =IF(HE!AB16="","",HE!AB16) ->  | Z59: =IF(HE!AC16="","",HE!AC16) ->  | AA59: =IF(HE!AD16="","",HE!AD16) ->  | AB59: =IF(HE!AE16="","",HE!AE16) ->  | AC59: =IF(HE!AF16="","",HE!AF16) ->  | AD59: =IF(HE!AG16="","",HE!AG16) ->  | AE59: =IF(HE!AH16="","",HE!AH16) ->  | AF59: =IF(HE!AI16="","",HE!AI16) ->  | AG59: =IF(HE!AJ16="","",HE!AJ16) ->  | AH59: =IF(HE!AK16="","",HE!AK16) ->  | AI59: =IF(HE!AL16="","",HE!AL16) ->  | AJ59: =IF(HE!AM16="","",HE!AM16) ->  | AK59: =IF(HE!AN16="","",HE!AN16) ->  | AL59: =IF(HE!AO16="","",HE!AO16) ->  | AM59: =IF(HE!AP16="","",HE!AP16) -> 
D60: Criterio Evaluación 6.2 | E60: =IF(HE!H17="","",HE!H17) ->  | F60: =IF(HE!I17="","",HE!I17) ->  | G60: =IF(HE!J17="","",HE!J17) ->  | H60: =IF(HE!K17="","",HE!K17) ->  | I60: =IF(HE!L17="","",HE!L17) ->  | J60: =IF(HE!M17="","",HE!M17) ->  | K60: =IF(HE!N17="","",HE!N17) ->  | L60: =IF(HE!O17="","",HE!O17) ->  | M60: =IF(HE!P17="","",HE!P17) ->  | N60: =IF(HE!Q17="","",HE!Q17) ->  | O60: =IF(HE!R17="","",HE!R17) ->  | P60: =IF(HE!S17="","",HE!S17) ->  | Q60: =IF(HE!T17="","",HE!T17) ->  | R60: =IF(HE!U17="","",HE!U17) ->  | S60: =IF(HE!V17="","",HE!V17) ->  | T60: =IF(HE!W17="","",HE!W17) ->  | U60: =IF(HE!X17="","",HE!X17) ->  | V60: =IF(HE!Y17="","",HE!Y17) ->  | W60: =IF(HE!Z17="","",HE!Z17) ->  | X60: =IF(HE!AA17="","",HE!AA17) ->  | Y60: =IF(HE!AB17="","",HE!AB17) ->  | Z60: =IF(HE!AC17="","",HE!AC17) ->  | AA60: =IF(HE!AD17="","",HE!AD17) ->  | AB60: =IF(HE!AE17="","",HE!AE17) ->  | AC60: =IF(HE!AF17="","",HE!AF17) ->  | AD60: =IF(HE!AG17="","",HE!AG17) ->  | AE60: =IF(HE!AH17="","",HE!AH17) ->  | AF60: =IF(HE!AI17="","",HE!AI17) ->  | AG60: =IF(HE!AJ17="","",HE!AJ17) ->  | AH60: =IF(HE!AK17="","",HE!AK17) ->  | AI60: =IF(HE!AL17="","",HE!AL17) ->  | AJ60: =IF(HE!AM17="","",HE!AM17) ->  | AK60: =IF(HE!AN17="","",HE!AN17) ->  | AL60: =IF(HE!AO17="","",HE!AO17) ->  | AM60: =IF(HE!AP17="","",HE!AP17) -> 
C61: Comp. Esp. 7 | D61: Criterio Evaluación 7.1 | E61: =IF(HE!H18="","",HE!H18) ->  | F61: =IF(HE!I18="","",HE!I18) ->  | G61: =IF(HE!J18="","",HE!J18) ->  | H61: =IF(HE!K18="","",HE!K18) ->  | I61: =IF(HE!L18="","",HE!L18) ->  | J61: =IF(HE!M18="","",HE!M18) ->  | K61: =IF(HE!N18="","",HE!N18) ->  | L61: =IF(HE!O18="","",HE!O18) ->  | M61: =IF(HE!P18="","",HE!P18) ->  | N61: =IF(HE!Q18="","",HE!Q18) ->  | O61: =IF(HE!R18="","",HE!R18) ->  | P61: =IF(HE!S18="","",HE!S18) ->  | Q61: =IF(HE!T18="","",HE!T18) ->  | R61: =IF(HE!U18="","",HE!U18) ->  | S61: =IF(HE!V18="","",HE!V18) ->  | T61: =IF(HE!W18="","",HE!W18) ->  | U61: =IF(HE!X18="","",HE!X18) ->  | V61: =IF(HE!Y18="","",HE!Y18) ->  | W61: =IF(HE!Z18="","",HE!Z18) ->  | X61: =IF(HE!AA18="","",HE!AA18) ->  | Y61: =IF(HE!AB18="","",HE!AB18) ->  | Z61: =IF(HE!AC18="","",HE!AC18) ->  | AA61: =IF(HE!AD18="","",HE!AD18) ->  | AB61: =IF(HE!AE18="","",HE!AE18) ->  | AC61: =IF(HE!AF18="","",HE!AF18) ->  | AD61: =IF(HE!AG18="","",HE!AG18) ->  | AE61: =IF(HE!AH18="","",HE!AH18) ->  | AF61: =IF(HE!AI18="","",HE!AI18) ->  | AG61: =IF(HE!AJ18="","",HE!AJ18) ->  | AH61: =IF(HE!AK18="","",HE!AK18) ->  | AI61: =IF(HE!AL18="","",HE!AL18) ->  | AJ61: =IF(HE!AM18="","",HE!AM18) ->  | AK61: =IF(HE!AN18="","",HE!AN18) ->  | AL61: =IF(HE!AO18="","",HE!AO18) ->  | AM61: =IF(HE!AP18="","",HE!AP18) -> 
D62: Criterio Evaluación 7.2 | E62: =IF(HE!H19="","",HE!H19) ->  | F62: =IF(HE!I19="","",HE!I19) ->  | G62: =IF(HE!J19="","",HE!J19) ->  | H62: =IF(HE!K19="","",HE!K19) ->  | I62: =IF(HE!L19="","",HE!L19) ->  | J62: =IF(HE!M19="","",HE!M19) ->  | K62: =IF(HE!N19="","",HE!N19) ->  | L62: =IF(HE!O19="","",HE!O19) ->  | M62: =IF(HE!P19="","",HE!P19) ->  | N62: =IF(HE!Q19="","",HE!Q19) ->  | O62: =IF(HE!R19="","",HE!R19) ->  | P62: =IF(HE!S19="","",HE!S19) ->  | Q62: =IF(HE!T19="","",HE!T19) ->  | R62: =IF(HE!U19="","",HE!U19) ->  | S62: =IF(HE!V19="","",HE!V19) ->  | T62: =IF(HE!W19="","",HE!W19) ->  | U62: =IF(HE!X19="","",HE!X19) ->  | V62: =IF(HE!Y19="","",HE!Y19) ->  | W62: =IF(HE!Z19="","",HE!Z19) ->  | X62: =IF(HE!AA19="","",HE!AA19) ->  | Y62: =IF(HE!AB19="","",HE!AB19) ->  | Z62: =IF(HE!AC19="","",HE!AC19) ->  | AA62: =IF(HE!AD19="","",HE!AD19) ->  | AB62: =IF(HE!AE19="","",HE!AE19) ->  | AC62: =IF(HE!AF19="","",HE!AF19) ->  | AD62: =IF(HE!AG19="","",HE!AG19) ->  | AE62: =IF(HE!AH19="","",HE!AH19) ->  | AF62: =IF(HE!AI19="","",HE!AI19) ->  | AG62: =IF(HE!AJ19="","",HE!AJ19) ->  | AH62: =IF(HE!AK19="","",HE!AK19) ->  | AI62: =IF(HE!AL19="","",HE!AL19) ->  | AJ62: =IF(HE!AM19="","",HE!AM19) ->  | AK62: =IF(HE!AN19="","",HE!AN19) ->  | AL62: =IF(HE!AO19="","",HE!AO19) ->  | AM62: =IF(HE!AP19="","",HE!AP19) -> 
C63: Comp. Esp. 8 | D63: Criterio Evaluación 8.1 | E63: =IF(HE!H20="","",HE!H20) ->  | F63: =IF(HE!I20="","",HE!I20) ->  | G63: =IF(HE!J20="","",HE!J20) ->  | H63: =IF(HE!K20="","",HE!K20) ->  | I63: =IF(HE!L20="","",HE!L20) ->  | J63: =IF(HE!M20="","",HE!M20) ->  | K63: =IF(HE!N20="","",HE!N20) ->  | L63: =IF(HE!O20="","",HE!O20) ->  | M63: =IF(HE!P20="","",HE!P20) ->  | N63: =IF(HE!Q20="","",HE!Q20) ->  | O63: =IF(HE!R20="","",HE!R20) ->  | P63: =IF(HE!S20="","",HE!S20) ->  | Q63: =IF(HE!T20="","",HE!T20) ->  | R63: =IF(HE!U20="","",HE!U20) ->  | S63: =IF(HE!V20="","",HE!V20) ->  | T63: =IF(HE!W20="","",HE!W20) ->  | U63: =IF(HE!X20="","",HE!X20) ->  | V63: =IF(HE!Y20="","",HE!Y20) ->  | W63: =IF(HE!Z20="","",HE!Z20) ->  | X63: =IF(HE!AA20="","",HE!AA20) ->  | Y63: =IF(HE!AB20="","",HE!AB20) ->  | Z63: =IF(HE!AC20="","",HE!AC20) ->  | AA63: =IF(HE!AD20="","",HE!AD20) ->  | AB63: =IF(HE!AE20="","",HE!AE20) ->  | AC63: =IF(HE!AF20="","",HE!AF20) ->  | AD63: =IF(HE!AG20="","",HE!AG20) ->  | AE63: =IF(HE!AH20="","",HE!AH20) ->  | AF63: =IF(HE!AI20="","",HE!AI20) ->  | AG63: =IF(HE!AJ20="","",HE!AJ20) ->  | AH63: =IF(HE!AK20="","",HE!AK20) ->  | AI63: =IF(HE!AL20="","",HE!AL20) ->  | AJ63: =IF(HE!AM20="","",HE!AM20) ->  | AK63: =IF(HE!AN20="","",HE!AN20) ->  | AL63: =IF(HE!AO20="","",HE!AO20) ->  | AM63: =IF(HE!AP20="","",HE!AP20) -> 
B64: Historia de la Filosofía | C64: Comp. Esp. 1 | D64: Criterio Evaluación 1.1 | E64: =IF(HF!H4="","",HF!H4) ->  | F64: =IF(HF!I4="","",HF!I4) ->  | G64: =IF(HF!J4="","",HF!J4) ->  | H64: =IF(HF!K4="","",HF!K4) ->  | I64: =IF(HF!L4="","",HF!L4) ->  | J64: =IF(HF!M4="","",HF!M4) ->  | K64: =IF(HF!N4="","",HF!N4) ->  | L64: =IF(HF!O4="","",HF!O4) ->  | M64: =IF(HF!P4="","",HF!P4) ->  | N64: =IF(HF!Q4="","",HF!Q4) ->  | O64: =IF(HF!R4="","",HF!R4) ->  | P64: =IF(HF!S4="","",HF!S4) ->  | Q64: =IF(HF!T4="","",HF!T4) ->  | R64: =IF(HF!U4="","",HF!U4) ->  | S64: =IF(HF!V4="","",HF!V4) ->  | T64: =IF(HF!W4="","",HF!W4) ->  | U64: =IF(HF!X4="","",HF!X4) ->  | V64: =IF(HF!Y4="","",HF!Y4) ->  | W64: =IF(HF!Z4="","",HF!Z4) ->  | X64: =IF(HF!AA4="","",HF!AA4) ->  | Y64: =IF(HF!AB4="","",HF!AB4) ->  | Z64: =IF(HF!AC4="","",HF!AC4) ->  | AA64: =IF(HF!AD4="","",HF!AD4) ->  | AB64: =IF(HF!AE4="","",HF!AE4) ->  | AC64: =IF(HF!AF4="","",HF!AF4) ->  | AD64: =IF(HF!AG4="","",HF!AG4) ->  | AE64: =IF(HF!AH4="","",HF!AH4) ->  | AF64: =IF(HF!AI4="","",HF!AI4) ->  | AG64: =IF(HF!AJ4="","",HF!AJ4) ->  | AH64: =IF(HF!AK4="","",HF!AK4) ->  | AI64: =IF(HF!AL4="","",HF!AL4) ->  | AJ64: =IF(HF!AM4="","",HF!AM4) ->  | AK64: =IF(HF!AN4="","",HF!AN4) ->  | AL64: =IF(HF!AO4="","",HF!AO4) ->  | AM64: =IF(HF!AP4="","",HF!AP4) -> 
D65: Criterio Evaluación 1.2 | E65: =IF(HF!H5="","",HF!H5) ->  | F65: =IF(HF!I5="","",HF!I5) ->  | G65: =IF(HF!J5="","",HF!J5) ->  | H65: =IF(HF!K5="","",HF!K5) ->  | I65: =IF(HF!L5="","",HF!L5) ->  | J65: =IF(HF!M5="","",HF!M5) ->  | K65: =IF(HF!N5="","",HF!N5) ->  | L65: =IF(HF!O5="","",HF!O5) ->  | M65: =IF(HF!P5="","",HF!P5) ->  | N65: =IF(HF!Q5="","",HF!Q5) ->  | O65: =IF(HF!R5="","",HF!R5) ->  | P65: =IF(HF!S5="","",HF!S5) ->  | Q65: =IF(HF!T5="","",HF!T5) ->  | R65: =IF(HF!U5="","",HF!U5) ->  | S65: =IF(HF!V5="","",HF!V5) ->  | T65: =IF(HF!W5="","",HF!W5) ->  | U65: =IF(HF!X5="","",HF!X5) ->  | V65: =IF(HF!Y5="","",HF!Y5) ->  | W65: =IF(HF!Z5="","",HF!Z5) ->  | X65: =IF(HF!AA5="","",HF!AA5) ->  | Y65: =IF(HF!AB5="","",HF!AB5) ->  | Z65: =IF(HF!AC5="","",HF!AC5) ->  | AA65: =IF(HF!AD5="","",HF!AD5) ->  | AB65: =IF(HF!AE5="","",HF!AE5) ->  | AC65: =IF(HF!AF5="","",HF!AF5) ->  | AD65: =IF(HF!AG5="","",HF!AG5) ->  | AE65: =IF(HF!AH5="","",HF!AH5) ->  | AF65: =IF(HF!AI5="","",HF!AI5) ->  | AG65: =IF(HF!AJ5="","",HF!AJ5) ->  | AH65: =IF(HF!AK5="","",HF!AK5) ->  | AI65: =IF(HF!AL5="","",HF!AL5) ->  | AJ65: =IF(HF!AM5="","",HF!AM5) ->  | AK65: =IF(HF!AN5="","",HF!AN5) ->  | AL65: =IF(HF!AO5="","",HF!AO5) ->  | AM65: =IF(HF!AP5="","",HF!AP5) -> 
C66: Comp. Esp. 2 | D66: Criterio Evaluación 2.1 | E66: =IF(HF!H6="","",HF!H6) ->  | F66: =IF(HF!I6="","",HF!I6) ->  | G66: =IF(HF!J6="","",HF!J6) ->  | H66: =IF(HF!K6="","",HF!K6) ->  | I66: =IF(HF!L6="","",HF!L6) ->  | J66: =IF(HF!M6="","",HF!M6) ->  | K66: =IF(HF!N6="","",HF!N6) ->  | L66: =IF(HF!O6="","",HF!O6) ->  | M66: =IF(HF!P6="","",HF!P6) ->  | N66: =IF(HF!Q6="","",HF!Q6) ->  | O66: =IF(HF!R6="","",HF!R6) ->  | P66: =IF(HF!S6="","",HF!S6) ->  | Q66: =IF(HF!T6="","",HF!T6) ->  | R66: =IF(HF!U6="","",HF!U6) ->  | S66: =IF(HF!V6="","",HF!V6) ->  | T66: =IF(HF!W6="","",HF!W6) ->  | U66: =IF(HF!X6="","",HF!X6) ->  | V66: =IF(HF!Y6="","",HF!Y6) ->  | W66: =IF(HF!Z6="","",HF!Z6) ->  | X66: =IF(HF!AA6="","",HF!AA6) ->  | Y66: =IF(HF!AB6="","",HF!AB6) ->  | Z66: =IF(HF!AC6="","",HF!AC6) ->  | AA66: =IF(HF!AD6="","",HF!AD6) ->  | AB66: =IF(HF!AE6="","",HF!AE6) ->  | AC66: =IF(HF!AF6="","",HF!AF6) ->  | AD66: =IF(HF!AG6="","",HF!AG6) ->  | AE66: =IF(HF!AH6="","",HF!AH6) ->  | AF66: =IF(HF!AI6="","",HF!AI6) ->  | AG66: =IF(HF!AJ6="","",HF!AJ6) ->  | AH66: =IF(HF!AK6="","",HF!AK6) ->  | AI66: =IF(HF!AL6="","",HF!AL6) ->  | AJ66: =IF(HF!AM6="","",HF!AM6) ->  | AK66: =IF(HF!AN6="","",HF!AN6) ->  | AL66: =IF(HF!AO6="","",HF!AO6) ->  | AM66: =IF(HF!AP6="","",HF!AP6) -> 
D67: Criterio Evaluación 2.2 | E67: =IF(HF!H7="","",HF!H7) ->  | F67: =IF(HF!I7="","",HF!I7) ->  | G67: =IF(HF!J7="","",HF!J7) ->  | H67: =IF(HF!K7="","",HF!K7) ->  | I67: =IF(HF!L7="","",HF!L7) ->  | J67: =IF(HF!M7="","",HF!M7) ->  | K67: =IF(HF!N7="","",HF!N7) ->  | L67: =IF(HF!O7="","",HF!O7) ->  | M67: =IF(HF!P7="","",HF!P7) ->  | N67: =IF(HF!Q7="","",HF!Q7) ->  | O67: =IF(HF!R7="","",HF!R7) ->  | P67: =IF(HF!S7="","",HF!S7) ->  | Q67: =IF(HF!T7="","",HF!T7) ->  | R67: =IF(HF!U7="","",HF!U7) ->  | S67: =IF(HF!V7="","",HF!V7) ->  | T67: =IF(HF!W7="","",HF!W7) ->  | U67: =IF(HF!X7="","",HF!X7) ->  | V67: =IF(HF!Y7="","",HF!Y7) ->  | W67: =IF(HF!Z7="","",HF!Z7) ->  | X67: =IF(HF!AA7="","",HF!AA7) ->  | Y67: =IF(HF!AB7="","",HF!AB7) ->  | Z67: =IF(HF!AC7="","",HF!AC7) ->  | AA67: =IF(HF!AD7="","",HF!AD7) ->  | AB67: =IF(HF!AE7="","",HF!AE7) ->  | AC67: =IF(HF!AF7="","",HF!AF7) ->  | AD67: =IF(HF!AG7="","",HF!AG7) ->  | AE67: =IF(HF!AH7="","",HF!AH7) ->  | AF67: =IF(HF!AI7="","",HF!AI7) ->  | AG67: =IF(HF!AJ7="","",HF!AJ7) ->  | AH67: =IF(HF!AK7="","",HF!AK7) ->  | AI67: =IF(HF!AL7="","",HF!AL7) ->  | AJ67: =IF(HF!AM7="","",HF!AM7) ->  | AK67: =IF(HF!AN7="","",HF!AN7) ->  | AL67: =IF(HF!AO7="","",HF!AO7) ->  | AM67: =IF(HF!AP7="","",HF!AP7) -> 
C68: Comp. Esp. 3 | D68: Criterio Evaluación 3.1 | E68: =IF(HF!H8="","",HF!H8) ->  | F68: =IF(HF!I8="","",HF!I8) ->  | G68: =IF(HF!J8="","",HF!J8) ->  | H68: =IF(HF!K8="","",HF!K8) ->  | I68: =IF(HF!L8="","",HF!L8) ->  | J68: =IF(HF!M8="","",HF!M8) ->  | K68: =IF(HF!N8="","",HF!N8) ->  | L68: =IF(HF!O8="","",HF!O8) ->  | M68: =IF(HF!P8="","",HF!P8) ->  | N68: =IF(HF!Q8="","",HF!Q8) ->  | O68: =IF(HF!R8="","",HF!R8) ->  | P68: =IF(HF!S8="","",HF!S8) ->  | Q68: =IF(HF!T8="","",HF!T8) ->  | R68: =IF(HF!U8="","",HF!U8) ->  | S68: =IF(HF!V8="","",HF!V8) ->  | T68: =IF(HF!W8="","",HF!W8) ->  | U68: =IF(HF!X8="","",HF!X8) ->  | V68: =IF(HF!Y8="","",HF!Y8) ->  | W68: =IF(HF!Z8="","",HF!Z8) ->  | X68: =IF(HF!AA8="","",HF!AA8) ->  | Y68: =IF(HF!AB8="","",HF!AB8) ->  | Z68: =IF(HF!AC8="","",HF!AC8) ->  | AA68: =IF(HF!AD8="","",HF!AD8) ->  | AB68: =IF(HF!AE8="","",HF!AE8) ->  | AC68: =IF(HF!AF8="","",HF!AF8) ->  | AD68: =IF(HF!AG8="","",HF!AG8) ->  | AE68: =IF(HF!AH8="","",HF!AH8) ->  | AF68: =IF(HF!AI8="","",HF!AI8) ->  | AG68: =IF(HF!AJ8="","",HF!AJ8) ->  | AH68: =IF(HF!AK8="","",HF!AK8) ->  | AI68: =IF(HF!AL8="","",HF!AL8) ->  | AJ68: =IF(HF!AM8="","",HF!AM8) ->  | AK68: =IF(HF!AN8="","",HF!AN8) ->  | AL68: =IF(HF!AO8="","",HF!AO8) ->  | AM68: =IF(HF!AP8="","",HF!AP8) -> 
D69: Criterio Evaluación 3.2 | E69: =IF(HF!H9="","",HF!H9) ->  | F69: =IF(HF!I9="","",HF!I9) ->  | G69: =IF(HF!J9="","",HF!J9) ->  | H69: =IF(HF!K9="","",HF!K9) ->  | I69: =IF(HF!L9="","",HF!L9) ->  | J69: =IF(HF!M9="","",HF!M9) ->  | K69: =IF(HF!N9="","",HF!N9) ->  | L69: =IF(HF!O9="","",HF!O9) ->  | M69: =IF(HF!P9="","",HF!P9) ->  | N69: =IF(HF!Q9="","",HF!Q9) ->  | O69: =IF(HF!R9="","",HF!R9) ->  | P69: =IF(HF!S9="","",HF!S9) ->  | Q69: =IF(HF!T9="","",HF!T9) ->  | R69: =IF(HF!U9="","",HF!U9) ->  | S69: =IF(HF!V9="","",HF!V9) ->  | T69: =IF(HF!W9="","",HF!W9) ->  | U69: =IF(HF!X9="","",HF!X9) ->  | V69: =IF(HF!Y9="","",HF!Y9) ->  | W69: =IF(HF!Z9="","",HF!Z9) ->  | X69: =IF(HF!AA9="","",HF!AA9) ->  | Y69: =IF(HF!AB9="","",HF!AB9) ->  | Z69: =IF(HF!AC9="","",HF!AC9) ->  | AA69: =IF(HF!AD9="","",HF!AD9) ->  | AB69: =IF(HF!AE9="","",HF!AE9) ->  | AC69: =IF(HF!AF9="","",HF!AF9) ->  | AD69: =IF(HF!AG9="","",HF!AG9) ->  | AE69: =IF(HF!AH9="","",HF!AH9) ->  | AF69: =IF(HF!AI9="","",HF!AI9) ->  | AG69: =IF(HF!AJ9="","",HF!AJ9) ->  | AH69: =IF(HF!AK9="","",HF!AK9) ->  | AI69: =IF(HF!AL9="","",HF!AL9) ->  | AJ69: =IF(HF!AM9="","",HF!AM9) ->  | AK69: =IF(HF!AN9="","",HF!AN9) ->  | AL69: =IF(HF!AO9="","",HF!AO9) ->  | AM69: =IF(HF!AP9="","",HF!AP9) -> 
C70: Comp. Esp. 4 | D70: Criterio Evaluación 4.1 | E70: =IF(HF!H10="","",HF!H10) ->  | F70: =IF(HF!I10="","",HF!I10) ->  | G70: =IF(HF!J10="","",HF!J10) ->  | H70: =IF(HF!K10="","",HF!K10) ->  | I70: =IF(HF!L10="","",HF!L10) ->  | J70: =IF(HF!M10="","",HF!M10) ->  | K70: =IF(HF!N10="","",HF!N10) ->  | L70: =IF(HF!O10="","",HF!O10) ->  | M70: =IF(HF!P10="","",HF!P10) ->  | N70: =IF(HF!Q10="","",HF!Q10) ->  | O70: =IF(HF!R10="","",HF!R10) ->  | P70: =IF(HF!S10="","",HF!S10) ->  | Q70: =IF(HF!T10="","",HF!T10) ->  | R70: =IF(HF!U10="","",HF!U10) ->  | S70: =IF(HF!V10="","",HF!V10) ->  | T70: =IF(HF!W10="","",HF!W10) ->  | U70: =IF(HF!X10="","",HF!X10) ->  | V70: =IF(HF!Y10="","",HF!Y10) ->  | W70: =IF(HF!Z10="","",HF!Z10) ->  | X70: =IF(HF!AA10="","",HF!AA10) ->  | Y70: =IF(HF!AB10="","",HF!AB10) ->  | Z70: =IF(HF!AC10="","",HF!AC10) ->  | AA70: =IF(HF!AD10="","",HF!AD10) ->  | AB70: =IF(HF!AE10="","",HF!AE10) ->  | AC70: =IF(HF!AF10="","",HF!AF10) ->  | AD70: =IF(HF!AG10="","",HF!AG10) ->  | AE70: =IF(HF!AH10="","",HF!AH10) ->  | AF70: =IF(HF!AI10="","",HF!AI10) ->  | AG70: =IF(HF!AJ10="","",HF!AJ10) ->  | AH70: =IF(HF!AK10="","",HF!AK10) ->  | AI70: =IF(HF!AL10="","",HF!AL10) ->  | AJ70: =IF(HF!AM10="","",HF!AM10) ->  | AK70: =IF(HF!AN10="","",HF!AN10) ->  | AL70: =IF(HF!AO10="","",HF!AO10) ->  | AM70: =IF(HF!AP10="","",HF!AP10) -> 
D71: Criterio Evaluación 4.2 | E71: =IF(HF!H11="","",HF!H11) ->  | F71: =IF(HF!I11="","",HF!I11) ->  | G71: =IF(HF!J11="","",HF!J11) ->  | H71: =IF(HF!K11="","",HF!K11) ->  | I71: =IF(HF!L11="","",HF!L11) ->  | J71: =IF(HF!M11="","",HF!M11) ->  | K71: =IF(HF!N11="","",HF!N11) ->  | L71: =IF(HF!O11="","",HF!O11) ->  | M71: =IF(HF!P11="","",HF!P11) ->  | N71: =IF(HF!Q11="","",HF!Q11) ->  | O71: =IF(HF!R11="","",HF!R11) ->  | P71: =IF(HF!S11="","",HF!S11) ->  | Q71: =IF(HF!T11="","",HF!T11) ->  | R71: =IF(HF!U11="","",HF!U11) ->  | S71: =IF(HF!V11="","",HF!V11) ->  | T71: =IF(HF!W11="","",HF!W11) ->  | U71: =IF(HF!X11="","",HF!X11) ->  | V71: =IF(HF!Y11="","",HF!Y11) ->  | W71: =IF(HF!Z11="","",HF!Z11) ->  | X71: =IF(HF!AA11="","",HF!AA11) ->  | Y71: =IF(HF!AB11="","",HF!AB11) ->  | Z71: =IF(HF!AC11="","",HF!AC11) ->  | AA71: =IF(HF!AD11="","",HF!AD11) ->  | AB71: =IF(HF!AE11="","",HF!AE11) ->  | AC71: =IF(HF!AF11="","",HF!AF11) ->  | AD71: =IF(HF!AG11="","",HF!AG11) ->  | AE71: =IF(HF!AH11="","",HF!AH11) ->  | AF71: =IF(HF!AI11="","",HF!AI11) ->  | AG71: =IF(HF!AJ11="","",HF!AJ11) ->  | AH71: =IF(HF!AK11="","",HF!AK11) ->  | AI71: =IF(HF!AL11="","",HF!AL11) ->  | AJ71: =IF(HF!AM11="","",HF!AM11) ->  | AK71: =IF(HF!AN11="","",HF!AN11) ->  | AL71: =IF(HF!AO11="","",HF!AO11) ->  | AM71: =IF(HF!AP11="","",HF!AP11) -> 
C72: Comp. Esp. 5 | D72: Criterio Evaluación 5.1 | E72: =IF(HF!H12="","",HF!H12) ->  | F72: =IF(HF!I12="","",HF!I12) ->  | G72: =IF(HF!J12="","",HF!J12) ->  | H72: =IF(HF!K12="","",HF!K12) ->  | I72: =IF(HF!L12="","",HF!L12) ->  | J72: =IF(HF!M12="","",HF!M12) ->  | K72: =IF(HF!N12="","",HF!N12) ->  | L72: =IF(HF!O12="","",HF!O12) ->  | M72: =IF(HF!P12="","",HF!P12) ->  | N72: =IF(HF!Q12="","",HF!Q12) ->  | O72: =IF(HF!R12="","",HF!R12) ->  | P72: =IF(HF!S12="","",HF!S12) ->  | Q72: =IF(HF!T12="","",HF!T12) ->  | R72: =IF(HF!U12="","",HF!U12) ->  | S72: =IF(HF!V12="","",HF!V12) ->  | T72: =IF(HF!W12="","",HF!W12) ->  | U72: =IF(HF!X12="","",HF!X12) ->  | V72: =IF(HF!Y12="","",HF!Y12) ->  | W72: =IF(HF!Z12="","",HF!Z12) ->  | X72: =IF(HF!AA12="","",HF!AA12) ->  | Y72: =IF(HF!AB12="","",HF!AB12) ->  | Z72: =IF(HF!AC12="","",HF!AC12) ->  | AA72: =IF(HF!AD12="","",HF!AD12) ->  | AB72: =IF(HF!AE12="","",HF!AE12) ->  | AC72: =IF(HF!AF12="","",HF!AF12) ->  | AD72: =IF(HF!AG12="","",HF!AG12) ->  | AE72: =IF(HF!AH12="","",HF!AH12) ->  | AF72: =IF(HF!AI12="","",HF!AI12) ->  | AG72: =IF(HF!AJ12="","",HF!AJ12) ->  | AH72: =IF(HF!AK12="","",HF!AK12) ->  | AI72: =IF(HF!AL12="","",HF!AL12) ->  | AJ72: =IF(HF!AM12="","",HF!AM12) ->  | AK72: =IF(HF!AN12="","",HF!AN12) ->  | AL72: =IF(HF!AO12="","",HF!AO12) ->  | AM72: =IF(HF!AP12="","",HF!AP12) -> 
D73: Criterio Evaluación 5.2 | E73: =IF(HF!H13="","",HF!H13) ->  | F73: =IF(HF!I13="","",HF!I13) ->  | G73: =IF(HF!J13="","",HF!J13) ->  | H73: =IF(HF!K13="","",HF!K13) ->  | I73: =IF(HF!L13="","",HF!L13) ->  | J73: =IF(HF!M13="","",HF!M13) ->  | K73: =IF(HF!N13="","",HF!N13) ->  | L73: =IF(HF!O13="","",HF!O13) ->  | M73: =IF(HF!P13="","",HF!P13) ->  | N73: =IF(HF!Q13="","",HF!Q13) ->  | O73: =IF(HF!R13="","",HF!R13) ->  | P73: =IF(HF!S13="","",HF!S13) ->  | Q73: =IF(HF!T13="","",HF!T13) ->  | R73: =IF(HF!U13="","",HF!U13) ->  | S73: =IF(HF!V13="","",HF!V13) ->  | T73: =IF(HF!W13="","",HF!W13) ->  | U73: =IF(HF!X13="","",HF!X13) ->  | V73: =IF(HF!Y13="","",HF!Y13) ->  | W73: =IF(HF!Z13="","",HF!Z13) ->  | X73: =IF(HF!AA13="","",HF!AA13) ->  | Y73: =IF(HF!AB13="","",HF!AB13) ->  | Z73: =IF(HF!AC13="","",HF!AC13) ->  | AA73: =IF(HF!AD13="","",HF!AD13) ->  | AB73: =IF(HF!AE13="","",HF!AE13) ->  | AC73: =IF(HF!AF13="","",HF!AF13) ->  | AD73: =IF(HF!AG13="","",HF!AG13) ->  | AE73: =IF(HF!AH13="","",HF!AH13) ->  | AF73: =IF(HF!AI13="","",HF!AI13) ->  | AG73: =IF(HF!AJ13="","",HF!AJ13) ->  | AH73: =IF(HF!AK13="","",HF!AK13) ->  | AI73: =IF(HF!AL13="","",HF!AL13) ->  | AJ73: =IF(HF!AM13="","",HF!AM13) ->  | AK73: =IF(HF!AN13="","",HF!AN13) ->  | AL73: =IF(HF!AO13="","",HF!AO13) ->  | AM73: =IF(HF!AP13="","",HF!AP13) -> 
C74: Comp. Esp. 6 | D74: Criterio Evaluación 6.1 | E74: =IF(HF!H14="","",HF!H14) ->  | F74: =IF(HF!I14="","",HF!I14) ->  | G74: =IF(HF!J14="","",HF!J14) ->  | H74: =IF(HF!K14="","",HF!K14) ->  | I74: =IF(HF!L14="","",HF!L14) ->  | J74: =IF(HF!M14="","",HF!M14) ->  | K74: =IF(HF!N14="","",HF!N14) ->  | L74: =IF(HF!O14="","",HF!O14) ->  | M74: =IF(HF!P14="","",HF!P14) ->  | N74: =IF(HF!Q14="","",HF!Q14) ->  | O74: =IF(HF!R14="","",HF!R14) ->  | P74: =IF(HF!S14="","",HF!S14) ->  | Q74: =IF(HF!T14="","",HF!T14) ->  | R74: =IF(HF!U14="","",HF!U14) ->  | S74: =IF(HF!V14="","",HF!V14) ->  | T74: =IF(HF!W14="","",HF!W14) ->  | U74: =IF(HF!X14="","",HF!X14) ->  | V74: =IF(HF!Y14="","",HF!Y14) ->  | W74: =IF(HF!Z14="","",HF!Z14) ->  | X74: =IF(HF!AA14="","",HF!AA14) ->  | Y74: =IF(HF!AB14="","",HF!AB14) ->  | Z74: =IF(HF!AC14="","",HF!AC14) ->  | AA74: =IF(HF!AD14="","",HF!AD14) ->  | AB74: =IF(HF!AE14="","",HF!AE14) ->  | AC74: =IF(HF!AF14="","",HF!AF14) ->  | AD74: =IF(HF!AG14="","",HF!AG14) ->  | AE74: =IF(HF!AH14="","",HF!AH14) ->  | AF74: =IF(HF!AI14="","",HF!AI14) ->  | AG74: =IF(HF!AJ14="","",HF!AJ14) ->  | AH74: =IF(HF!AK14="","",HF!AK14) ->  | AI74: =IF(HF!AL14="","",HF!AL14) ->  | AJ74: =IF(HF!AM14="","",HF!AM14) ->  | AK74: =IF(HF!AN14="","",HF!AN14) ->  | AL74: =IF(HF!AO14="","",HF!AO14) ->  | AM74: =IF(HF!AP14="","",HF!AP14) -> 
C75: Comp. Esp. 7 | D75: Criterio Evaluación 7.1 | E75: =IF(HF!H15="","",HF!H15) ->  | F75: =IF(HF!I15="","",HF!I15) ->  | G75: =IF(HF!J15="","",HF!J15) ->  | H75: =IF(HF!K15="","",HF!K15) ->  | I75: =IF(HF!L15="","",HF!L15) ->  | J75: =IF(HF!M15="","",HF!M15) ->  | K75: =IF(HF!N15="","",HF!N15) ->  | L75: =IF(HF!O15="","",HF!O15) ->  | M75: =IF(HF!P15="","",HF!P15) ->  | N75: =IF(HF!Q15="","",HF!Q15) ->  | O75: =IF(HF!R15="","",HF!R15) ->  | P75: =IF(HF!S15="","",HF!S15) ->  | Q75: =IF(HF!T15="","",HF!T15) ->  | R75: =IF(HF!U15="","",HF!U15) ->  | S75: =IF(HF!V15="","",HF!V15) ->  | T75: =IF(HF!W15="","",HF!W15) ->  | U75: =IF(HF!X15="","",HF!X15) ->  | V75: =IF(HF!Y15="","",HF!Y15) ->  | W75: =IF(HF!Z15="","",HF!Z15) ->  | X75: =IF(HF!AA15="","",HF!AA15) ->  | Y75: =IF(HF!AB15="","",HF!AB15) ->  | Z75: =IF(HF!AC15="","",HF!AC15) ->  | AA75: =IF(HF!AD15="","",HF!AD15) ->  | AB75: =IF(HF!AE15="","",HF!AE15) ->  | AC75: =IF(HF!AF15="","",HF!AF15) ->  | AD75: =IF(HF!AG15="","",HF!AG15) ->  | AE75: =IF(HF!AH15="","",HF!AH15) ->  | AF75: =IF(HF!AI15="","",HF!AI15) ->  | AG75: =IF(HF!AJ15="","",HF!AJ15) ->  | AH75: =IF(HF!AK15="","",HF!AK15) ->  | AI75: =IF(HF!AL15="","",HF!AL15) ->  | AJ75: =IF(HF!AM15="","",HF!AM15) ->  | AK75: =IF(HF!AN15="","",HF!AN15) ->  | AL75: =IF(HF!AO15="","",HF!AO15) ->  | AM75: =IF(HF!AP15="","",HF!AP15) -> 
D76: Criterio Evaluación 7.2 | E76: =IF(HF!H16="","",HF!H16) ->  | F76: =IF(HF!I16="","",HF!I16) ->  | G76: =IF(HF!J16="","",HF!J16) ->  | H76: =IF(HF!K16="","",HF!K16) ->  | I76: =IF(HF!L16="","",HF!L16) ->  | J76: =IF(HF!M16="","",HF!M16) ->  | K76: =IF(HF!N16="","",HF!N16) ->  | L76: =IF(HF!O16="","",HF!O16) ->  | M76: =IF(HF!P16="","",HF!P16) ->  | N76: =IF(HF!Q16="","",HF!Q16) ->  | O76: =IF(HF!R16="","",HF!R16) ->  | P76: =IF(HF!S16="","",HF!S16) ->  | Q76: =IF(HF!T16="","",HF!T16) ->  | R76: =IF(HF!U16="","",HF!U16) ->  | S76: =IF(HF!V16="","",HF!V16) ->  | T76: =IF(HF!W16="","",HF!W16) ->  | U76: =IF(HF!X16="","",HF!X16) ->  | V76: =IF(HF!Y16="","",HF!Y16) ->  | W76: =IF(HF!Z16="","",HF!Z16) ->  | X76: =IF(HF!AA16="","",HF!AA16) ->  | Y76: =IF(HF!AB16="","",HF!AB16) ->  | Z76: =IF(HF!AC16="","",HF!AC16) ->  | AA76: =IF(HF!AD16="","",HF!AD16) ->  | AB76: =IF(HF!AE16="","",HF!AE16) ->  | AC76: =IF(HF!AF16="","",HF!AF16) ->  | AD76: =IF(HF!AG16="","",HF!AG16) ->  | AE76: =IF(HF!AH16="","",HF!AH16) ->  | AF76: =IF(HF!AI16="","",HF!AI16) ->  | AG76: =IF(HF!AJ16="","",HF!AJ16) ->  | AH76: =IF(HF!AK16="","",HF!AK16) ->  | AI76: =IF(HF!AL16="","",HF!AL16) ->  | AJ76: =IF(HF!AM16="","",HF!AM16) ->  | AK76: =IF(HF!AN16="","",HF!AN16) ->  | AL76: =IF(HF!AO16="","",HF!AO16) ->  | AM76: =IF(HF!AP16="","",HF!AP16) -> 
B77: Historia de la Música y de la Danza | C77: Comp. Esp. 1 | D77: Criterio Evaluación 1.1 | E77: =IF(HMD!H4="","",HMD!H4) ->  | F77: =IF(HMD!I4="","",HMD!I4) ->  | G77: =IF(HMD!J4="","",HMD!J4) ->  | H77: =IF(HMD!K4="","",HMD!K4) ->  | I77: =IF(HMD!L4="","",HMD!L4) ->  | J77: =IF(HMD!M4="","",HMD!M4) ->  | K77: =IF(HMD!N4="","",HMD!N4) ->  | L77: =IF(HMD!O4="","",HMD!O4) ->  | M77: =IF(HMD!P4="","",HMD!P4) ->  | N77: =IF(HMD!Q4="","",HMD!Q4) ->  | O77: =IF(HMD!R4="","",HMD!R4) ->  | P77: =IF(HMD!S4="","",HMD!S4) ->  | Q77: =IF(HMD!T4="","",HMD!T4) ->  | R77: =IF(HMD!U4="","",HMD!U4) ->  | S77: =IF(HMD!V4="","",HMD!V4) ->  | T77: =IF(HMD!W4="","",HMD!W4) ->  | U77: =IF(HMD!X4="","",HMD!X4) ->  | V77: =IF(HMD!Y4="","",HMD!Y4) ->  | W77: =IF(HMD!Z4="","",HMD!Z4) ->  | X77: =IF(HMD!AA4="","",HMD!AA4) ->  | Y77: =IF(HMD!AB4="","",HMD!AB4) ->  | Z77: =IF(HMD!AC4="","",HMD!AC4) ->  | AA77: =IF(HMD!AD4="","",HMD!AD4) ->  | AB77: =IF(HMD!AE4="","",HMD!AE4) ->  | AC77: =IF(HMD!AF4="","",HMD!AF4) ->  | AD77: =IF(HMD!AG4="","",HMD!AG4) ->  | AE77: =IF(HMD!AH4="","",HMD!AH4) ->  | AF77: =IF(HMD!AI4="","",HMD!AI4) ->  | AG77: =IF(HMD!AJ4="","",HMD!AJ4) ->  | AH77: =IF(HMD!AK4="","",HMD!AK4) ->  | AI77: =IF(HMD!AL4="","",HMD!AL4) ->  | AJ77: =IF(HMD!AM4="","",HMD!AM4) ->  | AK77: =IF(HMD!AN4="","",HMD!AN4) ->  | AL77: =IF(HMD!AO4="","",HMD!AO4) ->  | AM77: =IF(HMD!AP4="","",HMD!AP4) -> 
D78: Criterio Evaluación 1.2 | E78: =IF(HMD!H5="","",HMD!H5) ->  | F78: =IF(HMD!I5="","",HMD!I5) ->  | G78: =IF(HMD!J5="","",HMD!J5) ->  | H78: =IF(HMD!K5="","",HMD!K5) ->  | I78: =IF(HMD!L5="","",HMD!L5) ->  | J78: =IF(HMD!M5="","",HMD!M5) ->  | K78: =IF(HMD!N5="","",HMD!N5) ->  | L78: =IF(HMD!O5="","",HMD!O5) ->  | M78: =IF(HMD!P5="","",HMD!P5) ->  | N78: =IF(HMD!Q5="","",HMD!Q5) ->  | O78: =IF(HMD!R5="","",HMD!R5) ->  | P78: =IF(HMD!S5="","",HMD!S5) ->  | Q78: =IF(HMD!T5="","",HMD!T5) ->  | R78: =IF(HMD!U5="","",HMD!U5) ->  | S78: =IF(HMD!V5="","",HMD!V5) ->  | T78: =IF(HMD!W5="","",HMD!W5) ->  | U78: =IF(HMD!X5="","",HMD!X5) ->  | V78: =IF(HMD!Y5="","",HMD!Y5) ->  | W78: =IF(HMD!Z5="","",HMD!Z5) ->  | X78: =IF(HMD!AA5="","",HMD!AA5) ->  | Y78: =IF(HMD!AB5="","",HMD!AB5) ->  | Z78: =IF(HMD!AC5="","",HMD!AC5) ->  | AA78: =IF(HMD!AD5="","",HMD!AD5) ->  | AB78: =IF(HMD!AE5="","",HMD!AE5) ->  | AC78: =IF(HMD!AF5="","",HMD!AF5) ->  | AD78: =IF(HMD!AG5="","",HMD!AG5) ->  | AE78: =IF(HMD!AH5="","",HMD!AH5) ->  | AF78: =IF(HMD!AI5="","",HMD!AI5) ->  | AG78: =IF(HMD!AJ5="","",HMD!AJ5) ->  | AH78: =IF(HMD!AK5="","",HMD!AK5) ->  | AI78: =IF(HMD!AL5="","",HMD!AL5) ->  | AJ78: =IF(HMD!AM5="","",HMD!AM5) ->  | AK78: =IF(HMD!AN5="","",HMD!AN5) ->  | AL78: =IF(HMD!AO5="","",HMD!AO5) ->  | AM78: =IF(HMD!AP5="","",HMD!AP5) -> 
D79: Criterio Evaluación 1.3 | E79: =IF(HMD!H6="","",HMD!H6) ->  | F79: =IF(HMD!I6="","",HMD!I6) ->  | G79: =IF(HMD!J6="","",HMD!J6) ->  | H79: =IF(HMD!K6="","",HMD!K6) ->  | I79: =IF(HMD!L6="","",HMD!L6) ->  | J79: =IF(HMD!M6="","",HMD!M6) ->  | K79: =IF(HMD!N6="","",HMD!N6) ->  | L79: =IF(HMD!O6="","",HMD!O6) ->  | M79: =IF(HMD!P6="","",HMD!P6) ->  | N79: =IF(HMD!Q6="","",HMD!Q6) ->  | O79: =IF(HMD!R6="","",HMD!R6) ->  | P79: =IF(HMD!S6="","",HMD!S6) ->  | Q79: =IF(HMD!T6="","",HMD!T6) ->  | R79: =IF(HMD!U6="","",HMD!U6) ->  | S79: =IF(HMD!V6="","",HMD!V6) ->  | T79: =IF(HMD!W6="","",HMD!W6) ->  | U79: =IF(HMD!X6="","",HMD!X6) ->  | V79: =IF(HMD!Y6="","",HMD!Y6) ->  | W79: =IF(HMD!Z6="","",HMD!Z6) ->  | X79: =IF(HMD!AA6="","",HMD!AA6) ->  | Y79: =IF(HMD!AB6="","",HMD!AB6) ->  | Z79: =IF(HMD!AC6="","",HMD!AC6) ->  | AA79: =IF(HMD!AD6="","",HMD!AD6) ->  | AB79: =IF(HMD!AE6="","",HMD!AE6) ->  | AC79: =IF(HMD!AF6="","",HMD!AF6) ->  | AD79: =IF(HMD!AG6="","",HMD!AG6) ->  | AE79: =IF(HMD!AH6="","",HMD!AH6) ->  | AF79: =IF(HMD!AI6="","",HMD!AI6) ->  | AG79: =IF(HMD!AJ6="","",HMD!AJ6) ->  | AH79: =IF(HMD!AK6="","",HMD!AK6) ->  | AI79: =IF(HMD!AL6="","",HMD!AL6) ->  | AJ79: =IF(HMD!AM6="","",HMD!AM6) ->  | AK79: =IF(HMD!AN6="","",HMD!AN6) ->  | AL79: =IF(HMD!AO6="","",HMD!AO6) ->  | AM79: =IF(HMD!AP6="","",HMD!AP6) -> 
D80: Criterio Evaluación 1.4 | E80: =IF(HMD!H7="","",HMD!H7) ->  | F80: =IF(HMD!I7="","",HMD!I7) ->  | G80: =IF(HMD!J7="","",HMD!J7) ->  | H80: =IF(HMD!K7="","",HMD!K7) ->  | I80: =IF(HMD!L7="","",HMD!L7) ->  | J80: =IF(HMD!M7="","",HMD!M7) ->  | K80: =IF(HMD!N7="","",HMD!N7) ->  | L80: =IF(HMD!O7="","",HMD!O7) ->  | M80: =IF(HMD!P7="","",HMD!P7) ->  | N80: =IF(HMD!Q7="","",HMD!Q7) ->  | O80: =IF(HMD!R7="","",HMD!R7) ->  | P80: =IF(HMD!S7="","",HMD!S7) ->  | Q80: =IF(HMD!T7="","",HMD!T7) ->  | R80: =IF(HMD!U7="","",HMD!U7) ->  | S80: =IF(HMD!V7="","",HMD!V7) ->  | T80: =IF(HMD!W7="","",HMD!W7) ->  | U80: =IF(HMD!X7="","",HMD!X7) ->  | V80: =IF(HMD!Y7="","",HMD!Y7) ->  | W80: =IF(HMD!Z7="","",HMD!Z7) ->  | X80: =IF(HMD!AA7="","",HMD!AA7) ->  | Y80: =IF(HMD!AB7="","",HMD!AB7) ->  | Z80: =IF(HMD!AC7="","",HMD!AC7) ->  | AA80: =IF(HMD!AD7="","",HMD!AD7) ->  | AB80: =IF(HMD!AE7="","",HMD!AE7) ->  | AC80: =IF(HMD!AF7="","",HMD!AF7) ->  | AD80: =IF(HMD!AG7="","",HMD!AG7) ->  | AE80: =IF(HMD!AH7="","",HMD!AH7) ->  | AF80: =IF(HMD!AI7="","",HMD!AI7) ->  | AG80: =IF(HMD!AJ7="","",HMD!AJ7) ->  | AH80: =IF(HMD!AK7="","",HMD!AK7) ->  | AI80: =IF(HMD!AL7="","",HMD!AL7) ->  | AJ80: =IF(HMD!AM7="","",HMD!AM7) ->  | AK80: =IF(HMD!AN7="","",HMD!AN7) ->  | AL80: =IF(HMD!AO7="","",HMD!AO7) ->  | AM80: =IF(HMD!AP7="","",HMD!AP7) -> 
C81: Comp. Esp. 2 | D81: Criterio Evaluación 2.1 | E81: =IF(HMD!H8="","",HMD!H8) ->  | F81: =IF(HMD!I8="","",HMD!I8) ->  | G81: =IF(HMD!J8="","",HMD!J8) ->  | H81: =IF(HMD!K8="","",HMD!K8) ->  | I81: =IF(HMD!L8="","",HMD!L8) ->  | J81: =IF(HMD!M8="","",HMD!M8) ->  | K81: =IF(HMD!N8="","",HMD!N8) ->  | L81: =IF(HMD!O8="","",HMD!O8) ->  | M81: =IF(HMD!P8="","",HMD!P8) ->  | N81: =IF(HMD!Q8="","",HMD!Q8) ->  | O81: =IF(HMD!R8="","",HMD!R8) ->  | P81: =IF(HMD!S8="","",HMD!S8) ->  | Q81: =IF(HMD!T8="","",HMD!T8) ->  | R81: =IF(HMD!U8="","",HMD!U8) ->  | S81: =IF(HMD!V8="","",HMD!V8) ->  | T81: =IF(HMD!W8="","",HMD!W8) ->  | U81: =IF(HMD!X8="","",HMD!X8) ->  | V81: =IF(HMD!Y8="","",HMD!Y8) ->  | W81: =IF(HMD!Z8="","",HMD!Z8) ->  | X81: =IF(HMD!AA8="","",HMD!AA8) ->  | Y81: =IF(HMD!AB8="","",HMD!AB8) ->  | Z81: =IF(HMD!AC8="","",HMD!AC8) ->  | AA81: =IF(HMD!AD8="","",HMD!AD8) ->  | AB81: =IF(HMD!AE8="","",HMD!AE8) ->  | AC81: =IF(HMD!AF8="","",HMD!AF8) ->  | AD81: =IF(HMD!AG8="","",HMD!AG8) ->  | AE81: =IF(HMD!AH8="","",HMD!AH8) ->  | AF81: =IF(HMD!AI8="","",HMD!AI8) ->  | AG81: =IF(HMD!AJ8="","",HMD!AJ8) ->  | AH81: =IF(HMD!AK8="","",HMD!AK8) ->  | AI81: =IF(HMD!AL8="","",HMD!AL8) ->  | AJ81: =IF(HMD!AM8="","",HMD!AM8) ->  | AK81: =IF(HMD!AN8="","",HMD!AN8) ->  | AL81: =IF(HMD!AO8="","",HMD!AO8) ->  | AM81: =IF(HMD!AP8="","",HMD!AP8) -> 
D82: Criterio Evaluación 2.2 | E82: =IF(HMD!H9="","",HMD!H9) ->  | F82: =IF(HMD!I9="","",HMD!I9) ->  | G82: =IF(HMD!J9="","",HMD!J9) ->  | H82: =IF(HMD!K9="","",HMD!K9) ->  | I82: =IF(HMD!L9="","",HMD!L9) ->  | J82: =IF(HMD!M9="","",HMD!M9) ->  | K82: =IF(HMD!N9="","",HMD!N9) ->  | L82: =IF(HMD!O9="","",HMD!O9) ->  | M82: =IF(HMD!P9="","",HMD!P9) ->  | N82: =IF(HMD!Q9="","",HMD!Q9) ->  | O82: =IF(HMD!R9="","",HMD!R9) ->  | P82: =IF(HMD!S9="","",HMD!S9) ->  | Q82: =IF(HMD!T9="","",HMD!T9) ->  | R82: =IF(HMD!U9="","",HMD!U9) ->  | S82: =IF(HMD!V9="","",HMD!V9) ->  | T82: =IF(HMD!W9="","",HMD!W9) ->  | U82: =IF(HMD!X9="","",HMD!X9) ->  | V82: =IF(HMD!Y9="","",HMD!Y9) ->  | W82: =IF(HMD!Z9="","",HMD!Z9) ->  | X82: =IF(HMD!AA9="","",HMD!AA9) ->  | Y82: =IF(HMD!AB9="","",HMD!AB9) ->  | Z82: =IF(HMD!AC9="","",HMD!AC9) ->  | AA82: =IF(HMD!AD9="","",HMD!AD9) ->  | AB82: =IF(HMD!AE9="","",HMD!AE9) ->  | AC82: =IF(HMD!AF9="","",HMD!AF9) ->  | AD82: =IF(HMD!AG9="","",HMD!AG9) ->  | AE82: =IF(HMD!AH9="","",HMD!AH9) ->  | AF82: =IF(HMD!AI9="","",HMD!AI9) ->  | AG82: =IF(HMD!AJ9="","",HMD!AJ9) ->  | AH82: =IF(HMD!AK9="","",HMD!AK9) ->  | AI82: =IF(HMD!AL9="","",HMD!AL9) ->  | AJ82: =IF(HMD!AM9="","",HMD!AM9) ->  | AK82: =IF(HMD!AN9="","",HMD!AN9) ->  | AL82: =IF(HMD!AO9="","",HMD!AO9) ->  | AM82: =IF(HMD!AP9="","",HMD!AP9) -> 
D83: Criterio Evaluación 2.3 | E83: =IF(HMD!H10="","",HMD!H10) ->  | F83: =IF(HMD!I10="","",HMD!I10) ->  | G83: =IF(HMD!J10="","",HMD!J10) ->  | H83: =IF(HMD!K10="","",HMD!K10) ->  | I83: =IF(HMD!L10="","",HMD!L10) ->  | J83: =IF(HMD!M10="","",HMD!M10) ->  | K83: =IF(HMD!N10="","",HMD!N10) ->  | L83: =IF(HMD!O10="","",HMD!O10) ->  | M83: =IF(HMD!P10="","",HMD!P10) ->  | N83: =IF(HMD!Q10="","",HMD!Q10) ->  | O83: =IF(HMD!R10="","",HMD!R10) ->  | P83: =IF(HMD!S10="","",HMD!S10) ->  | Q83: =IF(HMD!T10="","",HMD!T10) ->  | R83: =IF(HMD!U10="","",HMD!U10) ->  | S83: =IF(HMD!V10="","",HMD!V10) ->  | T83: =IF(HMD!W10="","",HMD!W10) ->  | U83: =IF(HMD!X10="","",HMD!X10) ->  | V83: =IF(HMD!Y10="","",HMD!Y10) ->  | W83: =IF(HMD!Z10="","",HMD!Z10) ->  | X83: =IF(HMD!AA10="","",HMD!AA10) ->  | Y83: =IF(HMD!AB10="","",HMD!AB10) ->  | Z83: =IF(HMD!AC10="","",HMD!AC10) ->  | AA83: =IF(HMD!AD10="","",HMD!AD10) ->  | AB83: =IF(HMD!AE10="","",HMD!AE10) ->  | AC83: =IF(HMD!AF10="","",HMD!AF10) ->  | AD83: =IF(HMD!AG10="","",HMD!AG10) ->  | AE83: =IF(HMD!AH10="","",HMD!AH10) ->  | AF83: =IF(HMD!AI10="","",HMD!AI10) ->  | AG83: =IF(HMD!AJ10="","",HMD!AJ10) ->  | AH83: =IF(HMD!AK10="","",HMD!AK10) ->  | AI83: =IF(HMD!AL10="","",HMD!AL10) ->  | AJ83: =IF(HMD!AM10="","",HMD!AM10) ->  | AK83: =IF(HMD!AN10="","",HMD!AN10) ->  | AL83: =IF(HMD!AO10="","",HMD!AO10) ->  | AM83: =IF(HMD!AP10="","",HMD!AP10) -> 
D84: Criterio Evaluación 2.4 | E84: =IF(HMD!H11="","",HMD!H11) ->  | F84: =IF(HMD!I11="","",HMD!I11) ->  | G84: =IF(HMD!J11="","",HMD!J11) ->  | H84: =IF(HMD!K11="","",HMD!K11) ->  | I84: =IF(HMD!L11="","",HMD!L11) ->  | J84: =IF(HMD!M11="","",HMD!M11) ->  | K84: =IF(HMD!N11="","",HMD!N11) ->  | L84: =IF(HMD!O11="","",HMD!O11) ->  | M84: =IF(HMD!P11="","",HMD!P11) ->  | N84: =IF(HMD!Q11="","",HMD!Q11) ->  | O84: =IF(HMD!R11="","",HMD!R11) ->  | P84: =IF(HMD!S11="","",HMD!S11) ->  | Q84: =IF(HMD!T11="","",HMD!T11) ->  | R84: =IF(HMD!U11="","",HMD!U11) ->  | S84: =IF(HMD!V11="","",HMD!V11) ->  | T84: =IF(HMD!W11="","",HMD!W11) ->  | U84: =IF(HMD!X11="","",HMD!X11) ->  | V84: =IF(HMD!Y11="","",HMD!Y11) ->  | W84: =IF(HMD!Z11="","",HMD!Z11) ->  | X84: =IF(HMD!AA11="","",HMD!AA11) ->  | Y84: =IF(HMD!AB11="","",HMD!AB11) ->  | Z84: =IF(HMD!AC11="","",HMD!AC11) ->  | AA84: =IF(HMD!AD11="","",HMD!AD11) ->  | AB84: =IF(HMD!AE11="","",HMD!AE11) ->  | AC84: =IF(HMD!AF11="","",HMD!AF11) ->  | AD84: =IF(HMD!AG11="","",HMD!AG11) ->  | AE84: =IF(HMD!AH11="","",HMD!AH11) ->  | AF84: =IF(HMD!AI11="","",HMD!AI11) ->  | AG84: =IF(HMD!AJ11="","",HMD!AJ11) ->  | AH84: =IF(HMD!AK11="","",HMD!AK11) ->  | AI84: =IF(HMD!AL11="","",HMD!AL11) ->  | AJ84: =IF(HMD!AM11="","",HMD!AM11) ->  | AK84: =IF(HMD!AN11="","",HMD!AN11) ->  | AL84: =IF(HMD!AO11="","",HMD!AO11) ->  | AM84: =IF(HMD!AP11="","",HMD!AP11) -> 
C85: Comp. Esp. 3 | D85: Criterio Evaluación 3.1 | E85: =IF(HMD!H12="","",HMD!H12) ->  | F85: =IF(HMD!I12="","",HMD!I12) ->  | G85: =IF(HMD!J12="","",HMD!J12) ->  | H85: =IF(HMD!K12="","",HMD!K12) ->  | I85: =IF(HMD!L12="","",HMD!L12) ->  | J85: =IF(HMD!M12="","",HMD!M12) ->  | K85: =IF(HMD!N12="","",HMD!N12) ->  | L85: =IF(HMD!O12="","",HMD!O12) ->  | M85: =IF(HMD!P12="","",HMD!P12) ->  | N85: =IF(HMD!Q12="","",HMD!Q12) ->  | O85: =IF(HMD!R12="","",HMD!R12) ->  | P85: =IF(HMD!S12="","",HMD!S12) ->  | Q85: =IF(HMD!T12="","",HMD!T12) ->  | R85: =IF(HMD!U12="","",HMD!U12) ->  | S85: =IF(HMD!V12="","",HMD!V12) ->  | T85: =IF(HMD!W12="","",HMD!W12) ->  | U85: =IF(HMD!X12="","",HMD!X12) ->  | V85: =IF(HMD!Y12="","",HMD!Y12) ->  | W85: =IF(HMD!Z12="","",HMD!Z12) ->  | X85: =IF(HMD!AA12="","",HMD!AA12) ->  | Y85: =IF(HMD!AB12="","",HMD!AB12) ->  | Z85: =IF(HMD!AC12="","",HMD!AC12) ->  | AA85: =IF(HMD!AD12="","",HMD!AD12) ->  | AB85: =IF(HMD!AE12="","",HMD!AE12) ->  | AC85: =IF(HMD!AF12="","",HMD!AF12) ->  | AD85: =IF(HMD!AG12="","",HMD!AG12) ->  | AE85: =IF(HMD!AH12="","",HMD!AH12) ->  | AF85: =IF(HMD!AI12="","",HMD!AI12) ->  | AG85: =IF(HMD!AJ12="","",HMD!AJ12) ->  | AH85: =IF(HMD!AK12="","",HMD!AK12) ->  | AI85: =IF(HMD!AL12="","",HMD!AL12) ->  | AJ85: =IF(HMD!AM12="","",HMD!AM12) ->  | AK85: =IF(HMD!AN12="","",HMD!AN12) ->  | AL85: =IF(HMD!AO12="","",HMD!AO12) ->  | AM85: =IF(HMD!AP12="","",HMD!AP12) -> 
D86: Criterio Evaluación 3.2 | E86: =IF(HMD!H13="","",HMD!H13) ->  | F86: =IF(HMD!I13="","",HMD!I13) ->  | G86: =IF(HMD!J13="","",HMD!J13) ->  | H86: =IF(HMD!K13="","",HMD!K13) ->  | I86: =IF(HMD!L13="","",HMD!L13) ->  | J86: =IF(HMD!M13="","",HMD!M13) ->  | K86: =IF(HMD!N13="","",HMD!N13) ->  | L86: =IF(HMD!O13="","",HMD!O13) ->  | M86: =IF(HMD!P13="","",HMD!P13) ->  | N86: =IF(HMD!Q13="","",HMD!Q13) ->  | O86: =IF(HMD!R13="","",HMD!R13) ->  | P86: =IF(HMD!S13="","",HMD!S13) ->  | Q86: =IF(HMD!T13="","",HMD!T13) ->  | R86: =IF(HMD!U13="","",HMD!U13) ->  | S86: =IF(HMD!V13="","",HMD!V13) ->  | T86: =IF(HMD!W13="","",HMD!W13) ->  | U86: =IF(HMD!X13="","",HMD!X13) ->  | V86: =IF(HMD!Y13="","",HMD!Y13) ->  | W86: =IF(HMD!Z13="","",HMD!Z13) ->  | X86: =IF(HMD!AA13="","",HMD!AA13) ->  | Y86: =IF(HMD!AB13="","",HMD!AB13) ->  | Z86: =IF(HMD!AC13="","",HMD!AC13) ->  | AA86: =IF(HMD!AD13="","",HMD!AD13) ->  | AB86: =IF(HMD!AE13="","",HMD!AE13) ->  | AC86: =IF(HMD!AF13="","",HMD!AF13) ->  | AD86: =IF(HMD!AG13="","",HMD!AG13) ->  | AE86: =IF(HMD!AH13="","",HMD!AH13) ->  | AF86: =IF(HMD!AI13="","",HMD!AI13) ->  | AG86: =IF(HMD!AJ13="","",HMD!AJ13) ->  | AH86: =IF(HMD!AK13="","",HMD!AK13) ->  | AI86: =IF(HMD!AL13="","",HMD!AL13) ->  | AJ86: =IF(HMD!AM13="","",HMD!AM13) ->  | AK86: =IF(HMD!AN13="","",HMD!AN13) ->  | AL86: =IF(HMD!AO13="","",HMD!AO13) ->  | AM86: =IF(HMD!AP13="","",HMD!AP13) -> 
D87: Criterio Evaluación 3.3 | E87: =IF(HMD!H14="","",HMD!H14) ->  | F87: =IF(HMD!I14="","",HMD!I14) ->  | G87: =IF(HMD!J14="","",HMD!J14) ->  | H87: =IF(HMD!K14="","",HMD!K14) ->  | I87: =IF(HMD!L14="","",HMD!L14) ->  | J87: =IF(HMD!M14="","",HMD!M14) ->  | K87: =IF(HMD!N14="","",HMD!N14) ->  | L87: =IF(HMD!O14="","",HMD!O14) ->  | M87: =IF(HMD!P14="","",HMD!P14) ->  | N87: =IF(HMD!Q14="","",HMD!Q14) ->  | O87: =IF(HMD!R14="","",HMD!R14) ->  | P87: =IF(HMD!S14="","",HMD!S14) ->  | Q87: =IF(HMD!T14="","",HMD!T14) ->  | R87: =IF(HMD!U14="","",HMD!U14) ->  | S87: =IF(HMD!V14="","",HMD!V14) ->  | T87: =IF(HMD!W14="","",HMD!W14) ->  | U87: =IF(HMD!X14="","",HMD!X14) ->  | V87: =IF(HMD!Y14="","",HMD!Y14) ->  | W87: =IF(HMD!Z14="","",HMD!Z14) ->  | X87: =IF(HMD!AA14="","",HMD!AA14) ->  | Y87: =IF(HMD!AB14="","",HMD!AB14) ->  | Z87: =IF(HMD!AC14="","",HMD!AC14) ->  | AA87: =IF(HMD!AD14="","",HMD!AD14) ->  | AB87: =IF(HMD!AE14="","",HMD!AE14) ->  | AC87: =IF(HMD!AF14="","",HMD!AF14) ->  | AD87: =IF(HMD!AG14="","",HMD!AG14) ->  | AE87: =IF(HMD!AH14="","",HMD!AH14) ->  | AF87: =IF(HMD!AI14="","",HMD!AI14) ->  | AG87: =IF(HMD!AJ14="","",HMD!AJ14) ->  | AH87: =IF(HMD!AK14="","",HMD!AK14) ->  | AI87: =IF(HMD!AL14="","",HMD!AL14) ->  | AJ87: =IF(HMD!AM14="","",HMD!AM14) ->  | AK87: =IF(HMD!AN14="","",HMD!AN14) ->  | AL87: =IF(HMD!AO14="","",HMD!AO14) ->  | AM87: =IF(HMD!AP14="","",HMD!AP14) -> 
D88: Criterio Evaluación 3.4 | E88: =IF(HMD!H15="","",HMD!H15) ->  | F88: =IF(HMD!I15="","",HMD!I15) ->  | G88: =IF(HMD!J15="","",HMD!J15) ->  | H88: =IF(HMD!K15="","",HMD!K15) ->  | I88: =IF(HMD!L15="","",HMD!L15) ->  | J88: =IF(HMD!M15="","",HMD!M15) ->  | K88: =IF(HMD!N15="","",HMD!N15) ->  | L88: =IF(HMD!O15="","",HMD!O15) ->  | M88: =IF(HMD!P15="","",HMD!P15) ->  | N88: =IF(HMD!Q15="","",HMD!Q15) ->  | O88: =IF(HMD!R15="","",HMD!R15) ->  | P88: =IF(HMD!S15="","",HMD!S15) ->  | Q88: =IF(HMD!T15="","",HMD!T15) ->  | R88: =IF(HMD!U15="","",HMD!U15) ->  | S88: =IF(HMD!V15="","",HMD!V15) ->  | T88: =IF(HMD!W15="","",HMD!W15) ->  | U88: =IF(HMD!X15="","",HMD!X15) ->  | V88: =IF(HMD!Y15="","",HMD!Y15) ->  | W88: =IF(HMD!Z15="","",HMD!Z15) ->  | X88: =IF(HMD!AA15="","",HMD!AA15) ->  | Y88: =IF(HMD!AB15="","",HMD!AB15) ->  | Z88: =IF(HMD!AC15="","",HMD!AC15) ->  | AA88: =IF(HMD!AD15="","",HMD!AD15) ->  | AB88: =IF(HMD!AE15="","",HMD!AE15) ->  | AC88: =IF(HMD!AF15="","",HMD!AF15) ->  | AD88: =IF(HMD!AG15="","",HMD!AG15) ->  | AE88: =IF(HMD!AH15="","",HMD!AH15) ->  | AF88: =IF(HMD!AI15="","",HMD!AI15) ->  | AG88: =IF(HMD!AJ15="","",HMD!AJ15) ->  | AH88: =IF(HMD!AK15="","",HMD!AK15) ->  | AI88: =IF(HMD!AL15="","",HMD!AL15) ->  | AJ88: =IF(HMD!AM15="","",HMD!AM15) ->  | AK88: =IF(HMD!AN15="","",HMD!AN15) ->  | AL88: =IF(HMD!AO15="","",HMD!AO15) ->  | AM88: =IF(HMD!AP15="","",HMD!AP15) -> 
C89: Comp. Esp. 4 | D89: Criterio Evaluación 4.1 | E89: =IF(HMD!H16="","",HMD!H16) ->  | F89: =IF(HMD!I16="","",HMD!I16) ->  | G89: =IF(HMD!J16="","",HMD!J16) ->  | H89: =IF(HMD!K16="","",HMD!K16) ->  | I89: =IF(HMD!L16="","",HMD!L16) ->  | J89: =IF(HMD!M16="","",HMD!M16) ->  | K89: =IF(HMD!N16="","",HMD!N16) ->  | L89: =IF(HMD!O16="","",HMD!O16) ->  | M89: =IF(HMD!P16="","",HMD!P16) ->  | N89: =IF(HMD!Q16="","",HMD!Q16) ->  | O89: =IF(HMD!R16="","",HMD!R16) ->  | P89: =IF(HMD!S16="","",HMD!S16) ->  | Q89: =IF(HMD!T16="","",HMD!T16) ->  | R89: =IF(HMD!U16="","",HMD!U16) ->  | S89: =IF(HMD!V16="","",HMD!V16) ->  | T89: =IF(HMD!W16="","",HMD!W16) ->  | U89: =IF(HMD!X16="","",HMD!X16) ->  | V89: =IF(HMD!Y16="","",HMD!Y16) ->  | W89: =IF(HMD!Z16="","",HMD!Z16) ->  | X89: =IF(HMD!AA16="","",HMD!AA16) ->  | Y89: =IF(HMD!AB16="","",HMD!AB16) ->  | Z89: =IF(HMD!AC16="","",HMD!AC16) ->  | AA89: =IF(HMD!AD16="","",HMD!AD16) ->  | AB89: =IF(HMD!AE16="","",HMD!AE16) ->  | AC89: =IF(HMD!AF16="","",HMD!AF16) ->  | AD89: =IF(HMD!AG16="","",HMD!AG16) ->  | AE89: =IF(HMD!AH16="","",HMD!AH16) ->  | AF89: =IF(HMD!AI16="","",HMD!AI16) ->  | AG89: =IF(HMD!AJ16="","",HMD!AJ16) ->  | AH89: =IF(HMD!AK16="","",HMD!AK16) ->  | AI89: =IF(HMD!AL16="","",HMD!AL16) ->  | AJ89: =IF(HMD!AM16="","",HMD!AM16) ->  | AK89: =IF(HMD!AN16="","",HMD!AN16) ->  | AL89: =IF(HMD!AO16="","",HMD!AO16) ->  | AM89: =IF(HMD!AP16="","",HMD!AP16) -> 
D90: Criterio Evaluación 4.2 | E90: =IF(HMD!H17="","",HMD!H17) ->  | F90: =IF(HMD!I17="","",HMD!I17) ->  | G90: =IF(HMD!J17="","",HMD!J17) ->  | H90: =IF(HMD!K17="","",HMD!K17) ->  | I90: =IF(HMD!L17="","",HMD!L17) ->  | J90: =IF(HMD!M17="","",HMD!M17) ->  | K90: =IF(HMD!N17="","",HMD!N17) ->  | L90: =IF(HMD!O17="","",HMD!O17) ->  | M90: =IF(HMD!P17="","",HMD!P17) ->  | N90: =IF(HMD!Q17="","",HMD!Q17) ->  | O90: =IF(HMD!R17="","",HMD!R17) ->  | P90: =IF(HMD!S17="","",HMD!S17) ->  | Q90: =IF(HMD!T17="","",HMD!T17) ->  | R90: =IF(HMD!U17="","",HMD!U17) ->  | S90: =IF(HMD!V17="","",HMD!V17) ->  | T90: =IF(HMD!W17="","",HMD!W17) ->  | U90: =IF(HMD!X17="","",HMD!X17) ->  | V90: =IF(HMD!Y17="","",HMD!Y17) ->  | W90: =IF(HMD!Z17="","",HMD!Z17) ->  | X90: =IF(HMD!AA17="","",HMD!AA17) ->  | Y90: =IF(HMD!AB17="","",HMD!AB17) ->  | Z90: =IF(HMD!AC17="","",HMD!AC17) ->  | AA90: =IF(HMD!AD17="","",HMD!AD17) ->  | AB90: =IF(HMD!AE17="","",HMD!AE17) ->  | AC90: =IF(HMD!AF17="","",HMD!AF17) ->  | AD90: =IF(HMD!AG17="","",HMD!AG17) ->  | AE90: =IF(HMD!AH17="","",HMD!AH17) ->  | AF90: =IF(HMD!AI17="","",HMD!AI17) ->  | AG90: =IF(HMD!AJ17="","",HMD!AJ17) ->  | AH90: =IF(HMD!AK17="","",HMD!AK17) ->  | AI90: =IF(HMD!AL17="","",HMD!AL17) ->  | AJ90: =IF(HMD!AM17="","",HMD!AM17) ->  | AK90: =IF(HMD!AN17="","",HMD!AN17) ->  | AL90: =IF(HMD!AO17="","",HMD!AO17) ->  | AM90: =IF(HMD!AP17="","",HMD!AP17) -> 
D91: Criterio Evaluación 4.3 | E91: =IF(HMD!H18="","",HMD!H18) ->  | F91: =IF(HMD!I18="","",HMD!I18) ->  | G91: =IF(HMD!J18="","",HMD!J18) ->  | H91: =IF(HMD!K18="","",HMD!K18) ->  | I91: =IF(HMD!L18="","",HMD!L18) ->  | J91: =IF(HMD!M18="","",HMD!M18) ->  | K91: =IF(HMD!N18="","",HMD!N18) ->  | L91: =IF(HMD!O18="","",HMD!O18) ->  | M91: =IF(HMD!P18="","",HMD!P18) ->  | N91: =IF(HMD!Q18="","",HMD!Q18) ->  | O91: =IF(HMD!R18="","",HMD!R18) ->  | P91: =IF(HMD!S18="","",HMD!S18) ->  | Q91: =IF(HMD!T18="","",HMD!T18) ->  | R91: =IF(HMD!U18="","",HMD!U18) ->  | S91: =IF(HMD!V18="","",HMD!V18) ->  | T91: =IF(HMD!W18="","",HMD!W18) ->  | U91: =IF(HMD!X18="","",HMD!X18) ->  | V91: =IF(HMD!Y18="","",HMD!Y18) ->  | W91: =IF(HMD!Z18="","",HMD!Z18) ->  | X91: =IF(HMD!AA18="","",HMD!AA18) ->  | Y91: =IF(HMD!AB18="","",HMD!AB18) ->  | Z91: =IF(HMD!AC18="","",HMD!AC18) ->  | AA91: =IF(HMD!AD18="","",HMD!AD18) ->  | AB91: =IF(HMD!AE18="","",HMD!AE18) ->  | AC91: =IF(HMD!AF18="","",HMD!AF18) ->  | AD91: =IF(HMD!AG18="","",HMD!AG18) ->  | AE91: =IF(HMD!AH18="","",HMD!AH18) ->  | AF91: =IF(HMD!AI18="","",HMD!AI18) ->  | AG91: =IF(HMD!AJ18="","",HMD!AJ18) ->  | AH91: =IF(HMD!AK18="","",HMD!AK18) ->  | AI91: =IF(HMD!AL18="","",HMD!AL18) ->  | AJ91: =IF(HMD!AM18="","",HMD!AM18) ->  | AK91: =IF(HMD!AN18="","",HMD!AN18) ->  | AL91: =IF(HMD!AO18="","",HMD!AO18) ->  | AM91: =IF(HMD!AP18="","",HMD!AP18) -> 
D92: Criterio Evaluación 4.4 | E92: =IF(HMD!H19="","",HMD!H19) ->  | F92: =IF(HMD!I19="","",HMD!I19) ->  | G92: =IF(HMD!J19="","",HMD!J19) ->  | H92: =IF(HMD!K19="","",HMD!K19) ->  | I92: =IF(HMD!L19="","",HMD!L19) ->  | J92: =IF(HMD!M19="","",HMD!M19) ->  | K92: =IF(HMD!N19="","",HMD!N19) ->  | L92: =IF(HMD!O19="","",HMD!O19) ->  | M92: =IF(HMD!P19="","",HMD!P19) ->  | N92: =IF(HMD!Q19="","",HMD!Q19) ->  | O92: =IF(HMD!R19="","",HMD!R19) ->  | P92: =IF(HMD!S19="","",HMD!S19) ->  | Q92: =IF(HMD!T19="","",HMD!T19) ->  | R92: =IF(HMD!U19="","",HMD!U19) ->  | S92: =IF(HMD!V19="","",HMD!V19) ->  | T92: =IF(HMD!W19="","",HMD!W19) ->  | U92: =IF(HMD!X19="","",HMD!X19) ->  | V92: =IF(HMD!Y19="","",HMD!Y19) ->  | W92: =IF(HMD!Z19="","",HMD!Z19) ->  | X92: =IF(HMD!AA19="","",HMD!AA19) ->  | Y92: =IF(HMD!AB19="","",HMD!AB19) ->  | Z92: =IF(HMD!AC19="","",HMD!AC19) ->  | AA92: =IF(HMD!AD19="","",HMD!AD19) ->  | AB92: =IF(HMD!AE19="","",HMD!AE19) ->  | AC92: =IF(HMD!AF19="","",HMD!AF19) ->  | AD92: =IF(HMD!AG19="","",HMD!AG19) ->  | AE92: =IF(HMD!AH19="","",HMD!AH19) ->  | AF92: =IF(HMD!AI19="","",HMD!AI19) ->  | AG92: =IF(HMD!AJ19="","",HMD!AJ19) ->  | AH92: =IF(HMD!AK19="","",HMD!AK19) ->  | AI92: =IF(HMD!AL19="","",HMD!AL19) ->  | AJ92: =IF(HMD!AM19="","",HMD!AM19) ->  | AK92: =IF(HMD!AN19="","",HMD!AN19) ->  | AL92: =IF(HMD!AO19="","",HMD!AO19) ->  | AM92: =IF(HMD!AP19="","",HMD!AP19) -> 
D93: Criterio Evaluación 4.5 | E93: =IF(HMD!H20="","",HMD!H20) ->  | F93: =IF(HMD!I20="","",HMD!I20) ->  | G93: =IF(HMD!J20="","",HMD!J20) ->  | H93: =IF(HMD!K20="","",HMD!K20) ->  | I93: =IF(HMD!L20="","",HMD!L20) ->  | J93: =IF(HMD!M20="","",HMD!M20) ->  | K93: =IF(HMD!N20="","",HMD!N20) ->  | L93: =IF(HMD!O20="","",HMD!O20) ->  | M93: =IF(HMD!P20="","",HMD!P20) ->  | N93: =IF(HMD!Q20="","",HMD!Q20) ->  | O93: =IF(HMD!R20="","",HMD!R20) ->  | P93: =IF(HMD!S20="","",HMD!S20) ->  | Q93: =IF(HMD!T20="","",HMD!T20) ->  | R93: =IF(HMD!U20="","",HMD!U20) ->  | S93: =IF(HMD!V20="","",HMD!V20) ->  | T93: =IF(HMD!W20="","",HMD!W20) ->  | U93: =IF(HMD!X20="","",HMD!X20) ->  | V93: =IF(HMD!Y20="","",HMD!Y20) ->  | W93: =IF(HMD!Z20="","",HMD!Z20) ->  | X93: =IF(HMD!AA20="","",HMD!AA20) ->  | Y93: =IF(HMD!AB20="","",HMD!AB20) ->  | Z93: =IF(HMD!AC20="","",HMD!AC20) ->  | AA93: =IF(HMD!AD20="","",HMD!AD20) ->  | AB93: =IF(HMD!AE20="","",HMD!AE20) ->  | AC93: =IF(HMD!AF20="","",HMD!AF20) ->  | AD93: =IF(HMD!AG20="","",HMD!AG20) ->  | AE93: =IF(HMD!AH20="","",HMD!AH20) ->  | AF93: =IF(HMD!AI20="","",HMD!AI20) ->  | AG93: =IF(HMD!AJ20="","",HMD!AJ20) ->  | AH93: =IF(HMD!AK20="","",HMD!AK20) ->  | AI93: =IF(HMD!AL20="","",HMD!AL20) ->  | AJ93: =IF(HMD!AM20="","",HMD!AM20) ->  | AK93: =IF(HMD!AN20="","",HMD!AN20) ->  | AL93: =IF(HMD!AO20="","",HMD!AO20) ->  | AM93: =IF(HMD!AP20="","",HMD!AP20) -> 
C94: Comp. Esp. 5 | D94: Criterio Evaluación 5.1 | E94: =IF(HMD!H21="","",HMD!H21) ->  | F94: =IF(HMD!I21="","",HMD!I21) ->  | G94: =IF(HMD!J21="","",HMD!J21) ->  | H94: =IF(HMD!K21="","",HMD!K21) ->  | I94: =IF(HMD!L21="","",HMD!L21) ->  | J94: =IF(HMD!M21="","",HMD!M21) ->  | K94: =IF(HMD!N21="","",HMD!N21) ->  | L94: =IF(HMD!O21="","",HMD!O21) ->  | M94: =IF(HMD!P21="","",HMD!P21) ->  | N94: =IF(HMD!Q21="","",HMD!Q21) ->  | O94: =IF(HMD!R21="","",HMD!R21) ->  | P94: =IF(HMD!S21="","",HMD!S21) ->  | Q94: =IF(HMD!T21="","",HMD!T21) ->  | R94: =IF(HMD!U21="","",HMD!U21) ->  | S94: =IF(HMD!V21="","",HMD!V21) ->  | T94: =IF(HMD!W21="","",HMD!W21) ->  | U94: =IF(HMD!X21="","",HMD!X21) ->  | V94: =IF(HMD!Y21="","",HMD!Y21) ->  | W94: =IF(HMD!Z21="","",HMD!Z21) ->  | X94: =IF(HMD!AA21="","",HMD!AA21) ->  | Y94: =IF(HMD!AB21="","",HMD!AB21) ->  | Z94: =IF(HMD!AC21="","",HMD!AC21) ->  | AA94: =IF(HMD!AD21="","",HMD!AD21) ->  | AB94: =IF(HMD!AE21="","",HMD!AE21) ->  | AC94: =IF(HMD!AF21="","",HMD!AF21) ->  | AD94: =IF(HMD!AG21="","",HMD!AG21) ->  | AE94: =IF(HMD!AH21="","",HMD!AH21) ->  | AF94: =IF(HMD!AI21="","",HMD!AI21) ->  | AG94: =IF(HMD!AJ21="","",HMD!AJ21) ->  | AH94: =IF(HMD!AK21="","",HMD!AK21) ->  | AI94: =IF(HMD!AL21="","",HMD!AL21) ->  | AJ94: =IF(HMD!AM21="","",HMD!AM21) ->  | AK94: =IF(HMD!AN21="","",HMD!AN21) ->  | AL94: =IF(HMD!AO21="","",HMD!AO21) ->  | AM94: =IF(HMD!AP21="","",HMD!AP21) -> 
D95: Criterio Evaluación 5.2 | E95: =IF(HMD!H22="","",HMD!H22) ->  | F95: =IF(HMD!I22="","",HMD!I22) ->  | G95: =IF(HMD!J22="","",HMD!J22) ->  | H95: =IF(HMD!K22="","",HMD!K22) ->  | I95: =IF(HMD!L22="","",HMD!L22) ->  | J95: =IF(HMD!M22="","",HMD!M22) ->  | K95: =IF(HMD!N22="","",HMD!N22) ->  | L95: =IF(HMD!O22="","",HMD!O22) ->  | M95: =IF(HMD!P22="","",HMD!P22) ->  | N95: =IF(HMD!Q22="","",HMD!Q22) ->  | O95: =IF(HMD!R22="","",HMD!R22) ->  | P95: =IF(HMD!S22="","",HMD!S22) ->  | Q95: =IF(HMD!T22="","",HMD!T22) ->  | R95: =IF(HMD!U22="","",HMD!U22) ->  | S95: =IF(HMD!V22="","",HMD!V22) ->  | T95: =IF(HMD!W22="","",HMD!W22) ->  | U95: =IF(HMD!X22="","",HMD!X22) ->  | V95: =IF(HMD!Y22="","",HMD!Y22) ->  | W95: =IF(HMD!Z22="","",HMD!Z22) ->  | X95: =IF(HMD!AA22="","",HMD!AA22) ->  | Y95: =IF(HMD!AB22="","",HMD!AB22) ->  | Z95: =IF(HMD!AC22="","",HMD!AC22) ->  | AA95: =IF(HMD!AD22="","",HMD!AD22) ->  | AB95: =IF(HMD!AE22="","",HMD!AE22) ->  | AC95: =IF(HMD!AF22="","",HMD!AF22) ->  | AD95: =IF(HMD!AG22="","",HMD!AG22) ->  | AE95: =IF(HMD!AH22="","",HMD!AH22) ->  | AF95: =IF(HMD!AI22="","",HMD!AI22) ->  | AG95: =IF(HMD!AJ22="","",HMD!AJ22) ->  | AH95: =IF(HMD!AK22="","",HMD!AK22) ->  | AI95: =IF(HMD!AL22="","",HMD!AL22) ->  | AJ95: =IF(HMD!AM22="","",HMD!AM22) ->  | AK95: =IF(HMD!AN22="","",HMD!AN22) ->  | AL95: =IF(HMD!AO22="","",HMD!AO22) ->  | AM95: =IF(HMD!AP22="","",HMD!AP22) -> 
D96: Criterio Evaluación 5.3 | E96: =IF(HMD!H23="","",HMD!H23) ->  | F96: =IF(HMD!I23="","",HMD!I23) ->  | G96: =IF(HMD!J23="","",HMD!J23) ->  | H96: =IF(HMD!K23="","",HMD!K23) ->  | I96: =IF(HMD!L23="","",HMD!L23) ->  | J96: =IF(HMD!M23="","",HMD!M23) ->  | K96: =IF(HMD!N23="","",HMD!N23) ->  | L96: =IF(HMD!O23="","",HMD!O23) ->  | M96: =IF(HMD!P23="","",HMD!P23) ->  | N96: =IF(HMD!Q23="","",HMD!Q23) ->  | O96: =IF(HMD!R23="","",HMD!R23) ->  | P96: =IF(HMD!S23="","",HMD!S23) ->  | Q96: =IF(HMD!T23="","",HMD!T23) ->  | R96: =IF(HMD!U23="","",HMD!U23) ->  | S96: =IF(HMD!V23="","",HMD!V23) ->  | T96: =IF(HMD!W23="","",HMD!W23) ->  | U96: =IF(HMD!X23="","",HMD!X23) ->  | V96: =IF(HMD!Y23="","",HMD!Y23) ->  | W96: =IF(HMD!Z23="","",HMD!Z23) ->  | X96: =IF(HMD!AA23="","",HMD!AA23) ->  | Y96: =IF(HMD!AB23="","",HMD!AB23) ->  | Z96: =IF(HMD!AC23="","",HMD!AC23) ->  | AA96: =IF(HMD!AD23="","",HMD!AD23) ->  | AB96: =IF(HMD!AE23="","",HMD!AE23) ->  | AC96: =IF(HMD!AF23="","",HMD!AF23) ->  | AD96: =IF(HMD!AG23="","",HMD!AG23) ->  | AE96: =IF(HMD!AH23="","",HMD!AH23) ->  | AF96: =IF(HMD!AI23="","",HMD!AI23) ->  | AG96: =IF(HMD!AJ23="","",HMD!AJ23) ->  | AH96: =IF(HMD!AK23="","",HMD!AK23) ->  | AI96: =IF(HMD!AL23="","",HMD!AL23) ->  | AJ96: =IF(HMD!AM23="","",HMD!AM23) ->  | AK96: =IF(HMD!AN23="","",HMD!AN23) ->  | AL96: =IF(HMD!AO23="","",HMD!AO23) ->  | AM96: =IF(HMD!AP23="","",HMD!AP23) -> 
B97: Lengua Castellana y Literatura II | C97: Comp. Esp. 1 | D97: Criterio Evaluación 1.1 | E97: =IF(LCL!H4="","",LCL!H4) ->  | F97: =IF(LCL!I4="","",LCL!I4) ->  | G97: =IF(LCL!J4="","",LCL!J4) ->  | H97: =IF(LCL!K4="","",LCL!K4) ->  | I97: =IF(LCL!L4="","",LCL!L4) ->  | J97: =IF(LCL!M4="","",LCL!M4) ->  | K97: =IF(LCL!N4="","",LCL!N4) ->  | L97: =IF(LCL!O4="","",LCL!O4) ->  | M97: =IF(LCL!P4="","",LCL!P4) ->  | N97: =IF(LCL!Q4="","",LCL!Q4) ->  | O97: =IF(LCL!R4="","",LCL!R4) ->  | P97: =IF(LCL!S4="","",LCL!S4) ->  | Q97: =IF(LCL!T4="","",LCL!T4) ->  | R97: =IF(LCL!U4="","",LCL!U4) ->  | S97: =IF(LCL!V4="","",LCL!V4) ->  | T97: =IF(LCL!W4="","",LCL!W4) ->  | U97: =IF(LCL!X4="","",LCL!X4) ->  | V97: =IF(LCL!Y4="","",LCL!Y4) ->  | W97: =IF(LCL!Z4="","",LCL!Z4) ->  | X97: =IF(LCL!AA4="","",LCL!AA4) ->  | Y97: =IF(LCL!AB4="","",LCL!AB4) ->  | Z97: =IF(LCL!AC4="","",LCL!AC4) ->  | AA97: =IF(LCL!AD4="","",LCL!AD4) ->  | AB97: =IF(LCL!AE4="","",LCL!AE4) ->  | AC97: =IF(LCL!AF4="","",LCL!AF4) ->  | AD97: =IF(LCL!AG4="","",LCL!AG4) ->  | AE97: =IF(LCL!AH4="","",LCL!AH4) ->  | AF97: =IF(LCL!AI4="","",LCL!AI4) ->  | AG97: =IF(LCL!AJ4="","",LCL!AJ4) ->  | AH97: =IF(LCL!AK4="","",LCL!AK4) ->  | AI97: =IF(LCL!AL4="","",LCL!AL4) ->  | AJ97: =IF(LCL!AM4="","",LCL!AM4) ->  | AK97: =IF(LCL!AN4="","",LCL!AN4) ->  | AL97: =IF(LCL!AO4="","",LCL!AO4) ->  | AM97: =IF(LCL!AP4="","",LCL!AP4) -> 
D98: Criterio Evaluación 1.2 | E98: =IF(LCL!H5="","",LCL!H5) ->  | F98: =IF(LCL!I5="","",LCL!I5) ->  | G98: =IF(LCL!J5="","",LCL!J5) ->  | H98: =IF(LCL!K5="","",LCL!K5) ->  | I98: =IF(LCL!L5="","",LCL!L5) ->  | J98: =IF(LCL!M5="","",LCL!M5) ->  | K98: =IF(LCL!N5="","",LCL!N5) ->  | L98: =IF(LCL!O5="","",LCL!O5) ->  | M98: =IF(LCL!P5="","",LCL!P5) ->  | N98: =IF(LCL!Q5="","",LCL!Q5) ->  | O98: =IF(LCL!R5="","",LCL!R5) ->  | P98: =IF(LCL!S5="","",LCL!S5) ->  | Q98: =IF(LCL!T5="","",LCL!T5) ->  | R98: =IF(LCL!U5="","",LCL!U5) ->  | S98: =IF(LCL!V5="","",LCL!V5) ->  | T98: =IF(LCL!W5="","",LCL!W5) ->  | U98: =IF(LCL!X5="","",LCL!X5) ->  | V98: =IF(LCL!Y5="","",LCL!Y5) ->  | W98: =IF(LCL!Z5="","",LCL!Z5) ->  | X98: =IF(LCL!AA5="","",LCL!AA5) ->  | Y98: =IF(LCL!AB5="","",LCL!AB5) ->  | Z98: =IF(LCL!AC5="","",LCL!AC5) ->  | AA98: =IF(LCL!AD5="","",LCL!AD5) ->  | AB98: =IF(LCL!AE5="","",LCL!AE5) ->  | AC98: =IF(LCL!AF5="","",LCL!AF5) ->  | AD98: =IF(LCL!AG5="","",LCL!AG5) ->  | AE98: =IF(LCL!AH5="","",LCL!AH5) ->  | AF98: =IF(LCL!AI5="","",LCL!AI5) ->  | AG98: =IF(LCL!AJ5="","",LCL!AJ5) ->  | AH98: =IF(LCL!AK5="","",LCL!AK5) ->  | AI98: =IF(LCL!AL5="","",LCL!AL5) ->  | AJ98: =IF(LCL!AM5="","",LCL!AM5) ->  | AK98: =IF(LCL!AN5="","",LCL!AN5) ->  | AL98: =IF(LCL!AO5="","",LCL!AO5) ->  | AM98: =IF(LCL!AP5="","",LCL!AP5) -> 
C99: Comp. Esp. 2 | D99: Criterio Evaluación 2.1 | E99: =IF(LCL!H6="","",LCL!H6) ->  | F99: =IF(LCL!I6="","",LCL!I6) ->  | G99: =IF(LCL!J6="","",LCL!J6) ->  | H99: =IF(LCL!K6="","",LCL!K6) ->  | I99: =IF(LCL!L6="","",LCL!L6) ->  | J99: =IF(LCL!M6="","",LCL!M6) ->  | K99: =IF(LCL!N6="","",LCL!N6) ->  | L99: =IF(LCL!O6="","",LCL!O6) ->  | M99: =IF(LCL!P6="","",LCL!P6) ->  | N99: =IF(LCL!Q6="","",LCL!Q6) ->  | O99: =IF(LCL!R6="","",LCL!R6) ->  | P99: =IF(LCL!S6="","",LCL!S6) ->  | Q99: =IF(LCL!T6="","",LCL!T6) ->  | R99: =IF(LCL!U6="","",LCL!U6) ->  | S99: =IF(LCL!V6="","",LCL!V6) ->  | T99: =IF(LCL!W6="","",LCL!W6) ->  | U99: =IF(LCL!X6="","",LCL!X6) ->  | V99: =IF(LCL!Y6="","",LCL!Y6) ->  | W99: =IF(LCL!Z6="","",LCL!Z6) ->  | X99: =IF(LCL!AA6="","",LCL!AA6) ->  | Y99: =IF(LCL!AB6="","",LCL!AB6) ->  | Z99: =IF(LCL!AC6="","",LCL!AC6) ->  | AA99: =IF(LCL!AD6="","",LCL!AD6) ->  | AB99: =IF(LCL!AE6="","",LCL!AE6) ->  | AC99: =IF(LCL!AF6="","",LCL!AF6) ->  | AD99: =IF(LCL!AG6="","",LCL!AG6) ->  | AE99: =IF(LCL!AH6="","",LCL!AH6) ->  | AF99: =IF(LCL!AI6="","",LCL!AI6) ->  | AG99: =IF(LCL!AJ6="","",LCL!AJ6) ->  | AH99: =IF(LCL!AK6="","",LCL!AK6) ->  | AI99: =IF(LCL!AL6="","",LCL!AL6) ->  | AJ99: =IF(LCL!AM6="","",LCL!AM6) ->  | AK99: =IF(LCL!AN6="","",LCL!AN6) ->  | AL99: =IF(LCL!AO6="","",LCL!AO6) ->  | AM99: =IF(LCL!AP6="","",LCL!AP6) -> 
D100: Criterio Evaluación 2.2 | E100: =IF(LCL!H7="","",LCL!H7) ->  | F100: =IF(LCL!I7="","",LCL!I7) ->  | G100: =IF(LCL!J7="","",LCL!J7) ->  | H100: =IF(LCL!K7="","",LCL!K7) ->  | I100: =IF(LCL!L7="","",LCL!L7) ->  | J100: =IF(LCL!M7="","",LCL!M7) ->  | K100: =IF(LCL!N7="","",LCL!N7) ->  | L100: =IF(LCL!O7="","",LCL!O7) ->  | M100: =IF(LCL!P7="","",LCL!P7) ->  | N100: =IF(LCL!Q7="","",LCL!Q7) ->  | O100: =IF(LCL!R7="","",LCL!R7) ->  | P100: =IF(LCL!S7="","",LCL!S7) ->  | Q100: =IF(LCL!T7="","",LCL!T7) ->  | R100: =IF(LCL!U7="","",LCL!U7) ->  | S100: =IF(LCL!V7="","",LCL!V7) ->  | T100: =IF(LCL!W7="","",LCL!W7) ->  | U100: =IF(LCL!X7="","",LCL!X7) ->  | V100: =IF(LCL!Y7="","",LCL!Y7) ->  | W100: =IF(LCL!Z7="","",LCL!Z7) ->  | X100: =IF(LCL!AA7="","",LCL!AA7) ->  | Y100: =IF(LCL!AB7="","",LCL!AB7) ->  | Z100: =IF(LCL!AC7="","",LCL!AC7) ->  | AA100: =IF(LCL!AD7="","",LCL!AD7) ->  | AB100: =IF(LCL!AE7="","",LCL!AE7) ->  | AC100: =IF(LCL!AF7="","",LCL!AF7) ->  | AD100: =IF(LCL!AG7="","",LCL!AG7) ->  | AE100: =IF(LCL!AH7="","",LCL!AH7) ->  | AF100: =IF(LCL!AI7="","",LCL!AI7) ->  | AG100: =IF(LCL!AJ7="","",LCL!AJ7) ->  | AH100: =IF(LCL!AK7="","",LCL!AK7) ->  | AI100: =IF(LCL!AL7="","",LCL!AL7) ->  | AJ100: =IF(LCL!AM7="","",LCL!AM7) ->  | AK100: =IF(LCL!AN7="","",LCL!AN7) ->  | AL100: =IF(LCL!AO7="","",LCL!AO7) ->  | AM100: =IF(LCL!AP7="","",LCL!AP7) -> 
C101: Comp. Esp. 3 | D101: Criterio Evaluación 3.1 | E101: =IF(LCL!H8="","",LCL!H8) ->  | F101: =IF(LCL!I8="","",LCL!I8) ->  | G101: =IF(LCL!J8="","",LCL!J8) ->  | H101: =IF(LCL!K8="","",LCL!K8) ->  | I101: =IF(LCL!L8="","",LCL!L8) ->  | J101: =IF(LCL!M8="","",LCL!M8) ->  | K101: =IF(LCL!N8="","",LCL!N8) ->  | L101: =IF(LCL!O8="","",LCL!O8) ->  | M101: =IF(LCL!P8="","",LCL!P8) ->  | N101: =IF(LCL!Q8="","",LCL!Q8) ->  | O101: =IF(LCL!R8="","",LCL!R8) ->  | P101: =IF(LCL!S8="","",LCL!S8) ->  | Q101: =IF(LCL!T8="","",LCL!T8) ->  | R101: =IF(LCL!U8="","",LCL!U8) ->  | S101: =IF(LCL!V8="","",LCL!V8) ->  | T101: =IF(LCL!W8="","",LCL!W8) ->  | U101: =IF(LCL!X8="","",LCL!X8) ->  | V101: =IF(LCL!Y8="","",LCL!Y8) ->  | W101: =IF(LCL!Z8="","",LCL!Z8) ->  | X101: =IF(LCL!AA8="","",LCL!AA8) ->  | Y101: =IF(LCL!AB8="","",LCL!AB8) ->  | Z101: =IF(LCL!AC8="","",LCL!AC8) ->  | AA101: =IF(LCL!AD8="","",LCL!AD8) ->  | AB101: =IF(LCL!AE8="","",LCL!AE8) ->  | AC101: =IF(LCL!AF8="","",LCL!AF8) ->  | AD101: =IF(LCL!AG8="","",LCL!AG8) ->  | AE101: =IF(LCL!AH8="","",LCL!AH8) ->  | AF101: =IF(LCL!AI8="","",LCL!AI8) ->  | AG101: =IF(LCL!AJ8="","",LCL!AJ8) ->  | AH101: =IF(LCL!AK8="","",LCL!AK8) ->  | AI101: =IF(LCL!AL8="","",LCL!AL8) ->  | AJ101: =IF(LCL!AM8="","",LCL!AM8) ->  | AK101: =IF(LCL!AN8="","",LCL!AN8) ->  | AL101: =IF(LCL!AO8="","",LCL!AO8) ->  | AM101: =IF(LCL!AP8="","",LCL!AP8) -> 
D102: Criterio Evaluación 3.2 | E102: =IF(LCL!H9="","",LCL!H9) ->  | F102: =IF(LCL!I9="","",LCL!I9) ->  | G102: =IF(LCL!J9="","",LCL!J9) ->  | H102: =IF(LCL!K9="","",LCL!K9) ->  | I102: =IF(LCL!L9="","",LCL!L9) ->  | J102: =IF(LCL!M9="","",LCL!M9) ->  | K102: =IF(LCL!N9="","",LCL!N9) ->  | L102: =IF(LCL!O9="","",LCL!O9) ->  | M102: =IF(LCL!P9="","",LCL!P9) ->  | N102: =IF(LCL!Q9="","",LCL!Q9) ->  | O102: =IF(LCL!R9="","",LCL!R9) ->  | P102: =IF(LCL!S9="","",LCL!S9) ->  | Q102: =IF(LCL!T9="","",LCL!T9) ->  | R102: =IF(LCL!U9="","",LCL!U9) ->  | S102: =IF(LCL!V9="","",LCL!V9) ->  | T102: =IF(LCL!W9="","",LCL!W9) ->  | U102: =IF(LCL!X9="","",LCL!X9) ->  | V102: =IF(LCL!Y9="","",LCL!Y9) ->  | W102: =IF(LCL!Z9="","",LCL!Z9) ->  | X102: =IF(LCL!AA9="","",LCL!AA9) ->  | Y102: =IF(LCL!AB9="","",LCL!AB9) ->  | Z102: =IF(LCL!AC9="","",LCL!AC9) ->  | AA102: =IF(LCL!AD9="","",LCL!AD9) ->  | AB102: =IF(LCL!AE9="","",LCL!AE9) ->  | AC102: =IF(LCL!AF9="","",LCL!AF9) ->  | AD102: =IF(LCL!AG9="","",LCL!AG9) ->  | AE102: =IF(LCL!AH9="","",LCL!AH9) ->  | AF102: =IF(LCL!AI9="","",LCL!AI9) ->  | AG102: =IF(LCL!AJ9="","",LCL!AJ9) ->  | AH102: =IF(LCL!AK9="","",LCL!AK9) ->  | AI102: =IF(LCL!AL9="","",LCL!AL9) ->  | AJ102: =IF(LCL!AM9="","",LCL!AM9) ->  | AK102: =IF(LCL!AN9="","",LCL!AN9) ->  | AL102: =IF(LCL!AO9="","",LCL!AO9) ->  | AM102: =IF(LCL!AP9="","",LCL!AP9) -> 
C103: Comp. Esp. 4 | D103: Criterio Evaluación 4.1 | E103: =IF(LCL!H10="","",LCL!H10) ->  | F103: =IF(LCL!I10="","",LCL!I10) ->  | G103: =IF(LCL!J10="","",LCL!J10) ->  | H103: =IF(LCL!K10="","",LCL!K10) ->  | I103: =IF(LCL!L10="","",LCL!L10) ->  | J103: =IF(LCL!M10="","",LCL!M10) ->  | K103: =IF(LCL!N10="","",LCL!N10) ->  | L103: =IF(LCL!O10="","",LCL!O10) ->  | M103: =IF(LCL!P10="","",LCL!P10) ->  | N103: =IF(LCL!Q10="","",LCL!Q10) ->  | O103: =IF(LCL!R10="","",LCL!R10) ->  | P103: =IF(LCL!S10="","",LCL!S10) ->  | Q103: =IF(LCL!T10="","",LCL!T10) ->  | R103: =IF(LCL!U10="","",LCL!U10) ->  | S103: =IF(LCL!V10="","",LCL!V10) ->  | T103: =IF(LCL!W10="","",LCL!W10) ->  | U103: =IF(LCL!X10="","",LCL!X10) ->  | V103: =IF(LCL!Y10="","",LCL!Y10) ->  | W103: =IF(LCL!Z10="","",LCL!Z10) ->  | X103: =IF(LCL!AA10="","",LCL!AA10) ->  | Y103: =IF(LCL!AB10="","",LCL!AB10) ->  | Z103: =IF(LCL!AC10="","",LCL!AC10) ->  | AA103: =IF(LCL!AD10="","",LCL!AD10) ->  | AB103: =IF(LCL!AE10="","",LCL!AE10) ->  | AC103: =IF(LCL!AF10="","",LCL!AF10) ->  | AD103: =IF(LCL!AG10="","",LCL!AG10) ->  | AE103: =IF(LCL!AH10="","",LCL!AH10) ->  | AF103: =IF(LCL!AI10="","",LCL!AI10) ->  | AG103: =IF(LCL!AJ10="","",LCL!AJ10) ->  | AH103: =IF(LCL!AK10="","",LCL!AK10) ->  | AI103: =IF(LCL!AL10="","",LCL!AL10) ->  | AJ103: =IF(LCL!AM10="","",LCL!AM10) ->  | AK103: =IF(LCL!AN10="","",LCL!AN10) ->  | AL103: =IF(LCL!AO10="","",LCL!AO10) ->  | AM103: =IF(LCL!AP10="","",LCL!AP10) -> 
D104: Criterio Evaluación 4.2 | E104: =IF(LCL!H11="","",LCL!H11) ->  | F104: =IF(LCL!I11="","",LCL!I11) ->  | G104: =IF(LCL!J11="","",LCL!J11) ->  | H104: =IF(LCL!K11="","",LCL!K11) ->  | I104: =IF(LCL!L11="","",LCL!L11) ->  | J104: =IF(LCL!M11="","",LCL!M11) ->  | K104: =IF(LCL!N11="","",LCL!N11) ->  | L104: =IF(LCL!O11="","",LCL!O11) ->  | M104: =IF(LCL!P11="","",LCL!P11) ->  | N104: =IF(LCL!Q11="","",LCL!Q11) ->  | O104: =IF(LCL!R11="","",LCL!R11) ->  | P104: =IF(LCL!S11="","",LCL!S11) ->  | Q104: =IF(LCL!T11="","",LCL!T11) ->  | R104: =IF(LCL!U11="","",LCL!U11) ->  | S104: =IF(LCL!V11="","",LCL!V11) ->  | T104: =IF(LCL!W11="","",LCL!W11) ->  | U104: =IF(LCL!X11="","",LCL!X11) ->  | V104: =IF(LCL!Y11="","",LCL!Y11) ->  | W104: =IF(LCL!Z11="","",LCL!Z11) ->  | X104: =IF(LCL!AA11="","",LCL!AA11) ->  | Y104: =IF(LCL!AB11="","",LCL!AB11) ->  | Z104: =IF(LCL!AC11="","",LCL!AC11) ->  | AA104: =IF(LCL!AD11="","",LCL!AD11) ->  | AB104: =IF(LCL!AE11="","",LCL!AE11) ->  | AC104: =IF(LCL!AF11="","",LCL!AF11) ->  | AD104: =IF(LCL!AG11="","",LCL!AG11) ->  | AE104: =IF(LCL!AH11="","",LCL!AH11) ->  | AF104: =IF(LCL!AI11="","",LCL!AI11) ->  | AG104: =IF(LCL!AJ11="","",LCL!AJ11) ->  | AH104: =IF(LCL!AK11="","",LCL!AK11) ->  | AI104: =IF(LCL!AL11="","",LCL!AL11) ->  | AJ104: =IF(LCL!AM11="","",LCL!AM11) ->  | AK104: =IF(LCL!AN11="","",LCL!AN11) ->  | AL104: =IF(LCL!AO11="","",LCL!AO11) ->  | AM104: =IF(LCL!AP11="","",LCL!AP11) -> 
C105: Comp. Esp. 5 | D105: Criterio Evaluación 5.1 | E105: =IF(LCL!H12="","",LCL!H12) ->  | F105: =IF(LCL!I12="","",LCL!I12) ->  | G105: =IF(LCL!J12="","",LCL!J12) ->  | H105: =IF(LCL!K12="","",LCL!K12) ->  | I105: =IF(LCL!L12="","",LCL!L12) ->  | J105: =IF(LCL!M12="","",LCL!M12) ->  | K105: =IF(LCL!N12="","",LCL!N12) ->  | L105: =IF(LCL!O12="","",LCL!O12) ->  | M105: =IF(LCL!P12="","",LCL!P12) ->  | N105: =IF(LCL!Q12="","",LCL!Q12) ->  | O105: =IF(LCL!R12="","",LCL!R12) ->  | P105: =IF(LCL!S12="","",LCL!S12) ->  | Q105: =IF(LCL!T12="","",LCL!T12) ->  | R105: =IF(LCL!U12="","",LCL!U12) ->  | S105: =IF(LCL!V12="","",LCL!V12) ->  | T105: =IF(LCL!W12="","",LCL!W12) ->  | U105: =IF(LCL!X12="","",LCL!X12) ->  | V105: =IF(LCL!Y12="","",LCL!Y12) ->  | W105: =IF(LCL!Z12="","",LCL!Z12) ->  | X105: =IF(LCL!AA12="","",LCL!AA12) ->  | Y105: =IF(LCL!AB12="","",LCL!AB12) ->  | Z105: =IF(LCL!AC12="","",LCL!AC12) ->  | AA105: =IF(LCL!AD12="","",LCL!AD12) ->  | AB105: =IF(LCL!AE12="","",LCL!AE12) ->  | AC105: =IF(LCL!AF12="","",LCL!AF12) ->  | AD105: =IF(LCL!AG12="","",LCL!AG12) ->  | AE105: =IF(LCL!AH12="","",LCL!AH12) ->  | AF105: =IF(LCL!AI12="","",LCL!AI12) ->  | AG105: =IF(LCL!AJ12="","",LCL!AJ12) ->  | AH105: =IF(LCL!AK12="","",LCL!AK12) ->  | AI105: =IF(LCL!AL12="","",LCL!AL12) ->  | AJ105: =IF(LCL!AM12="","",LCL!AM12) ->  | AK105: =IF(LCL!AN12="","",LCL!AN12) ->  | AL105: =IF(LCL!AO12="","",LCL!AO12) ->  | AM105: =IF(LCL!AP12="","",LCL!AP12) -> 
D106: Criterio Evaluación 5.2 | E106: =IF(LCL!H13="","",LCL!H13) ->  | F106: =IF(LCL!I13="","",LCL!I13) ->  | G106: =IF(LCL!J13="","",LCL!J13) ->  | H106: =IF(LCL!K13="","",LCL!K13) ->  | I106: =IF(LCL!L13="","",LCL!L13) ->  | J106: =IF(LCL!M13="","",LCL!M13) ->  | K106: =IF(LCL!N13="","",LCL!N13) ->  | L106: =IF(LCL!O13="","",LCL!O13) ->  | M106: =IF(LCL!P13="","",LCL!P13) ->  | N106: =IF(LCL!Q13="","",LCL!Q13) ->  | O106: =IF(LCL!R13="","",LCL!R13) ->  | P106: =IF(LCL!S13="","",LCL!S13) ->  | Q106: =IF(LCL!T13="","",LCL!T13) ->  | R106: =IF(LCL!U13="","",LCL!U13) ->  | S106: =IF(LCL!V13="","",LCL!V13) ->  | T106: =IF(LCL!W13="","",LCL!W13) ->  | U106: =IF(LCL!X13="","",LCL!X13) ->  | V106: =IF(LCL!Y13="","",LCL!Y13) ->  | W106: =IF(LCL!Z13="","",LCL!Z13) ->  | X106: =IF(LCL!AA13="","",LCL!AA13) ->  | Y106: =IF(LCL!AB13="","",LCL!AB13) ->  | Z106: =IF(LCL!AC13="","",LCL!AC13) ->  | AA106: =IF(LCL!AD13="","",LCL!AD13) ->  | AB106: =IF(LCL!AE13="","",LCL!AE13) ->  | AC106: =IF(LCL!AF13="","",LCL!AF13) ->  | AD106: =IF(LCL!AG13="","",LCL!AG13) ->  | AE106: =IF(LCL!AH13="","",LCL!AH13) ->  | AF106: =IF(LCL!AI13="","",LCL!AI13) ->  | AG106: =IF(LCL!AJ13="","",LCL!AJ13) ->  | AH106: =IF(LCL!AK13="","",LCL!AK13) ->  | AI106: =IF(LCL!AL13="","",LCL!AL13) ->  | AJ106: =IF(LCL!AM13="","",LCL!AM13) ->  | AK106: =IF(LCL!AN13="","",LCL!AN13) ->  | AL106: =IF(LCL!AO13="","",LCL!AO13) ->  | AM106: =IF(LCL!AP13="","",LCL!AP13) -> 
C107: Comp. Esp. 6 | D107: Criterio Evaluación 6.1 | E107: =IF(LCL!H14="","",LCL!H14) ->  | F107: =IF(LCL!I14="","",LCL!I14) ->  | G107: =IF(LCL!J14="","",LCL!J14) ->  | H107: =IF(LCL!K14="","",LCL!K14) ->  | I107: =IF(LCL!L14="","",LCL!L14) ->  | J107: =IF(LCL!M14="","",LCL!M14) ->  | K107: =IF(LCL!N14="","",LCL!N14) ->  | L107: =IF(LCL!O14="","",LCL!O14) ->  | M107: =IF(LCL!P14="","",LCL!P14) ->  | N107: =IF(LCL!Q14="","",LCL!Q14) ->  | O107: =IF(LCL!R14="","",LCL!R14) ->  | P107: =IF(LCL!S14="","",LCL!S14) ->  | Q107: =IF(LCL!T14="","",LCL!T14) ->  | R107: =IF(LCL!U14="","",LCL!U14) ->  | S107: =IF(LCL!V14="","",LCL!V14) ->  | T107: =IF(LCL!W14="","",LCL!W14) ->  | U107: =IF(LCL!X14="","",LCL!X14) ->  | V107: =IF(LCL!Y14="","",LCL!Y14) ->  | W107: =IF(LCL!Z14="","",LCL!Z14) ->  | X107: =IF(LCL!AA14="","",LCL!AA14) ->  | Y107: =IF(LCL!AB14="","",LCL!AB14) ->  | Z107: =IF(LCL!AC14="","",LCL!AC14) ->  | AA107: =IF(LCL!AD14="","",LCL!AD14) ->  | AB107: =IF(LCL!AE14="","",LCL!AE14) ->  | AC107: =IF(LCL!AF14="","",LCL!AF14) ->  | AD107: =IF(LCL!AG14="","",LCL!AG14) ->  | AE107: =IF(LCL!AH14="","",LCL!AH14) ->  | AF107: =IF(LCL!AI14="","",LCL!AI14) ->  | AG107: =IF(LCL!AJ14="","",LCL!AJ14) ->  | AH107: =IF(LCL!AK14="","",LCL!AK14) ->  | AI107: =IF(LCL!AL14="","",LCL!AL14) ->  | AJ107: =IF(LCL!AM14="","",LCL!AM14) ->  | AK107: =IF(LCL!AN14="","",LCL!AN14) ->  | AL107: =IF(LCL!AO14="","",LCL!AO14) ->  | AM107: =IF(LCL!AP14="","",LCL!AP14) -> 
D108: Criterio Evaluación 6.2 | E108: =IF(LCL!H15="","",LCL!H15) ->  | F108: =IF(LCL!I15="","",LCL!I15) ->  | G108: =IF(LCL!J15="","",LCL!J15) ->  | H108: =IF(LCL!K15="","",LCL!K15) ->  | I108: =IF(LCL!L15="","",LCL!L15) ->  | J108: =IF(LCL!M15="","",LCL!M15) ->  | K108: =IF(LCL!N15="","",LCL!N15) ->  | L108: =IF(LCL!O15="","",LCL!O15) ->  | M108: =IF(LCL!P15="","",LCL!P15) ->  | N108: =IF(LCL!Q15="","",LCL!Q15) ->  | O108: =IF(LCL!R15="","",LCL!R15) ->  | P108: =IF(LCL!S15="","",LCL!S15) ->  | Q108: =IF(LCL!T15="","",LCL!T15) ->  | R108: =IF(LCL!U15="","",LCL!U15) ->  | S108: =IF(LCL!V15="","",LCL!V15) ->  | T108: =IF(LCL!W15="","",LCL!W15) ->  | U108: =IF(LCL!X15="","",LCL!X15) ->  | V108: =IF(LCL!Y15="","",LCL!Y15) ->  | W108: =IF(LCL!Z15="","",LCL!Z15) ->  | X108: =IF(LCL!AA15="","",LCL!AA15) ->  | Y108: =IF(LCL!AB15="","",LCL!AB15) ->  | Z108: =IF(LCL!AC15="","",LCL!AC15) ->  | AA108: =IF(LCL!AD15="","",LCL!AD15) ->  | AB108: =IF(LCL!AE15="","",LCL!AE15) ->  | AC108: =IF(LCL!AF15="","",LCL!AF15) ->  | AD108: =IF(LCL!AG15="","",LCL!AG15) ->  | AE108: =IF(LCL!AH15="","",LCL!AH15) ->  | AF108: =IF(LCL!AI15="","",LCL!AI15) ->  | AG108: =IF(LCL!AJ15="","",LCL!AJ15) ->  | AH108: =IF(LCL!AK15="","",LCL!AK15) ->  | AI108: =IF(LCL!AL15="","",LCL!AL15) ->  | AJ108: =IF(LCL!AM15="","",LCL!AM15) ->  | AK108: =IF(LCL!AN15="","",LCL!AN15) ->  | AL108: =IF(LCL!AO15="","",LCL!AO15) ->  | AM108: =IF(LCL!AP15="","",LCL!AP15) -> 
C109: Comp. Esp. 7 | D109: Criterio Evaluación 7.1 | E109: =IF(LCL!H16="","",LCL!H16) ->  | F109: =IF(LCL!I16="","",LCL!I16) ->  | G109: =IF(LCL!J16="","",LCL!J16) ->  | H109: =IF(LCL!K16="","",LCL!K16) ->  | I109: =IF(LCL!L16="","",LCL!L16) ->  | J109: =IF(LCL!M16="","",LCL!M16) ->  | K109: =IF(LCL!N16="","",LCL!N16) ->  | L109: =IF(LCL!O16="","",LCL!O16) ->  | M109: =IF(LCL!P16="","",LCL!P16) ->  | N109: =IF(LCL!Q16="","",LCL!Q16) ->  | O109: =IF(LCL!R16="","",LCL!R16) ->  | P109: =IF(LCL!S16="","",LCL!S16) ->  | Q109: =IF(LCL!T16="","",LCL!T16) ->  | R109: =IF(LCL!U16="","",LCL!U16) ->  | S109: =IF(LCL!V16="","",LCL!V16) ->  | T109: =IF(LCL!W16="","",LCL!W16) ->  | U109: =IF(LCL!X16="","",LCL!X16) ->  | V109: =IF(LCL!Y16="","",LCL!Y16) ->  | W109: =IF(LCL!Z16="","",LCL!Z16) ->  | X109: =IF(LCL!AA16="","",LCL!AA16) ->  | Y109: =IF(LCL!AB16="","",LCL!AB16) ->  | Z109: =IF(LCL!AC16="","",LCL!AC16) ->  | AA109: =IF(LCL!AD16="","",LCL!AD16) ->  | AB109: =IF(LCL!AE16="","",LCL!AE16) ->  | AC109: =IF(LCL!AF16="","",LCL!AF16) ->  | AD109: =IF(LCL!AG16="","",LCL!AG16) ->  | AE109: =IF(LCL!AH16="","",LCL!AH16) ->  | AF109: =IF(LCL!AI16="","",LCL!AI16) ->  | AG109: =IF(LCL!AJ16="","",LCL!AJ16) ->  | AH109: =IF(LCL!AK16="","",LCL!AK16) ->  | AI109: =IF(LCL!AL16="","",LCL!AL16) ->  | AJ109: =IF(LCL!AM16="","",LCL!AM16) ->  | AK109: =IF(LCL!AN16="","",LCL!AN16) ->  | AL109: =IF(LCL!AO16="","",LCL!AO16) ->  | AM109: =IF(LCL!AP16="","",LCL!AP16) -> 
D110: Criterio Evaluación 7.2 | E110: =IF(LCL!H17="","",LCL!H17) ->  | F110: =IF(LCL!I17="","",LCL!I17) ->  | G110: =IF(LCL!J17="","",LCL!J17) ->  | H110: =IF(LCL!K17="","",LCL!K17) ->  | I110: =IF(LCL!L17="","",LCL!L17) ->  | J110: =IF(LCL!M17="","",LCL!M17) ->  | K110: =IF(LCL!N17="","",LCL!N17) ->  | L110: =IF(LCL!O17="","",LCL!O17) ->  | M110: =IF(LCL!P17="","",LCL!P17) ->  | N110: =IF(LCL!Q17="","",LCL!Q17) ->  | O110: =IF(LCL!R17="","",LCL!R17) ->  | P110: =IF(LCL!S17="","",LCL!S17) ->  | Q110: =IF(LCL!T17="","",LCL!T17) ->  | R110: =IF(LCL!U17="","",LCL!U17) ->  | S110: =IF(LCL!V17="","",LCL!V17) ->  | T110: =IF(LCL!W17="","",LCL!W17) ->  | U110: =IF(LCL!X17="","",LCL!X17) ->  | V110: =IF(LCL!Y17="","",LCL!Y17) ->  | W110: =IF(LCL!Z17="","",LCL!Z17) ->  | X110: =IF(LCL!AA17="","",LCL!AA17) ->  | Y110: =IF(LCL!AB17="","",LCL!AB17) ->  | Z110: =IF(LCL!AC17="","",LCL!AC17) ->  | AA110: =IF(LCL!AD17="","",LCL!AD17) ->  | AB110: =IF(LCL!AE17="","",LCL!AE17) ->  | AC110: =IF(LCL!AF17="","",LCL!AF17) ->  | AD110: =IF(LCL!AG17="","",LCL!AG17) ->  | AE110: =IF(LCL!AH17="","",LCL!AH17) ->  | AF110: =IF(LCL!AI17="","",LCL!AI17) ->  | AG110: =IF(LCL!AJ17="","",LCL!AJ17) ->  | AH110: =IF(LCL!AK17="","",LCL!AK17) ->  | AI110: =IF(LCL!AL17="","",LCL!AL17) ->  | AJ110: =IF(LCL!AM17="","",LCL!AM17) ->  | AK110: =IF(LCL!AN17="","",LCL!AN17) ->  | AL110: =IF(LCL!AO17="","",LCL!AO17) ->  | AM110: =IF(LCL!AP17="","",LCL!AP17) -> 
D111: Criterio Evaluación 7.3 | E111: =IF(LCL!H18="","",LCL!H18) ->  | F111: =IF(LCL!I18="","",LCL!I18) ->  | G111: =IF(LCL!J18="","",LCL!J18) ->  | H111: =IF(LCL!K18="","",LCL!K18) ->  | I111: =IF(LCL!L18="","",LCL!L18) ->  | J111: =IF(LCL!M18="","",LCL!M18) ->  | K111: =IF(LCL!N18="","",LCL!N18) ->  | L111: =IF(LCL!O18="","",LCL!O18) ->  | M111: =IF(LCL!P18="","",LCL!P18) ->  | N111: =IF(LCL!Q18="","",LCL!Q18) ->  | O111: =IF(LCL!R18="","",LCL!R18) ->  | P111: =IF(LCL!S18="","",LCL!S18) ->  | Q111: =IF(LCL!T18="","",LCL!T18) ->  | R111: =IF(LCL!U18="","",LCL!U18) ->  | S111: =IF(LCL!V18="","",LCL!V18) ->  | T111: =IF(LCL!W18="","",LCL!W18) ->  | U111: =IF(LCL!X18="","",LCL!X18) ->  | V111: =IF(LCL!Y18="","",LCL!Y18) ->  | W111: =IF(LCL!Z18="","",LCL!Z18) ->  | X111: =IF(LCL!AA18="","",LCL!AA18) ->  | Y111: =IF(LCL!AB18="","",LCL!AB18) ->  | Z111: =IF(LCL!AC18="","",LCL!AC18) ->  | AA111: =IF(LCL!AD18="","",LCL!AD18) ->  | AB111: =IF(LCL!AE18="","",LCL!AE18) ->  | AC111: =IF(LCL!AF18="","",LCL!AF18) ->  | AD111: =IF(LCL!AG18="","",LCL!AG18) ->  | AE111: =IF(LCL!AH18="","",LCL!AH18) ->  | AF111: =IF(LCL!AI18="","",LCL!AI18) ->  | AG111: =IF(LCL!AJ18="","",LCL!AJ18) ->  | AH111: =IF(LCL!AK18="","",LCL!AK18) ->  | AI111: =IF(LCL!AL18="","",LCL!AL18) ->  | AJ111: =IF(LCL!AM18="","",LCL!AM18) ->  | AK111: =IF(LCL!AN18="","",LCL!AN18) ->  | AL111: =IF(LCL!AO18="","",LCL!AO18) ->  | AM111: =IF(LCL!AP18="","",LCL!AP18) -> 
D112: Criterio Evaluación 7.4 | E112: =IF(LCL!H19="","",LCL!H19) ->  | F112: =IF(LCL!I19="","",LCL!I19) ->  | G112: =IF(LCL!J19="","",LCL!J19) ->  | H112: =IF(LCL!K19="","",LCL!K19) ->  | I112: =IF(LCL!L19="","",LCL!L19) ->  | J112: =IF(LCL!M19="","",LCL!M19) ->  | K112: =IF(LCL!N19="","",LCL!N19) ->  | L112: =IF(LCL!O19="","",LCL!O19) ->  | M112: =IF(LCL!P19="","",LCL!P19) ->  | N112: =IF(LCL!Q19="","",LCL!Q19) ->  | O112: =IF(LCL!R19="","",LCL!R19) ->  | P112: =IF(LCL!S19="","",LCL!S19) ->  | Q112: =IF(LCL!T19="","",LCL!T19) ->  | R112: =IF(LCL!U19="","",LCL!U19) ->  | S112: =IF(LCL!V19="","",LCL!V19) ->  | T112: =IF(LCL!W19="","",LCL!W19) ->  | U112: =IF(LCL!X19="","",LCL!X19) ->  | V112: =IF(LCL!Y19="","",LCL!Y19) ->  | W112: =IF(LCL!Z19="","",LCL!Z19) ->  | X112: =IF(LCL!AA19="","",LCL!AA19) ->  | Y112: =IF(LCL!AB19="","",LCL!AB19) ->  | Z112: =IF(LCL!AC19="","",LCL!AC19) ->  | AA112: =IF(LCL!AD19="","",LCL!AD19) ->  | AB112: =IF(LCL!AE19="","",LCL!AE19) ->  | AC112: =IF(LCL!AF19="","",LCL!AF19) ->  | AD112: =IF(LCL!AG19="","",LCL!AG19) ->  | AE112: =IF(LCL!AH19="","",LCL!AH19) ->  | AF112: =IF(LCL!AI19="","",LCL!AI19) ->  | AG112: =IF(LCL!AJ19="","",LCL!AJ19) ->  | AH112: =IF(LCL!AK19="","",LCL!AK19) ->  | AI112: =IF(LCL!AL19="","",LCL!AL19) ->  | AJ112: =IF(LCL!AM19="","",LCL!AM19) ->  | AK112: =IF(LCL!AN19="","",LCL!AN19) ->  | AL112: =IF(LCL!AO19="","",LCL!AO19) ->  | AM112: =IF(LCL!AP19="","",LCL!AP19) -> 
C113: Comp. Esp. 8 | D113: Criterio Evaluación 8.1 | E113: =IF(LCL!H20="","",LCL!H20) ->  | F113: =IF(LCL!I20="","",LCL!I20) ->  | G113: =IF(LCL!J20="","",LCL!J20) ->  | H113: =IF(LCL!K20="","",LCL!K20) ->  | I113: =IF(LCL!L20="","",LCL!L20) ->  | J113: =IF(LCL!M20="","",LCL!M20) ->  | K113: =IF(LCL!N20="","",LCL!N20) ->  | L113: =IF(LCL!O20="","",LCL!O20) ->  | M113: =IF(LCL!P20="","",LCL!P20) ->  | N113: =IF(LCL!Q20="","",LCL!Q20) ->  | O113: =IF(LCL!R20="","",LCL!R20) ->  | P113: =IF(LCL!S20="","",LCL!S20) ->  | Q113: =IF(LCL!T20="","",LCL!T20) ->  | R113: =IF(LCL!U20="","",LCL!U20) ->  | S113: =IF(LCL!V20="","",LCL!V20) ->  | T113: =IF(LCL!W20="","",LCL!W20) ->  | U113: =IF(LCL!X20="","",LCL!X20) ->  | V113: =IF(LCL!Y20="","",LCL!Y20) ->  | W113: =IF(LCL!Z20="","",LCL!Z20) ->  | X113: =IF(LCL!AA20="","",LCL!AA20) ->  | Y113: =IF(LCL!AB20="","",LCL!AB20) ->  | Z113: =IF(LCL!AC20="","",LCL!AC20) ->  | AA113: =IF(LCL!AD20="","",LCL!AD20) ->  | AB113: =IF(LCL!AE20="","",LCL!AE20) ->  | AC113: =IF(LCL!AF20="","",LCL!AF20) ->  | AD113: =IF(LCL!AG20="","",LCL!AG20) ->  | AE113: =IF(LCL!AH20="","",LCL!AH20) ->  | AF113: =IF(LCL!AI20="","",LCL!AI20) ->  | AG113: =IF(LCL!AJ20="","",LCL!AJ20) ->  | AH113: =IF(LCL!AK20="","",LCL!AK20) ->  | AI113: =IF(LCL!AL20="","",LCL!AL20) ->  | AJ113: =IF(LCL!AM20="","",LCL!AM20) ->  | AK113: =IF(LCL!AN20="","",LCL!AN20) ->  | AL113: =IF(LCL!AO20="","",LCL!AO20) ->  | AM113: =IF(LCL!AP20="","",LCL!AP20) -> 
D114: Criterio Evaluación 8.2 | E114: =IF(LCL!H21="","",LCL!H21) ->  | F114: =IF(LCL!I21="","",LCL!I21) ->  | G114: =IF(LCL!J21="","",LCL!J21) ->  | H114: =IF(LCL!K21="","",LCL!K21) ->  | I114: =IF(LCL!L21="","",LCL!L21) ->  | J114: =IF(LCL!M21="","",LCL!M21) ->  | K114: =IF(LCL!N21="","",LCL!N21) ->  | L114: =IF(LCL!O21="","",LCL!O21) ->  | M114: =IF(LCL!P21="","",LCL!P21) ->  | N114: =IF(LCL!Q21="","",LCL!Q21) ->  | O114: =IF(LCL!R21="","",LCL!R21) ->  | P114: =IF(LCL!S21="","",LCL!S21) ->  | Q114: =IF(LCL!T21="","",LCL!T21) ->  | R114: =IF(LCL!U21="","",LCL!U21) ->  | S114: =IF(LCL!V21="","",LCL!V21) ->  | T114: =IF(LCL!W21="","",LCL!W21) ->  | U114: =IF(LCL!X21="","",LCL!X21) ->  | V114: =IF(LCL!Y21="","",LCL!Y21) ->  | W114: =IF(LCL!Z21="","",LCL!Z21) ->  | X114: =IF(LCL!AA21="","",LCL!AA21) ->  | Y114: =IF(LCL!AB21="","",LCL!AB21) ->  | Z114: =IF(LCL!AC21="","",LCL!AC21) ->  | AA114: =IF(LCL!AD21="","",LCL!AD21) ->  | AB114: =IF(LCL!AE21="","",LCL!AE21) ->  | AC114: =IF(LCL!AF21="","",LCL!AF21) ->  | AD114: =IF(LCL!AG21="","",LCL!AG21) ->  | AE114: =IF(LCL!AH21="","",LCL!AH21) ->  | AF114: =IF(LCL!AI21="","",LCL!AI21) ->  | AG114: =IF(LCL!AJ21="","",LCL!AJ21) ->  | AH114: =IF(LCL!AK21="","",LCL!AK21) ->  | AI114: =IF(LCL!AL21="","",LCL!AL21) ->  | AJ114: =IF(LCL!AM21="","",LCL!AM21) ->  | AK114: =IF(LCL!AN21="","",LCL!AN21) ->  | AL114: =IF(LCL!AO21="","",LCL!AO21) ->  | AM114: =IF(LCL!AP21="","",LCL!AP21) -> 
D115: Criterio Evaluación 8.3 | E115: =IF(LCL!H22="","",LCL!H22) ->  | F115: =IF(LCL!I22="","",LCL!I22) ->  | G115: =IF(LCL!J22="","",LCL!J22) ->  | H115: =IF(LCL!K22="","",LCL!K22) ->  | I115: =IF(LCL!L22="","",LCL!L22) ->  | J115: =IF(LCL!M22="","",LCL!M22) ->  | K115: =IF(LCL!N22="","",LCL!N22) ->  | L115: =IF(LCL!O22="","",LCL!O22) ->  | M115: =IF(LCL!P22="","",LCL!P22) ->  | N115: =IF(LCL!Q22="","",LCL!Q22) ->  | O115: =IF(LCL!R22="","",LCL!R22) ->  | P115: =IF(LCL!S22="","",LCL!S22) ->  | Q115: =IF(LCL!T22="","",LCL!T22) ->  | R115: =IF(LCL!U22="","",LCL!U22) ->  | S115: =IF(LCL!V22="","",LCL!V22) ->  | T115: =IF(LCL!W22="","",LCL!W22) ->  | U115: =IF(LCL!X22="","",LCL!X22) ->  | V115: =IF(LCL!Y22="","",LCL!Y22) ->  | W115: =IF(LCL!Z22="","",LCL!Z22) ->  | X115: =IF(LCL!AA22="","",LCL!AA22) ->  | Y115: =IF(LCL!AB22="","",LCL!AB22) ->  | Z115: =IF(LCL!AC22="","",LCL!AC22) ->  | AA115: =IF(LCL!AD22="","",LCL!AD22) ->  | AB115: =IF(LCL!AE22="","",LCL!AE22) ->  | AC115: =IF(LCL!AF22="","",LCL!AF22) ->  | AD115: =IF(LCL!AG22="","",LCL!AG22) ->  | AE115: =IF(LCL!AH22="","",LCL!AH22) ->  | AF115: =IF(LCL!AI22="","",LCL!AI22) ->  | AG115: =IF(LCL!AJ22="","",LCL!AJ22) ->  | AH115: =IF(LCL!AK22="","",LCL!AK22) ->  | AI115: =IF(LCL!AL22="","",LCL!AL22) ->  | AJ115: =IF(LCL!AM22="","",LCL!AM22) ->  | AK115: =IF(LCL!AN22="","",LCL!AN22) ->  | AL115: =IF(LCL!AO22="","",LCL!AO22) ->  | AM115: =IF(LCL!AP22="","",LCL!AP22) -> 
C116: Comp. Esp. 9 | D116: Criterio Evaluación 9.1 | E116: =IF(LCL!H23="","",LCL!H23) ->  | F116: =IF(LCL!I23="","",LCL!I23) ->  | G116: =IF(LCL!J23="","",LCL!J23) ->  | H116: =IF(LCL!K23="","",LCL!K23) ->  | I116: =IF(LCL!L23="","",LCL!L23) ->  | J116: =IF(LCL!M23="","",LCL!M23) ->  | K116: =IF(LCL!N23="","",LCL!N23) ->  | L116: =IF(LCL!O23="","",LCL!O23) ->  | M116: =IF(LCL!P23="","",LCL!P23) ->  | N116: =IF(LCL!Q23="","",LCL!Q23) ->  | O116: =IF(LCL!R23="","",LCL!R23) ->  | P116: =IF(LCL!S23="","",LCL!S23) ->  | Q116: =IF(LCL!T23="","",LCL!T23) ->  | R116: =IF(LCL!U23="","",LCL!U23) ->  | S116: =IF(LCL!V23="","",LCL!V23) ->  | T116: =IF(LCL!W23="","",LCL!W23) ->  | U116: =IF(LCL!X23="","",LCL!X23) ->  | V116: =IF(LCL!Y23="","",LCL!Y23) ->  | W116: =IF(LCL!Z23="","",LCL!Z23) ->  | X116: =IF(LCL!AA23="","",LCL!AA23) ->  | Y116: =IF(LCL!AB23="","",LCL!AB23) ->  | Z116: =IF(LCL!AC23="","",LCL!AC23) ->  | AA116: =IF(LCL!AD23="","",LCL!AD23) ->  | AB116: =IF(LCL!AE23="","",LCL!AE23) ->  | AC116: =IF(LCL!AF23="","",LCL!AF23) ->  | AD116: =IF(LCL!AG23="","",LCL!AG23) ->  | AE116: =IF(LCL!AH23="","",LCL!AH23) ->  | AF116: =IF(LCL!AI23="","",LCL!AI23) ->  | AG116: =IF(LCL!AJ23="","",LCL!AJ23) ->  | AH116: =IF(LCL!AK23="","",LCL!AK23) ->  | AI116: =IF(LCL!AL23="","",LCL!AL23) ->  | AJ116: =IF(LCL!AM23="","",LCL!AM23) ->  | AK116: =IF(LCL!AN23="","",LCL!AN23) ->  | AL116: =IF(LCL!AO23="","",LCL!AO23) ->  | AM116: =IF(LCL!AP23="","",LCL!AP23) -> 
D117: Criterio Evaluación 9.2 | E117: =IF(LCL!H24="","",LCL!H24) ->  | F117: =IF(LCL!I24="","",LCL!I24) ->  | G117: =IF(LCL!J24="","",LCL!J24) ->  | H117: =IF(LCL!K24="","",LCL!K24) ->  | I117: =IF(LCL!L24="","",LCL!L24) ->  | J117: =IF(LCL!M24="","",LCL!M24) ->  | K117: =IF(LCL!N24="","",LCL!N24) ->  | L117: =IF(LCL!O24="","",LCL!O24) ->  | M117: =IF(LCL!P24="","",LCL!P24) ->  | N117: =IF(LCL!Q24="","",LCL!Q24) ->  | O117: =IF(LCL!R24="","",LCL!R24) ->  | P117: =IF(LCL!S24="","",LCL!S24) ->  | Q117: =IF(LCL!T24="","",LCL!T24) ->  | R117: =IF(LCL!U24="","",LCL!U24) ->  | S117: =IF(LCL!V24="","",LCL!V24) ->  | T117: =IF(LCL!W24="","",LCL!W24) ->  | U117: =IF(LCL!X24="","",LCL!X24) ->  | V117: =IF(LCL!Y24="","",LCL!Y24) ->  | W117: =IF(LCL!Z24="","",LCL!Z24) ->  | X117: =IF(LCL!AA24="","",LCL!AA24) ->  | Y117: =IF(LCL!AB24="","",LCL!AB24) ->  | Z117: =IF(LCL!AC24="","",LCL!AC24) ->  | AA117: =IF(LCL!AD24="","",LCL!AD24) ->  | AB117: =IF(LCL!AE24="","",LCL!AE24) ->  | AC117: =IF(LCL!AF24="","",LCL!AF24) ->  | AD117: =IF(LCL!AG24="","",LCL!AG24) ->  | AE117: =IF(LCL!AH24="","",LCL!AH24) ->  | AF117: =IF(LCL!AI24="","",LCL!AI24) ->  | AG117: =IF(LCL!AJ24="","",LCL!AJ24) ->  | AH117: =IF(LCL!AK24="","",LCL!AK24) ->  | AI117: =IF(LCL!AL24="","",LCL!AL24) ->  | AJ117: =IF(LCL!AM24="","",LCL!AM24) ->  | AK117: =IF(LCL!AN24="","",LCL!AN24) ->  | AL117: =IF(LCL!AO24="","",LCL!AO24) ->  | AM117: =IF(LCL!AP24="","",LCL!AP24) -> 
D118: Criterio Evaluación 9.3 | E118: =IF(LCL!H25="","",LCL!H25) ->  | F118: =IF(LCL!I25="","",LCL!I25) ->  | G118: =IF(LCL!J25="","",LCL!J25) ->  | H118: =IF(LCL!K25="","",LCL!K25) ->  | I118: =IF(LCL!L25="","",LCL!L25) ->  | J118: =IF(LCL!M25="","",LCL!M25) ->  | K118: =IF(LCL!N25="","",LCL!N25) ->  | L118: =IF(LCL!O25="","",LCL!O25) ->  | M118: =IF(LCL!P25="","",LCL!P25) ->  | N118: =IF(LCL!Q25="","",LCL!Q25) ->  | O118: =IF(LCL!R25="","",LCL!R25) ->  | P118: =IF(LCL!S25="","",LCL!S25) ->  | Q118: =IF(LCL!T25="","",LCL!T25) ->  | R118: =IF(LCL!U25="","",LCL!U25) ->  | S118: =IF(LCL!V25="","",LCL!V25) ->  | T118: =IF(LCL!W25="","",LCL!W25) ->  | U118: =IF(LCL!X25="","",LCL!X25) ->  | V118: =IF(LCL!Y25="","",LCL!Y25) ->  | W118: =IF(LCL!Z25="","",LCL!Z25) ->  | X118: =IF(LCL!AA25="","",LCL!AA25) ->  | Y118: =IF(LCL!AB25="","",LCL!AB25) ->  | Z118: =IF(LCL!AC25="","",LCL!AC25) ->  | AA118: =IF(LCL!AD25="","",LCL!AD25) ->  | AB118: =IF(LCL!AE25="","",LCL!AE25) ->  | AC118: =IF(LCL!AF25="","",LCL!AF25) ->  | AD118: =IF(LCL!AG25="","",LCL!AG25) ->  | AE118: =IF(LCL!AH25="","",LCL!AH25) ->  | AF118: =IF(LCL!AI25="","",LCL!AI25) ->  | AG118: =IF(LCL!AJ25="","",LCL!AJ25) ->  | AH118: =IF(LCL!AK25="","",LCL!AK25) ->  | AI118: =IF(LCL!AL25="","",LCL!AL25) ->  | AJ118: =IF(LCL!AM25="","",LCL!AM25) ->  | AK118: =IF(LCL!AN25="","",LCL!AN25) ->  | AL118: =IF(LCL!AO25="","",LCL!AO25) ->  | AM118: =IF(LCL!AP25="","",LCL!AP25) -> 
C119: Comp. Esp. 10 | D119: Criterio Evaluación 10.1 | E119: =IF(LCL!H26="","",LCL!H26) ->  | F119: =IF(LCL!I26="","",LCL!I26) ->  | G119: =IF(LCL!J26="","",LCL!J26) ->  | H119: =IF(LCL!K26="","",LCL!K26) ->  | I119: =IF(LCL!L26="","",LCL!L26) ->  | J119: =IF(LCL!M26="","",LCL!M26) ->  | K119: =IF(LCL!N26="","",LCL!N26) ->  | L119: =IF(LCL!O26="","",LCL!O26) ->  | M119: =IF(LCL!P26="","",LCL!P26) ->  | N119: =IF(LCL!Q26="","",LCL!Q26) ->  | O119: =IF(LCL!R26="","",LCL!R26) ->  | P119: =IF(LCL!S26="","",LCL!S26) ->  | Q119: =IF(LCL!T26="","",LCL!T26) ->  | R119: =IF(LCL!U26="","",LCL!U26) ->  | S119: =IF(LCL!V26="","",LCL!V26) ->  | T119: =IF(LCL!W26="","",LCL!W26) ->  | U119: =IF(LCL!X26="","",LCL!X26) ->  | V119: =IF(LCL!Y26="","",LCL!Y26) ->  | W119: =IF(LCL!Z26="","",LCL!Z26) ->  | X119: =IF(LCL!AA26="","",LCL!AA26) ->  | Y119: =IF(LCL!AB26="","",LCL!AB26) ->  | Z119: =IF(LCL!AC26="","",LCL!AC26) ->  | AA119: =IF(LCL!AD26="","",LCL!AD26) ->  | AB119: =IF(LCL!AE26="","",LCL!AE26) ->  | AC119: =IF(LCL!AF26="","",LCL!AF26) ->  | AD119: =IF(LCL!AG26="","",LCL!AG26) ->  | AE119: =IF(LCL!AH26="","",LCL!AH26) ->  | AF119: =IF(LCL!AI26="","",LCL!AI26) ->  | AG119: =IF(LCL!AJ26="","",LCL!AJ26) ->  | AH119: =IF(LCL!AK26="","",LCL!AK26) ->  | AI119: =IF(LCL!AL26="","",LCL!AL26) ->  | AJ119: =IF(LCL!AM26="","",LCL!AM26) ->  | AK119: =IF(LCL!AN26="","",LCL!AN26) ->  | AL119: =IF(LCL!AO26="","",LCL!AO26) ->  | AM119: =IF(LCL!AP26="","",LCL!AP26) -> 
D120: Criterio Evaluación 10.2 | E120: =IF(LCL!H27="","",LCL!H27) ->  | F120: =IF(LCL!I27="","",LCL!I27) ->  | G120: =IF(LCL!J27="","",LCL!J27) ->  | H120: =IF(LCL!K27="","",LCL!K27) ->  | I120: =IF(LCL!L27="","",LCL!L27) ->  | J120: =IF(LCL!M27="","",LCL!M27) ->  | K120: =IF(LCL!N27="","",LCL!N27) ->  | L120: =IF(LCL!O27="","",LCL!O27) ->  | M120: =IF(LCL!P27="","",LCL!P27) ->  | N120: =IF(LCL!Q27="","",LCL!Q27) ->  | O120: =IF(LCL!R27="","",LCL!R27) ->  | P120: =IF(LCL!S27="","",LCL!S27) ->  | Q120: =IF(LCL!T27="","",LCL!T27) ->  | R120: =IF(LCL!U27="","",LCL!U27) ->  | S120: =IF(LCL!V27="","",LCL!V27) ->  | T120: =IF(LCL!W27="","",LCL!W27) ->  | U120: =IF(LCL!X27="","",LCL!X27) ->  | V120: =IF(LCL!Y27="","",LCL!Y27) ->  | W120: =IF(LCL!Z27="","",LCL!Z27) ->  | X120: =IF(LCL!AA27="","",LCL!AA27) ->  | Y120: =IF(LCL!AB27="","",LCL!AB27) ->  | Z120: =IF(LCL!AC27="","",LCL!AC27) ->  | AA120: =IF(LCL!AD27="","",LCL!AD27) ->  | AB120: =IF(LCL!AE27="","",LCL!AE27) ->  | AC120: =IF(LCL!AF27="","",LCL!AF27) ->  | AD120: =IF(LCL!AG27="","",LCL!AG27) ->  | AE120: =IF(LCL!AH27="","",LCL!AH27) ->  | AF120: =IF(LCL!AI27="","",LCL!AI27) ->  | AG120: =IF(LCL!AJ27="","",LCL!AJ27) ->  | AH120: =IF(LCL!AK27="","",LCL!AK27) ->  | AI120: =IF(LCL!AL27="","",LCL!AL27) ->  | AJ120: =IF(LCL!AM27="","",LCL!AM27) ->  | AK120: =IF(LCL!AN27="","",LCL!AN27) ->  | AL120: =IF(LCL!AO27="","",LCL!AO27) ->  | AM120: =IF(LCL!AP27="","",LCL!AP27) -> 
B121: Lengua Extranjera II | C121: Comp. Esp. 1 | D121: Criterio Evaluación 1.1 | E121: =IF(LEX!H4="","",LEX!H4) ->  | F121: =IF(LEX!I4="","",LEX!I4) ->  | G121: =IF(LEX!J4="","",LEX!J4) ->  | H121: =IF(LEX!K4="","",LEX!K4) ->  | I121: =IF(LEX!L4="","",LEX!L4) ->  | J121: =IF(LEX!M4="","",LEX!M4) ->  | K121: =IF(LEX!N4="","",LEX!N4) ->  | L121: =IF(LEX!O4="","",LEX!O4) ->  | M121: =IF(LEX!P4="","",LEX!P4) ->  | N121: =IF(LEX!Q4="","",LEX!Q4) ->  | O121: =IF(LEX!R4="","",LEX!R4) ->  | P121: =IF(LEX!S4="","",LEX!S4) ->  | Q121: =IF(LEX!T4="","",LEX!T4) ->  | R121: =IF(LEX!U4="","",LEX!U4) ->  | S121: =IF(LEX!V4="","",LEX!V4) ->  | T121: =IF(LEX!W4="","",LEX!W4) ->  | U121: =IF(LEX!X4="","",LEX!X4) ->  | V121: =IF(LEX!Y4="","",LEX!Y4) ->  | W121: =IF(LEX!Z4="","",LEX!Z4) ->  | X121: =IF(LEX!AA4="","",LEX!AA4) ->  | Y121: =IF(LEX!AB4="","",LEX!AB4) ->  | Z121: =IF(LEX!AC4="","",LEX!AC4) ->  | AA121: =IF(LEX!AD4="","",LEX!AD4) ->  | AB121: =IF(LEX!AE4="","",LEX!AE4) ->  | AC121: =IF(LEX!AF4="","",LEX!AF4) ->  | AD121: =IF(LEX!AG4="","",LEX!AG4) ->  | AE121: =IF(LEX!AH4="","",LEX!AH4) ->  | AF121: =IF(LEX!AI4="","",LEX!AI4) ->  | AG121: =IF(LEX!AJ4="","",LEX!AJ4) ->  | AH121: =IF(LEX!AK4="","",LEX!AK4) ->  | AI121: =IF(LEX!AL4="","",LEX!AL4) ->  | AJ121: =IF(LEX!AM4="","",LEX!AM4) ->  | AK121: =IF(LEX!AN4="","",LEX!AN4) ->  | AL121: =IF(LEX!AO4="","",LEX!AO4) ->  | AM121: =IF(LEX!AP4="","",LEX!AP4) -> 
D122: Criterio Evaluación 1.2 | E122: =IF(LEX!H5="","",LEX!H5) ->  | F122: =IF(LEX!I5="","",LEX!I5) ->  | G122: =IF(LEX!J5="","",LEX!J5) ->  | H122: =IF(LEX!K5="","",LEX!K5) ->  | I122: =IF(LEX!L5="","",LEX!L5) ->  | J122: =IF(LEX!M5="","",LEX!M5) ->  | K122: =IF(LEX!N5="","",LEX!N5) ->  | L122: =IF(LEX!O5="","",LEX!O5) ->  | M122: =IF(LEX!P5="","",LEX!P5) ->  | N122: =IF(LEX!Q5="","",LEX!Q5) ->  | O122: =IF(LEX!R5="","",LEX!R5) ->  | P122: =IF(LEX!S5="","",LEX!S5) ->  | Q122: =IF(LEX!T5="","",LEX!T5) ->  | R122: =IF(LEX!U5="","",LEX!U5) ->  | S122: =IF(LEX!V5="","",LEX!V5) ->  | T122: =IF(LEX!W5="","",LEX!W5) ->  | U122: =IF(LEX!X5="","",LEX!X5) ->  | V122: =IF(LEX!Y5="","",LEX!Y5) ->  | W122: =IF(LEX!Z5="","",LEX!Z5) ->  | X122: =IF(LEX!AA5="","",LEX!AA5) ->  | Y122: =IF(LEX!AB5="","",LEX!AB5) ->  | Z122: =IF(LEX!AC5="","",LEX!AC5) ->  | AA122: =IF(LEX!AD5="","",LEX!AD5) ->  | AB122: =IF(LEX!AE5="","",LEX!AE5) ->  | AC122: =IF(LEX!AF5="","",LEX!AF5) ->  | AD122: =IF(LEX!AG5="","",LEX!AG5) ->  | AE122: =IF(LEX!AH5="","",LEX!AH5) ->  | AF122: =IF(LEX!AI5="","",LEX!AI5) ->  | AG122: =IF(LEX!AJ5="","",LEX!AJ5) ->  | AH122: =IF(LEX!AK5="","",LEX!AK5) ->  | AI122: =IF(LEX!AL5="","",LEX!AL5) ->  | AJ122: =IF(LEX!AM5="","",LEX!AM5) ->  | AK122: =IF(LEX!AN5="","",LEX!AN5) ->  | AL122: =IF(LEX!AO5="","",LEX!AO5) ->  | AM122: =IF(LEX!AP5="","",LEX!AP5) -> 
D123: Criterio Evaluación 1.3 | E123: =IF(LEX!H6="","",LEX!H6) ->  | F123: =IF(LEX!I6="","",LEX!I6) ->  | G123: =IF(LEX!J6="","",LEX!J6) ->  | H123: =IF(LEX!K6="","",LEX!K6) ->  | I123: =IF(LEX!L6="","",LEX!L6) ->  | J123: =IF(LEX!M6="","",LEX!M6) ->  | K123: =IF(LEX!N6="","",LEX!N6) ->  | L123: =IF(LEX!O6="","",LEX!O6) ->  | M123: =IF(LEX!P6="","",LEX!P6) ->  | N123: =IF(LEX!Q6="","",LEX!Q6) ->  | O123: =IF(LEX!R6="","",LEX!R6) ->  | P123: =IF(LEX!S6="","",LEX!S6) ->  | Q123: =IF(LEX!T6="","",LEX!T6) ->  | R123: =IF(LEX!U6="","",LEX!U6) ->  | S123: =IF(LEX!V6="","",LEX!V6) ->  | T123: =IF(LEX!W6="","",LEX!W6) ->  | U123: =IF(LEX!X6="","",LEX!X6) ->  | V123: =IF(LEX!Y6="","",LEX!Y6) ->  | W123: =IF(LEX!Z6="","",LEX!Z6) ->  | X123: =IF(LEX!AA6="","",LEX!AA6) ->  | Y123: =IF(LEX!AB6="","",LEX!AB6) ->  | Z123: =IF(LEX!AC6="","",LEX!AC6) ->  | AA123: =IF(LEX!AD6="","",LEX!AD6) ->  | AB123: =IF(LEX!AE6="","",LEX!AE6) ->  | AC123: =IF(LEX!AF6="","",LEX!AF6) ->  | AD123: =IF(LEX!AG6="","",LEX!AG6) ->  | AE123: =IF(LEX!AH6="","",LEX!AH6) ->  | AF123: =IF(LEX!AI6="","",LEX!AI6) ->  | AG123: =IF(LEX!AJ6="","",LEX!AJ6) ->  | AH123: =IF(LEX!AK6="","",LEX!AK6) ->  | AI123: =IF(LEX!AL6="","",LEX!AL6) ->  | AJ123: =IF(LEX!AM6="","",LEX!AM6) ->  | AK123: =IF(LEX!AN6="","",LEX!AN6) ->  | AL123: =IF(LEX!AO6="","",LEX!AO6) ->  | AM123: =IF(LEX!AP6="","",LEX!AP6) -> 
D124: Criterio Evaluación 1.4 | E124: =IF(LEX!H7="","",LEX!H7) ->  | F124: =IF(LEX!I7="","",LEX!I7) ->  | G124: =IF(LEX!J7="","",LEX!J7) ->  | H124: =IF(LEX!K7="","",LEX!K7) ->  | I124: =IF(LEX!L7="","",LEX!L7) ->  | J124: =IF(LEX!M7="","",LEX!M7) ->  | K124: =IF(LEX!N7="","",LEX!N7) ->  | L124: =IF(LEX!O7="","",LEX!O7) ->  | M124: =IF(LEX!P7="","",LEX!P7) ->  | N124: =IF(LEX!Q7="","",LEX!Q7) ->  | O124: =IF(LEX!R7="","",LEX!R7) ->  | P124: =IF(LEX!S7="","",LEX!S7) ->  | Q124: =IF(LEX!T7="","",LEX!T7) ->  | R124: =IF(LEX!U7="","",LEX!U7) ->  | S124: =IF(LEX!V7="","",LEX!V7) ->  | T124: =IF(LEX!W7="","",LEX!W7) ->  | U124: =IF(LEX!X7="","",LEX!X7) ->  | V124: =IF(LEX!Y7="","",LEX!Y7) ->  | W124: =IF(LEX!Z7="","",LEX!Z7) ->  | X124: =IF(LEX!AA7="","",LEX!AA7) ->  | Y124: =IF(LEX!AB7="","",LEX!AB7) ->  | Z124: =IF(LEX!AC7="","",LEX!AC7) ->  | AA124: =IF(LEX!AD7="","",LEX!AD7) ->  | AB124: =IF(LEX!AE7="","",LEX!AE7) ->  | AC124: =IF(LEX!AF7="","",LEX!AF7) ->  | AD124: =IF(LEX!AG7="","",LEX!AG7) ->  | AE124: =IF(LEX!AH7="","",LEX!AH7) ->  | AF124: =IF(LEX!AI7="","",LEX!AI7) ->  | AG124: =IF(LEX!AJ7="","",LEX!AJ7) ->  | AH124: =IF(LEX!AK7="","",LEX!AK7) ->  | AI124: =IF(LEX!AL7="","",LEX!AL7) ->  | AJ124: =IF(LEX!AM7="","",LEX!AM7) ->  | AK124: =IF(LEX!AN7="","",LEX!AN7) ->  | AL124: =IF(LEX!AO7="","",LEX!AO7) ->  | AM124: =IF(LEX!AP7="","",LEX!AP7) -> 
D125: Criterio Evaluación 1.5 | E125: =IF(LEX!H8="","",LEX!H8) ->  | F125: =IF(LEX!I8="","",LEX!I8) ->  | G125: =IF(LEX!J8="","",LEX!J8) ->  | H125: =IF(LEX!K8="","",LEX!K8) ->  | I125: =IF(LEX!L8="","",LEX!L8) ->  | J125: =IF(LEX!M8="","",LEX!M8) ->  | K125: =IF(LEX!N8="","",LEX!N8) ->  | L125: =IF(LEX!O8="","",LEX!O8) ->  | M125: =IF(LEX!P8="","",LEX!P8) ->  | N125: =IF(LEX!Q8="","",LEX!Q8) ->  | O125: =IF(LEX!R8="","",LEX!R8) ->  | P125: =IF(LEX!S8="","",LEX!S8) ->  | Q125: =IF(LEX!T8="","",LEX!T8) ->  | R125: =IF(LEX!U8="","",LEX!U8) ->  | S125: =IF(LEX!V8="","",LEX!V8) ->  | T125: =IF(LEX!W8="","",LEX!W8) ->  | U125: =IF(LEX!X8="","",LEX!X8) ->  | V125: =IF(LEX!Y8="","",LEX!Y8) ->  | W125: =IF(LEX!Z8="","",LEX!Z8) ->  | X125: =IF(LEX!AA8="","",LEX!AA8) ->  | Y125: =IF(LEX!AB8="","",LEX!AB8) ->  | Z125: =IF(LEX!AC8="","",LEX!AC8) ->  | AA125: =IF(LEX!AD8="","",LEX!AD8) ->  | AB125: =IF(LEX!AE8="","",LEX!AE8) ->  | AC125: =IF(LEX!AF8="","",LEX!AF8) ->  | AD125: =IF(LEX!AG8="","",LEX!AG8) ->  | AE125: =IF(LEX!AH8="","",LEX!AH8) ->  | AF125: =IF(LEX!AI8="","",LEX!AI8) ->  | AG125: =IF(LEX!AJ8="","",LEX!AJ8) ->  | AH125: =IF(LEX!AK8="","",LEX!AK8) ->  | AI125: =IF(LEX!AL8="","",LEX!AL8) ->  | AJ125: =IF(LEX!AM8="","",LEX!AM8) ->  | AK125: =IF(LEX!AN8="","",LEX!AN8) ->  | AL125: =IF(LEX!AO8="","",LEX!AO8) ->  | AM125: =IF(LEX!AP8="","",LEX!AP8) -> 
C126: Comp. Esp. 2 | D126: Criterio Evaluación 2.1 | E126: =IF(LEX!H9="","",LEX!H9) ->  | F126: =IF(LEX!I9="","",LEX!I9) ->  | G126: =IF(LEX!J9="","",LEX!J9) ->  | H126: =IF(LEX!K9="","",LEX!K9) ->  | I126: =IF(LEX!L9="","",LEX!L9) ->  | J126: =IF(LEX!M9="","",LEX!M9) ->  | K126: =IF(LEX!N9="","",LEX!N9) ->  | L126: =IF(LEX!O9="","",LEX!O9) ->  | M126: =IF(LEX!P9="","",LEX!P9) ->  | N126: =IF(LEX!Q9="","",LEX!Q9) ->  | O126: =IF(LEX!R9="","",LEX!R9) ->  | P126: =IF(LEX!S9="","",LEX!S9) ->  | Q126: =IF(LEX!T9="","",LEX!T9) ->  | R126: =IF(LEX!U9="","",LEX!U9) ->  | S126: =IF(LEX!V9="","",LEX!V9) ->  | T126: =IF(LEX!W9="","",LEX!W9) ->  | U126: =IF(LEX!X9="","",LEX!X9) ->  | V126: =IF(LEX!Y9="","",LEX!Y9) ->  | W126: =IF(LEX!Z9="","",LEX!Z9) ->  | X126: =IF(LEX!AA9="","",LEX!AA9) ->  | Y126: =IF(LEX!AB9="","",LEX!AB9) ->  | Z126: =IF(LEX!AC9="","",LEX!AC9) ->  | AA126: =IF(LEX!AD9="","",LEX!AD9) ->  | AB126: =IF(LEX!AE9="","",LEX!AE9) ->  | AC126: =IF(LEX!AF9="","",LEX!AF9) ->  | AD126: =IF(LEX!AG9="","",LEX!AG9) ->  | AE126: =IF(LEX!AH9="","",LEX!AH9) ->  | AF126: =IF(LEX!AI9="","",LEX!AI9) ->  | AG126: =IF(LEX!AJ9="","",LEX!AJ9) ->  | AH126: =IF(LEX!AK9="","",LEX!AK9) ->  | AI126: =IF(LEX!AL9="","",LEX!AL9) ->  | AJ126: =IF(LEX!AM9="","",LEX!AM9) ->  | AK126: =IF(LEX!AN9="","",LEX!AN9) ->  | AL126: =IF(LEX!AO9="","",LEX!AO9) ->  | AM126: =IF(LEX!AP9="","",LEX!AP9) -> 
D127: Criterio Evaluación 2.2 | E127: =IF(LEX!H10="","",LEX!H10) ->  | F127: =IF(LEX!I10="","",LEX!I10) ->  | G127: =IF(LEX!J10="","",LEX!J10) ->  | H127: =IF(LEX!K10="","",LEX!K10) ->  | I127: =IF(LEX!L10="","",LEX!L10) ->  | J127: =IF(LEX!M10="","",LEX!M10) ->  | K127: =IF(LEX!N10="","",LEX!N10) ->  | L127: =IF(LEX!O10="","",LEX!O10) ->  | M127: =IF(LEX!P10="","",LEX!P10) ->  | N127: =IF(LEX!Q10="","",LEX!Q10) ->  | O127: =IF(LEX!R10="","",LEX!R10) ->  | P127: =IF(LEX!S10="","",LEX!S10) ->  | Q127: =IF(LEX!T10="","",LEX!T10) ->  | R127: =IF(LEX!U10="","",LEX!U10) ->  | S127: =IF(LEX!V10="","",LEX!V10) ->  | T127: =IF(LEX!W10="","",LEX!W10) ->  | U127: =IF(LEX!X10="","",LEX!X10) ->  | V127: =IF(LEX!Y10="","",LEX!Y10) ->  | W127: =IF(LEX!Z10="","",LEX!Z10) ->  | X127: =IF(LEX!AA10="","",LEX!AA10) ->  | Y127: =IF(LEX!AB10="","",LEX!AB10) ->  | Z127: =IF(LEX!AC10="","",LEX!AC10) ->  | AA127: =IF(LEX!AD10="","",LEX!AD10) ->  | AB127: =IF(LEX!AE10="","",LEX!AE10) ->  | AC127: =IF(LEX!AF10="","",LEX!AF10) ->  | AD127: =IF(LEX!AG10="","",LEX!AG10) ->  | AE127: =IF(LEX!AH10="","",LEX!AH10) ->  | AF127: =IF(LEX!AI10="","",LEX!AI10) ->  | AG127: =IF(LEX!AJ10="","",LEX!AJ10) ->  | AH127: =IF(LEX!AK10="","",LEX!AK10) ->  | AI127: =IF(LEX!AL10="","",LEX!AL10) ->  | AJ127: =IF(LEX!AM10="","",LEX!AM10) ->  | AK127: =IF(LEX!AN10="","",LEX!AN10) ->  | AL127: =IF(LEX!AO10="","",LEX!AO10) ->  | AM127: =IF(LEX!AP10="","",LEX!AP10) -> 
D128: Criterio Evaluación 2.3 | E128: =IF(LEX!H11="","",LEX!H11) ->  | F128: =IF(LEX!I11="","",LEX!I11) ->  | G128: =IF(LEX!J11="","",LEX!J11) ->  | H128: =IF(LEX!K11="","",LEX!K11) ->  | I128: =IF(LEX!L11="","",LEX!L11) ->  | J128: =IF(LEX!M11="","",LEX!M11) ->  | K128: =IF(LEX!N11="","",LEX!N11) ->  | L128: =IF(LEX!O11="","",LEX!O11) ->  | M128: =IF(LEX!P11="","",LEX!P11) ->  | N128: =IF(LEX!Q11="","",LEX!Q11) ->  | O128: =IF(LEX!R11="","",LEX!R11) ->  | P128: =IF(LEX!S11="","",LEX!S11) ->  | Q128: =IF(LEX!T11="","",LEX!T11) ->  | R128: =IF(LEX!U11="","",LEX!U11) ->  | S128: =IF(LEX!V11="","",LEX!V11) ->  | T128: =IF(LEX!W11="","",LEX!W11) ->  | U128: =IF(LEX!X11="","",LEX!X11) ->  | V128: =IF(LEX!Y11="","",LEX!Y11) ->  | W128: =IF(LEX!Z11="","",LEX!Z11) ->  | X128: =IF(LEX!AA11="","",LEX!AA11) ->  | Y128: =IF(LEX!AB11="","",LEX!AB11) ->  | Z128: =IF(LEX!AC11="","",LEX!AC11) ->  | AA128: =IF(LEX!AD11="","",LEX!AD11) ->  | AB128: =IF(LEX!AE11="","",LEX!AE11) ->  | AC128: =IF(LEX!AF11="","",LEX!AF11) ->  | AD128: =IF(LEX!AG11="","",LEX!AG11) ->  | AE128: =IF(LEX!AH11="","",LEX!AH11) ->  | AF128: =IF(LEX!AI11="","",LEX!AI11) ->  | AG128: =IF(LEX!AJ11="","",LEX!AJ11) ->  | AH128: =IF(LEX!AK11="","",LEX!AK11) ->  | AI128: =IF(LEX!AL11="","",LEX!AL11) ->  | AJ128: =IF(LEX!AM11="","",LEX!AM11) ->  | AK128: =IF(LEX!AN11="","",LEX!AN11) ->  | AL128: =IF(LEX!AO11="","",LEX!AO11) ->  | AM128: =IF(LEX!AP11="","",LEX!AP11) -> 
D129: Criterio Evaluación 2.4 | E129: =IF(LEX!H12="","",LEX!H12) ->  | F129: =IF(LEX!I12="","",LEX!I12) ->  | G129: =IF(LEX!J12="","",LEX!J12) ->  | H129: =IF(LEX!K12="","",LEX!K12) ->  | I129: =IF(LEX!L12="","",LEX!L12) ->  | J129: =IF(LEX!M12="","",LEX!M12) ->  | K129: =IF(LEX!N12="","",LEX!N12) ->  | L129: =IF(LEX!O12="","",LEX!O12) ->  | M129: =IF(LEX!P12="","",LEX!P12) ->  | N129: =IF(LEX!Q12="","",LEX!Q12) ->  | O129: =IF(LEX!R12="","",LEX!R12) ->  | P129: =IF(LEX!S12="","",LEX!S12) ->  | Q129: =IF(LEX!T12="","",LEX!T12) ->  | R129: =IF(LEX!U12="","",LEX!U12) ->  | S129: =IF(LEX!V12="","",LEX!V12) ->  | T129: =IF(LEX!W12="","",LEX!W12) ->  | U129: =IF(LEX!X12="","",LEX!X12) ->  | V129: =IF(LEX!Y12="","",LEX!Y12) ->  | W129: =IF(LEX!Z12="","",LEX!Z12) ->  | X129: =IF(LEX!AA12="","",LEX!AA12) ->  | Y129: =IF(LEX!AB12="","",LEX!AB12) ->  | Z129: =IF(LEX!AC12="","",LEX!AC12) ->  | AA129: =IF(LEX!AD12="","",LEX!AD12) ->  | AB129: =IF(LEX!AE12="","",LEX!AE12) ->  | AC129: =IF(LEX!AF12="","",LEX!AF12) ->  | AD129: =IF(LEX!AG12="","",LEX!AG12) ->  | AE129: =IF(LEX!AH12="","",LEX!AH12) ->  | AF129: =IF(LEX!AI12="","",LEX!AI12) ->  | AG129: =IF(LEX!AJ12="","",LEX!AJ12) ->  | AH129: =IF(LEX!AK12="","",LEX!AK12) ->  | AI129: =IF(LEX!AL12="","",LEX!AL12) ->  | AJ129: =IF(LEX!AM12="","",LEX!AM12) ->  | AK129: =IF(LEX!AN12="","",LEX!AN12) ->  | AL129: =IF(LEX!AO12="","",LEX!AO12) ->  | AM129: =IF(LEX!AP12="","",LEX!AP12) -> 
C130: Comp. Esp. 3 | D130: Criterio Evaluación 3.1 | E130: =IF(LEX!H13="","",LEX!H13) ->  | F130: =IF(LEX!I13="","",LEX!I13) ->  | G130: =IF(LEX!J13="","",LEX!J13) ->  | H130: =IF(LEX!K13="","",LEX!K13) ->  | I130: =IF(LEX!L13="","",LEX!L13) ->  | J130: =IF(LEX!M13="","",LEX!M13) ->  | K130: =IF(LEX!N13="","",LEX!N13) ->  | L130: =IF(LEX!O13="","",LEX!O13) ->  | M130: =IF(LEX!P13="","",LEX!P13) ->  | N130: =IF(LEX!Q13="","",LEX!Q13) ->  | O130: =IF(LEX!R13="","",LEX!R13) ->  | P130: =IF(LEX!S13="","",LEX!S13) ->  | Q130: =IF(LEX!T13="","",LEX!T13) ->  | R130: =IF(LEX!U13="","",LEX!U13) ->  | S130: =IF(LEX!V13="","",LEX!V13) ->  | T130: =IF(LEX!W13="","",LEX!W13) ->  | U130: =IF(LEX!X13="","",LEX!X13) ->  | V130: =IF(LEX!Y13="","",LEX!Y13) ->  | W130: =IF(LEX!Z13="","",LEX!Z13) ->  | X130: =IF(LEX!AA13="","",LEX!AA13) ->  | Y130: =IF(LEX!AB13="","",LEX!AB13) ->  | Z130: =IF(LEX!AC13="","",LEX!AC13) ->  | AA130: =IF(LEX!AD13="","",LEX!AD13) ->  | AB130: =IF(LEX!AE13="","",LEX!AE13) ->  | AC130: =IF(LEX!AF13="","",LEX!AF13) ->  | AD130: =IF(LEX!AG13="","",LEX!AG13) ->  | AE130: =IF(LEX!AH13="","",LEX!AH13) ->  | AF130: =IF(LEX!AI13="","",LEX!AI13) ->  | AG130: =IF(LEX!AJ13="","",LEX!AJ13) ->  | AH130: =IF(LEX!AK13="","",LEX!AK13) ->  | AI130: =IF(LEX!AL13="","",LEX!AL13) ->  | AJ130: =IF(LEX!AM13="","",LEX!AM13) ->  | AK130: =IF(LEX!AN13="","",LEX!AN13) ->  | AL130: =IF(LEX!AO13="","",LEX!AO13) ->  | AM130: =IF(LEX!AP13="","",LEX!AP13) -> 
D131: Criterio Evaluación 3.2 | E131: =IF(LEX!H14="","",LEX!H14) ->  | F131: =IF(LEX!I14="","",LEX!I14) ->  | G131: =IF(LEX!J14="","",LEX!J14) ->  | H131: =IF(LEX!K14="","",LEX!K14) ->  | I131: =IF(LEX!L14="","",LEX!L14) ->  | J131: =IF(LEX!M14="","",LEX!M14) ->  | K131: =IF(LEX!N14="","",LEX!N14) ->  | L131: =IF(LEX!O14="","",LEX!O14) ->  | M131: =IF(LEX!P14="","",LEX!P14) ->  | N131: =IF(LEX!Q14="","",LEX!Q14) ->  | O131: =IF(LEX!R14="","",LEX!R14) ->  | P131: =IF(LEX!S14="","",LEX!S14) ->  | Q131: =IF(LEX!T14="","",LEX!T14) ->  | R131: =IF(LEX!U14="","",LEX!U14) ->  | S131: =IF(LEX!V14="","",LEX!V14) ->  | T131: =IF(LEX!W14="","",LEX!W14) ->  | U131: =IF(LEX!X14="","",LEX!X14) ->  | V131: =IF(LEX!Y14="","",LEX!Y14) ->  | W131: =IF(LEX!Z14="","",LEX!Z14) ->  | X131: =IF(LEX!AA14="","",LEX!AA14) ->  | Y131: =IF(LEX!AB14="","",LEX!AB14) ->  | Z131: =IF(LEX!AC14="","",LEX!AC14) ->  | AA131: =IF(LEX!AD14="","",LEX!AD14) ->  | AB131: =IF(LEX!AE14="","",LEX!AE14) ->  | AC131: =IF(LEX!AF14="","",LEX!AF14) ->  | AD131: =IF(LEX!AG14="","",LEX!AG14) ->  | AE131: =IF(LEX!AH14="","",LEX!AH14) ->  | AF131: =IF(LEX!AI14="","",LEX!AI14) ->  | AG131: =IF(LEX!AJ14="","",LEX!AJ14) ->  | AH131: =IF(LEX!AK14="","",LEX!AK14) ->  | AI131: =IF(LEX!AL14="","",LEX!AL14) ->  | AJ131: =IF(LEX!AM14="","",LEX!AM14) ->  | AK131: =IF(LEX!AN14="","",LEX!AN14) ->  | AL131: =IF(LEX!AO14="","",LEX!AO14) ->  | AM131: =IF(LEX!AP14="","",LEX!AP14) -> 
C132: Comp. Esp. 4 | D132: Criterio Evaluación 4.1 | E132: =IF(LEX!H15="","",LEX!H15) ->  | F132: =IF(LEX!I15="","",LEX!I15) ->  | G132: =IF(LEX!J15="","",LEX!J15) ->  | H132: =IF(LEX!K15="","",LEX!K15) ->  | I132: =IF(LEX!L15="","",LEX!L15) ->  | J132: =IF(LEX!M15="","",LEX!M15) ->  | K132: =IF(LEX!N15="","",LEX!N15) ->  | L132: =IF(LEX!O15="","",LEX!O15) ->  | M132: =IF(LEX!P15="","",LEX!P15) ->  | N132: =IF(LEX!Q15="","",LEX!Q15) ->  | O132: =IF(LEX!R15="","",LEX!R15) ->  | P132: =IF(LEX!S15="","",LEX!S15) ->  | Q132: =IF(LEX!T15="","",LEX!T15) ->  | R132: =IF(LEX!U15="","",LEX!U15) ->  | S132: =IF(LEX!V15="","",LEX!V15) ->  | T132: =IF(LEX!W15="","",LEX!W15) ->  | U132: =IF(LEX!X15="","",LEX!X15) ->  | V132: =IF(LEX!Y15="","",LEX!Y15) ->  | W132: =IF(LEX!Z15="","",LEX!Z15) ->  | X132: =IF(LEX!AA15="","",LEX!AA15) ->  | Y132: =IF(LEX!AB15="","",LEX!AB15) ->  | Z132: =IF(LEX!AC15="","",LEX!AC15) ->  | AA132: =IF(LEX!AD15="","",LEX!AD15) ->  | AB132: =IF(LEX!AE15="","",LEX!AE15) ->  | AC132: =IF(LEX!AF15="","",LEX!AF15) ->  | AD132: =IF(LEX!AG15="","",LEX!AG15) ->  | AE132: =IF(LEX!AH15="","",LEX!AH15) ->  | AF132: =IF(LEX!AI15="","",LEX!AI15) ->  | AG132: =IF(LEX!AJ15="","",LEX!AJ15) ->  | AH132: =IF(LEX!AK15="","",LEX!AK15) ->  | AI132: =IF(LEX!AL15="","",LEX!AL15) ->  | AJ132: =IF(LEX!AM15="","",LEX!AM15) ->  | AK132: =IF(LEX!AN15="","",LEX!AN15) ->  | AL132: =IF(LEX!AO15="","",LEX!AO15) ->  | AM132: =IF(LEX!AP15="","",LEX!AP15) -> 
D133: Criterio Evaluación 4.2 | E133: =IF(LEX!H16="","",LEX!H16) ->  | F133: =IF(LEX!I16="","",LEX!I16) ->  | G133: =IF(LEX!J16="","",LEX!J16) ->  | H133: =IF(LEX!K16="","",LEX!K16) ->  | I133: =IF(LEX!L16="","",LEX!L16) ->  | J133: =IF(LEX!M16="","",LEX!M16) ->  | K133: =IF(LEX!N16="","",LEX!N16) ->  | L133: =IF(LEX!O16="","",LEX!O16) ->  | M133: =IF(LEX!P16="","",LEX!P16) ->  | N133: =IF(LEX!Q16="","",LEX!Q16) ->  | O133: =IF(LEX!R16="","",LEX!R16) ->  | P133: =IF(LEX!S16="","",LEX!S16) ->  | Q133: =IF(LEX!T16="","",LEX!T16) ->  | R133: =IF(LEX!U16="","",LEX!U16) ->  | S133: =IF(LEX!V16="","",LEX!V16) ->  | T133: =IF(LEX!W16="","",LEX!W16) ->  | U133: =IF(LEX!X16="","",LEX!X16) ->  | V133: =IF(LEX!Y16="","",LEX!Y16) ->  | W133: =IF(LEX!Z16="","",LEX!Z16) ->  | X133: =IF(LEX!AA16="","",LEX!AA16) ->  | Y133: =IF(LEX!AB16="","",LEX!AB16) ->  | Z133: =IF(LEX!AC16="","",LEX!AC16) ->  | AA133: =IF(LEX!AD16="","",LEX!AD16) ->  | AB133: =IF(LEX!AE16="","",LEX!AE16) ->  | AC133: =IF(LEX!AF16="","",LEX!AF16) ->  | AD133: =IF(LEX!AG16="","",LEX!AG16) ->  | AE133: =IF(LEX!AH16="","",LEX!AH16) ->  | AF133: =IF(LEX!AI16="","",LEX!AI16) ->  | AG133: =IF(LEX!AJ16="","",LEX!AJ16) ->  | AH133: =IF(LEX!AK16="","",LEX!AK16) ->  | AI133: =IF(LEX!AL16="","",LEX!AL16) ->  | AJ133: =IF(LEX!AM16="","",LEX!AM16) ->  | AK133: =IF(LEX!AN16="","",LEX!AN16) ->  | AL133: =IF(LEX!AO16="","",LEX!AO16) ->  | AM133: =IF(LEX!AP16="","",LEX!AP16) -> 
C134: Comp. Esp. 5 | D134: Criterio Evaluación 5.1 | E134: =IF(LEX!H17="","",LEX!H17) ->  | F134: =IF(LEX!I17="","",LEX!I17) ->  | G134: =IF(LEX!J17="","",LEX!J17) ->  | H134: =IF(LEX!K17="","",LEX!K17) ->  | I134: =IF(LEX!L17="","",LEX!L17) ->  | J134: =IF(LEX!M17="","",LEX!M17) ->  | K134: =IF(LEX!N17="","",LEX!N17) ->  | L134: =IF(LEX!O17="","",LEX!O17) ->  | M134: =IF(LEX!P17="","",LEX!P17) ->  | N134: =IF(LEX!Q17="","",LEX!Q17) ->  | O134: =IF(LEX!R17="","",LEX!R17) ->  | P134: =IF(LEX!S17="","",LEX!S17) ->  | Q134: =IF(LEX!T17="","",LEX!T17) ->  | R134: =IF(LEX!U17="","",LEX!U17) ->  | S134: =IF(LEX!V17="","",LEX!V17) ->  | T134: =IF(LEX!W17="","",LEX!W17) ->  | U134: =IF(LEX!X17="","",LEX!X17) ->  | V134: =IF(LEX!Y17="","",LEX!Y17) ->  | W134: =IF(LEX!Z17="","",LEX!Z17) ->  | X134: =IF(LEX!AA17="","",LEX!AA17) ->  | Y134: =IF(LEX!AB17="","",LEX!AB17) ->  | Z134: =IF(LEX!AC17="","",LEX!AC17) ->  | AA134: =IF(LEX!AD17="","",LEX!AD17) ->  | AB134: =IF(LEX!AE17="","",LEX!AE17) ->  | AC134: =IF(LEX!AF17="","",LEX!AF17) ->  | AD134: =IF(LEX!AG17="","",LEX!AG17) ->  | AE134: =IF(LEX!AH17="","",LEX!AH17) ->  | AF134: =IF(LEX!AI17="","",LEX!AI17) ->  | AG134: =IF(LEX!AJ17="","",LEX!AJ17) ->  | AH134: =IF(LEX!AK17="","",LEX!AK17) ->  | AI134: =IF(LEX!AL17="","",LEX!AL17) ->  | AJ134: =IF(LEX!AM17="","",LEX!AM17) ->  | AK134: =IF(LEX!AN17="","",LEX!AN17) ->  | AL134: =IF(LEX!AO17="","",LEX!AO17) ->  | AM134: =IF(LEX!AP17="","",LEX!AP17) -> 
D135: Criterio Evaluación 5.2 | E135: =IF(LEX!H18="","",LEX!H18) ->  | F135: =IF(LEX!I18="","",LEX!I18) ->  | G135: =IF(LEX!J18="","",LEX!J18) ->  | H135: =IF(LEX!K18="","",LEX!K18) ->  | I135: =IF(LEX!L18="","",LEX!L18) ->  | J135: =IF(LEX!M18="","",LEX!M18) ->  | K135: =IF(LEX!N18="","",LEX!N18) ->  | L135: =IF(LEX!O18="","",LEX!O18) ->  | M135: =IF(LEX!P18="","",LEX!P18) ->  | N135: =IF(LEX!Q18="","",LEX!Q18) ->  | O135: =IF(LEX!R18="","",LEX!R18) ->  | P135: =IF(LEX!S18="","",LEX!S18) ->  | Q135: =IF(LEX!T18="","",LEX!T18) ->  | R135: =IF(LEX!U18="","",LEX!U18) ->  | S135: =IF(LEX!V18="","",LEX!V18) ->  | T135: =IF(LEX!W18="","",LEX!W18) ->  | U135: =IF(LEX!X18="","",LEX!X18) ->  | V135: =IF(LEX!Y18="","",LEX!Y18) ->  | W135: =IF(LEX!Z18="","",LEX!Z18) ->  | X135: =IF(LEX!AA18="","",LEX!AA18) ->  | Y135: =IF(LEX!AB18="","",LEX!AB18) ->  | Z135: =IF(LEX!AC18="","",LEX!AC18) ->  | AA135: =IF(LEX!AD18="","",LEX!AD18) ->  | AB135: =IF(LEX!AE18="","",LEX!AE18) ->  | AC135: =IF(LEX!AF18="","",LEX!AF18) ->  | AD135: =IF(LEX!AG18="","",LEX!AG18) ->  | AE135: =IF(LEX!AH18="","",LEX!AH18) ->  | AF135: =IF(LEX!AI18="","",LEX!AI18) ->  | AG135: =IF(LEX!AJ18="","",LEX!AJ18) ->  | AH135: =IF(LEX!AK18="","",LEX!AK18) ->  | AI135: =IF(LEX!AL18="","",LEX!AL18) ->  | AJ135: =IF(LEX!AM18="","",LEX!AM18) ->  | AK135: =IF(LEX!AN18="","",LEX!AN18) ->  | AL135: =IF(LEX!AO18="","",LEX!AO18) ->  | AM135: =IF(LEX!AP18="","",LEX!AP18) -> 
D136: Criterio Evaluación 5.3 | E136: =IF(LEX!H19="","",LEX!H19) ->  | F136: =IF(LEX!I19="","",LEX!I19) ->  | G136: =IF(LEX!J19="","",LEX!J19) ->  | H136: =IF(LEX!K19="","",LEX!K19) ->  | I136: =IF(LEX!L19="","",LEX!L19) ->  | J136: =IF(LEX!M19="","",LEX!M19) ->  | K136: =IF(LEX!N19="","",LEX!N19) ->  | L136: =IF(LEX!O19="","",LEX!O19) ->  | M136: =IF(LEX!P19="","",LEX!P19) ->  | N136: =IF(LEX!Q19="","",LEX!Q19) ->  | O136: =IF(LEX!R19="","",LEX!R19) ->  | P136: =IF(LEX!S19="","",LEX!S19) ->  | Q136: =IF(LEX!T19="","",LEX!T19) ->  | R136: =IF(LEX!U19="","",LEX!U19) ->  | S136: =IF(LEX!V19="","",LEX!V19) ->  | T136: =IF(LEX!W19="","",LEX!W19) ->  | U136: =IF(LEX!X19="","",LEX!X19) ->  | V136: =IF(LEX!Y19="","",LEX!Y19) ->  | W136: =IF(LEX!Z19="","",LEX!Z19) ->  | X136: =IF(LEX!AA19="","",LEX!AA19) ->  | Y136: =IF(LEX!AB19="","",LEX!AB19) ->  | Z136: =IF(LEX!AC19="","",LEX!AC19) ->  | AA136: =IF(LEX!AD19="","",LEX!AD19) ->  | AB136: =IF(LEX!AE19="","",LEX!AE19) ->  | AC136: =IF(LEX!AF19="","",LEX!AF19) ->  | AD136: =IF(LEX!AG19="","",LEX!AG19) ->  | AE136: =IF(LEX!AH19="","",LEX!AH19) ->  | AF136: =IF(LEX!AI19="","",LEX!AI19) ->  | AG136: =IF(LEX!AJ19="","",LEX!AJ19) ->  | AH136: =IF(LEX!AK19="","",LEX!AK19) ->  | AI136: =IF(LEX!AL19="","",LEX!AL19) ->  | AJ136: =IF(LEX!AM19="","",LEX!AM19) ->  | AK136: =IF(LEX!AN19="","",LEX!AN19) ->  | AL136: =IF(LEX!AO19="","",LEX!AO19) ->  | AM136: =IF(LEX!AP19="","",LEX!AP19) -> 
C137: Comp. Esp. 6 | D137: Criterio Evaluación 6.1 | E137: =IF(LEX!H20="","",LEX!H20) ->  | F137: =IF(LEX!I20="","",LEX!I20) ->  | G137: =IF(LEX!J20="","",LEX!J20) ->  | H137: =IF(LEX!K20="","",LEX!K20) ->  | I137: =IF(LEX!L20="","",LEX!L20) ->  | J137: =IF(LEX!M20="","",LEX!M20) ->  | K137: =IF(LEX!N20="","",LEX!N20) ->  | L137: =IF(LEX!O20="","",LEX!O20) ->  | M137: =IF(LEX!P20="","",LEX!P20) ->  | N137: =IF(LEX!Q20="","",LEX!Q20) ->  | O137: =IF(LEX!R20="","",LEX!R20) ->  | P137: =IF(LEX!S20="","",LEX!S20) ->  | Q137: =IF(LEX!T20="","",LEX!T20) ->  | R137: =IF(LEX!U20="","",LEX!U20) ->  | S137: =IF(LEX!V20="","",LEX!V20) ->  | T137: =IF(LEX!W20="","",LEX!W20) ->  | U137: =IF(LEX!X20="","",LEX!X20) ->  | V137: =IF(LEX!Y20="","",LEX!Y20) ->  | W137: =IF(LEX!Z20="","",LEX!Z20) ->  | X137: =IF(LEX!AA20="","",LEX!AA20) ->  | Y137: =IF(LEX!AB20="","",LEX!AB20) ->  | Z137: =IF(LEX!AC20="","",LEX!AC20) ->  | AA137: =IF(LEX!AD20="","",LEX!AD20) ->  | AB137: =IF(LEX!AE20="","",LEX!AE20) ->  | AC137: =IF(LEX!AF20="","",LEX!AF20) ->  | AD137: =IF(LEX!AG20="","",LEX!AG20) ->  | AE137: =IF(LEX!AH20="","",LEX!AH20) ->  | AF137: =IF(LEX!AI20="","",LEX!AI20) ->  | AG137: =IF(LEX!AJ20="","",LEX!AJ20) ->  | AH137: =IF(LEX!AK20="","",LEX!AK20) ->  | AI137: =IF(LEX!AL20="","",LEX!AL20) ->  | AJ137: =IF(LEX!AM20="","",LEX!AM20) ->  | AK137: =IF(LEX!AN20="","",LEX!AN20) ->  | AL137: =IF(LEX!AO20="","",LEX!AO20) ->  | AM137: =IF(LEX!AP20="","",LEX!AP20) -> 
D138: Criterio Evaluación 6.2 | E138: =IF(LEX!H21="","",LEX!H21) ->  | F138: =IF(LEX!I21="","",LEX!I21) ->  | G138: =IF(LEX!J21="","",LEX!J21) ->  | H138: =IF(LEX!K21="","",LEX!K21) ->  | I138: =IF(LEX!L21="","",LEX!L21) ->  | J138: =IF(LEX!M21="","",LEX!M21) ->  | K138: =IF(LEX!N21="","",LEX!N21) ->  | L138: =IF(LEX!O21="","",LEX!O21) ->  | M138: =IF(LEX!P21="","",LEX!P21) ->  | N138: =IF(LEX!Q21="","",LEX!Q21) ->  | O138: =IF(LEX!R21="","",LEX!R21) ->  | P138: =IF(LEX!S21="","",LEX!S21) ->  | Q138: =IF(LEX!T21="","",LEX!T21) ->  | R138: =IF(LEX!U21="","",LEX!U21) ->  | S138: =IF(LEX!V21="","",LEX!V21) ->  | T138: =IF(LEX!W21="","",LEX!W21) ->  | U138: =IF(LEX!X21="","",LEX!X21) ->  | V138: =IF(LEX!Y21="","",LEX!Y21) ->  | W138: =IF(LEX!Z21="","",LEX!Z21) ->  | X138: =IF(LEX!AA21="","",LEX!AA21) ->  | Y138: =IF(LEX!AB21="","",LEX!AB21) ->  | Z138: =IF(LEX!AC21="","",LEX!AC21) ->  | AA138: =IF(LEX!AD21="","",LEX!AD21) ->  | AB138: =IF(LEX!AE21="","",LEX!AE21) ->  | AC138: =IF(LEX!AF21="","",LEX!AF21) ->  | AD138: =IF(LEX!AG21="","",LEX!AG21) ->  | AE138: =IF(LEX!AH21="","",LEX!AH21) ->  | AF138: =IF(LEX!AI21="","",LEX!AI21) ->  | AG138: =IF(LEX!AJ21="","",LEX!AJ21) ->  | AH138: =IF(LEX!AK21="","",LEX!AK21) ->  | AI138: =IF(LEX!AL21="","",LEX!AL21) ->  | AJ138: =IF(LEX!AM21="","",LEX!AM21) ->  | AK138: =IF(LEX!AN21="","",LEX!AN21) ->  | AL138: =IF(LEX!AO21="","",LEX!AO21) ->  | AM138: =IF(LEX!AP21="","",LEX!AP21) -> 
D139: Criterio Evaluación 6.3 | E139: =IF(LEX!H22="","",LEX!H22) ->  | F139: =IF(LEX!I22="","",LEX!I22) ->  | G139: =IF(LEX!J22="","",LEX!J22) ->  | H139: =IF(LEX!K22="","",LEX!K22) ->  | I139: =IF(LEX!L22="","",LEX!L22) ->  | J139: =IF(LEX!M22="","",LEX!M22) ->  | K139: =IF(LEX!N22="","",LEX!N22) ->  | L139: =IF(LEX!O22="","",LEX!O22) ->  | M139: =IF(LEX!P22="","",LEX!P22) ->  | N139: =IF(LEX!Q22="","",LEX!Q22) ->  | O139: =IF(LEX!R22="","",LEX!R22) ->  | P139: =IF(LEX!S22="","",LEX!S22) ->  | Q139: =IF(LEX!T22="","",LEX!T22) ->  | R139: =IF(LEX!U22="","",LEX!U22) ->  | S139: =IF(LEX!V22="","",LEX!V22) ->  | T139: =IF(LEX!W22="","",LEX!W22) ->  | U139: =IF(LEX!X22="","",LEX!X22) ->  | V139: =IF(LEX!Y22="","",LEX!Y22) ->  | W139: =IF(LEX!Z22="","",LEX!Z22) ->  | X139: =IF(LEX!AA22="","",LEX!AA22) ->  | Y139: =IF(LEX!AB22="","",LEX!AB22) ->  | Z139: =IF(LEX!AC22="","",LEX!AC22) ->  | AA139: =IF(LEX!AD22="","",LEX!AD22) ->  | AB139: =IF(LEX!AE22="","",LEX!AE22) ->  | AC139: =IF(LEX!AF22="","",LEX!AF22) ->  | AD139: =IF(LEX!AG22="","",LEX!AG22) ->  | AE139: =IF(LEX!AH22="","",LEX!AH22) ->  | AF139: =IF(LEX!AI22="","",LEX!AI22) ->  | AG139: =IF(LEX!AJ22="","",LEX!AJ22) ->  | AH139: =IF(LEX!AK22="","",LEX!AK22) ->  | AI139: =IF(LEX!AL22="","",LEX!AL22) ->  | AJ139: =IF(LEX!AM22="","",LEX!AM22) ->  | AK139: =IF(LEX!AN22="","",LEX!AN22) ->  | AL139: =IF(LEX!AO22="","",LEX!AO22) ->  | AM139: =IF(LEX!AP22="","",LEX!AP22) -> 
D140: Criterio Evaluación 6.4 | E140: =IF(LEX!H23="","",LEX!H23) ->  | F140: =IF(LEX!I23="","",LEX!I23) ->  | G140: =IF(LEX!J23="","",LEX!J23) ->  | H140: =IF(LEX!K23="","",LEX!K23) ->  | I140: =IF(LEX!L23="","",LEX!L23) ->  | J140: =IF(LEX!M23="","",LEX!M23) ->  | K140: =IF(LEX!N23="","",LEX!N23) ->  | L140: =IF(LEX!O23="","",LEX!O23) ->  | M140: =IF(LEX!P23="","",LEX!P23) ->  | N140: =IF(LEX!Q23="","",LEX!Q23) ->  | O140: =IF(LEX!R23="","",LEX!R23) ->  | P140: =IF(LEX!S23="","",LEX!S23) ->  | Q140: =IF(LEX!T23="","",LEX!T23) ->  | R140: =IF(LEX!U23="","",LEX!U23) ->  | S140: =IF(LEX!V23="","",LEX!V23) ->  | T140: =IF(LEX!W23="","",LEX!W23) ->  | U140: =IF(LEX!X23="","",LEX!X23) ->  | V140: =IF(LEX!Y23="","",LEX!Y23) ->  | W140: =IF(LEX!Z23="","",LEX!Z23) ->  | X140: =IF(LEX!AA23="","",LEX!AA23) ->  | Y140: =IF(LEX!AB23="","",LEX!AB23) ->  | Z140: =IF(LEX!AC23="","",LEX!AC23) ->  | AA140: =IF(LEX!AD23="","",LEX!AD23) ->  | AB140: =IF(LEX!AE23="","",LEX!AE23) ->  | AC140: =IF(LEX!AF23="","",LEX!AF23) ->  | AD140: =IF(LEX!AG23="","",LEX!AG23) ->  | AE140: =IF(LEX!AH23="","",LEX!AH23) ->  | AF140: =IF(LEX!AI23="","",LEX!AI23) ->  | AG140: =IF(LEX!AJ23="","",LEX!AJ23) ->  | AH140: =IF(LEX!AK23="","",LEX!AK23) ->  | AI140: =IF(LEX!AL23="","",LEX!AL23) ->  | AJ140: =IF(LEX!AM23="","",LEX!AM23) ->  | AK140: =IF(LEX!AN23="","",LEX!AN23) ->  | AL140: =IF(LEX!AO23="","",LEX!AO23) ->  | AM140: =IF(LEX!AP23="","",LEX!AP23) -> 
B141: Literatura Dramática | C141: Comp. Esp. 1 | D141: Criterio Evaluación 1.1 | E141: =IF(LD!H4="","",LD!H4) ->  | F141: =IF(LD!I4="","",LD!I4) ->  | G141: =IF(LD!J4="","",LD!J4) ->  | H141: =IF(LD!K4="","",LD!K4) ->  | I141: =IF(LD!L4="","",LD!L4) ->  | J141: =IF(LD!M4="","",LD!M4) ->  | K141: =IF(LD!N4="","",LD!N4) ->  | L141: =IF(LD!O4="","",LD!O4) ->  | M141: =IF(LD!P4="","",LD!P4) ->  | N141: =IF(LD!Q4="","",LD!Q4) ->  | O141: =IF(LD!R4="","",LD!R4) ->  | P141: =IF(LD!S4="","",LD!S4) ->  | Q141: =IF(LD!T4="","",LD!T4) ->  | R141: =IF(LD!U4="","",LD!U4) ->  | S141: =IF(LD!V4="","",LD!V4) ->  | T141: =IF(LD!W4="","",LD!W4) ->  | U141: =IF(LD!X4="","",LD!X4) ->  | V141: =IF(LD!Y4="","",LD!Y4) ->  | W141: =IF(LD!Z4="","",LD!Z4) ->  | X141: =IF(LD!AA4="","",LD!AA4) ->  | Y141: =IF(LD!AB4="","",LD!AB4) ->  | Z141: =IF(LD!AC4="","",LD!AC4) ->  | AA141: =IF(LD!AD4="","",LD!AD4) ->  | AB141: =IF(LD!AE4="","",LD!AE4) ->  | AC141: =IF(LD!AF4="","",LD!AF4) ->  | AD141: =IF(LD!AG4="","",LD!AG4) ->  | AE141: =IF(LD!AH4="","",LD!AH4) ->  | AF141: =IF(LD!AI4="","",LD!AI4) ->  | AG141: =IF(LD!AJ4="","",LD!AJ4) ->  | AH141: =IF(LD!AK4="","",LD!AK4) ->  | AI141: =IF(LD!AL4="","",LD!AL4) ->  | AJ141: =IF(LD!AM4="","",LD!AM4) ->  | AK141: =IF(LD!AN4="","",LD!AN4) ->  | AL141: =IF(LD!AO4="","",LD!AO4) ->  | AM141: =IF(LD!AP4="","",LD!AP4) -> 
D142: Criterio Evaluación 1.2 | E142: =IF(LD!H5="","",LD!H5) ->  | F142: =IF(LD!I5="","",LD!I5) ->  | G142: =IF(LD!J5="","",LD!J5) ->  | H142: =IF(LD!K5="","",LD!K5) ->  | I142: =IF(LD!L5="","",LD!L5) ->  | J142: =IF(LD!M5="","",LD!M5) ->  | K142: =IF(LD!N5="","",LD!N5) ->  | L142: =IF(LD!O5="","",LD!O5) ->  | M142: =IF(LD!P5="","",LD!P5) ->  | N142: =IF(LD!Q5="","",LD!Q5) ->  | O142: =IF(LD!R5="","",LD!R5) ->  | P142: =IF(LD!S5="","",LD!S5) ->  | Q142: =IF(LD!T5="","",LD!T5) ->  | R142: =IF(LD!U5="","",LD!U5) ->  | S142: =IF(LD!V5="","",LD!V5) ->  | T142: =IF(LD!W5="","",LD!W5) ->  | U142: =IF(LD!X5="","",LD!X5) ->  | V142: =IF(LD!Y5="","",LD!Y5) ->  | W142: =IF(LD!Z5="","",LD!Z5) ->  | X142: =IF(LD!AA5="","",LD!AA5) ->  | Y142: =IF(LD!AB5="","",LD!AB5) ->  | Z142: =IF(LD!AC5="","",LD!AC5) ->  | AA142: =IF(LD!AD5="","",LD!AD5) ->  | AB142: =IF(LD!AE5="","",LD!AE5) ->  | AC142: =IF(LD!AF5="","",LD!AF5) ->  | AD142: =IF(LD!AG5="","",LD!AG5) ->  | AE142: =IF(LD!AH5="","",LD!AH5) ->  | AF142: =IF(LD!AI5="","",LD!AI5) ->  | AG142: =IF(LD!AJ5="","",LD!AJ5) ->  | AH142: =IF(LD!AK5="","",LD!AK5) ->  | AI142: =IF(LD!AL5="","",LD!AL5) ->  | AJ142: =IF(LD!AM5="","",LD!AM5) ->  | AK142: =IF(LD!AN5="","",LD!AN5) ->  | AL142: =IF(LD!AO5="","",LD!AO5) ->  | AM142: =IF(LD!AP5="","",LD!AP5) -> 
C143: Comp. Esp. 2 | D143: Criterio Evaluación 2.1 | E143: =IF(LD!H6="","",LD!H6) ->  | F143: =IF(LD!I6="","",LD!I6) ->  | G143: =IF(LD!J6="","",LD!J6) ->  | H143: =IF(LD!K6="","",LD!K6) ->  | I143: =IF(LD!L6="","",LD!L6) ->  | J143: =IF(LD!M6="","",LD!M6) ->  | K143: =IF(LD!N6="","",LD!N6) ->  | L143: =IF(LD!O6="","",LD!O6) ->  | M143: =IF(LD!P6="","",LD!P6) ->  | N143: =IF(LD!Q6="","",LD!Q6) ->  | O143: =IF(LD!R6="","",LD!R6) ->  | P143: =IF(LD!S6="","",LD!S6) ->  | Q143: =IF(LD!T6="","",LD!T6) ->  | R143: =IF(LD!U6="","",LD!U6) ->  | S143: =IF(LD!V6="","",LD!V6) ->  | T143: =IF(LD!W6="","",LD!W6) ->  | U143: =IF(LD!X6="","",LD!X6) ->  | V143: =IF(LD!Y6="","",LD!Y6) ->  | W143: =IF(LD!Z6="","",LD!Z6) ->  | X143: =IF(LD!AA6="","",LD!AA6) ->  | Y143: =IF(LD!AB6="","",LD!AB6) ->  | Z143: =IF(LD!AC6="","",LD!AC6) ->  | AA143: =IF(LD!AD6="","",LD!AD6) ->  | AB143: =IF(LD!AE6="","",LD!AE6) ->  | AC143: =IF(LD!AF6="","",LD!AF6) ->  | AD143: =IF(LD!AG6="","",LD!AG6) ->  | AE143: =IF(LD!AH6="","",LD!AH6) ->  | AF143: =IF(LD!AI6="","",LD!AI6) ->  | AG143: =IF(LD!AJ6="","",LD!AJ6) ->  | AH143: =IF(LD!AK6="","",LD!AK6) ->  | AI143: =IF(LD!AL6="","",LD!AL6) ->  | AJ143: =IF(LD!AM6="","",LD!AM6) ->  | AK143: =IF(LD!AN6="","",LD!AN6) ->  | AL143: =IF(LD!AO6="","",LD!AO6) ->  | AM143: =IF(LD!AP6="","",LD!AP6) -> 
D144: Criterio Evaluación 2.2 | E144: =IF(LD!H7="","",LD!H7) ->  | F144: =IF(LD!I7="","",LD!I7) ->  | G144: =IF(LD!J7="","",LD!J7) ->  | H144: =IF(LD!K7="","",LD!K7) ->  | I144: =IF(LD!L7="","",LD!L7) ->  | J144: =IF(LD!M7="","",LD!M7) ->  | K144: =IF(LD!N7="","",LD!N7) ->  | L144: =IF(LD!O7="","",LD!O7) ->  | M144: =IF(LD!P7="","",LD!P7) ->  | N144: =IF(LD!Q7="","",LD!Q7) ->  | O144: =IF(LD!R7="","",LD!R7) ->  | P144: =IF(LD!S7="","",LD!S7) ->  | Q144: =IF(LD!T7="","",LD!T7) ->  | R144: =IF(LD!U7="","",LD!U7) ->  | S144: =IF(LD!V7="","",LD!V7) ->  | T144: =IF(LD!W7="","",LD!W7) ->  | U144: =IF(LD!X7="","",LD!X7) ->  | V144: =IF(LD!Y7="","",LD!Y7) ->  | W144: =IF(LD!Z7="","",LD!Z7) ->  | X144: =IF(LD!AA7="","",LD!AA7) ->  | Y144: =IF(LD!AB7="","",LD!AB7) ->  | Z144: =IF(LD!AC7="","",LD!AC7) ->  | AA144: =IF(LD!AD7="","",LD!AD7) ->  | AB144: =IF(LD!AE7="","",LD!AE7) ->  | AC144: =IF(LD!AF7="","",LD!AF7) ->  | AD144: =IF(LD!AG7="","",LD!AG7) ->  | AE144: =IF(LD!AH7="","",LD!AH7) ->  | AF144: =IF(LD!AI7="","",LD!AI7) ->  | AG144: =IF(LD!AJ7="","",LD!AJ7) ->  | AH144: =IF(LD!AK7="","",LD!AK7) ->  | AI144: =IF(LD!AL7="","",LD!AL7) ->  | AJ144: =IF(LD!AM7="","",LD!AM7) ->  | AK144: =IF(LD!AN7="","",LD!AN7) ->  | AL144: =IF(LD!AO7="","",LD!AO7) ->  | AM144: =IF(LD!AP7="","",LD!AP7) -> 
C145: Comp. Esp. 3 | D145: Criterio Evaluación 3.1 | E145: =IF(LD!H8="","",LD!H8) ->  | F145: =IF(LD!I8="","",LD!I8) ->  | G145: =IF(LD!J8="","",LD!J8) ->  | H145: =IF(LD!K8="","",LD!K8) ->  | I145: =IF(LD!L8="","",LD!L8) ->  | J145: =IF(LD!M8="","",LD!M8) ->  | K145: =IF(LD!N8="","",LD!N8) ->  | L145: =IF(LD!O8="","",LD!O8) ->  | M145: =IF(LD!P8="","",LD!P8) ->  | N145: =IF(LD!Q8="","",LD!Q8) ->  | O145: =IF(LD!R8="","",LD!R8) ->  | P145: =IF(LD!S8="","",LD!S8) ->  | Q145: =IF(LD!T8="","",LD!T8) ->  | R145: =IF(LD!U8="","",LD!U8) ->  | S145: =IF(LD!V8="","",LD!V8) ->  | T145: =IF(LD!W8="","",LD!W8) ->  | U145: =IF(LD!X8="","",LD!X8) ->  | V145: =IF(LD!Y8="","",LD!Y8) ->  | W145: =IF(LD!Z8="","",LD!Z8) ->  | X145: =IF(LD!AA8="","",LD!AA8) ->  | Y145: =IF(LD!AB8="","",LD!AB8) ->  | Z145: =IF(LD!AC8="","",LD!AC8) ->  | AA145: =IF(LD!AD8="","",LD!AD8) ->  | AB145: =IF(LD!AE8="","",LD!AE8) ->  | AC145: =IF(LD!AF8="","",LD!AF8) ->  | AD145: =IF(LD!AG8="","",LD!AG8) ->  | AE145: =IF(LD!AH8="","",LD!AH8) ->  | AF145: =IF(LD!AI8="","",LD!AI8) ->  | AG145: =IF(LD!AJ8="","",LD!AJ8) ->  | AH145: =IF(LD!AK8="","",LD!AK8) ->  | AI145: =IF(LD!AL8="","",LD!AL8) ->  | AJ145: =IF(LD!AM8="","",LD!AM8) ->  | AK145: =IF(LD!AN8="","",LD!AN8) ->  | AL145: =IF(LD!AO8="","",LD!AO8) ->  | AM145: =IF(LD!AP8="","",LD!AP8) -> 
D146: Criterio Evaluación 3.2 | E146: =IF(LD!H9="","",LD!H9) ->  | F146: =IF(LD!I9="","",LD!I9) ->  | G146: =IF(LD!J9="","",LD!J9) ->  | H146: =IF(LD!K9="","",LD!K9) ->  | I146: =IF(LD!L9="","",LD!L9) ->  | J146: =IF(LD!M9="","",LD!M9) ->  | K146: =IF(LD!N9="","",LD!N9) ->  | L146: =IF(LD!O9="","",LD!O9) ->  | M146: =IF(LD!P9="","",LD!P9) ->  | N146: =IF(LD!Q9="","",LD!Q9) ->  | O146: =IF(LD!R9="","",LD!R9) ->  | P146: =IF(LD!S9="","",LD!S9) ->  | Q146: =IF(LD!T9="","",LD!T9) ->  | R146: =IF(LD!U9="","",LD!U9) ->  | S146: =IF(LD!V9="","",LD!V9) ->  | T146: =IF(LD!W9="","",LD!W9) ->  | U146: =IF(LD!X9="","",LD!X9) ->  | V146: =IF(LD!Y9="","",LD!Y9) ->  | W146: =IF(LD!Z9="","",LD!Z9) ->  | X146: =IF(LD!AA9="","",LD!AA9) ->  | Y146: =IF(LD!AB9="","",LD!AB9) ->  | Z146: =IF(LD!AC9="","",LD!AC9) ->  | AA146: =IF(LD!AD9="","",LD!AD9) ->  | AB146: =IF(LD!AE9="","",LD!AE9) ->  | AC146: =IF(LD!AF9="","",LD!AF9) ->  | AD146: =IF(LD!AG9="","",LD!AG9) ->  | AE146: =IF(LD!AH9="","",LD!AH9) ->  | AF146: =IF(LD!AI9="","",LD!AI9) ->  | AG146: =IF(LD!AJ9="","",LD!AJ9) ->  | AH146: =IF(LD!AK9="","",LD!AK9) ->  | AI146: =IF(LD!AL9="","",LD!AL9) ->  | AJ146: =IF(LD!AM9="","",LD!AM9) ->  | AK146: =IF(LD!AN9="","",LD!AN9) ->  | AL146: =IF(LD!AO9="","",LD!AO9) ->  | AM146: =IF(LD!AP9="","",LD!AP9) -> 
D147: Criterio Evaluación 3.3 | E147: =IF(LD!H10="","",LD!H10) ->  | F147: =IF(LD!I10="","",LD!I10) ->  | G147: =IF(LD!J10="","",LD!J10) ->  | H147: =IF(LD!K10="","",LD!K10) ->  | I147: =IF(LD!L10="","",LD!L10) ->  | J147: =IF(LD!M10="","",LD!M10) ->  | K147: =IF(LD!N10="","",LD!N10) ->  | L147: =IF(LD!O10="","",LD!O10) ->  | M147: =IF(LD!P10="","",LD!P10) ->  | N147: =IF(LD!Q10="","",LD!Q10) ->  | O147: =IF(LD!R10="","",LD!R10) ->  | P147: =IF(LD!S10="","",LD!S10) ->  | Q147: =IF(LD!T10="","",LD!T10) ->  | R147: =IF(LD!U10="","",LD!U10) ->  | S147: =IF(LD!V10="","",LD!V10) ->  | T147: =IF(LD!W10="","",LD!W10) ->  | U147: =IF(LD!X10="","",LD!X10) ->  | V147: =IF(LD!Y10="","",LD!Y10) ->  | W147: =IF(LD!Z10="","",LD!Z10) ->  | X147: =IF(LD!AA10="","",LD!AA10) ->  | Y147: =IF(LD!AB10="","",LD!AB10) ->  | Z147: =IF(LD!AC10="","",LD!AC10) ->  | AA147: =IF(LD!AD10="","",LD!AD10) ->  | AB147: =IF(LD!AE10="","",LD!AE10) ->  | AC147: =IF(LD!AF10="","",LD!AF10) ->  | AD147: =IF(LD!AG10="","",LD!AG10) ->  | AE147: =IF(LD!AH10="","",LD!AH10) ->  | AF147: =IF(LD!AI10="","",LD!AI10) ->  | AG147: =IF(LD!AJ10="","",LD!AJ10) ->  | AH147: =IF(LD!AK10="","",LD!AK10) ->  | AI147: =IF(LD!AL10="","",LD!AL10) ->  | AJ147: =IF(LD!AM10="","",LD!AM10) ->  | AK147: =IF(LD!AN10="","",LD!AN10) ->  | AL147: =IF(LD!AO10="","",LD!AO10) ->  | AM147: =IF(LD!AP10="","",LD!AP10) -> 
C148: Comp. Esp. 4 | D148: Criterio Evaluación 4.1 | E148: =IF(LD!H11="","",LD!H11) ->  | F148: =IF(LD!I11="","",LD!I11) ->  | G148: =IF(LD!J11="","",LD!J11) ->  | H148: =IF(LD!K11="","",LD!K11) ->  | I148: =IF(LD!L11="","",LD!L11) ->  | J148: =IF(LD!M11="","",LD!M11) ->  | K148: =IF(LD!N11="","",LD!N11) ->  | L148: =IF(LD!O11="","",LD!O11) ->  | M148: =IF(LD!P11="","",LD!P11) ->  | N148: =IF(LD!Q11="","",LD!Q11) ->  | O148: =IF(LD!R11="","",LD!R11) ->  | P148: =IF(LD!S11="","",LD!S11) ->  | Q148: =IF(LD!T11="","",LD!T11) ->  | R148: =IF(LD!U11="","",LD!U11) ->  | S148: =IF(LD!V11="","",LD!V11) ->  | T148: =IF(LD!W11="","",LD!W11) ->  | U148: =IF(LD!X11="","",LD!X11) ->  | V148: =IF(LD!Y11="","",LD!Y11) ->  | W148: =IF(LD!Z11="","",LD!Z11) ->  | X148: =IF(LD!AA11="","",LD!AA11) ->  | Y148: =IF(LD!AB11="","",LD!AB11) ->  | Z148: =IF(LD!AC11="","",LD!AC11) ->  | AA148: =IF(LD!AD11="","",LD!AD11) ->  | AB148: =IF(LD!AE11="","",LD!AE11) ->  | AC148: =IF(LD!AF11="","",LD!AF11) ->  | AD148: =IF(LD!AG11="","",LD!AG11) ->  | AE148: =IF(LD!AH11="","",LD!AH11) ->  | AF148: =IF(LD!AI11="","",LD!AI11) ->  | AG148: =IF(LD!AJ11="","",LD!AJ11) ->  | AH148: =IF(LD!AK11="","",LD!AK11) ->  | AI148: =IF(LD!AL11="","",LD!AL11) ->  | AJ148: =IF(LD!AM11="","",LD!AM11) ->  | AK148: =IF(LD!AN11="","",LD!AN11) ->  | AL148: =IF(LD!AO11="","",LD!AO11) ->  | AM148: =IF(LD!AP11="","",LD!AP11) -> 
C149: Comp. Esp. 5 | D149: Criterio Evaluación 5.1 | E149: =IF(LD!H12="","",LD!H12) ->  | F149: =IF(LD!I12="","",LD!I12) ->  | G149: =IF(LD!J12="","",LD!J12) ->  | H149: =IF(LD!K12="","",LD!K12) ->  | I149: =IF(LD!L12="","",LD!L12) ->  | J149: =IF(LD!M12="","",LD!M12) ->  | K149: =IF(LD!N12="","",LD!N12) ->  | L149: =IF(LD!O12="","",LD!O12) ->  | M149: =IF(LD!P12="","",LD!P12) ->  | N149: =IF(LD!Q12="","",LD!Q12) ->  | O149: =IF(LD!R12="","",LD!R12) ->  | P149: =IF(LD!S12="","",LD!S12) ->  | Q149: =IF(LD!T12="","",LD!T12) ->  | R149: =IF(LD!U12="","",LD!U12) ->  | S149: =IF(LD!V12="","",LD!V12) ->  | T149: =IF(LD!W12="","",LD!W12) ->  | U149: =IF(LD!X12="","",LD!X12) ->  | V149: =IF(LD!Y12="","",LD!Y12) ->  | W149: =IF(LD!Z12="","",LD!Z12) ->  | X149: =IF(LD!AA12="","",LD!AA12) ->  | Y149: =IF(LD!AB12="","",LD!AB12) ->  | Z149: =IF(LD!AC12="","",LD!AC12) ->  | AA149: =IF(LD!AD12="","",LD!AD12) ->  | AB149: =IF(LD!AE12="","",LD!AE12) ->  | AC149: =IF(LD!AF12="","",LD!AF12) ->  | AD149: =IF(LD!AG12="","",LD!AG12) ->  | AE149: =IF(LD!AH12="","",LD!AH12) ->  | AF149: =IF(LD!AI12="","",LD!AI12) ->  | AG149: =IF(LD!AJ12="","",LD!AJ12) ->  | AH149: =IF(LD!AK12="","",LD!AK12) ->  | AI149: =IF(LD!AL12="","",LD!AL12) ->  | AJ149: =IF(LD!AM12="","",LD!AM12) ->  | AK149: =IF(LD!AN12="","",LD!AN12) ->  | AL149: =IF(LD!AO12="","",LD!AO12) ->  | AM149: =IF(LD!AP12="","",LD!AP12) -> 
D150: Criterio Evaluación 5.2 | E150: =IF(LD!H13="","",LD!H13) ->  | F150: =IF(LD!I13="","",LD!I13) ->  | G150: =IF(LD!J13="","",LD!J13) ->  | H150: =IF(LD!K13="","",LD!K13) ->  | I150: =IF(LD!L13="","",LD!L13) ->  | J150: =IF(LD!M13="","",LD!M13) ->  | K150: =IF(LD!N13="","",LD!N13) ->  | L150: =IF(LD!O13="","",LD!O13) ->  | M150: =IF(LD!P13="","",LD!P13) ->  | N150: =IF(LD!Q13="","",LD!Q13) ->  | O150: =IF(LD!R13="","",LD!R13) ->  | P150: =IF(LD!S13="","",LD!S13) ->  | Q150: =IF(LD!T13="","",LD!T13) ->  | R150: =IF(LD!U13="","",LD!U13) ->  | S150: =IF(LD!V13="","",LD!V13) ->  | T150: =IF(LD!W13="","",LD!W13) ->  | U150: =IF(LD!X13="","",LD!X13) ->  | V150: =IF(LD!Y13="","",LD!Y13) ->  | W150: =IF(LD!Z13="","",LD!Z13) ->  | X150: =IF(LD!AA13="","",LD!AA13) ->  | Y150: =IF(LD!AB13="","",LD!AB13) ->  | Z150: =IF(LD!AC13="","",LD!AC13) ->  | AA150: =IF(LD!AD13="","",LD!AD13) ->  | AB150: =IF(LD!AE13="","",LD!AE13) ->  | AC150: =IF(LD!AF13="","",LD!AF13) ->  | AD150: =IF(LD!AG13="","",LD!AG13) ->  | AE150: =IF(LD!AH13="","",LD!AH13) ->  | AF150: =IF(LD!AI13="","",LD!AI13) ->  | AG150: =IF(LD!AJ13="","",LD!AJ13) ->  | AH150: =IF(LD!AK13="","",LD!AK13) ->  | AI150: =IF(LD!AL13="","",LD!AL13) ->  | AJ150: =IF(LD!AM13="","",LD!AM13) ->  | AK150: =IF(LD!AN13="","",LD!AN13) ->  | AL150: =IF(LD!AO13="","",LD!AO13) ->  | AM150: =IF(LD!AP13="","",LD!AP13) -> 
B151: Psicología | C151: Comp. Esp. 1 | D151: Criterio Evaluación 1.1 | E151: =IF(PSI!H4="","",PSI!H4) ->  | F151: =IF(PSI!I4="","",PSI!I4) ->  | G151: =IF(PSI!J4="","",PSI!J4) ->  | H151: =IF(PSI!K4="","",PSI!K4) ->  | I151: =IF(PSI!L4="","",PSI!L4) ->  | J151: =IF(PSI!M4="","",PSI!M4) ->  | K151: =IF(PSI!N4="","",PSI!N4) ->  | L151: =IF(PSI!O4="","",PSI!O4) ->  | M151: =IF(PSI!P4="","",PSI!P4) ->  | N151: =IF(PSI!Q4="","",PSI!Q4) ->  | O151: =IF(PSI!R4="","",PSI!R4) ->  | P151: =IF(PSI!S4="","",PSI!S4) ->  | Q151: =IF(PSI!T4="","",PSI!T4) ->  | R151: =IF(PSI!U4="","",PSI!U4) ->  | S151: =IF(PSI!V4="","",PSI!V4) ->  | T151: =IF(PSI!W4="","",PSI!W4) ->  | U151: =IF(PSI!X4="","",PSI!X4) ->  | V151: =IF(PSI!Y4="","",PSI!Y4) ->  | W151: =IF(PSI!Z4="","",PSI!Z4) ->  | X151: =IF(PSI!AA4="","",PSI!AA4) ->  | Y151: =IF(PSI!AB4="","",PSI!AB4) ->  | Z151: =IF(PSI!AC4="","",PSI!AC4) ->  | AA151: =IF(PSI!AD4="","",PSI!AD4) ->  | AB151: =IF(PSI!AE4="","",PSI!AE4) ->  | AC151: =IF(PSI!AF4="","",PSI!AF4) ->  | AD151: =IF(PSI!AG4="","",PSI!AG4) ->  | AE151: =IF(PSI!AH4="","",PSI!AH4) ->  | AF151: =IF(PSI!AI4="","",PSI!AI4) ->  | AG151: =IF(PSI!AJ4="","",PSI!AJ4) ->  | AH151: =IF(PSI!AK4="","",PSI!AK4) ->  | AI151: =IF(PSI!AL4="","",PSI!AL4) ->  | AJ151: =IF(PSI!AM4="","",PSI!AM4) ->  | AK151: =IF(PSI!AN4="","",PSI!AN4) ->  | AL151: =IF(PSI!AO4="","",PSI!AO4) ->  | AM151: =IF(PSI!AP4="","",PSI!AP4) -> 
D152: Criterio Evaluación 1.2 | E152: =IF(PSI!H5="","",PSI!H5) ->  | F152: =IF(PSI!I5="","",PSI!I5) ->  | G152: =IF(PSI!J5="","",PSI!J5) ->  | H152: =IF(PSI!K5="","",PSI!K5) ->  | I152: =IF(PSI!L5="","",PSI!L5) ->  | J152: =IF(PSI!M5="","",PSI!M5) ->  | K152: =IF(PSI!N5="","",PSI!N5) ->  | L152: =IF(PSI!O5="","",PSI!O5) ->  | M152: =IF(PSI!P5="","",PSI!P5) ->  | N152: =IF(PSI!Q5="","",PSI!Q5) ->  | O152: =IF(PSI!R5="","",PSI!R5) ->  | P152: =IF(PSI!S5="","",PSI!S5) ->  | Q152: =IF(PSI!T5="","",PSI!T5) ->  | R152: =IF(PSI!U5="","",PSI!U5) ->  | S152: =IF(PSI!V5="","",PSI!V5) ->  | T152: =IF(PSI!W5="","",PSI!W5) ->  | U152: =IF(PSI!X5="","",PSI!X5) ->  | V152: =IF(PSI!Y5="","",PSI!Y5) ->  | W152: =IF(PSI!Z5="","",PSI!Z5) ->  | X152: =IF(PSI!AA5="","",PSI!AA5) ->  | Y152: =IF(PSI!AB5="","",PSI!AB5) ->  | Z152: =IF(PSI!AC5="","",PSI!AC5) ->  | AA152: =IF(PSI!AD5="","",PSI!AD5) ->  | AB152: =IF(PSI!AE5="","",PSI!AE5) ->  | AC152: =IF(PSI!AF5="","",PSI!AF5) ->  | AD152: =IF(PSI!AG5="","",PSI!AG5) ->  | AE152: =IF(PSI!AH5="","",PSI!AH5) ->  | AF152: =IF(PSI!AI5="","",PSI!AI5) ->  | AG152: =IF(PSI!AJ5="","",PSI!AJ5) ->  | AH152: =IF(PSI!AK5="","",PSI!AK5) ->  | AI152: =IF(PSI!AL5="","",PSI!AL5) ->  | AJ152: =IF(PSI!AM5="","",PSI!AM5) ->  | AK152: =IF(PSI!AN5="","",PSI!AN5) ->  | AL152: =IF(PSI!AO5="","",PSI!AO5) ->  | AM152: =IF(PSI!AP5="","",PSI!AP5) -> 
D153: Criterio Evaluación 1.3 | E153: =IF(PSI!H6="","",PSI!H6) ->  | F153: =IF(PSI!I6="","",PSI!I6) ->  | G153: =IF(PSI!J6="","",PSI!J6) ->  | H153: =IF(PSI!K6="","",PSI!K6) ->  | I153: =IF(PSI!L6="","",PSI!L6) ->  | J153: =IF(PSI!M6="","",PSI!M6) ->  | K153: =IF(PSI!N6="","",PSI!N6) ->  | L153: =IF(PSI!O6="","",PSI!O6) ->  | M153: =IF(PSI!P6="","",PSI!P6) ->  | N153: =IF(PSI!Q6="","",PSI!Q6) ->  | O153: =IF(PSI!R6="","",PSI!R6) ->  | P153: =IF(PSI!S6="","",PSI!S6) ->  | Q153: =IF(PSI!T6="","",PSI!T6) ->  | R153: =IF(PSI!U6="","",PSI!U6) ->  | S153: =IF(PSI!V6="","",PSI!V6) ->  | T153: =IF(PSI!W6="","",PSI!W6) ->  | U153: =IF(PSI!X6="","",PSI!X6) ->  | V153: =IF(PSI!Y6="","",PSI!Y6) ->  | W153: =IF(PSI!Z6="","",PSI!Z6) ->  | X153: =IF(PSI!AA6="","",PSI!AA6) ->  | Y153: =IF(PSI!AB6="","",PSI!AB6) ->  | Z153: =IF(PSI!AC6="","",PSI!AC6) ->  | AA153: =IF(PSI!AD6="","",PSI!AD6) ->  | AB153: =IF(PSI!AE6="","",PSI!AE6) ->  | AC153: =IF(PSI!AF6="","",PSI!AF6) ->  | AD153: =IF(PSI!AG6="","",PSI!AG6) ->  | AE153: =IF(PSI!AH6="","",PSI!AH6) ->  | AF153: =IF(PSI!AI6="","",PSI!AI6) ->  | AG153: =IF(PSI!AJ6="","",PSI!AJ6) ->  | AH153: =IF(PSI!AK6="","",PSI!AK6) ->  | AI153: =IF(PSI!AL6="","",PSI!AL6) ->  | AJ153: =IF(PSI!AM6="","",PSI!AM6) ->  | AK153: =IF(PSI!AN6="","",PSI!AN6) ->  | AL153: =IF(PSI!AO6="","",PSI!AO6) ->  | AM153: =IF(PSI!AP6="","",PSI!AP6) -> 
C154: Comp. Esp. 2 | D154: Criterio Evaluación 2.1 | E154: =IF(PSI!H7="","",PSI!H7) ->  | F154: =IF(PSI!I7="","",PSI!I7) ->  | G154: =IF(PSI!J7="","",PSI!J7) ->  | H154: =IF(PSI!K7="","",PSI!K7) ->  | I154: =IF(PSI!L7="","",PSI!L7) ->  | J154: =IF(PSI!M7="","",PSI!M7) ->  | K154: =IF(PSI!N7="","",PSI!N7) ->  | L154: =IF(PSI!O7="","",PSI!O7) ->  | M154: =IF(PSI!P7="","",PSI!P7) ->  | N154: =IF(PSI!Q7="","",PSI!Q7) ->  | O154: =IF(PSI!R7="","",PSI!R7) ->  | P154: =IF(PSI!S7="","",PSI!S7) ->  | Q154: =IF(PSI!T7="","",PSI!T7) ->  | R154: =IF(PSI!U7="","",PSI!U7) ->  | S154: =IF(PSI!V7="","",PSI!V7) ->  | T154: =IF(PSI!W7="","",PSI!W7) ->  | U154: =IF(PSI!X7="","",PSI!X7) ->  | V154: =IF(PSI!Y7="","",PSI!Y7) ->  | W154: =IF(PSI!Z7="","",PSI!Z7) ->  | X154: =IF(PSI!AA7="","",PSI!AA7) ->  | Y154: =IF(PSI!AB7="","",PSI!AB7) ->  | Z154: =IF(PSI!AC7="","",PSI!AC7) ->  | AA154: =IF(PSI!AD7="","",PSI!AD7) ->  | AB154: =IF(PSI!AE7="","",PSI!AE7) ->  | AC154: =IF(PSI!AF7="","",PSI!AF7) ->  | AD154: =IF(PSI!AG7="","",PSI!AG7) ->  | AE154: =IF(PSI!AH7="","",PSI!AH7) ->  | AF154: =IF(PSI!AI7="","",PSI!AI7) ->  | AG154: =IF(PSI!AJ7="","",PSI!AJ7) ->  | AH154: =IF(PSI!AK7="","",PSI!AK7) ->  | AI154: =IF(PSI!AL7="","",PSI!AL7) ->  | AJ154: =IF(PSI!AM7="","",PSI!AM7) ->  | AK154: =IF(PSI!AN7="","",PSI!AN7) ->  | AL154: =IF(PSI!AO7="","",PSI!AO7) ->  | AM154: =IF(PSI!AP7="","",PSI!AP7) -> 
D155: Criterio Evaluación 2.2 | E155: =IF(PSI!H8="","",PSI!H8) ->  | F155: =IF(PSI!I8="","",PSI!I8) ->  | G155: =IF(PSI!J8="","",PSI!J8) ->  | H155: =IF(PSI!K8="","",PSI!K8) ->  | I155: =IF(PSI!L8="","",PSI!L8) ->  | J155: =IF(PSI!M8="","",PSI!M8) ->  | K155: =IF(PSI!N8="","",PSI!N8) ->  | L155: =IF(PSI!O8="","",PSI!O8) ->  | M155: =IF(PSI!P8="","",PSI!P8) ->  | N155: =IF(PSI!Q8="","",PSI!Q8) ->  | O155: =IF(PSI!R8="","",PSI!R8) ->  | P155: =IF(PSI!S8="","",PSI!S8) ->  | Q155: =IF(PSI!T8="","",PSI!T8) ->  | R155: =IF(PSI!U8="","",PSI!U8) ->  | S155: =IF(PSI!V8="","",PSI!V8) ->  | T155: =IF(PSI!W8="","",PSI!W8) ->  | U155: =IF(PSI!X8="","",PSI!X8) ->  | V155: =IF(PSI!Y8="","",PSI!Y8) ->  | W155: =IF(PSI!Z8="","",PSI!Z8) ->  | X155: =IF(PSI!AA8="","",PSI!AA8) ->  | Y155: =IF(PSI!AB8="","",PSI!AB8) ->  | Z155: =IF(PSI!AC8="","",PSI!AC8) ->  | AA155: =IF(PSI!AD8="","",PSI!AD8) ->  | AB155: =IF(PSI!AE8="","",PSI!AE8) ->  | AC155: =IF(PSI!AF8="","",PSI!AF8) ->  | AD155: =IF(PSI!AG8="","",PSI!AG8) ->  | AE155: =IF(PSI!AH8="","",PSI!AH8) ->  | AF155: =IF(PSI!AI8="","",PSI!AI8) ->  | AG155: =IF(PSI!AJ8="","",PSI!AJ8) ->  | AH155: =IF(PSI!AK8="","",PSI!AK8) ->  | AI155: =IF(PSI!AL8="","",PSI!AL8) ->  | AJ155: =IF(PSI!AM8="","",PSI!AM8) ->  | AK155: =IF(PSI!AN8="","",PSI!AN8) ->  | AL155: =IF(PSI!AO8="","",PSI!AO8) ->  | AM155: =IF(PSI!AP8="","",PSI!AP8) -> 
D156: Criterio Evaluación 2.3 | E156: =IF(PSI!H9="","",PSI!H9) ->  | F156: =IF(PSI!I9="","",PSI!I9) ->  | G156: =IF(PSI!J9="","",PSI!J9) ->  | H156: =IF(PSI!K9="","",PSI!K9) ->  | I156: =IF(PSI!L9="","",PSI!L9) ->  | J156: =IF(PSI!M9="","",PSI!M9) ->  | K156: =IF(PSI!N9="","",PSI!N9) ->  | L156: =IF(PSI!O9="","",PSI!O9) ->  | M156: =IF(PSI!P9="","",PSI!P9) ->  | N156: =IF(PSI!Q9="","",PSI!Q9) ->  | O156: =IF(PSI!R9="","",PSI!R9) ->  | P156: =IF(PSI!S9="","",PSI!S9) ->  | Q156: =IF(PSI!T9="","",PSI!T9) ->  | R156: =IF(PSI!U9="","",PSI!U9) ->  | S156: =IF(PSI!V9="","",PSI!V9) ->  | T156: =IF(PSI!W9="","",PSI!W9) ->  | U156: =IF(PSI!X9="","",PSI!X9) ->  | V156: =IF(PSI!Y9="","",PSI!Y9) ->  | W156: =IF(PSI!Z9="","",PSI!Z9) ->  | X156: =IF(PSI!AA9="","",PSI!AA9) ->  | Y156: =IF(PSI!AB9="","",PSI!AB9) ->  | Z156: =IF(PSI!AC9="","",PSI!AC9) ->  | AA156: =IF(PSI!AD9="","",PSI!AD9) ->  | AB156: =IF(PSI!AE9="","",PSI!AE9) ->  | AC156: =IF(PSI!AF9="","",PSI!AF9) ->  | AD156: =IF(PSI!AG9="","",PSI!AG9) ->  | AE156: =IF(PSI!AH9="","",PSI!AH9) ->  | AF156: =IF(PSI!AI9="","",PSI!AI9) ->  | AG156: =IF(PSI!AJ9="","",PSI!AJ9) ->  | AH156: =IF(PSI!AK9="","",PSI!AK9) ->  | AI156: =IF(PSI!AL9="","",PSI!AL9) ->  | AJ156: =IF(PSI!AM9="","",PSI!AM9) ->  | AK156: =IF(PSI!AN9="","",PSI!AN9) ->  | AL156: =IF(PSI!AO9="","",PSI!AO9) ->  | AM156: =IF(PSI!AP9="","",PSI!AP9) -> 
D157: Criterio Evaluación 2.4 | E157: =IF(PSI!H10="","",PSI!H10) ->  | F157: =IF(PSI!I10="","",PSI!I10) ->  | G157: =IF(PSI!J10="","",PSI!J10) ->  | H157: =IF(PSI!K10="","",PSI!K10) ->  | I157: =IF(PSI!L10="","",PSI!L10) ->  | J157: =IF(PSI!M10="","",PSI!M10) ->  | K157: =IF(PSI!N10="","",PSI!N10) ->  | L157: =IF(PSI!O10="","",PSI!O10) ->  | M157: =IF(PSI!P10="","",PSI!P10) ->  | N157: =IF(PSI!Q10="","",PSI!Q10) ->  | O157: =IF(PSI!R10="","",PSI!R10) ->  | P157: =IF(PSI!S10="","",PSI!S10) ->  | Q157: =IF(PSI!T10="","",PSI!T10) ->  | R157: =IF(PSI!U10="","",PSI!U10) ->  | S157: =IF(PSI!V10="","",PSI!V10) ->  | T157: =IF(PSI!W10="","",PSI!W10) ->  | U157: =IF(PSI!X10="","",PSI!X10) ->  | V157: =IF(PSI!Y10="","",PSI!Y10) ->  | W157: =IF(PSI!Z10="","",PSI!Z10) ->  | X157: =IF(PSI!AA10="","",PSI!AA10) ->  | Y157: =IF(PSI!AB10="","",PSI!AB10) ->  | Z157: =IF(PSI!AC10="","",PSI!AC10) ->  | AA157: =IF(PSI!AD10="","",PSI!AD10) ->  | AB157: =IF(PSI!AE10="","",PSI!AE10) ->  | AC157: =IF(PSI!AF10="","",PSI!AF10) ->  | AD157: =IF(PSI!AG10="","",PSI!AG10) ->  | AE157: =IF(PSI!AH10="","",PSI!AH10) ->  | AF157: =IF(PSI!AI10="","",PSI!AI10) ->  | AG157: =IF(PSI!AJ10="","",PSI!AJ10) ->  | AH157: =IF(PSI!AK10="","",PSI!AK10) ->  | AI157: =IF(PSI!AL10="","",PSI!AL10) ->  | AJ157: =IF(PSI!AM10="","",PSI!AM10) ->  | AK157: =IF(PSI!AN10="","",PSI!AN10) ->  | AL157: =IF(PSI!AO10="","",PSI!AO10) ->  | AM157: =IF(PSI!AP10="","",PSI!AP10) -> 
C158: Comp. Esp. 3 | D158: Criterio Evaluación 3.1 | E158: =IF(PSI!H11="","",PSI!H11) ->  | F158: =IF(PSI!I11="","",PSI!I11) ->  | G158: =IF(PSI!J11="","",PSI!J11) ->  | H158: =IF(PSI!K11="","",PSI!K11) ->  | I158: =IF(PSI!L11="","",PSI!L11) ->  | J158: =IF(PSI!M11="","",PSI!M11) ->  | K158: =IF(PSI!N11="","",PSI!N11) ->  | L158: =IF(PSI!O11="","",PSI!O11) ->  | M158: =IF(PSI!P11="","",PSI!P11) ->  | N158: =IF(PSI!Q11="","",PSI!Q11) ->  | O158: =IF(PSI!R11="","",PSI!R11) ->  | P158: =IF(PSI!S11="","",PSI!S11) ->  | Q158: =IF(PSI!T11="","",PSI!T11) ->  | R158: =IF(PSI!U11="","",PSI!U11) ->  | S158: =IF(PSI!V11="","",PSI!V11) ->  | T158: =IF(PSI!W11="","",PSI!W11) ->  | U158: =IF(PSI!X11="","",PSI!X11) ->  | V158: =IF(PSI!Y11="","",PSI!Y11) ->  | W158: =IF(PSI!Z11="","",PSI!Z11) ->  | X158: =IF(PSI!AA11="","",PSI!AA11) ->  | Y158: =IF(PSI!AB11="","",PSI!AB11) ->  | Z158: =IF(PSI!AC11="","",PSI!AC11) ->  | AA158: =IF(PSI!AD11="","",PSI!AD11) ->  | AB158: =IF(PSI!AE11="","",PSI!AE11) ->  | AC158: =IF(PSI!AF11="","",PSI!AF11) ->  | AD158: =IF(PSI!AG11="","",PSI!AG11) ->  | AE158: =IF(PSI!AH11="","",PSI!AH11) ->  | AF158: =IF(PSI!AI11="","",PSI!AI11) ->  | AG158: =IF(PSI!AJ11="","",PSI!AJ11) ->  | AH158: =IF(PSI!AK11="","",PSI!AK11) ->  | AI158: =IF(PSI!AL11="","",PSI!AL11) ->  | AJ158: =IF(PSI!AM11="","",PSI!AM11) ->  | AK158: =IF(PSI!AN11="","",PSI!AN11) ->  | AL158: =IF(PSI!AO11="","",PSI!AO11) ->  | AM158: =IF(PSI!AP11="","",PSI!AP11) -> 
D159: Criterio Evaluación 3.2 | E159: =IF(PSI!H12="","",PSI!H12) ->  | F159: =IF(PSI!I12="","",PSI!I12) ->  | G159: =IF(PSI!J12="","",PSI!J12) ->  | H159: =IF(PSI!K12="","",PSI!K12) ->  | I159: =IF(PSI!L12="","",PSI!L12) ->  | J159: =IF(PSI!M12="","",PSI!M12) ->  | K159: =IF(PSI!N12="","",PSI!N12) ->  | L159: =IF(PSI!O12="","",PSI!O12) ->  | M159: =IF(PSI!P12="","",PSI!P12) ->  | N159: =IF(PSI!Q12="","",PSI!Q12) ->  | O159: =IF(PSI!R12="","",PSI!R12) ->  | P159: =IF(PSI!S12="","",PSI!S12) ->  | Q159: =IF(PSI!T12="","",PSI!T12) ->  | R159: =IF(PSI!U12="","",PSI!U12) ->  | S159: =IF(PSI!V12="","",PSI!V12) ->  | T159: =IF(PSI!W12="","",PSI!W12) ->  | U159: =IF(PSI!X12="","",PSI!X12) ->  | V159: =IF(PSI!Y12="","",PSI!Y12) ->  | W159: =IF(PSI!Z12="","",PSI!Z12) ->  | X159: =IF(PSI!AA12="","",PSI!AA12) ->  | Y159: =IF(PSI!AB12="","",PSI!AB12) ->  | Z159: =IF(PSI!AC12="","",PSI!AC12) ->  | AA159: =IF(PSI!AD12="","",PSI!AD12) ->  | AB159: =IF(PSI!AE12="","",PSI!AE12) ->  | AC159: =IF(PSI!AF12="","",PSI!AF12) ->  | AD159: =IF(PSI!AG12="","",PSI!AG12) ->  | AE159: =IF(PSI!AH12="","",PSI!AH12) ->  | AF159: =IF(PSI!AI12="","",PSI!AI12) ->  | AG159: =IF(PSI!AJ12="","",PSI!AJ12) ->  | AH159: =IF(PSI!AK12="","",PSI!AK12) ->  | AI159: =IF(PSI!AL12="","",PSI!AL12) ->  | AJ159: =IF(PSI!AM12="","",PSI!AM12) ->  | AK159: =IF(PSI!AN12="","",PSI!AN12) ->  | AL159: =IF(PSI!AO12="","",PSI!AO12) ->  | AM159: =IF(PSI!AP12="","",PSI!AP12) -> 
D160: Criterio Evaluación 3.3 | E160: =IF(PSI!H13="","",PSI!H13) ->  | F160: =IF(PSI!I13="","",PSI!I13) ->  | G160: =IF(PSI!J13="","",PSI!J13) ->  | H160: =IF(PSI!K13="","",PSI!K13) ->  | I160: =IF(PSI!L13="","",PSI!L13) ->  | J160: =IF(PSI!M13="","",PSI!M13) ->  | K160: =IF(PSI!N13="","",PSI!N13) ->  | L160: =IF(PSI!O13="","",PSI!O13) ->  | M160: =IF(PSI!P13="","",PSI!P13) ->  | N160: =IF(PSI!Q13="","",PSI!Q13) ->  | O160: =IF(PSI!R13="","",PSI!R13) ->  | P160: =IF(PSI!S13="","",PSI!S13) ->  | Q160: =IF(PSI!T13="","",PSI!T13) ->  | R160: =IF(PSI!U13="","",PSI!U13) ->  | S160: =IF(PSI!V13="","",PSI!V13) ->  | T160: =IF(PSI!W13="","",PSI!W13) ->  | U160: =IF(PSI!X13="","",PSI!X13) ->  | V160: =IF(PSI!Y13="","",PSI!Y13) ->  | W160: =IF(PSI!Z13="","",PSI!Z13) ->  | X160: =IF(PSI!AA13="","",PSI!AA13) ->  | Y160: =IF(PSI!AB13="","",PSI!AB13) ->  | Z160: =IF(PSI!AC13="","",PSI!AC13) ->  | AA160: =IF(PSI!AD13="","",PSI!AD13) ->  | AB160: =IF(PSI!AE13="","",PSI!AE13) ->  | AC160: =IF(PSI!AF13="","",PSI!AF13) ->  | AD160: =IF(PSI!AG13="","",PSI!AG13) ->  | AE160: =IF(PSI!AH13="","",PSI!AH13) ->  | AF160: =IF(PSI!AI13="","",PSI!AI13) ->  | AG160: =IF(PSI!AJ13="","",PSI!AJ13) ->  | AH160: =IF(PSI!AK13="","",PSI!AK13) ->  | AI160: =IF(PSI!AL13="","",PSI!AL13) ->  | AJ160: =IF(PSI!AM13="","",PSI!AM13) ->  | AK160: =IF(PSI!AN13="","",PSI!AN13) ->  | AL160: =IF(PSI!AO13="","",PSI!AO13) ->  | AM160: =IF(PSI!AP13="","",PSI!AP13) -> 
C161: Comp. Esp. 4 | D161: Criterio Evaluación 4.1 | E161: =IF(PSI!H14="","",PSI!H14) ->  | F161: =IF(PSI!I14="","",PSI!I14) ->  | G161: =IF(PSI!J14="","",PSI!J14) ->  | H161: =IF(PSI!K14="","",PSI!K14) ->  | I161: =IF(PSI!L14="","",PSI!L14) ->  | J161: =IF(PSI!M14="","",PSI!M14) ->  | K161: =IF(PSI!N14="","",PSI!N14) ->  | L161: =IF(PSI!O14="","",PSI!O14) ->  | M161: =IF(PSI!P14="","",PSI!P14) ->  | N161: =IF(PSI!Q14="","",PSI!Q14) ->  | O161: =IF(PSI!R14="","",PSI!R14) ->  | P161: =IF(PSI!S14="","",PSI!S14) ->  | Q161: =IF(PSI!T14="","",PSI!T14) ->  | R161: =IF(PSI!U14="","",PSI!U14) ->  | S161: =IF(PSI!V14="","",PSI!V14) ->  | T161: =IF(PSI!W14="","",PSI!W14) ->  | U161: =IF(PSI!X14="","",PSI!X14) ->  | V161: =IF(PSI!Y14="","",PSI!Y14) ->  | W161: =IF(PSI!Z14="","",PSI!Z14) ->  | X161: =IF(PSI!AA14="","",PSI!AA14) ->  | Y161: =IF(PSI!AB14="","",PSI!AB14) ->  | Z161: =IF(PSI!AC14="","",PSI!AC14) ->  | AA161: =IF(PSI!AD14="","",PSI!AD14) ->  | AB161: =IF(PSI!AE14="","",PSI!AE14) ->  | AC161: =IF(PSI!AF14="","",PSI!AF14) ->  | AD161: =IF(PSI!AG14="","",PSI!AG14) ->  | AE161: =IF(PSI!AH14="","",PSI!AH14) ->  | AF161: =IF(PSI!AI14="","",PSI!AI14) ->  | AG161: =IF(PSI!AJ14="","",PSI!AJ14) ->  | AH161: =IF(PSI!AK14="","",PSI!AK14) ->  | AI161: =IF(PSI!AL14="","",PSI!AL14) ->  | AJ161: =IF(PSI!AM14="","",PSI!AM14) ->  | AK161: =IF(PSI!AN14="","",PSI!AN14) ->  | AL161: =IF(PSI!AO14="","",PSI!AO14) ->  | AM161: =IF(PSI!AP14="","",PSI!AP14) -> 
D162: Criterio Evaluación 4.2 | E162: =IF(PSI!H15="","",PSI!H15) ->  | F162: =IF(PSI!I15="","",PSI!I15) ->  | G162: =IF(PSI!J15="","",PSI!J15) ->  | H162: =IF(PSI!K15="","",PSI!K15) ->  | I162: =IF(PSI!L15="","",PSI!L15) ->  | J162: =IF(PSI!M15="","",PSI!M15) ->  | K162: =IF(PSI!N15="","",PSI!N15) ->  | L162: =IF(PSI!O15="","",PSI!O15) ->  | M162: =IF(PSI!P15="","",PSI!P15) ->  | N162: =IF(PSI!Q15="","",PSI!Q15) ->  | O162: =IF(PSI!R15="","",PSI!R15) ->  | P162: =IF(PSI!S15="","",PSI!S15) ->  | Q162: =IF(PSI!T15="","",PSI!T15) ->  | R162: =IF(PSI!U15="","",PSI!U15) ->  | S162: =IF(PSI!V15="","",PSI!V15) ->  | T162: =IF(PSI!W15="","",PSI!W15) ->  | U162: =IF(PSI!X15="","",PSI!X15) ->  | V162: =IF(PSI!Y15="","",PSI!Y15) ->  | W162: =IF(PSI!Z15="","",PSI!Z15) ->  | X162: =IF(PSI!AA15="","",PSI!AA15) ->  | Y162: =IF(PSI!AB15="","",PSI!AB15) ->  | Z162: =IF(PSI!AC15="","",PSI!AC15) ->  | AA162: =IF(PSI!AD15="","",PSI!AD15) ->  | AB162: =IF(PSI!AE15="","",PSI!AE15) ->  | AC162: =IF(PSI!AF15="","",PSI!AF15) ->  | AD162: =IF(PSI!AG15="","",PSI!AG15) ->  | AE162: =IF(PSI!AH15="","",PSI!AH15) ->  | AF162: =IF(PSI!AI15="","",PSI!AI15) ->  | AG162: =IF(PSI!AJ15="","",PSI!AJ15) ->  | AH162: =IF(PSI!AK15="","",PSI!AK15) ->  | AI162: =IF(PSI!AL15="","",PSI!AL15) ->  | AJ162: =IF(PSI!AM15="","",PSI!AM15) ->  | AK162: =IF(PSI!AN15="","",PSI!AN15) ->  | AL162: =IF(PSI!AO15="","",PSI!AO15) ->  | AM162: =IF(PSI!AP15="","",PSI!AP15) -> 
D163: Criterio Evaluación 4.3 | E163: =IF(PSI!H16="","",PSI!H16) ->  | F163: =IF(PSI!I16="","",PSI!I16) ->  | G163: =IF(PSI!J16="","",PSI!J16) ->  | H163: =IF(PSI!K16="","",PSI!K16) ->  | I163: =IF(PSI!L16="","",PSI!L16) ->  | J163: =IF(PSI!M16="","",PSI!M16) ->  | K163: =IF(PSI!N16="","",PSI!N16) ->  | L163: =IF(PSI!O16="","",PSI!O16) ->  | M163: =IF(PSI!P16="","",PSI!P16) ->  | N163: =IF(PSI!Q16="","",PSI!Q16) ->  | O163: =IF(PSI!R16="","",PSI!R16) ->  | P163: =IF(PSI!S16="","",PSI!S16) ->  | Q163: =IF(PSI!T16="","",PSI!T16) ->  | R163: =IF(PSI!U16="","",PSI!U16) ->  | S163: =IF(PSI!V16="","",PSI!V16) ->  | T163: =IF(PSI!W16="","",PSI!W16) ->  | U163: =IF(PSI!X16="","",PSI!X16) ->  | V163: =IF(PSI!Y16="","",PSI!Y16) ->  | W163: =IF(PSI!Z16="","",PSI!Z16) ->  | X163: =IF(PSI!AA16="","",PSI!AA16) ->  | Y163: =IF(PSI!AB16="","",PSI!AB16) ->  | Z163: =IF(PSI!AC16="","",PSI!AC16) ->  | AA163: =IF(PSI!AD16="","",PSI!AD16) ->  | AB163: =IF(PSI!AE16="","",PSI!AE16) ->  | AC163: =IF(PSI!AF16="","",PSI!AF16) ->  | AD163: =IF(PSI!AG16="","",PSI!AG16) ->  | AE163: =IF(PSI!AH16="","",PSI!AH16) ->  | AF163: =IF(PSI!AI16="","",PSI!AI16) ->  | AG163: =IF(PSI!AJ16="","",PSI!AJ16) ->  | AH163: =IF(PSI!AK16="","",PSI!AK16) ->  | AI163: =IF(PSI!AL16="","",PSI!AL16) ->  | AJ163: =IF(PSI!AM16="","",PSI!AM16) ->  | AK163: =IF(PSI!AN16="","",PSI!AN16) ->  | AL163: =IF(PSI!AO16="","",PSI!AO16) ->  | AM163: =IF(PSI!AP16="","",PSI!AP16) -> 
C164: Comp. Esp. 5 | D164: Criterio Evaluación 5.1 | E164: =IF(PSI!H17="","",PSI!H17) ->  | F164: =IF(PSI!I17="","",PSI!I17) ->  | G164: =IF(PSI!J17="","",PSI!J17) ->  | H164: =IF(PSI!K17="","",PSI!K17) ->  | I164: =IF(PSI!L17="","",PSI!L17) ->  | J164: =IF(PSI!M17="","",PSI!M17) ->  | K164: =IF(PSI!N17="","",PSI!N17) ->  | L164: =IF(PSI!O17="","",PSI!O17) ->  | M164: =IF(PSI!P17="","",PSI!P17) ->  | N164: =IF(PSI!Q17="","",PSI!Q17) ->  | O164: =IF(PSI!R17="","",PSI!R17) ->  | P164: =IF(PSI!S17="","",PSI!S17) ->  | Q164: =IF(PSI!T17="","",PSI!T17) ->  | R164: =IF(PSI!U17="","",PSI!U17) ->  | S164: =IF(PSI!V17="","",PSI!V17) ->  | T164: =IF(PSI!W17="","",PSI!W17) ->  | U164: =IF(PSI!X17="","",PSI!X17) ->  | V164: =IF(PSI!Y17="","",PSI!Y17) ->  | W164: =IF(PSI!Z17="","",PSI!Z17) ->  | X164: =IF(PSI!AA17="","",PSI!AA17) ->  | Y164: =IF(PSI!AB17="","",PSI!AB17) ->  | Z164: =IF(PSI!AC17="","",PSI!AC17) ->  | AA164: =IF(PSI!AD17="","",PSI!AD17) ->  | AB164: =IF(PSI!AE17="","",PSI!AE17) ->  | AC164: =IF(PSI!AF17="","",PSI!AF17) ->  | AD164: =IF(PSI!AG17="","",PSI!AG17) ->  | AE164: =IF(PSI!AH17="","",PSI!AH17) ->  | AF164: =IF(PSI!AI17="","",PSI!AI17) ->  | AG164: =IF(PSI!AJ17="","",PSI!AJ17) ->  | AH164: =IF(PSI!AK17="","",PSI!AK17) ->  | AI164: =IF(PSI!AL17="","",PSI!AL17) ->  | AJ164: =IF(PSI!AM17="","",PSI!AM17) ->  | AK164: =IF(PSI!AN17="","",PSI!AN17) ->  | AL164: =IF(PSI!AO17="","",PSI!AO17) ->  | AM164: =IF(PSI!AP17="","",PSI!AP17) -> 
D165: Criterio Evaluación 5.2 | E165: =IF(PSI!H18="","",PSI!H18) ->  | F165: =IF(PSI!I18="","",PSI!I18) ->  | G165: =IF(PSI!J18="","",PSI!J18) ->  | H165: =IF(PSI!K18="","",PSI!K18) ->  | I165: =IF(PSI!L18="","",PSI!L18) ->  | J165: =IF(PSI!M18="","",PSI!M18) ->  | K165: =IF(PSI!N18="","",PSI!N18) ->  | L165: =IF(PSI!O18="","",PSI!O18) ->  | M165: =IF(PSI!P18="","",PSI!P18) ->  | N165: =IF(PSI!Q18="","",PSI!Q18) ->  | O165: =IF(PSI!R18="","",PSI!R18) ->  | P165: =IF(PSI!S18="","",PSI!S18) ->  | Q165: =IF(PSI!T18="","",PSI!T18) ->  | R165: =IF(PSI!U18="","",PSI!U18) ->  | S165: =IF(PSI!V18="","",PSI!V18) ->  | T165: =IF(PSI!W18="","",PSI!W18) ->  | U165: =IF(PSI!X18="","",PSI!X18) ->  | V165: =IF(PSI!Y18="","",PSI!Y18) ->  | W165: =IF(PSI!Z18="","",PSI!Z18) ->  | X165: =IF(PSI!AA18="","",PSI!AA18) ->  | Y165: =IF(PSI!AB18="","",PSI!AB18) ->  | Z165: =IF(PSI!AC18="","",PSI!AC18) ->  | AA165: =IF(PSI!AD18="","",PSI!AD18) ->  | AB165: =IF(PSI!AE18="","",PSI!AE18) ->  | AC165: =IF(PSI!AF18="","",PSI!AF18) ->  | AD165: =IF(PSI!AG18="","",PSI!AG18) ->  | AE165: =IF(PSI!AH18="","",PSI!AH18) ->  | AF165: =IF(PSI!AI18="","",PSI!AI18) ->  | AG165: =IF(PSI!AJ18="","",PSI!AJ18) ->  | AH165: =IF(PSI!AK18="","",PSI!AK18) ->  | AI165: =IF(PSI!AL18="","",PSI!AL18) ->  | AJ165: =IF(PSI!AM18="","",PSI!AM18) ->  | AK165: =IF(PSI!AN18="","",PSI!AN18) ->  | AL165: =IF(PSI!AO18="","",PSI!AO18) ->  | AM165: =IF(PSI!AP18="","",PSI!AP18) -> 
D166: Criterio Evaluación 5.3 | E166: =IF(PSI!H19="","",PSI!H19) ->  | F166: =IF(PSI!I19="","",PSI!I19) ->  | G166: =IF(PSI!J19="","",PSI!J19) ->  | H166: =IF(PSI!K19="","",PSI!K19) ->  | I166: =IF(PSI!L19="","",PSI!L19) ->  | J166: =IF(PSI!M19="","",PSI!M19) ->  | K166: =IF(PSI!N19="","",PSI!N19) ->  | L166: =IF(PSI!O19="","",PSI!O19) ->  | M166: =IF(PSI!P19="","",PSI!P19) ->  | N166: =IF(PSI!Q19="","",PSI!Q19) ->  | O166: =IF(PSI!R19="","",PSI!R19) ->  | P166: =IF(PSI!S19="","",PSI!S19) ->  | Q166: =IF(PSI!T19="","",PSI!T19) ->  | R166: =IF(PSI!U19="","",PSI!U19) ->  | S166: =IF(PSI!V19="","",PSI!V19) ->  | T166: =IF(PSI!W19="","",PSI!W19) ->  | U166: =IF(PSI!X19="","",PSI!X19) ->  | V166: =IF(PSI!Y19="","",PSI!Y19) ->  | W166: =IF(PSI!Z19="","",PSI!Z19) ->  | X166: =IF(PSI!AA19="","",PSI!AA19) ->  | Y166: =IF(PSI!AB19="","",PSI!AB19) ->  | Z166: =IF(PSI!AC19="","",PSI!AC19) ->  | AA166: =IF(PSI!AD19="","",PSI!AD19) ->  | AB166: =IF(PSI!AE19="","",PSI!AE19) ->  | AC166: =IF(PSI!AF19="","",PSI!AF19) ->  | AD166: =IF(PSI!AG19="","",PSI!AG19) ->  | AE166: =IF(PSI!AH19="","",PSI!AH19) ->  | AF166: =IF(PSI!AI19="","",PSI!AI19) ->  | AG166: =IF(PSI!AJ19="","",PSI!AJ19) ->  | AH166: =IF(PSI!AK19="","",PSI!AK19) ->  | AI166: =IF(PSI!AL19="","",PSI!AL19) ->  | AJ166: =IF(PSI!AM19="","",PSI!AM19) ->  | AK166: =IF(PSI!AN19="","",PSI!AN19) ->  | AL166: =IF(PSI!AO19="","",PSI!AO19) ->  | AM166: =IF(PSI!AP19="","",PSI!AP19) -> 
D167: Criterio Evaluación 5.4 | E167: =IF(PSI!H20="","",PSI!H20) ->  | F167: =IF(PSI!I20="","",PSI!I20) ->  | G167: =IF(PSI!J20="","",PSI!J20) ->  | H167: =IF(PSI!K20="","",PSI!K20) ->  | I167: =IF(PSI!L20="","",PSI!L20) ->  | J167: =IF(PSI!M20="","",PSI!M20) ->  | K167: =IF(PSI!N20="","",PSI!N20) ->  | L167: =IF(PSI!O20="","",PSI!O20) ->  | M167: =IF(PSI!P20="","",PSI!P20) ->  | N167: =IF(PSI!Q20="","",PSI!Q20) ->  | O167: =IF(PSI!R20="","",PSI!R20) ->  | P167: =IF(PSI!S20="","",PSI!S20) ->  | Q167: =IF(PSI!T20="","",PSI!T20) ->  | R167: =IF(PSI!U20="","",PSI!U20) ->  | S167: =IF(PSI!V20="","",PSI!V20) ->  | T167: =IF(PSI!W20="","",PSI!W20) ->  | U167: =IF(PSI!X20="","",PSI!X20) ->  | V167: =IF(PSI!Y20="","",PSI!Y20) ->  | W167: =IF(PSI!Z20="","",PSI!Z20) ->  | X167: =IF(PSI!AA20="","",PSI!AA20) ->  | Y167: =IF(PSI!AB20="","",PSI!AB20) ->  | Z167: =IF(PSI!AC20="","",PSI!AC20) ->  | AA167: =IF(PSI!AD20="","",PSI!AD20) ->  | AB167: =IF(PSI!AE20="","",PSI!AE20) ->  | AC167: =IF(PSI!AF20="","",PSI!AF20) ->  | AD167: =IF(PSI!AG20="","",PSI!AG20) ->  | AE167: =IF(PSI!AH20="","",PSI!AH20) ->  | AF167: =IF(PSI!AI20="","",PSI!AI20) ->  | AG167: =IF(PSI!AJ20="","",PSI!AJ20) ->  | AH167: =IF(PSI!AK20="","",PSI!AK20) ->  | AI167: =IF(PSI!AL20="","",PSI!AL20) ->  | AJ167: =IF(PSI!AM20="","",PSI!AM20) ->  | AK167: =IF(PSI!AN20="","",PSI!AN20) ->  | AL167: =IF(PSI!AO20="","",PSI!AO20) ->  | AM167: =IF(PSI!AP20="","",PSI!AP20) -> 
D168: Criterio Evaluación 5.5 | E168: =IF(PSI!H21="","",PSI!H21) ->  | F168: =IF(PSI!I21="","",PSI!I21) ->  | G168: =IF(PSI!J21="","",PSI!J21) ->  | H168: =IF(PSI!K21="","",PSI!K21) ->  | I168: =IF(PSI!L21="","",PSI!L21) ->  | J168: =IF(PSI!M21="","",PSI!M21) ->  | K168: =IF(PSI!N21="","",PSI!N21) ->  | L168: =IF(PSI!O21="","",PSI!O21) ->  | M168: =IF(PSI!P21="","",PSI!P21) ->  | N168: =IF(PSI!Q21="","",PSI!Q21) ->  | O168: =IF(PSI!R21="","",PSI!R21) ->  | P168: =IF(PSI!S21="","",PSI!S21) ->  | Q168: =IF(PSI!T21="","",PSI!T21) ->  | R168: =IF(PSI!U21="","",PSI!U21) ->  | S168: =IF(PSI!V21="","",PSI!V21) ->  | T168: =IF(PSI!W21="","",PSI!W21) ->  | U168: =IF(PSI!X21="","",PSI!X21) ->  | V168: =IF(PSI!Y21="","",PSI!Y21) ->  | W168: =IF(PSI!Z21="","",PSI!Z21) ->  | X168: =IF(PSI!AA21="","",PSI!AA21) ->  | Y168: =IF(PSI!AB21="","",PSI!AB21) ->  | Z168: =IF(PSI!AC21="","",PSI!AC21) ->  | AA168: =IF(PSI!AD21="","",PSI!AD21) ->  | AB168: =IF(PSI!AE21="","",PSI!AE21) ->  | AC168: =IF(PSI!AF21="","",PSI!AF21) ->  | AD168: =IF(PSI!AG21="","",PSI!AG21) ->  | AE168: =IF(PSI!AH21="","",PSI!AH21) ->  | AF168: =IF(PSI!AI21="","",PSI!AI21) ->  | AG168: =IF(PSI!AJ21="","",PSI!AJ21) ->  | AH168: =IF(PSI!AK21="","",PSI!AK21) ->  | AI168: =IF(PSI!AL21="","",PSI!AL21) ->  | AJ168: =IF(PSI!AM21="","",PSI!AM21) ->  | AK168: =IF(PSI!AN21="","",PSI!AN21) ->  | AL168: =IF(PSI!AO21="","",PSI!AO21) ->  | AM168: =IF(PSI!AP21="","",PSI!AP21) -> 
C169: Comp. Esp. 6 | D169: Criterio Evaluación 6.1 | E169: =IF(PSI!H22="","",PSI!H22) ->  | F169: =IF(PSI!I22="","",PSI!I22) ->  | G169: =IF(PSI!J22="","",PSI!J22) ->  | H169: =IF(PSI!K22="","",PSI!K22) ->  | I169: =IF(PSI!L22="","",PSI!L22) ->  | J169: =IF(PSI!M22="","",PSI!M22) ->  | K169: =IF(PSI!N22="","",PSI!N22) ->  | L169: =IF(PSI!O22="","",PSI!O22) ->  | M169: =IF(PSI!P22="","",PSI!P22) ->  | N169: =IF(PSI!Q22="","",PSI!Q22) ->  | O169: =IF(PSI!R22="","",PSI!R22) ->  | P169: =IF(PSI!S22="","",PSI!S22) ->  | Q169: =IF(PSI!T22="","",PSI!T22) ->  | R169: =IF(PSI!U22="","",PSI!U22) ->  | S169: =IF(PSI!V22="","",PSI!V22) ->  | T169: =IF(PSI!W22="","",PSI!W22) ->  | U169: =IF(PSI!X22="","",PSI!X22) ->  | V169: =IF(PSI!Y22="","",PSI!Y22) ->  | W169: =IF(PSI!Z22="","",PSI!Z22) ->  | X169: =IF(PSI!AA22="","",PSI!AA22) ->  | Y169: =IF(PSI!AB22="","",PSI!AB22) ->  | Z169: =IF(PSI!AC22="","",PSI!AC22) ->  | AA169: =IF(PSI!AD22="","",PSI!AD22) ->  | AB169: =IF(PSI!AE22="","",PSI!AE22) ->  | AC169: =IF(PSI!AF22="","",PSI!AF22) ->  | AD169: =IF(PSI!AG22="","",PSI!AG22) ->  | AE169: =IF(PSI!AH22="","",PSI!AH22) ->  | AF169: =IF(PSI!AI22="","",PSI!AI22) ->  | AG169: =IF(PSI!AJ22="","",PSI!AJ22) ->  | AH169: =IF(PSI!AK22="","",PSI!AK22) ->  | AI169: =IF(PSI!AL22="","",PSI!AL22) ->  | AJ169: =IF(PSI!AM22="","",PSI!AM22) ->  | AK169: =IF(PSI!AN22="","",PSI!AN22) ->  | AL169: =IF(PSI!AO22="","",PSI!AO22) ->  | AM169: =IF(PSI!AP22="","",PSI!AP22) -> 
D170: Criterio Evaluación 6.2 | E170: =IF(PSI!H23="","",PSI!H23) ->  | F170: =IF(PSI!I23="","",PSI!I23) ->  | G170: =IF(PSI!J23="","",PSI!J23) ->  | H170: =IF(PSI!K23="","",PSI!K23) ->  | I170: =IF(PSI!L23="","",PSI!L23) ->  | J170: =IF(PSI!M23="","",PSI!M23) ->  | K170: =IF(PSI!N23="","",PSI!N23) ->  | L170: =IF(PSI!O23="","",PSI!O23) ->  | M170: =IF(PSI!P23="","",PSI!P23) ->  | N170: =IF(PSI!Q23="","",PSI!Q23) ->  | O170: =IF(PSI!R23="","",PSI!R23) ->  | P170: =IF(PSI!S23="","",PSI!S23) ->  | Q170: =IF(PSI!T23="","",PSI!T23) ->  | R170: =IF(PSI!U23="","",PSI!U23) ->  | S170: =IF(PSI!V23="","",PSI!V23) ->  | T170: =IF(PSI!W23="","",PSI!W23) ->  | U170: =IF(PSI!X23="","",PSI!X23) ->  | V170: =IF(PSI!Y23="","",PSI!Y23) ->  | W170: =IF(PSI!Z23="","",PSI!Z23) ->  | X170: =IF(PSI!AA23="","",PSI!AA23) ->  | Y170: =IF(PSI!AB23="","",PSI!AB23) ->  | Z170: =IF(PSI!AC23="","",PSI!AC23) ->  | AA170: =IF(PSI!AD23="","",PSI!AD23) ->  | AB170: =IF(PSI!AE23="","",PSI!AE23) ->  | AC170: =IF(PSI!AF23="","",PSI!AF23) ->  | AD170: =IF(PSI!AG23="","",PSI!AG23) ->  | AE170: =IF(PSI!AH23="","",PSI!AH23) ->  | AF170: =IF(PSI!AI23="","",PSI!AI23) ->  | AG170: =IF(PSI!AJ23="","",PSI!AJ23) ->  | AH170: =IF(PSI!AK23="","",PSI!AK23) ->  | AI170: =IF(PSI!AL23="","",PSI!AL23) ->  | AJ170: =IF(PSI!AM23="","",PSI!AM23) ->  | AK170: =IF(PSI!AN23="","",PSI!AN23) ->  | AL170: =IF(PSI!AO23="","",PSI!AO23) ->  | AM170: =IF(PSI!AP23="","",PSI!AP23) -> 
D171: Criterio Evaluación 6.3 | E171: =IF(PSI!H24="","",PSI!H24) ->  | F171: =IF(PSI!I24="","",PSI!I24) ->  | G171: =IF(PSI!J24="","",PSI!J24) ->  | H171: =IF(PSI!K24="","",PSI!K24) ->  | I171: =IF(PSI!L24="","",PSI!L24) ->  | J171: =IF(PSI!M24="","",PSI!M24) ->  | K171: =IF(PSI!N24="","",PSI!N24) ->  | L171: =IF(PSI!O24="","",PSI!O24) ->  | M171: =IF(PSI!P24="","",PSI!P24) ->  | N171: =IF(PSI!Q24="","",PSI!Q24) ->  | O171: =IF(PSI!R24="","",PSI!R24) ->  | P171: =IF(PSI!S24="","",PSI!S24) ->  | Q171: =IF(PSI!T24="","",PSI!T24) ->  | R171: =IF(PSI!U24="","",PSI!U24) ->  | S171: =IF(PSI!V24="","",PSI!V24) ->  | T171: =IF(PSI!W24="","",PSI!W24) ->  | U171: =IF(PSI!X24="","",PSI!X24) ->  | V171: =IF(PSI!Y24="","",PSI!Y24) ->  | W171: =IF(PSI!Z24="","",PSI!Z24) ->  | X171: =IF(PSI!AA24="","",PSI!AA24) ->  | Y171: =IF(PSI!AB24="","",PSI!AB24) ->  | Z171: =IF(PSI!AC24="","",PSI!AC24) ->  | AA171: =IF(PSI!AD24="","",PSI!AD24) ->  | AB171: =IF(PSI!AE24="","",PSI!AE24) ->  | AC171: =IF(PSI!AF24="","",PSI!AF24) ->  | AD171: =IF(PSI!AG24="","",PSI!AG24) ->  | AE171: =IF(PSI!AH24="","",PSI!AH24) ->  | AF171: =IF(PSI!AI24="","",PSI!AI24) ->  | AG171: =IF(PSI!AJ24="","",PSI!AJ24) ->  | AH171: =IF(PSI!AK24="","",PSI!AK24) ->  | AI171: =IF(PSI!AL24="","",PSI!AL24) ->  | AJ171: =IF(PSI!AM24="","",PSI!AM24) ->  | AK171: =IF(PSI!AN24="","",PSI!AN24) ->  | AL171: =IF(PSI!AO24="","",PSI!AO24) ->  | AM171: =IF(PSI!AP24="","",PSI!AP24) -> 
D172: Criterio Evaluación 6.4 | E172: =IF(PSI!H25="","",PSI!H25) ->  | F172: =IF(PSI!I25="","",PSI!I25) ->  | G172: =IF(PSI!J25="","",PSI!J25) ->  | H172: =IF(PSI!K25="","",PSI!K25) ->  | I172: =IF(PSI!L25="","",PSI!L25) ->  | J172: =IF(PSI!M25="","",PSI!M25) ->  | K172: =IF(PSI!N25="","",PSI!N25) ->  | L172: =IF(PSI!O25="","",PSI!O25) ->  | M172: =IF(PSI!P25="","",PSI!P25) ->  | N172: =IF(PSI!Q25="","",PSI!Q25) ->  | O172: =IF(PSI!R25="","",PSI!R25) ->  | P172: =IF(PSI!S25="","",PSI!S25) ->  | Q172: =IF(PSI!T25="","",PSI!T25) ->  | R172: =IF(PSI!U25="","",PSI!U25) ->  | S172: =IF(PSI!V25="","",PSI!V25) ->  | T172: =IF(PSI!W25="","",PSI!W25) ->  | U172: =IF(PSI!X25="","",PSI!X25) ->  | V172: =IF(PSI!Y25="","",PSI!Y25) ->  | W172: =IF(PSI!Z25="","",PSI!Z25) ->  | X172: =IF(PSI!AA25="","",PSI!AA25) ->  | Y172: =IF(PSI!AB25="","",PSI!AB25) ->  | Z172: =IF(PSI!AC25="","",PSI!AC25) ->  | AA172: =IF(PSI!AD25="","",PSI!AD25) ->  | AB172: =IF(PSI!AE25="","",PSI!AE25) ->  | AC172: =IF(PSI!AF25="","",PSI!AF25) ->  | AD172: =IF(PSI!AG25="","",PSI!AG25) ->  | AE172: =IF(PSI!AH25="","",PSI!AH25) ->  | AF172: =IF(PSI!AI25="","",PSI!AI25) ->  | AG172: =IF(PSI!AJ25="","",PSI!AJ25) ->  | AH172: =IF(PSI!AK25="","",PSI!AK25) ->  | AI172: =IF(PSI!AL25="","",PSI!AL25) ->  | AJ172: =IF(PSI!AM25="","",PSI!AM25) ->  | AK172: =IF(PSI!AN25="","",PSI!AN25) ->  | AL172: =IF(PSI!AO25="","",PSI!AO25) ->  | AM172: =IF(PSI!AP25="","",PSI!AP25) -> 
B173: Segunda Lengua Extranjera II_ALE | C173: Comp. Esp. 1 | D173: Criterio Evaluación 1.1 | E173: =IF('Segunda LEX_ALE'!H4="","",'Segunda LEX_ALE'!H4) ->  | F173: =IF('Segunda LEX_ALE'!I4="","",'Segunda LEX_ALE'!I4) ->  | G173: =IF('Segunda LEX_ALE'!J4="","",'Segunda LEX_ALE'!J4) ->  | H173: =IF('Segunda LEX_ALE'!K4="","",'Segunda LEX_ALE'!K4) ->  | I173: =IF('Segunda LEX_ALE'!L4="","",'Segunda LEX_ALE'!L4) ->  | J173: =IF('Segunda LEX_ALE'!M4="","",'Segunda LEX_ALE'!M4) ->  | K173: =IF('Segunda LEX_ALE'!N4="","",'Segunda LEX_ALE'!N4) ->  | L173: =IF('Segunda LEX_ALE'!O4="","",'Segunda LEX_ALE'!O4) ->  | M173: =IF('Segunda LEX_ALE'!P4="","",'Segunda LEX_ALE'!P4) ->  | N173: =IF('Segunda LEX_ALE'!Q4="","",'Segunda LEX_ALE'!Q4) ->  | O173: =IF('Segunda LEX_ALE'!R4="","",'Segunda LEX_ALE'!R4) ->  | P173: =IF('Segunda LEX_ALE'!S4="","",'Segunda LEX_ALE'!S4) ->  | Q173: =IF('Segunda LEX_ALE'!T4="","",'Segunda LEX_ALE'!T4) ->  | R173: =IF('Segunda LEX_ALE'!U4="","",'Segunda LEX_ALE'!U4) ->  | S173: =IF('Segunda LEX_ALE'!V4="","",'Segunda LEX_ALE'!V4) ->  | T173: =IF('Segunda LEX_ALE'!W4="","",'Segunda LEX_ALE'!W4) ->  | U173: =IF('Segunda LEX_ALE'!X4="","",'Segunda LEX_ALE'!X4) ->  | V173: =IF('Segunda LEX_ALE'!Y4="","",'Segunda LEX_ALE'!Y4) ->  | W173: =IF('Segunda LEX_ALE'!Z4="","",'Segunda LEX_ALE'!Z4) ->  | X173: =IF('Segunda LEX_ALE'!AA4="","",'Segunda LEX_ALE'!AA4) ->  | Y173: =IF('Segunda LEX_ALE'!AB4="","",'Segunda LEX_ALE'!AB4) ->  | Z173: =IF('Segunda LEX_ALE'!AC4="","",'Segunda LEX_ALE'!AC4) ->  | AA173: =IF('Segunda LEX_ALE'!AD4="","",'Segunda LEX_ALE'!AD4) ->  | AB173: =IF('Segunda LEX_ALE'!AE4="","",'Segunda LEX_ALE'!AE4) ->  | AC173: =IF('Segunda LEX_ALE'!AF4="","",'Segunda LEX_ALE'!AF4) ->  | AD173: =IF('Segunda LEX_ALE'!AG4="","",'Segunda LEX_ALE'!AG4) ->  | AE173: =IF('Segunda LEX_ALE'!AH4="","",'Segunda LEX_ALE'!AH4) ->  | AF173: =IF('Segunda LEX_ALE'!AI4="","",'Segunda LEX_ALE'!AI4) ->  | AG173: =IF('Segunda LEX_ALE'!AJ4="","",'Segunda LEX_ALE'!AJ4) ->  | AH173: =IF('Segunda LEX_ALE'!AK4="","",'Segunda LEX_ALE'!AK4) ->  | AI173: =IF('Segunda LEX_ALE'!AL4="","",'Segunda LEX_ALE'!AL4) ->  | AJ173: =IF('Segunda LEX_ALE'!AM4="","",'Segunda LEX_ALE'!AM4) ->  | AK173: =IF('Segunda LEX_ALE'!AN4="","",'Segunda LEX_ALE'!AN4) ->  | AL173: =IF('Segunda LEX_ALE'!AO4="","",'Segunda LEX_ALE'!AO4) ->  | AM173: =IF('Segunda LEX_ALE'!AP4="","",'Segunda LEX_ALE'!AP4) -> 
D174: Criterio Evaluación 1.2 | E174: =IF('Segunda LEX_ALE'!H5="","",'Segunda LEX_ALE'!H5) ->  | F174: =IF('Segunda LEX_ALE'!I5="","",'Segunda LEX_ALE'!I5) ->  | G174: =IF('Segunda LEX_ALE'!J5="","",'Segunda LEX_ALE'!J5) ->  | H174: =IF('Segunda LEX_ALE'!K5="","",'Segunda LEX_ALE'!K5) ->  | I174: =IF('Segunda LEX_ALE'!L5="","",'Segunda LEX_ALE'!L5) ->  | J174: =IF('Segunda LEX_ALE'!M5="","",'Segunda LEX_ALE'!M5) ->  | K174: =IF('Segunda LEX_ALE'!N5="","",'Segunda LEX_ALE'!N5) ->  | L174: =IF('Segunda LEX_ALE'!O5="","",'Segunda LEX_ALE'!O5) ->  | M174: =IF('Segunda LEX_ALE'!P5="","",'Segunda LEX_ALE'!P5) ->  | N174: =IF('Segunda LEX_ALE'!Q5="","",'Segunda LEX_ALE'!Q5) ->  | O174: =IF('Segunda LEX_ALE'!R5="","",'Segunda LEX_ALE'!R5) ->  | P174: =IF('Segunda LEX_ALE'!S5="","",'Segunda LEX_ALE'!S5) ->  | Q174: =IF('Segunda LEX_ALE'!T5="","",'Segunda LEX_ALE'!T5) ->  | R174: =IF('Segunda LEX_ALE'!U5="","",'Segunda LEX_ALE'!U5) ->  | S174: =IF('Segunda LEX_ALE'!V5="","",'Segunda LEX_ALE'!V5) ->  | T174: =IF('Segunda LEX_ALE'!W5="","",'Segunda LEX_ALE'!W5) ->  | U174: =IF('Segunda LEX_ALE'!X5="","",'Segunda LEX_ALE'!X5) ->  | V174: =IF('Segunda LEX_ALE'!Y5="","",'Segunda LEX_ALE'!Y5) ->  | W174: =IF('Segunda LEX_ALE'!Z5="","",'Segunda LEX_ALE'!Z5) ->  | X174: =IF('Segunda LEX_ALE'!AA5="","",'Segunda LEX_ALE'!AA5) ->  | Y174: =IF('Segunda LEX_ALE'!AB5="","",'Segunda LEX_ALE'!AB5) ->  | Z174: =IF('Segunda LEX_ALE'!AC5="","",'Segunda LEX_ALE'!AC5) ->  | AA174: =IF('Segunda LEX_ALE'!AD5="","",'Segunda LEX_ALE'!AD5) ->  | AB174: =IF('Segunda LEX_ALE'!AE5="","",'Segunda LEX_ALE'!AE5) ->  | AC174: =IF('Segunda LEX_ALE'!AF5="","",'Segunda LEX_ALE'!AF5) ->  | AD174: =IF('Segunda LEX_ALE'!AG5="","",'Segunda LEX_ALE'!AG5) ->  | AE174: =IF('Segunda LEX_ALE'!AH5="","",'Segunda LEX_ALE'!AH5) ->  | AF174: =IF('Segunda LEX_ALE'!AI5="","",'Segunda LEX_ALE'!AI5) ->  | AG174: =IF('Segunda LEX_ALE'!AJ5="","",'Segunda LEX_ALE'!AJ5) ->  | AH174: =IF('Segunda LEX_ALE'!AK5="","",'Segunda LEX_ALE'!AK5) ->  | AI174: =IF('Segunda LEX_ALE'!AL5="","",'Segunda LEX_ALE'!AL5) ->  | AJ174: =IF('Segunda LEX_ALE'!AM5="","",'Segunda LEX_ALE'!AM5) ->  | AK174: =IF('Segunda LEX_ALE'!AN5="","",'Segunda LEX_ALE'!AN5) ->  | AL174: =IF('Segunda LEX_ALE'!AO5="","",'Segunda LEX_ALE'!AO5) ->  | AM174: =IF('Segunda LEX_ALE'!AP5="","",'Segunda LEX_ALE'!AP5) -> 
D175: Criterio Evaluación 1.3 | E175: =IF('Segunda LEX_ALE'!H6="","",'Segunda LEX_ALE'!H6) ->  | F175: =IF('Segunda LEX_ALE'!I6="","",'Segunda LEX_ALE'!I6) ->  | G175: =IF('Segunda LEX_ALE'!J6="","",'Segunda LEX_ALE'!J6) ->  | H175: =IF('Segunda LEX_ALE'!K6="","",'Segunda LEX_ALE'!K6) ->  | I175: =IF('Segunda LEX_ALE'!L6="","",'Segunda LEX_ALE'!L6) ->  | J175: =IF('Segunda LEX_ALE'!M6="","",'Segunda LEX_ALE'!M6) ->  | K175: =IF('Segunda LEX_ALE'!N6="","",'Segunda LEX_ALE'!N6) ->  | L175: =IF('Segunda LEX_ALE'!O6="","",'Segunda LEX_ALE'!O6) ->  | M175: =IF('Segunda LEX_ALE'!P6="","",'Segunda LEX_ALE'!P6) ->  | N175: =IF('Segunda LEX_ALE'!Q6="","",'Segunda LEX_ALE'!Q6) ->  | O175: =IF('Segunda LEX_ALE'!R6="","",'Segunda LEX_ALE'!R6) ->  | P175: =IF('Segunda LEX_ALE'!S6="","",'Segunda LEX_ALE'!S6) ->  | Q175: =IF('Segunda LEX_ALE'!T6="","",'Segunda LEX_ALE'!T6) ->  | R175: =IF('Segunda LEX_ALE'!U6="","",'Segunda LEX_ALE'!U6) ->  | S175: =IF('Segunda LEX_ALE'!V6="","",'Segunda LEX_ALE'!V6) ->  | T175: =IF('Segunda LEX_ALE'!W6="","",'Segunda LEX_ALE'!W6) ->  | U175: =IF('Segunda LEX_ALE'!X6="","",'Segunda LEX_ALE'!X6) ->  | V175: =IF('Segunda LEX_ALE'!Y6="","",'Segunda LEX_ALE'!Y6) ->  | W175: =IF('Segunda LEX_ALE'!Z6="","",'Segunda LEX_ALE'!Z6) ->  | X175: =IF('Segunda LEX_ALE'!AA6="","",'Segunda LEX_ALE'!AA6) ->  | Y175: =IF('Segunda LEX_ALE'!AB6="","",'Segunda LEX_ALE'!AB6) ->  | Z175: =IF('Segunda LEX_ALE'!AC6="","",'Segunda LEX_ALE'!AC6) ->  | AA175: =IF('Segunda LEX_ALE'!AD6="","",'Segunda LEX_ALE'!AD6) ->  | AB175: =IF('Segunda LEX_ALE'!AE6="","",'Segunda LEX_ALE'!AE6) ->  | AC175: =IF('Segunda LEX_ALE'!AF6="","",'Segunda LEX_ALE'!AF6) ->  | AD175: =IF('Segunda LEX_ALE'!AG6="","",'Segunda LEX_ALE'!AG6) ->  | AE175: =IF('Segunda LEX_ALE'!AH6="","",'Segunda LEX_ALE'!AH6) ->  | AF175: =IF('Segunda LEX_ALE'!AI6="","",'Segunda LEX_ALE'!AI6) ->  | AG175: =IF('Segunda LEX_ALE'!AJ6="","",'Segunda LEX_ALE'!AJ6) ->  | AH175: =IF('Segunda LEX_ALE'!AK6="","",'Segunda LEX_ALE'!AK6) ->  | AI175: =IF('Segunda LEX_ALE'!AL6="","",'Segunda LEX_ALE'!AL6) ->  | AJ175: =IF('Segunda LEX_ALE'!AM6="","",'Segunda LEX_ALE'!AM6) ->  | AK175: =IF('Segunda LEX_ALE'!AN6="","",'Segunda LEX_ALE'!AN6) ->  | AL175: =IF('Segunda LEX_ALE'!AO6="","",'Segunda LEX_ALE'!AO6) ->  | AM175: =IF('Segunda LEX_ALE'!AP6="","",'Segunda LEX_ALE'!AP6) -> 
D176: Criterio Evaluación 1.4 | E176: =IF('Segunda LEX_ALE'!H7="","",'Segunda LEX_ALE'!H7) ->  | F176: =IF('Segunda LEX_ALE'!I7="","",'Segunda LEX_ALE'!I7) ->  | G176: =IF('Segunda LEX_ALE'!J7="","",'Segunda LEX_ALE'!J7) ->  | H176: =IF('Segunda LEX_ALE'!K7="","",'Segunda LEX_ALE'!K7) ->  | I176: =IF('Segunda LEX_ALE'!L7="","",'Segunda LEX_ALE'!L7) ->  | J176: =IF('Segunda LEX_ALE'!M7="","",'Segunda LEX_ALE'!M7) ->  | K176: =IF('Segunda LEX_ALE'!N7="","",'Segunda LEX_ALE'!N7) ->  | L176: =IF('Segunda LEX_ALE'!O7="","",'Segunda LEX_ALE'!O7) ->  | M176: =IF('Segunda LEX_ALE'!P7="","",'Segunda LEX_ALE'!P7) ->  | N176: =IF('Segunda LEX_ALE'!Q7="","",'Segunda LEX_ALE'!Q7) ->  | O176: =IF('Segunda LEX_ALE'!R7="","",'Segunda LEX_ALE'!R7) ->  | P176: =IF('Segunda LEX_ALE'!S7="","",'Segunda LEX_ALE'!S7) ->  | Q176: =IF('Segunda LEX_ALE'!T7="","",'Segunda LEX_ALE'!T7) ->  | R176: =IF('Segunda LEX_ALE'!U7="","",'Segunda LEX_ALE'!U7) ->  | S176: =IF('Segunda LEX_ALE'!V7="","",'Segunda LEX_ALE'!V7) ->  | T176: =IF('Segunda LEX_ALE'!W7="","",'Segunda LEX_ALE'!W7) ->  | U176: =IF('Segunda LEX_ALE'!X7="","",'Segunda LEX_ALE'!X7) ->  | V176: =IF('Segunda LEX_ALE'!Y7="","",'Segunda LEX_ALE'!Y7) ->  | W176: =IF('Segunda LEX_ALE'!Z7="","",'Segunda LEX_ALE'!Z7) ->  | X176: =IF('Segunda LEX_ALE'!AA7="","",'Segunda LEX_ALE'!AA7) ->  | Y176: =IF('Segunda LEX_ALE'!AB7="","",'Segunda LEX_ALE'!AB7) ->  | Z176: =IF('Segunda LEX_ALE'!AC7="","",'Segunda LEX_ALE'!AC7) ->  | AA176: =IF('Segunda LEX_ALE'!AD7="","",'Segunda LEX_ALE'!AD7) ->  | AB176: =IF('Segunda LEX_ALE'!AE7="","",'Segunda LEX_ALE'!AE7) ->  | AC176: =IF('Segunda LEX_ALE'!AF7="","",'Segunda LEX_ALE'!AF7) ->  | AD176: =IF('Segunda LEX_ALE'!AG7="","",'Segunda LEX_ALE'!AG7) ->  | AE176: =IF('Segunda LEX_ALE'!AH7="","",'Segunda LEX_ALE'!AH7) ->  | AF176: =IF('Segunda LEX_ALE'!AI7="","",'Segunda LEX_ALE'!AI7) ->  | AG176: =IF('Segunda LEX_ALE'!AJ7="","",'Segunda LEX_ALE'!AJ7) ->  | AH176: =IF('Segunda LEX_ALE'!AK7="","",'Segunda LEX_ALE'!AK7) ->  | AI176: =IF('Segunda LEX_ALE'!AL7="","",'Segunda LEX_ALE'!AL7) ->  | AJ176: =IF('Segunda LEX_ALE'!AM7="","",'Segunda LEX_ALE'!AM7) ->  | AK176: =IF('Segunda LEX_ALE'!AN7="","",'Segunda LEX_ALE'!AN7) ->  | AL176: =IF('Segunda LEX_ALE'!AO7="","",'Segunda LEX_ALE'!AO7) ->  | AM176: =IF('Segunda LEX_ALE'!AP7="","",'Segunda LEX_ALE'!AP7) -> 
D177: Criterio Evaluación 1.5 | E177: =IF('Segunda LEX_ALE'!H8="","",'Segunda LEX_ALE'!H8) ->  | F177: =IF('Segunda LEX_ALE'!I8="","",'Segunda LEX_ALE'!I8) ->  | G177: =IF('Segunda LEX_ALE'!J8="","",'Segunda LEX_ALE'!J8) ->  | H177: =IF('Segunda LEX_ALE'!K8="","",'Segunda LEX_ALE'!K8) ->  | I177: =IF('Segunda LEX_ALE'!L8="","",'Segunda LEX_ALE'!L8) ->  | J177: =IF('Segunda LEX_ALE'!M8="","",'Segunda LEX_ALE'!M8) ->  | K177: =IF('Segunda LEX_ALE'!N8="","",'Segunda LEX_ALE'!N8) ->  | L177: =IF('Segunda LEX_ALE'!O8="","",'Segunda LEX_ALE'!O8) ->  | M177: =IF('Segunda LEX_ALE'!P8="","",'Segunda LEX_ALE'!P8) ->  | N177: =IF('Segunda LEX_ALE'!Q8="","",'Segunda LEX_ALE'!Q8) ->  | O177: =IF('Segunda LEX_ALE'!R8="","",'Segunda LEX_ALE'!R8) ->  | P177: =IF('Segunda LEX_ALE'!S8="","",'Segunda LEX_ALE'!S8) ->  | Q177: =IF('Segunda LEX_ALE'!T8="","",'Segunda LEX_ALE'!T8) ->  | R177: =IF('Segunda LEX_ALE'!U8="","",'Segunda LEX_ALE'!U8) ->  | S177: =IF('Segunda LEX_ALE'!V8="","",'Segunda LEX_ALE'!V8) ->  | T177: =IF('Segunda LEX_ALE'!W8="","",'Segunda LEX_ALE'!W8) ->  | U177: =IF('Segunda LEX_ALE'!X8="","",'Segunda LEX_ALE'!X8) ->  | V177: =IF('Segunda LEX_ALE'!Y8="","",'Segunda LEX_ALE'!Y8) ->  | W177: =IF('Segunda LEX_ALE'!Z8="","",'Segunda LEX_ALE'!Z8) ->  | X177: =IF('Segunda LEX_ALE'!AA8="","",'Segunda LEX_ALE'!AA8) ->  | Y177: =IF('Segunda LEX_ALE'!AB8="","",'Segunda LEX_ALE'!AB8) ->  | Z177: =IF('Segunda LEX_ALE'!AC8="","",'Segunda LEX_ALE'!AC8) ->  | AA177: =IF('Segunda LEX_ALE'!AD8="","",'Segunda LEX_ALE'!AD8) ->  | AB177: =IF('Segunda LEX_ALE'!AE8="","",'Segunda LEX_ALE'!AE8) ->  | AC177: =IF('Segunda LEX_ALE'!AF8="","",'Segunda LEX_ALE'!AF8) ->  | AD177: =IF('Segunda LEX_ALE'!AG8="","",'Segunda LEX_ALE'!AG8) ->  | AE177: =IF('Segunda LEX_ALE'!AH8="","",'Segunda LEX_ALE'!AH8) ->  | AF177: =IF('Segunda LEX_ALE'!AI8="","",'Segunda LEX_ALE'!AI8) ->  | AG177: =IF('Segunda LEX_ALE'!AJ8="","",'Segunda LEX_ALE'!AJ8) ->  | AH177: =IF('Segunda LEX_ALE'!AK8="","",'Segunda LEX_ALE'!AK8) ->  | AI177: =IF('Segunda LEX_ALE'!AL8="","",'Segunda LEX_ALE'!AL8) ->  | AJ177: =IF('Segunda LEX_ALE'!AM8="","",'Segunda LEX_ALE'!AM8) ->  | AK177: =IF('Segunda LEX_ALE'!AN8="","",'Segunda LEX_ALE'!AN8) ->  | AL177: =IF('Segunda LEX_ALE'!AO8="","",'Segunda LEX_ALE'!AO8) ->  | AM177: =IF('Segunda LEX_ALE'!AP8="","",'Segunda LEX_ALE'!AP8) -> 
C178: Comp. Esp. 2 | D178: Criterio Evaluación 2.1 | E178: =IF('Segunda LEX_ALE'!H9="","",'Segunda LEX_ALE'!H9) ->  | F178: =IF('Segunda LEX_ALE'!I9="","",'Segunda LEX_ALE'!I9) ->  | G178: =IF('Segunda LEX_ALE'!J9="","",'Segunda LEX_ALE'!J9) ->  | H178: =IF('Segunda LEX_ALE'!K9="","",'Segunda LEX_ALE'!K9) ->  | I178: =IF('Segunda LEX_ALE'!L9="","",'Segunda LEX_ALE'!L9) ->  | J178: =IF('Segunda LEX_ALE'!M9="","",'Segunda LEX_ALE'!M9) ->  | K178: =IF('Segunda LEX_ALE'!N9="","",'Segunda LEX_ALE'!N9) ->  | L178: =IF('Segunda LEX_ALE'!O9="","",'Segunda LEX_ALE'!O9) ->  | M178: =IF('Segunda LEX_ALE'!P9="","",'Segunda LEX_ALE'!P9) ->  | N178: =IF('Segunda LEX_ALE'!Q9="","",'Segunda LEX_ALE'!Q9) ->  | O178: =IF('Segunda LEX_ALE'!R9="","",'Segunda LEX_ALE'!R9) ->  | P178: =IF('Segunda LEX_ALE'!S9="","",'Segunda LEX_ALE'!S9) ->  | Q178: =IF('Segunda LEX_ALE'!T9="","",'Segunda LEX_ALE'!T9) ->  | R178: =IF('Segunda LEX_ALE'!U9="","",'Segunda LEX_ALE'!U9) ->  | S178: =IF('Segunda LEX_ALE'!V9="","",'Segunda LEX_ALE'!V9) ->  | T178: =IF('Segunda LEX_ALE'!W9="","",'Segunda LEX_ALE'!W9) ->  | U178: =IF('Segunda LEX_ALE'!X9="","",'Segunda LEX_ALE'!X9) ->  | V178: =IF('Segunda LEX_ALE'!Y9="","",'Segunda LEX_ALE'!Y9) ->  | W178: =IF('Segunda LEX_ALE'!Z9="","",'Segunda LEX_ALE'!Z9) ->  | X178: =IF('Segunda LEX_ALE'!AA9="","",'Segunda LEX_ALE'!AA9) ->  | Y178: =IF('Segunda LEX_ALE'!AB9="","",'Segunda LEX_ALE'!AB9) ->  | Z178: =IF('Segunda LEX_ALE'!AC9="","",'Segunda LEX_ALE'!AC9) ->  | AA178: =IF('Segunda LEX_ALE'!AD9="","",'Segunda LEX_ALE'!AD9) ->  | AB178: =IF('Segunda LEX_ALE'!AE9="","",'Segunda LEX_ALE'!AE9) ->  | AC178: =IF('Segunda LEX_ALE'!AF9="","",'Segunda LEX_ALE'!AF9) ->  | AD178: =IF('Segunda LEX_ALE'!AG9="","",'Segunda LEX_ALE'!AG9) ->  | AE178: =IF('Segunda LEX_ALE'!AH9="","",'Segunda LEX_ALE'!AH9) ->  | AF178: =IF('Segunda LEX_ALE'!AI9="","",'Segunda LEX_ALE'!AI9) ->  | AG178: =IF('Segunda LEX_ALE'!AJ9="","",'Segunda LEX_ALE'!AJ9) ->  | AH178: =IF('Segunda LEX_ALE'!AK9="","",'Segunda LEX_ALE'!AK9) ->  | AI178: =IF('Segunda LEX_ALE'!AL9="","",'Segunda LEX_ALE'!AL9) ->  | AJ178: =IF('Segunda LEX_ALE'!AM9="","",'Segunda LEX_ALE'!AM9) ->  | AK178: =IF('Segunda LEX_ALE'!AN9="","",'Segunda LEX_ALE'!AN9) ->  | AL178: =IF('Segunda LEX_ALE'!AO9="","",'Segunda LEX_ALE'!AO9) ->  | AM178: =IF('Segunda LEX_ALE'!AP9="","",'Segunda LEX_ALE'!AP9) -> 
D179: Criterio Evaluación 2.2 | E179: =IF('Segunda LEX_ALE'!H10="","",'Segunda LEX_ALE'!H10) ->  | F179: =IF('Segunda LEX_ALE'!I10="","",'Segunda LEX_ALE'!I10) ->  | G179: =IF('Segunda LEX_ALE'!J10="","",'Segunda LEX_ALE'!J10) ->  | H179: =IF('Segunda LEX_ALE'!K10="","",'Segunda LEX_ALE'!K10) ->  | I179: =IF('Segunda LEX_ALE'!L10="","",'Segunda LEX_ALE'!L10) ->  | J179: =IF('Segunda LEX_ALE'!M10="","",'Segunda LEX_ALE'!M10) ->  | K179: =IF('Segunda LEX_ALE'!N10="","",'Segunda LEX_ALE'!N10) ->  | L179: =IF('Segunda LEX_ALE'!O10="","",'Segunda LEX_ALE'!O10) ->  | M179: =IF('Segunda LEX_ALE'!P10="","",'Segunda LEX_ALE'!P10) ->  | N179: =IF('Segunda LEX_ALE'!Q10="","",'Segunda LEX_ALE'!Q10) ->  | O179: =IF('Segunda LEX_ALE'!R10="","",'Segunda LEX_ALE'!R10) ->  | P179: =IF('Segunda LEX_ALE'!S10="","",'Segunda LEX_ALE'!S10) ->  | Q179: =IF('Segunda LEX_ALE'!T10="","",'Segunda LEX_ALE'!T10) ->  | R179: =IF('Segunda LEX_ALE'!U10="","",'Segunda LEX_ALE'!U10) ->  | S179: =IF('Segunda LEX_ALE'!V10="","",'Segunda LEX_ALE'!V10) ->  | T179: =IF('Segunda LEX_ALE'!W10="","",'Segunda LEX_ALE'!W10) ->  | U179: =IF('Segunda LEX_ALE'!X10="","",'Segunda LEX_ALE'!X10) ->  | V179: =IF('Segunda LEX_ALE'!Y10="","",'Segunda LEX_ALE'!Y10) ->  | W179: =IF('Segunda LEX_ALE'!Z10="","",'Segunda LEX_ALE'!Z10) ->  | X179: =IF('Segunda LEX_ALE'!AA10="","",'Segunda LEX_ALE'!AA10) ->  | Y179: =IF('Segunda LEX_ALE'!AB10="","",'Segunda LEX_ALE'!AB10) ->  | Z179: =IF('Segunda LEX_ALE'!AC10="","",'Segunda LEX_ALE'!AC10) ->  | AA179: =IF('Segunda LEX_ALE'!AD10="","",'Segunda LEX_ALE'!AD10) ->  | AB179: =IF('Segunda LEX_ALE'!AE10="","",'Segunda LEX_ALE'!AE10) ->  | AC179: =IF('Segunda LEX_ALE'!AF10="","",'Segunda LEX_ALE'!AF10) ->  | AD179: =IF('Segunda LEX_ALE'!AG10="","",'Segunda LEX_ALE'!AG10) ->  | AE179: =IF('Segunda LEX_ALE'!AH10="","",'Segunda LEX_ALE'!AH10) ->  | AF179: =IF('Segunda LEX_ALE'!AI10="","",'Segunda LEX_ALE'!AI10) ->  | AG179: =IF('Segunda LEX_ALE'!AJ10="","",'Segunda LEX_ALE'!AJ10) ->  | AH179: =IF('Segunda LEX_ALE'!AK10="","",'Segunda LEX_ALE'!AK10) ->  | AI179: =IF('Segunda LEX_ALE'!AL10="","",'Segunda LEX_ALE'!AL10) ->  | AJ179: =IF('Segunda LEX_ALE'!AM10="","",'Segunda LEX_ALE'!AM10) ->  | AK179: =IF('Segunda LEX_ALE'!AN10="","",'Segunda LEX_ALE'!AN10) ->  | AL179: =IF('Segunda LEX_ALE'!AO10="","",'Segunda LEX_ALE'!AO10) ->  | AM179: =IF('Segunda LEX_ALE'!AP10="","",'Segunda LEX_ALE'!AP10) -> 
D180: Criterio Evaluación 2.3 | E180: =IF('Segunda LEX_ALE'!H11="","",'Segunda LEX_ALE'!H11) ->  | F180: =IF('Segunda LEX_ALE'!I11="","",'Segunda LEX_ALE'!I11) ->  | G180: =IF('Segunda LEX_ALE'!J11="","",'Segunda LEX_ALE'!J11) ->  | H180: =IF('Segunda LEX_ALE'!K11="","",'Segunda LEX_ALE'!K11) ->  | I180: =IF('Segunda LEX_ALE'!L11="","",'Segunda LEX_ALE'!L11) ->  | J180: =IF('Segunda LEX_ALE'!M11="","",'Segunda LEX_ALE'!M11) ->  | K180: =IF('Segunda LEX_ALE'!N11="","",'Segunda LEX_ALE'!N11) ->  | L180: =IF('Segunda LEX_ALE'!O11="","",'Segunda LEX_ALE'!O11) ->  | M180: =IF('Segunda LEX_ALE'!P11="","",'Segunda LEX_ALE'!P11) ->  | N180: =IF('Segunda LEX_ALE'!Q11="","",'Segunda LEX_ALE'!Q11) ->  | O180: =IF('Segunda LEX_ALE'!R11="","",'Segunda LEX_ALE'!R11) ->  | P180: =IF('Segunda LEX_ALE'!S11="","",'Segunda LEX_ALE'!S11) ->  | Q180: =IF('Segunda LEX_ALE'!T11="","",'Segunda LEX_ALE'!T11) ->  | R180: =IF('Segunda LEX_ALE'!U11="","",'Segunda LEX_ALE'!U11) ->  | S180: =IF('Segunda LEX_ALE'!V11="","",'Segunda LEX_ALE'!V11) ->  | T180: =IF('Segunda LEX_ALE'!W11="","",'Segunda LEX_ALE'!W11) ->  | U180: =IF('Segunda LEX_ALE'!X11="","",'Segunda LEX_ALE'!X11) ->  | V180: =IF('Segunda LEX_ALE'!Y11="","",'Segunda LEX_ALE'!Y11) ->  | W180: =IF('Segunda LEX_ALE'!Z11="","",'Segunda LEX_ALE'!Z11) ->  | X180: =IF('Segunda LEX_ALE'!AA11="","",'Segunda LEX_ALE'!AA11) ->  | Y180: =IF('Segunda LEX_ALE'!AB11="","",'Segunda LEX_ALE'!AB11) ->  | Z180: =IF('Segunda LEX_ALE'!AC11="","",'Segunda LEX_ALE'!AC11) ->  | AA180: =IF('Segunda LEX_ALE'!AD11="","",'Segunda LEX_ALE'!AD11) ->  | AB180: =IF('Segunda LEX_ALE'!AE11="","",'Segunda LEX_ALE'!AE11) ->  | AC180: =IF('Segunda LEX_ALE'!AF11="","",'Segunda LEX_ALE'!AF11) ->  | AD180: =IF('Segunda LEX_ALE'!AG11="","",'Segunda LEX_ALE'!AG11) ->  | AE180: =IF('Segunda LEX_ALE'!AH11="","",'Segunda LEX_ALE'!AH11) ->  | AF180: =IF('Segunda LEX_ALE'!AI11="","",'Segunda LEX_ALE'!AI11) ->  | AG180: =IF('Segunda LEX_ALE'!AJ11="","",'Segunda LEX_ALE'!AJ11) ->  | AH180: =IF('Segunda LEX_ALE'!AK11="","",'Segunda LEX_ALE'!AK11) ->  | AI180: =IF('Segunda LEX_ALE'!AL11="","",'Segunda LEX_ALE'!AL11) ->  | AJ180: =IF('Segunda LEX_ALE'!AM11="","",'Segunda LEX_ALE'!AM11) ->  | AK180: =IF('Segunda LEX_ALE'!AN11="","",'Segunda LEX_ALE'!AN11) ->  | AL180: =IF('Segunda LEX_ALE'!AO11="","",'Segunda LEX_ALE'!AO11) ->  | AM180: =IF('Segunda LEX_ALE'!AP11="","",'Segunda LEX_ALE'!AP11) -> 
D181: Criterio Evaluación 2.4 | E181: =IF('Segunda LEX_ALE'!H12="","",'Segunda LEX_ALE'!H12) ->  | F181: =IF('Segunda LEX_ALE'!I12="","",'Segunda LEX_ALE'!I12) ->  | G181: =IF('Segunda LEX_ALE'!J12="","",'Segunda LEX_ALE'!J12) ->  | H181: =IF('Segunda LEX_ALE'!K12="","",'Segunda LEX_ALE'!K12) ->  | I181: =IF('Segunda LEX_ALE'!L12="","",'Segunda LEX_ALE'!L12) ->  | J181: =IF('Segunda LEX_ALE'!M12="","",'Segunda LEX_ALE'!M12) ->  | K181: =IF('Segunda LEX_ALE'!N12="","",'Segunda LEX_ALE'!N12) ->  | L181: =IF('Segunda LEX_ALE'!O12="","",'Segunda LEX_ALE'!O12) ->  | M181: =IF('Segunda LEX_ALE'!P12="","",'Segunda LEX_ALE'!P12) ->  | N181: =IF('Segunda LEX_ALE'!Q12="","",'Segunda LEX_ALE'!Q12) ->  | O181: =IF('Segunda LEX_ALE'!R12="","",'Segunda LEX_ALE'!R12) ->  | P181: =IF('Segunda LEX_ALE'!S12="","",'Segunda LEX_ALE'!S12) ->  | Q181: =IF('Segunda LEX_ALE'!T12="","",'Segunda LEX_ALE'!T12) ->  | R181: =IF('Segunda LEX_ALE'!U12="","",'Segunda LEX_ALE'!U12) ->  | S181: =IF('Segunda LEX_ALE'!V12="","",'Segunda LEX_ALE'!V12) ->  | T181: =IF('Segunda LEX_ALE'!W12="","",'Segunda LEX_ALE'!W12) ->  | U181: =IF('Segunda LEX_ALE'!X12="","",'Segunda LEX_ALE'!X12) ->  | V181: =IF('Segunda LEX_ALE'!Y12="","",'Segunda LEX_ALE'!Y12) ->  | W181: =IF('Segunda LEX_ALE'!Z12="","",'Segunda LEX_ALE'!Z12) ->  | X181: =IF('Segunda LEX_ALE'!AA12="","",'Segunda LEX_ALE'!AA12) ->  | Y181: =IF('Segunda LEX_ALE'!AB12="","",'Segunda LEX_ALE'!AB12) ->  | Z181: =IF('Segunda LEX_ALE'!AC12="","",'Segunda LEX_ALE'!AC12) ->  | AA181: =IF('Segunda LEX_ALE'!AD12="","",'Segunda LEX_ALE'!AD12) ->  | AB181: =IF('Segunda LEX_ALE'!AE12="","",'Segunda LEX_ALE'!AE12) ->  | AC181: =IF('Segunda LEX_ALE'!AF12="","",'Segunda LEX_ALE'!AF12) ->  | AD181: =IF('Segunda LEX_ALE'!AG12="","",'Segunda LEX_ALE'!AG12) ->  | AE181: =IF('Segunda LEX_ALE'!AH12="","",'Segunda LEX_ALE'!AH12) ->  | AF181: =IF('Segunda LEX_ALE'!AI12="","",'Segunda LEX_ALE'!AI12) ->  | AG181: =IF('Segunda LEX_ALE'!AJ12="","",'Segunda LEX_ALE'!AJ12) ->  | AH181: =IF('Segunda LEX_ALE'!AK12="","",'Segunda LEX_ALE'!AK12) ->  | AI181: =IF('Segunda LEX_ALE'!AL12="","",'Segunda LEX_ALE'!AL12) ->  | AJ181: =IF('Segunda LEX_ALE'!AM12="","",'Segunda LEX_ALE'!AM12) ->  | AK181: =IF('Segunda LEX_ALE'!AN12="","",'Segunda LEX_ALE'!AN12) ->  | AL181: =IF('Segunda LEX_ALE'!AO12="","",'Segunda LEX_ALE'!AO12) ->  | AM181: =IF('Segunda LEX_ALE'!AP12="","",'Segunda LEX_ALE'!AP12) -> 
C182: Comp. Esp. 3 | D182: Criterio Evaluación 3.1 | E182: =IF('Segunda LEX_ALE'!H13="","",'Segunda LEX_ALE'!H13) ->  | F182: =IF('Segunda LEX_ALE'!I13="","",'Segunda LEX_ALE'!I13) ->  | G182: =IF('Segunda LEX_ALE'!J13="","",'Segunda LEX_ALE'!J13) ->  | H182: =IF('Segunda LEX_ALE'!K13="","",'Segunda LEX_ALE'!K13) ->  | I182: =IF('Segunda LEX_ALE'!L13="","",'Segunda LEX_ALE'!L13) ->  | J182: =IF('Segunda LEX_ALE'!M13="","",'Segunda LEX_ALE'!M13) ->  | K182: =IF('Segunda LEX_ALE'!N13="","",'Segunda LEX_ALE'!N13) ->  | L182: =IF('Segunda LEX_ALE'!O13="","",'Segunda LEX_ALE'!O13) ->  | M182: =IF('Segunda LEX_ALE'!P13="","",'Segunda LEX_ALE'!P13) ->  | N182: =IF('Segunda LEX_ALE'!Q13="","",'Segunda LEX_ALE'!Q13) ->  | O182: =IF('Segunda LEX_ALE'!R13="","",'Segunda LEX_ALE'!R13) ->  | P182: =IF('Segunda LEX_ALE'!S13="","",'Segunda LEX_ALE'!S13) ->  | Q182: =IF('Segunda LEX_ALE'!T13="","",'Segunda LEX_ALE'!T13) ->  | R182: =IF('Segunda LEX_ALE'!U13="","",'Segunda LEX_ALE'!U13) ->  | S182: =IF('Segunda LEX_ALE'!V13="","",'Segunda LEX_ALE'!V13) ->  | T182: =IF('Segunda LEX_ALE'!W13="","",'Segunda LEX_ALE'!W13) ->  | U182: =IF('Segunda LEX_ALE'!X13="","",'Segunda LEX_ALE'!X13) ->  | V182: =IF('Segunda LEX_ALE'!Y13="","",'Segunda LEX_ALE'!Y13) ->  | W182: =IF('Segunda LEX_ALE'!Z13="","",'Segunda LEX_ALE'!Z13) ->  | X182: =IF('Segunda LEX_ALE'!AA13="","",'Segunda LEX_ALE'!AA13) ->  | Y182: =IF('Segunda LEX_ALE'!AB13="","",'Segunda LEX_ALE'!AB13) ->  | Z182: =IF('Segunda LEX_ALE'!AC13="","",'Segunda LEX_ALE'!AC13) ->  | AA182: =IF('Segunda LEX_ALE'!AD13="","",'Segunda LEX_ALE'!AD13) ->  | AB182: =IF('Segunda LEX_ALE'!AE13="","",'Segunda LEX_ALE'!AE13) ->  | AC182: =IF('Segunda LEX_ALE'!AF13="","",'Segunda LEX_ALE'!AF13) ->  | AD182: =IF('Segunda LEX_ALE'!AG13="","",'Segunda LEX_ALE'!AG13) ->  | AE182: =IF('Segunda LEX_ALE'!AH13="","",'Segunda LEX_ALE'!AH13) ->  | AF182: =IF('Segunda LEX_ALE'!AI13="","",'Segunda LEX_ALE'!AI13) ->  | AG182: =IF('Segunda LEX_ALE'!AJ13="","",'Segunda LEX_ALE'!AJ13) ->  | AH182: =IF('Segunda LEX_ALE'!AK13="","",'Segunda LEX_ALE'!AK13) ->  | AI182: =IF('Segunda LEX_ALE'!AL13="","",'Segunda LEX_ALE'!AL13) ->  | AJ182: =IF('Segunda LEX_ALE'!AM13="","",'Segunda LEX_ALE'!AM13) ->  | AK182: =IF('Segunda LEX_ALE'!AN13="","",'Segunda LEX_ALE'!AN13) ->  | AL182: =IF('Segunda LEX_ALE'!AO13="","",'Segunda LEX_ALE'!AO13) ->  | AM182: =IF('Segunda LEX_ALE'!AP13="","",'Segunda LEX_ALE'!AP13) -> 
